Workbook

Sheet Direct - 2023
A1: Texas Gas Service Company, a Division of ONE Gas, Inc. - Rio Grande Valley Service Area Service Area
A2: Interim Rate Adjustment Application
A3: 12 Month Period Ending December 31, 2023
A4: Investment Report - Direct Additions Project Report
A6: INVESTMENT REPORT - SUMMARY OF RIO GRANDE VALLEY DIRECT PLANT IN SERVICE (101 & 106) PROJECT ACTIVITY
A8: Line No. | B8: Project No. | C8: Project Description | D8: Utility Account | E8: Function Description | F8: Customers Benefited (Location) | G8: Customers Benefited (Class) | H8: Project In Service Date (Note 1) | I8: GL Posting Date | J8: FERC Activity Code | K8: GL Account | L8: TYE Project Activity Cost | M8: Adjustments Related to Last Rate Case or Previous Grips | N8: Adjustments Current Grip: Miscoded Plant | O8: Adjustments Current GRIP: Duplicate Tax | P8: Adjustments Current GRIP: Meals and Hotels > RRC limit (Note 2) | Q8: Adjusted TYE Project Activity Cost | R8: Comments
A9: (a) | B9: (b) | C9: (c) | D9: (d) | E9: (e) | F9: (f) | G9: (g) | H9: (h) | I9: (i) | J9: (j) | K9: (k) | L9: (l) | M9: (m) | N9: (n) | O9: (o) | P9: (p) | Q9: (q) | R9: (r)
Q10: (col l thru p)
A11: 11 | B11: 091.042.7044.010002 | C11: PROJECT FCT 042 - 30747 E EXPRESSWAY 77 - COMMERCIAL PLAZA (HP LOOP + SL) | D11: 369 - Measuring & Regulating Sta Eq | E11: Line Extensions to Connect New Customers and Connections for New Gas Supply | F11: TGS Shared Services | G11: COMMERCIAL | H11: 2022-12-14 | I11: 2023-01-01 | J11: Addition | K11: 106 | L11: 467.77 | Q11: =SUM(L11:P11) -> 467.77
A12: 12 | B12: 091.042.7044.010002 | C12: PROJECT FCT 042 - 30747 E EXPRESSWAY 77 - COMMERCIAL PLAZA (HP LOOP + SL) | D12: 380.0 - Services | E12: Line Extensions to Connect New Customers and Connections for New Gas Supply | F12: TGS Shared Services | G12: COMMERCIAL | H12: 2022-12-14 | I12: 2023-01-01 | J12: Addition | K12: 106 | L12: 1656.45 | Q12: 1656.45
A13: 13 | B13: 091.042.7044.010003 | C13: PROJECT FCT 042 - 23340 WILCOX RD - RURAL TAP | D13: 369 - Measuring & Regulating Sta Eq | E13: Line Extensions to Connect New Customers and Connections for New Gas Supply | F13: TGS Shared Services | G13: RESIDENTIAL | H13: 2023-12-13 | I13: 2023-12-01 | J13: Addition | K13: 106 | L13: 47370.47 | Q13: 47370.47
A14: 14 | B14: 091.043.7044.010021 | C14: PROJECT FCT 043 LOS FRESNOS - INSTALL VALLEY CROSSING TBS ON LINE 250-4 | D14: 366.2 - Measuring Station Structure | E14: Line or Equipment Replacements Due to Obsolescence, Inadequate Components, or Construction Change | F14: TGS Shared Services | G14: ALL CLASSES | H14: 2020-12-14 | I14: 2023-06-01 | J14: Addition | K14: 106 | L14: 237.76 | Q14: 237.76
A15: 15 | B15: 091.043.7044.010021 | C15: PROJECT FCT 043 LOS FRESNOS - INSTALL VALLEY CROSSING TBS ON LINE 250-4 | D15: 366.2 - Measuring Station Structure | E15: Line or Equipment Replacements Due to Obsolescence, Inadequate Components, or Construction Change | F15: TGS Shared Services | G15: ALL CLASSES | H15: 2020-12-14 | I15: 2023-12-01 | J15: Addition | K15: 106 | L15: -25.47 | M15: 25.47 | Q15: 0 | R15: Entry made by property accounting for TYE 2022 RFI 2-1 & 2-4 Adjustment
A16: 16 | B16: 091.043.7044.010021 | C16: PROJECT FCT 043 LOS FRESNOS - INSTALL VALLEY CROSSING TBS ON LINE 250-4 | D16: 366.2 - Measuring Station Structure | E16: Line or Equipment Replacements Due to Obsolescence, Inadequate Components, or Construction Change | F16: TGS Shared Services | G16: ALL CLASSES | H16: 2020-12-14 | I16: 2023-04-01 | J16: Addition | K16: 106 | L16: 150.46 | Q16: 150.46
A17: 17 | B17: 091.043.7044.010021 | C17: PROJECT FCT 043 LOS FRESNOS - INSTALL VALLEY CROSSING TBS ON LINE 250-4 | D17: 369 - Measuring & Regulating Sta Eq | E17: Line or Equipment Replacements Due to Obsolescence, Inadequate Components, or Construction Change | F17: TGS Shared Services | G17: ALL CLASSES | H17: 2020-12-14 | I17: 2023-06-01 | J17: Addition | K17: 106 | L17: 1204.21 | Q17: 1204.21
A18: 18 | B18: 091.043.7044.010021 | C18: PROJECT FCT 043 LOS FRESNOS - INSTALL VALLEY CROSSING TBS ON LINE 250-4 | D18: 369 - Measuring & Regulating Sta Eq | E18: Line or Equipment Replacements Due to Obsolescence, Inadequate Components, or Construction Change | F18: TGS Shared Services | G18: ALL CLASSES | H18: 2020-12-14 | I18: 2023-04-01 | J18: Addition | K18: 106 | L18: 424 | Q18: 424
A19: 19 | B19: 091.043.7044.010035 | C19: TGS RGV-PHARR 043 NDU - (2020 IMP) LINE 184-1 MATERIAL VERIFICATION REPLACEMENTS | D19: 367 - Mains | E19: Line or Equipment Replacements Due to Obsolescence, Inadequate Components, or Construction Change | F19: TGS Shared Services | G19: ALL CLASSES | H19: 2020-06-26 | I19: 2023-03-01 | J19: Addition | K19: 106 | L19: -216.75 | Q19: -216.75
A20: 20 | B20: 091.043.7044.010035 | C20: TGS RGV-PHARR 043 NDU - (2020 IMP) LINE 184-1 MATERIAL VERIFICATION REPLACEMENTS | D20: 367 - Mains | E20: Line or Equipment Replacements Due to Obsolescence, Inadequate Components, or Construction Change | F20: TGS Shared Services | G20: ALL CLASSES | H20: 2020-06-26 | I20: 2023-05-01 | J20: Addition | K20: 101 | L20: 15913.18 | Q20: 15913.18
A21: 21 | B21: 091.043.7044.010035 | C21: TGS RGV-PHARR 043 NDU - (2020 IMP) LINE 184-1 MATERIAL VERIFICATION REPLACEMENTS | D21: 367 - Mains | E21: Line or Equipment Replacements Due to Obsolescence, Inadequate Components, or Construction Change | F21: TGS Shared Services | G21: ALL CLASSES | H21: 2020-06-26 | I21: 2023-05-01 | J21: Addition | K21: 106 | L21: -15913.18 | Q21: -15913.18
A22: 22 | B22: 091.043.7044.010035 | C22: TGS RGV-PHARR 043 NDU - (2020 IMP) LINE 184-1 MATERIAL VERIFICATION REPLACEMENTS | D22: 367 - Mains | E22: Line or Equipment Replacements Due to Obsolescence, Inadequate Components, or Construction Change | F22: TGS Shared Services | G22: ALL CLASSES | H22: 2020-06-26 | I22: 2023-05-01 | J22: Retirement | K22: 101 | L22: -3.35 | Q22: -3.35
A23: 23 | B23: 091.043.7044.010040 | C23: PROJECT FCT 043 - LINE 184-1 - RELOCATE 3,300' OF 6" CS DUE TO SHALLOW PIPE ALONG E. LAS MILPAS RD | D23: 367 - Mains | E23: Line or Equipment Replacements Due to Obsolescence, Inadequate Components, or Construction Change | F23: TGS Shared Services | G23: ALL CLASSES | H23: 2020-07-02 | I23: 2023-06-01 | J23: Addition | K23: 101 | L23: 385978.03 | Q23: 385978.03
A24: 24 | B24: 091.043.7044.010040 | C24: PROJECT FCT 043 - LINE 184-1 - RELOCATE 3,300' OF 6" CS DUE TO SHALLOW PIPE ALONG E. LAS MILPAS RD | D24: 367 - Mains | E24: Line or Equipment Replacements Due to Obsolescence, Inadequate Components, or Construction Change | F24: TGS Shared Services | G24: ALL CLASSES | H24: 2020-07-02 | I24: 2023-06-01 | J24: Addition | K24: 106 | L24: -385978.03 | Q24: -385978.03
A25: 25 | B25: 091.043.7044.010040 | C25: PROJECT FCT 043 - LINE 184-1 - RELOCATE 3,300' OF 6" CS DUE TO SHALLOW PIPE ALONG E. LAS MILPAS RD | D25: 367 - Mains | E25: Line or Equipment Replacements Due to Obsolescence, Inadequate Components, or Construction Change | F25: TGS Shared Services | G25: ALL CLASSES | H25: 2020-07-02 | I25: 2023-05-01 | J25: Addition | K25: 106 | L25: -9524.24 | Q25: -9524.24
A26: 26 | B26: 091.043.7044.010040 | C26: PROJECT FCT 043 - LINE 184-1 - RELOCATE 3,300' OF 6" CS DUE TO SHALLOW PIPE ALONG E. LAS MILPAS RD | D26: 367 - Mains | E26: Line or Equipment Replacements Due to Obsolescence, Inadequate Components, or Construction Change | F26: TGS Shared Services | G26: ALL CLASSES | H26: 2020-07-02 | I26: 2023-06-01 | J26: Retirement | K26: 101 | L26: -952.95 | Q26: -952.95
A27: 27 | B27: 091.043.7044.010047 | C27: PROJECT FCT 043 - LINE 250-4 - OFFSET PIPELINE & INSTALL TEE FOR ENBRIDGE INTERCONNECT | D27: 367 - Mains | E27: Line or Equipment Replacements Due to Obsolescence, Inadequate Components, or Construction Change | F27: TGS Shared Services | G27: ALL CLASSES | H27: 2021-10-05 | I27: 2023-03-01 | J27: Addition | K27: 106 | L27: 3372.83 | Q27: 3372.83
A28: 28 | B28: 091.043.7044.010048 | C28: PROJECT FCT 043 HARLINGEN - LINE 250-3 REPLACE REG 172 | D28: 369 - Measuring & Regulating Sta Eq | E28: Line or Equipment Replacements Due to Obsolescence, Inadequate Components, or Construction Change | F28: TGS Shared Services | G28: ALL CLASSES | H28: 2021-11-29 | I28: 2023-03-01 | J28: Addition | K28: 106 | L28: -736.51 | Q28: -736.51
A29: 29 | B29: 091.043.7044.010048 | C29: PROJECT FCT 043 HARLINGEN - LINE 250-3 REPLACE REG 172 | D29: 369 - Measuring & Regulating Sta Eq | E29: Line or Equipment Replacements Due to Obsolescence, Inadequate Components, or Construction Change | F29: TGS Shared Services | G29: ALL CLASSES | H29: 2021-11-29 | I29: 2023-04-01 | J29: Addition | K29: 101 | L29: 22605.42 | Q29: 22605.42
A30: 30 | B30: 091.043.7044.010048 | C30: PROJECT FCT 043 HARLINGEN - LINE 250-3 REPLACE REG 172 | D30: 369 - Measuring & Regulating Sta Eq | E30: Line or Equipment Replacements Due to Obsolescence, Inadequate Components, or Construction Change | F30: TGS Shared Services | G30: ALL CLASSES | H30: 2021-11-29 | I30: 2023-04-01 | J30: Addition | K30: 106 | L30: -22605.42 | Q30: -22605.42
A31: 31 | B31: 091.043.7044.010048 | C31: PROJECT FCT 043 HARLINGEN - LINE 250-3 REPLACE REG 172 | D31: 367 - Mains | E31: Line or Equipment Replacements Due to Obsolescence, Inadequate Components, or Construction Change | F31: TGS Shared Services | G31: ALL CLASSES | H31: 2021-11-29 | I31: 2023-04-01 | J31: Retirement | K31: 101 | L31: -0.98 | Q31: -0.98
A32: 32 | B32: 091.043.7044.010048 | C32: PROJECT FCT 043 HARLINGEN - LINE 250-3 REPLACE REG 172 | D32: 369 - Measuring & Regulating Sta Eq | E32: Line or Equipment Replacements Due to Obsolescence, Inadequate Components, or Construction Change | F32: TGS Shared Services | G32: ALL CLASSES | H32: 2021-11-29 | I32: 2023-04-01 | J32: Retirement | K32: 101 | L32: -88.63 | Q32: -88.63
A33: 33 | B33: 091.043.7044.010049 | C33: FCT 043 - REPLACE RTU AT KINDER MORGAN TBS | D33: 397.0 - Communication Equipment | E33: Line or Equipment Replacements Due to Obsolescence, Inadequate Components, or Construction Change | F33: TGS Shared Services | G33: ALL CLASSES | H33: 2021-10-26 | I33: 2023-07-01 | J33: Addition | K33: 101 | L33: 8121.13 | Q33: 8121.13
A34: 34 | B34: 091.043.7044.010049 | C34: FCT 043 - REPLACE RTU AT KINDER MORGAN TBS | D34: 397.0 - Communication Equipment | E34: Line or Equipment Replacements Due to Obsolescence, Inadequate Components, or Construction Change | F34: TGS Shared Services | G34: ALL CLASSES | H34: 2021-10-26 | I34: 2023-07-01 | J34: Addition | K34: 106 | L34: -8121.13 | Q34: -8121.13
A35: 35 | B35: 091.043.7044.010049 | C35: FCT 043 - REPLACE RTU AT KINDER MORGAN TBS | D35: 397.0 - Communication Equipment | E35: Line or Equipment Replacements Due to Obsolescence, Inadequate Components, or Construction Change | F35: TGS Shared Services | G35: ALL CLASSES | H35: 2021-10-26 | I35: 2023-02-01 | J35: Addition | K35: 106 | L35: 481.96 | Q35: 481.96
A36: 36 | B36: 091.043.7044.010062 | C36: FCT 043 - REPLACE RTU AT LA PALMA STATION (SAN BENITO CG#1) - LINE 198 TO LINE 189 | D36: 397.0 - Communication Equipment | E36: Line or Equipment Replacements Due to Obsolescence, Inadequate Components, or Construction Change | F36: TGS Shared Services | G36: ALL CLASSES | H36: 2021-10-26 | I36: 2023-05-01 | J36: Addition | K36: 101 | L36: 14862.36 | Q36: 14862.36
A37: 37 | B37: 091.043.7044.010062 | C37: FCT 043 - REPLACE RTU AT LA PALMA STATION (SAN BENITO CG#1) - LINE 198 TO LINE 189 | D37: 397.0 - Communication Equipment | E37: Line or Equipment Replacements Due to Obsolescence, Inadequate Components, or Construction Change | F37: TGS Shared Services | G37: ALL CLASSES | H37: 2021-10-26 | I37: 2023-05-01 | J37: Addition | K37: 106 | L37: -14862.36 | Q37: -14862.36
A38: 38 | B38: 091.043.7044.010068 | C38: PROJECT FCT 043 RGV - (2021 IMP) LINE 198-1 - PIPE SAMPLING & MATERIAL REPLACEMENTS | D38: 367 - Mains | E38: Line or Equipment Replacements Due to Obsolescence, Inadequate Components, or Construction Change | F38: TGS Shared Services | G38: ALL CLASSES | H38: 2021-11-18 | I38: 2023-12-01 | J38: Addition | K38: 101 | L38: 43615.34 | Q38: 43615.34
A39: 39 | B39: 091.043.7044.010068 | C39: PROJECT FCT 043 RGV - (2021 IMP) LINE 198-1 - PIPE SAMPLING & MATERIAL REPLACEMENTS | D39: 367 - Mains | E39: Line or Equipment Replacements Due to Obsolescence, Inadequate Components, or Construction Change | F39: TGS Shared Services | G39: ALL CLASSES | H39: 2021-11-18 | I39: 2023-12-01 | J39: Addition | K39: 106 | L39: -43615.34 | Q39: -43615.34
A40: 40 | B40: 091.043.7044.010068 | C40: PROJECT FCT 043 RGV - (2021 IMP) LINE 198-1 - PIPE SAMPLING & MATERIAL REPLACEMENTS | D40: 367 - Mains | E40: Line or Equipment Replacements Due to Obsolescence, Inadequate Components, or Construction Change | F40: TGS Shared Services | G40: ALL CLASSES | H40: 2021-11-18 | I40: 2023-12-01 | J40: Retirement | K40: 101 | L40: -59.9 | Q40: -59.9
A41: 41 | B41: 091.043.7044.010070 | C41: PROJECT FCT 043 MERCEDES - (2021 IMP MAKE READY) LINE 250-2 REPLACE A/G PIPE BTWN MILE 2 & 2.5 E RD | D41: 367 - Mains | E41: Line or Equipment Replacements Due to Obsolescence, Inadequate Components, or Construction Change | F41: TGS Shared Services | G41: ALL CLASSES | H41: 2021-10-05 | I41: 2023-03-01 | J41: Addition | K41: 101 | L41: -201.29 | Q41: -201.29
A42: 42 | B42: 091.043.7044.010079 | C42: PROJECT FCT 043 LA VILLA -2022 IMP LINE 198-3 REPLACEMENT AT LA VILLITA SUBDIVISION ON MILE 17 N RD | D42: 367 - Mains | E42: Line or Equipment Replacements Due to Obsolescence, Inadequate Components, or Construction Change | F42: TGS Shared Services | G42: ALL CLASSES | H42: 2022-10-01 | I42: 2023-10-01 | J42: Addition | K42: 106 | L42: -682.43 | Q42: -682.43
A43: 43 | B43: 091.043.7044.010079 | C43: PROJECT FCT 043 LA VILLA -2022 IMP LINE 198-3 REPLACEMENT AT LA VILLITA SUBDIVISION ON MILE 17 N RD | D43: 367 - Mains | E43: Line or Equipment Replacements Due to Obsolescence, Inadequate Components, or Construction Change | F43: TGS Shared Services | G43: ALL CLASSES | H43: 2022-10-01 | I43: 2023-11-01 | J43: Addition | K43: 101 | L43: 180396.53 | Q43: 180396.53
A44: 44 | B44: 091.043.7044.010079 | C44: PROJECT FCT 043 LA VILLA -2022 IMP LINE 198-3 REPLACEMENT AT LA VILLITA SUBDIVISION ON MILE 17 N RD | D44: 367 - Mains | E44: Line or Equipment Replacements Due to Obsolescence, Inadequate Components, or Construction Change | F44: TGS Shared Services | G44: ALL CLASSES | H44: 2022-10-01 | I44: 2023-11-01 | J44: Addition | K44: 106 | L44: -180396.53 | Q44: -180396.53
A45: 45 | B45: 091.043.7044.010079 | C45: PROJECT FCT 043 LA VILLA -2022 IMP LINE 198-3 REPLACEMENT AT LA VILLITA SUBDIVISION ON MILE 17 N RD | D45: 367 - Mains | E45: Line or Equipment Replacements Due to Obsolescence, Inadequate Components, or Construction Change | F45: TGS Shared Services | G45: ALL CLASSES | H45: 2022-10-01 | I45: 2023-11-01 | J45: Retirement | K45: 101 | L45: -959.25 | Q45: -959.25
A46: 46 | B46: 091.043.7044.010080 | C46: TGS RGV FCT 043 NDU - LINE 198-3 TVC REPLACEMENT | D46: 367 - Mains | E46: Line or Equipment Replacements Due to Obsolescence, Inadequate Components, or Construction Change | F46: TGS Shared Services | G46: ALL CLASSES | H46: 2022-10-15 | I46: 2023-10-01 | J46: Addition | K46: 106 | L46: 8156.97 | Q46: 8156.97
A47: 47 | B47: 091.043.7044.010080 | C47: TGS RGV FCT 043 NDU - LINE 198-3 TVC REPLACEMENT | D47: 367 - Mains | E47: Line or Equipment Replacements Due to Obsolescence, Inadequate Components, or Construction Change | F47: TGS Shared Services | G47: ALL CLASSES | H47: 2022-10-15 | I47: 2023-11-01 | J47: Addition | K47: 101 | L47: 456213.58 | Q47: 456213.58
A48: 48 | B48: 091.043.7044.010080 | C48: TGS RGV FCT 043 NDU - LINE 198-3 TVC REPLACEMENT | D48: 367 - Mains | E48: Line or Equipment Replacements Due to Obsolescence, Inadequate Components, or Construction Change | F48: TGS Shared Services | G48: ALL CLASSES | H48: 2022-10-15 | I48: 2023-11-01 | J48: Addition | K48: 106 | L48: -456213.58 | Q48: -456213.58
A49: 49 | B49: 091.043.7044.010080 | C49: TGS RGV FCT 043 NDU - LINE 198-3 TVC REPLACEMENT | D49: 367 - Mains | E49: Line or Equipment Replacements Due to Obsolescence, Inadequate Components, or Construction Change | F49: TGS Shared Services | G49: ALL CLASSES | H49: 2022-10-15 | I49: 2023-11-01 | J49: Retirement | K49: 101 | L49: -2445.91 | Q49: -2445.91
A50: 50 | B50: 091.043.7044.010081 | C50: PROJECT FCT 043 HIDALGO - SHUT IN PRESSURE TEST TO CLEAR LK2021-10322783 - 1501 N MCCOLL RD | D50: 367 - Mains | E50: Line or Equipment Replacements Due to Obsolescence, Inadequate Components, or Construction Change | F50: TGS Shared Services | G50: RESIDENTIAL/COMMERCIAL | H50: 2022-10-01 | I50: 2023-08-01 | J50: Addition | K50: 106 | L50: 277.07 | Q50: 277.07
A51: 51 | B51: 091.043.7044.010082 | C51: FCT 043 NDU - LINE 198-4 TVC REPLACEMENT | D51: 367 - Mains | E51: Line or Equipment Replacements Due to Obsolescence, Inadequate Components, or Construction Change | F51: TGS Shared Services | G51: ALL CLASSES | H51: 2022-12-30 | I51: 2023-11-01 | J51: Addition | K51: 101 | L51: 149699.68 | Q51: 149699.68
A52: 52 | B52: 091.043.7044.010082 | C52: FCT 043 NDU - LINE 198-4 TVC REPLACEMENT | D52: 367 - Mains | E52: Line or Equipment Replacements Due to Obsolescence, Inadequate Components, or Construction Change | F52: TGS Shared Services | G52: ALL CLASSES | H52: 2022-12-30 | I52: 2023-11-01 | J52: Addition | K52: 106 | L52: -149699.68 | Q52: -149699.68
A53: 53 | B53: 091.043.7044.010082 | C53: FCT 043 NDU - LINE 198-4 TVC REPLACEMENT | D53: 367 - Mains | E53: Line or Equipment Replacements Due to Obsolescence, Inadequate Components, or Construction Change | F53: TGS Shared Services | G53: ALL CLASSES | H53: 2022-12-30 | I53: 2023-01-01 | J53: Addition | K53: 106 | L53: 5138.43 | Q53: 5138.43
A54: 54 | B54: 091.043.7044.010082 | C54: FCT 043 NDU - LINE 198-4 TVC REPLACEMENT | D54: 367 - Mains | E54: Line or Equipment Replacements Due to Obsolescence, Inadequate Components, or Construction Change | F54: TGS Shared Services | G54: ALL CLASSES | H54: 2022-12-30 | I54: 2023-09-01 | J54: Addition | K54: 106 | L54: 5809.08 | Q54: 5809.08
A55: 55 | B55: 091.043.7044.010082 | C55: FCT 043 NDU - LINE 198-4 TVC REPLACEMENT | D55: 367 - Mains | E55: Line or Equipment Replacements Due to Obsolescence, Inadequate Components, or Construction Change | F55: TGS Shared Services | G55: ALL CLASSES | H55: 2022-12-30 | I55: 2023-02-01 | J55: Addition | K55: 106 | L55: 49106.61 | Q55: 49106.61
A56: 56 | B56: 091.043.7044.010082 | C56: FCT 043 NDU - LINE 198-4 TVC REPLACEMENT | D56: 367 - Mains | E56: Line or Equipment Replacements Due to Obsolescence, Inadequate Components, or Construction Change | F56: TGS Shared Services | G56: ALL CLASSES | H56: 2022-12-30 | I56: 2023-11-01 | J56: Retirement | K56: 101 | L56: -20.89 | Q56: -20.89
A57: 57 | B57: 091.043.7044.010083 | C57: FCT 043 NDU - LINE 198-4 - REPLACE CROSSING AT WILLACY CO WID #1 ON SH107 - MAIN REPLACEMENT | D57: 367 - Mains | E57: Line or Equipment Replacements Due to Obsolescence, Inadequate Components, or Construction Change | F57: TGS Shared Services | G57: ALL CLASSES | H57: 2022-12-30 | I57: 2023-03-01 | J57: Addition | K57: 106 | L57: 5950.96 | Q57: 5950.96
A58: 58 | B58: 091.043.7044.010083 | C58: FCT 043 NDU - LINE 198-4 - REPLACE CROSSING AT WILLACY CO WID #1 ON SH107 - MAIN REPLACEMENT | D58: 367 - Mains | E58: Line or Equipment Replacements Due to Obsolescence, Inadequate Components, or Construction Change | F58: TGS Shared Services | G58: ALL CLASSES | H58: 2022-12-30 | I58: 2023-11-01 | J58: Addition | K58: 101 | L58: 238179.61 | Q58: 238179.61
A59: 59 | B59: 091.043.7044.010083 | C59: FCT 043 NDU - LINE 198-4 - REPLACE CROSSING AT WILLACY CO WID #1 ON SH107 - MAIN REPLACEMENT | D59: 367 - Mains | E59: Line or Equipment Replacements Due to Obsolescence, Inadequate Components, or Construction Change | F59: TGS Shared Services | G59: ALL CLASSES | H59: 2022-12-30 | I59: 2023-11-01 | J59: Addition | K59: 106 | L59: -238179.61 | Q59: -238179.61
A60: 60 | B60: 091.043.7044.010083 | C60: FCT 043 NDU - LINE 198-4 - REPLACE CROSSING AT WILLACY CO WID #1 ON SH107 - MAIN REPLACEMENT | D60: 367 - Mains | E60: Line or Equipment Replacements Due to Obsolescence, Inadequate Components, or Construction Change | F60: TGS Shared Services | G60: ALL CLASSES | H60: 2022-12-30 | I60: 2023-01-01 | J60: Addition | K60: 106 | L60: 96758.11 | Q60: 96758.11
A61: 61 | B61: 091.043.7044.010083 | C61: FCT 043 NDU - LINE 198-4 - REPLACE CROSSING AT WILLACY CO WID #1 ON SH107 - MAIN REPLACEMENT | D61: 367 - Mains | E61: Line or Equipment Replacements Due to Obsolescence, Inadequate Components, or Construction Change | F61: TGS Shared Services | G61: ALL CLASSES | H61: 2022-12-30 | I61: 2023-04-01 | J61: Addition | K61: 106 | L61: 4193.81 | Q61: 4193.81
A62: 62 | B62: 091.043.7044.010083 | C62: FCT 043 NDU - LINE 198-4 - REPLACE CROSSING AT WILLACY CO WID #1 ON SH107 - MAIN REPLACEMENT | D62: 367 - Mains | E62: Line or Equipment Replacements Due to Obsolescence, Inadequate Components, or Construction Change | F62: TGS Shared Services | G62: ALL CLASSES | H62: 2022-12-30 | I62: 2023-02-01 | J62: Addition | K62: 106 | L62: 6239.38 | Q62: 6239.38
A63: 63 | B63: 091.043.7044.010083 | C63: FCT 043 NDU - LINE 198-4 - REPLACE CROSSING AT WILLACY CO WID #1 ON SH107 - MAIN REPLACEMENT | D63: 367 - Mains | E63: Line or Equipment Replacements Due to Obsolescence, Inadequate Components, or Construction Change | F63: TGS Shared Services | G63: ALL CLASSES | H63: 2022-12-30 | I63: 2023-11-01 | J63: Retirement | K63: 101 | L63: -975.75 | Q63: -975.75
A64: 64 | B64: 091.043.7044.010085 | C64: PROJECT FCT 043 (2022 IMP) - LINE 198E3, 198E4, & 198E5 TVC PIPE COUPON REPLACEMENTS | D64: 367 - Mains | E64: Line or Equipment Replacements Due to Obsolescence, Inadequate Components, or Construction Change | F64: TGS Shared Services | G64: ALL CLASSES | H64: 2022-10-01 | I64: 2023-11-01 | J64: Addition | K64: 101 | L64: 65658.31 | Q64: 65658.31
A65: 65 | B65: 091.043.7044.010085 | C65: PROJECT FCT 043 (2022 IMP) - LINE 198E3, 198E4, & 198E5 TVC PIPE COUPON REPLACEMENTS | D65: 367 - Mains | E65: Line or Equipment Replacements Due to Obsolescence, Inadequate Components, or Construction Change | F65: TGS Shared Services | G65: ALL CLASSES | H65: 2022-10-01 | I65: 2023-11-01 | J65: Addition | K65: 106 | L65: -65626.1 | Q65: -65626.1
A66: 66 | B66: 091.043.7044.010085 | C66: PROJECT FCT 043 (2022 IMP) - LINE 198E3, 198E4, & 198E5 TVC PIPE COUPON REPLACEMENTS | D66: 367 - Mains | E66: Line or Equipment Replacements Due to Obsolescence, Inadequate Components, or Construction Change | F66: TGS Shared Services | G66: ALL CLASSES | H66: 2022-10-01 | I66: 2023-02-01 | J66: Addition | K66: 106 | L66: 4952.26 | Q66: 4952.26
A67: 67 | B67: 091.043.7044.010085 | C67: PROJECT FCT 043 (2022 IMP) - LINE 198E3, 198E4, & 198E5 TVC PIPE COUPON REPLACEMENTS | D67: 376.0 - Mains | E67: Line or Equipment Replacements Due to Obsolescence, Inadequate Components, or Construction Change | F67: TGS Shared Services | G67: ALL CLASSES | H67: 2022-10-01 | I67: 2023-11-01 | J67: Retirement | K67: 101 | L67: -461.5 | Q67: -461.5
A68: 68 | B68: 091.043.7044.010086 | C68: PROJECT FCT 043 - REPLACE LINE 173-1 IN CLASS 3 | D68: 367 - Mains | E68: Line or Equipment Replacements Due to Obsolescence, Inadequate Components, or Construction Change | F68: TGS Shared Services | G68: ALL CLASSES | H68: 2023-08-31 | I68: 2023-08-01 | J68: Addition | K68: 106 | L68: 1850650.66 | Q68: 1850650.66
A69: 69 | B69: 091.043.7044.010086 | C69: PROJECT FCT 043 - REPLACE LINE 173-1 IN CLASS 3 | D69: 367 - Mains | E69: Line or Equipment Replacements Due to Obsolescence, Inadequate Components, or Construction Change | F69: TGS Shared Services | G69: ALL CLASSES | H69: 2023-08-31 | I69: 2023-10-01 | J69: Addition | K69: 106 | L69: -35100.03 | Q69: -35100.03
A70: 70 | B70: 091.043.7044.010086 | C70: PROJECT FCT 043 - REPLACE LINE 173-1 IN CLASS 3 | D70: 367 - Mains | E70: Line or Equipment Replacements Due to Obsolescence, Inadequate Components, or Construction Change | F70: TGS Shared Services | G70: ALL CLASSES | H70: 2023-08-31 | I70: 2023-09-01 | J70: Addition | K70: 106 | L70: 1116.24 | Q70: 1116.24
A71: 71 | B71: 091.043.7044.010087 | C71: FCT 043 - LINE 240-1 - REPLACE TERMINAL RISERS FOR CALIPER PIG RUN | D71: 367 - Mains | E71: Line or Equipment Replacements Due to Obsolescence, Inadequate Components, or Construction Change | F71: TGS Shared Services | G71: ALL CLASSES | H71: 2022-12-14 | I71: 2023-03-01 | J71: Addition | K71: 106 | L71: -11861.85 | Q71: -11861.85
A72: 72 | B72: 091.043.7044.010087 | C72: FCT 043 - LINE 240-1 - REPLACE TERMINAL RISERS FOR CALIPER PIG RUN | D72: 367 - Mains | E72: Line or Equipment Replacements Due to Obsolescence, Inadequate Components, or Construction Change | F72: TGS Shared Services | G72: ALL CLASSES | H72: 2022-12-14 | I72: 2023-08-01 | J72: Addition | K72: 106 | L72: 1241.5 | Q72: 1241.5
A73: 73 | B73: 091.043.7044.010087 | C73: FCT 043 - LINE 240-1 - REPLACE TERMINAL RISERS FOR CALIPER PIG RUN | D73: 367 - Mains | E73: Line or Equipment Replacements Due to Obsolescence, Inadequate Components, or Construction Change | F73: TGS Shared Services | G73: ALL CLASSES | H73: 2022-12-14 | I73: 2023-07-01 | J73: Addition | K73: 106 | L73: -1548.54 | Q73: -1548.54
A74: 74 | B74: 091.043.7044.010087 | C74: FCT 043 - LINE 240-1 - REPLACE TERMINAL RISERS FOR CALIPER PIG RUN | D74: 367 - Mains | E74: Line or Equipment Replacements Due to Obsolescence, Inadequate Components, or Construction Change | F74: TGS Shared Services | G74: ALL CLASSES | H74: 2022-12-14 | I74: 2023-01-01 | J74: Addition | K74: 106 | L74: 20609.21 | Q74: 20609.21
A75: 75 | B75: 091.043.7044.010087 | C75: FCT 043 - LINE 240-1 - REPLACE TERMINAL RISERS FOR CALIPER PIG RUN | D75: 367 - Mains | E75: Line or Equipment Replacements Due to Obsolescence, Inadequate Components, or Construction Change | F75: TGS Shared Services | G75: ALL CLASSES | H75: 2022-12-14 | I75: 2023-04-01 | J75: Addition | K75: 106 | L75: 32993.87 | Q75: =SUM(L75:P75) -> 32993.87
A76: 76 | B76: 091.043.7044.010087 | C76: FCT 043 - LINE 240-1 - REPLACE TERMINAL RISERS FOR CALIPER PIG RUN | D76: 367 - Mains | E76: Line or Equipment Replacements Due to Obsolescence, Inadequate Components, or Construction Change | F76: TGS Shared Services | G76: ALL CLASSES | H76: 2022-12-14 | I76: 2023-02-01 | J76: Addition | K76: 106 | L76: 710.14 | Q76: 710.14
A77: 77 | B77: 091.043.7044.010088 | C77: FCT 043 - LINE 240A-1 - REPLACEMENTS FOR CALIPER PIG RUN | D77: 367 - Mains | E77: Line or Equipment Replacements Due to Obsolescence, Inadequate Components, or Construction Change | F77: TGS Shared Services | G77: ALL CLASSES | H77: 2022-12-30 | I77: 2023-03-01 | J77: Addition | K77: 106 | L77: 10532.16 | Q77: 10532.16
A78: 78 | B78: 091.043.7044.010088 | C78: FCT 043 - LINE 240A-1 - REPLACEMENTS FOR CALIPER PIG RUN | D78: 367 - Mains | E78: Line or Equipment Replacements Due to Obsolescence, Inadequate Components, or Construction Change | F78: TGS Shared Services | G78: ALL CLASSES | H78: 2022-12-30 | I78: 2023-06-01 | J78: Addition | K78: 106 | L78: 36509.65 | Q78: 36509.65
A79: 79 | B79: 091.043.7044.010088 | C79: FCT 043 - LINE 240A-1 - REPLACEMENTS FOR CALIPER PIG RUN | D79: 367 - Mains | E79: Line or Equipment Replacements Due to Obsolescence, Inadequate Components, or Construction Change | F79: TGS Shared Services | G79: ALL CLASSES | H79: 2022-12-30 | I79: 2023-07-01 | J79: Addition | K79: 106 | L79: 2915.76 | Q79: 2915.76
A80: 80 | B80: 091.043.7044.010088 | C80: FCT 043 - LINE 240A-1 - REPLACEMENTS FOR CALIPER PIG RUN | D80: 367 - Mains | E80: Line or Equipment Replacements Due to Obsolescence, Inadequate Components, or Construction Change | F80: TGS Shared Services | G80: ALL CLASSES | H80: 2022-12-30 | I80: 2023-10-01 | J80: Addition | K80: 106 | L80: 18752.17 | Q80: 18752.17
A81: 81 | B81: 091.043.7044.010088 | C81: FCT 043 - LINE 240A-1 - REPLACEMENTS FOR CALIPER PIG RUN | D81: 367 - Mains | E81: Line or Equipment Replacements Due to Obsolescence, Inadequate Components, or Construction Change | F81: TGS Shared Services | G81: ALL CLASSES | H81: 2022-12-30 | I81: 2023-01-01 | J81: Addition | K81: 106 | L81: 60853.34 | Q81: 60853.34
A82: 82 | B82: 091.043.7044.010088 | C82: FCT 043 - LINE 240A-1 - REPLACEMENTS FOR CALIPER PIG RUN | D82: 367 - Mains | E82: Line or Equipment Replacements Due to Obsolescence, Inadequate Components, or Construction Change | F82: TGS Shared Services | G82: ALL CLASSES | H82: 2022-12-30 | I82: 2023-02-01 | J82: Addition | K82: 106 | L82: 48510 | Q82: 48510
A83: 83 | B83: 091.043.7044.010090 | C83: PROJECT FCT 043 EMERGENCY - SANTA ROSA CG 1 REGULATORS REPLACEMENT | D83: 369 - Measuring & Regulating Sta Eq | E83: Line or Equipment Replacements Due to Obsolescence, Inadequate Components, or Construction Change | F83: TGS Shared Services | G83: RESIDENTIAL/COMMERIAL/PUBLIC AUTHORITY | H83: 2023-01-13 | I83: 2023-01-01 | J83: Addition | K83: 106 | L83: 18416.96 | Q83: 18416.96
A84: 84 | B84: 091.043.7044.010096 | C84: PROJECT FCT 043 HARLINGEN - REPLACE HARLINGEN CG 6 ON WILSON RD | D84: 369 - Measuring & Regulating Sta Eq | E84: Line or Equipment Replacements Due to Obsolescence, Inadequate Components, or Construction Change | F84: TGS Shared Services | G84: ALL CLASSES | H84: 2023-11-15 | I84: 2023-11-01 | J84: Addition | K84: 106 | L84: 132073.88 | Q84: 132073.88
A85: 85 | B85: 091.043.7044.010098 | C85: PROJECT FCT 043 - (2023 AWP) - LINE 35D1 REPLACEMENT - PRESSURE REDUCTION PLAN | D85: 367 - Mains | E85: Line or Equipment Replacements Due to Obsolescence, Inadequate Components, or Construction Change | F85: TGS Shared Services | G85: ALL CLASSES | H85: 2023-11-15 | I85: 2023-11-01 | J85: Addition | K85: 106 | L85: 498645.86 | Q85: 498645.86
A86: 86 | B86: 091.043.7044.010099 | C86: PROJECT FCT 043 - LINE 198-2 MAOP ACTION ITEMS | D86: 367 - Mains | E86: Line or Equipment Replacements Due to Obsolescence, Inadequate Components, or Construction Change | F86: TGS Shared Services | G86: ALL CLASSES | H86: 2023-12-26 | I86: 2023-12-01 | J86: Addition | K86: 106 | L86: 72181.48 | Q86: 72181.48
A87: 87 | B87: 091.043.7044.010100 | C87: PROJECT FCT 043 - LINE 198-5 MAOP ACTION ITEMS | D87: 367 - Mains | E87: Line or Equipment Replacements Due to Obsolescence, Inadequate Components, or Construction Change | F87: TGS Shared Services | G87: ALL CLASSES | H87: 2023-12-26 | I87: 2023-12-01 | J87: Addition | K87: 106 | L87: 150943.89 | Q87: 150943.89
A88: 88 | B88: 091.043.7044.010102 | C88: PROJECT FCT 043 - LINE 35D-1 MAOP ACTION ITEMS | D88: 367 - Mains | E88: Line or Equipment Replacements Due to Obsolescence, Inadequate Components, or Construction Change | F88: TGS Shared Services | G88: ALL CLASSES | H88: 2023-12-26 | I88: 2023-12-01 | J88: Addition | K88: 106 | L88: 3343.7 | Q88: 3343.7
A89: 89 | B89: 091.043.7044.010103 | C89: PROJECT FCT 043 - LINE 35E-1 MAOP ACTION ITEMS | D89: 367 - Mains | E89: Line or Equipment Replacements Due to Obsolescence, Inadequate Components, or Construction Change | F89: TGS Shared Services | G89: ALL CLASSES | H89: 2023-12-26 | I89: 2023-12-01 | J89: Addition | K89: 106 | L89: 3698.45 | Q89: 3698.45
A90: 90 | B90: 091.043.7044.010105 | C90: PROJECT FCT 043 - LINE 198-6 MAOP ACTION ITEMS | D90: 367 - Mains | E90: Line or Equipment Replacements Due to Obsolescence, Inadequate Components, or Construction Change | F90: TGS Shared Services | G90: ALL CLASSES | H90: 2023-12-26 | I90: 2023-12-01 | J90: Addition | K90: 106 | L90: 82742.11 | Q90: 82742.11
A91: 91 | B91: 091.043.7700.010010 | C91: PROJECT FCT 043 - LINE 173DD-3 - REPLACE CONNECTION TO LINE 173DD/1 & INSTALL REGULATOR STATION | D91: 367 - Mains | E91: Line or Equipment Replacements Due to Obsolescence, Inadequate Components, or Construction Change | F91: RGV | G91: ALL CLASSES | H91: 2020-08-11 | I91: 2023-11-01 | J91: Addition | K91: 101 | L91: 31743.7 | Q91: 31743.7
A92: 92 | B92: 091.043.7700.010010 | C92: PROJECT FCT 043 - LINE 173DD-3 - REPLACE CONNECTION TO LINE 173DD/1 & INSTALL REGULATOR STATION | D92: 367 - Mains | E92: Line or Equipment Replacements Due to Obsolescence, Inadequate Components, or Construction Change | F92: RGV | G92: ALL CLASSES | H92: 2020-08-11 | I92: 2023-11-01 | J92: Addition | K92: 106 | L92: -96454.1 | Q92: -96454.1
A93: 93 | B93: 091.043.7700.010010 | C93: PROJECT FCT 043 - LINE 173DD-3 - REPLACE CONNECTION TO LINE 173DD/1 & INSTALL REGULATOR STATION | D93: 367 - Mains | E93: Line or Equipment Replacements Due to Obsolescence, Inadequate Components, or Construction Change | F93: RGV | G93: ALL CLASSES | H93: 2020-08-11 | I93: 2023-09-01 | J93: Addition | K93: 106 | L93: 61763.91 | Q93: 61763.91
A94: 94 | B94: 091.043.7700.010010 | C94: PROJECT FCT 043 - LINE 173DD-3 - REPLACE CONNECTION TO LINE 173DD/1 & INSTALL REGULATOR STATION | D94: 369 - Measuring & Regulating Sta Eq | E94: Line or Equipment Replacements Due to Obsolescence, Inadequate Components, or Construction Change | F94: RGV | G94: ALL CLASSES | H94: 2020-08-11 | I94: 2023-11-01 | J94: Addition | K94: 101 | L94: 102522.42 | Q94: 102522.42
A95: 95 | B95: 091.043.7700.010010 | C95: PROJECT FCT 043 - LINE 173DD-3 - REPLACE CONNECTION TO LINE 173DD/1 & INSTALL REGULATOR STATION | D95: 369 - Measuring & Regulating Sta Eq | E95: Line or Equipment Replacements Due to Obsolescence, Inadequate Components, or Construction Change | F95: RGV | G95: ALL CLASSES | H95: 2020-08-11 | I95: 2023-11-01 | J95: Addition | K95: 106 | L95: -37812.02 | Q95: -37812.02
A96: 96 | B96: 091.043.7700.010010 | C96: PROJECT FCT 043 - LINE 173DD-3 - REPLACE CONNECTION TO LINE 173DD/1 & INSTALL REGULATOR STATION | D96: 369 - Measuring & Regulating Sta Eq | E96: Line or Equipment Replacements Due to Obsolescence, Inadequate Components, or Construction Change | F96: RGV | G96: ALL CLASSES | H96: 2020-08-11 | I96: 2023-09-01 | J96: Addition | K96: 106 | L96: -36547.8 | Q96: -36547.8
A97: 97 | B97: 091.043.7700.010010 | C97: PROJECT FCT 043 - LINE 173DD-3 - REPLACE CONNECTION TO LINE 173DD/1 & INSTALL REGULATOR STATION | D97: 367 - Mains | E97: Line or Equipment Replacements Due to Obsolescence, Inadequate Components, or Construction Change | F97: RGV | G97: ALL CLASSES | H97: 2020-08-11 | I97: 2023-11-01 | J97: Retirement | K97: 101 | L97: -2.24 | Q97: -2.24
A98: 98 | B98: 091.044.7044.010001 | C98: PROJECT FCT 044 - HIDLAGO CO. - LINE 173DD - REPL ACTUATOR PARTS AND VALVE DAMAGED BY CONTRACTOR | D98: 369 - Measuring & Regulating Sta Eq | E98: Line or Equipment Replacements due to Corrosion, Deterioration, Etc. | F98: TGS Shared Services | G98: ALL CLASSES | H98: 2020-04-13 | I98: 2023-03-01 | J98: Addition | K98: 106 | L98: 410.79 | Q98: 410.79
A99: 99 | B99: 091.044.7044.010001 | C99: PROJECT FCT 044 - HIDLAGO CO. - LINE 173DD - REPL ACTUATOR PARTS AND VALVE DAMAGED BY CONTRACTOR | D99: 369 - Measuring & Regulating Sta Eq | E99: Line or Equipment Replacements due to Corrosion, Deterioration, Etc. | F99: TGS Shared Services | G99: ALL CLASSES | H99: 2020-04-13 | I99: 2023-04-01 | J99: Addition | K99: 101 | L99: 14627.08 | Q99: 14627.08
A100: 100 | B100: 091.044.7044.010001 | C100: PROJECT FCT 044 - HIDLAGO CO. - LINE 173DD - REPL ACTUATOR PARTS AND VALVE DAMAGED BY CONTRACTOR | D100: 369 - Measuring & Regulating Sta Eq | E100: Line or Equipment Replacements due to Corrosion, Deterioration, Etc. | F100: TGS Shared Services | G100: ALL CLASSES | H100: 2020-04-13 | I100: 2023-04-01 | J100: Addition | K100: 106 | L100: -14627.08 | Q100: -14627.08
A101: 101 | B101: 091.044.7044.010001 | C101: PROJECT FCT 044 - HIDLAGO CO. - LINE 173DD - REPL ACTUATOR PARTS AND VALVE DAMAGED BY CONTRACTOR | D101: 367 - Mains | E101: Line or Equipment Replacements due to Corrosion, Deterioration, Etc. | F101: TGS Shared Services | G101: ALL CLASSES | H101: 2020-04-13 | I101: 2023-04-01 | J101: Retirement | K101: 101 | L101: -888.64 | Q101: -888.64
A102: 102 | B102: 091.044.7044.010002 | C102: PROJECT FCT 044 - LINE 35D1-1, REPLACE 5' OF 10" CS AT HIDALGO DRAIN CROSSING, HIDALGO, TX | D102: 367 - Mains | E102: Line or Equipment Replacements due to Corrosion, Deterioration, Etc. | F102: TGS Shared Services | G102: ALL CLASSES | H102: 2021-10-26 | I102: 2023-03-01 | J102: Addition | K102: 106 | L102: 5626.66 | Q102: 5626.66
A103: 103 | B103: 091.044.7044.010002 | C103: PROJECT FCT 044 - LINE 35D1-1, REPLACE 5' OF 10" CS AT HIDALGO DRAIN CROSSING, HIDALGO, TX | D103: 367 - Mains | E103: Line or Equipment Replacements due to Corrosion, Deterioration, Etc. | F103: TGS Shared Services | G103: ALL CLASSES | H103: 2021-10-26 | I103: 2023-04-01 | J103: Addition | K103: 106 | L103: 465.85 | Q103: 465.85
A104: 104 | B104: 091.044.7044.010017 | C104: TGS RGV-EDINBURG 044 NDP - (2021 IMP) LINE 198-1 REPLACE ECDA ANOMALY #57 & #58 | D104: 367 - Mains | E104: Line or Equipment Replacements due to Corrosion, Deterioration, Etc. | F104: TGS Shared Services | G104: ALL CLASSES | H104: 2021-10-05 | I104: 2023-11-01 | J104: Addition | K104: 101 | L104: 38258.24 | Q104: 38258.24
A105: 105 | B105: 091.044.7044.010017 | C105: TGS RGV-EDINBURG 044 NDP - (2021 IMP) LINE 198-1 REPLACE ECDA ANOMALY #57 & #58 | D105: 367 - Mains | E105: Line or Equipment Replacements due to Corrosion, Deterioration, Etc. | F105: TGS Shared Services | G105: ALL CLASSES | H105: 2021-10-05 | I105: 2023-11-01 | J105: Addition | K105: 106 | L105: -38258.24 | Q105: -38258.24
A106: 106 | B106: 091.044.7044.010017 | C106: TGS RGV-EDINBURG 044 NDP - (2021 IMP) LINE 198-1 REPLACE ECDA ANOMALY #57 & #58 | D106: 367 - Mains | E106: Line or Equipment Replacements due to Corrosion, Deterioration, Etc. | F106: TGS Shared Services | G106: ALL CLASSES | H106: 2021-10-05 | I106: 2023-11-01 | J106: Retirement | K106: 101 | L106: -98.01 | Q106: -98.01
A107: 107 | B107: 091.044.7044.010018 | C107: PROJECT FCT 044 LA FERIA - (2021 IMP) LINE 250-2 REPLACE ECDA ANOMALY #17, #21 & #23 | D107: 367 - Mains | E107: Line or Equipment Replacements due to Corrosion, Deterioration, Etc. | F107: TGS Shared Services | G107: ALL CLASSES | H107: 2021-10-05 | I107: 2023-03-01 | J107: Addition | K107: 101 | L107: -202.06 | Q107: -202.06
A108: 108 | B108: 091.044.7044.010022 | C108: TGS RGV FCT 044 NDU - LINE 198-3 ANOMALY REPLACEMENTS | D108: 367 - Mains | E108: Line or Equipment Replacements due to Corrosion, Deterioration, Etc. | F108: TGS Shared Services | G108: ALL CLASSES | H108: 2022-10-01 | I108: 2023-12-01 | J108: Addition | K108: 101 | L108: 90879.24 | Q108: 90879.24
A109: 109 | B109: 091.044.7044.010022 | C109: TGS RGV FCT 044 NDU - LINE 198-3 ANOMALY REPLACEMENTS | D109: 367 - Mains | E109: Line or Equipment Replacements due to Corrosion, Deterioration, Etc. | F109: TGS Shared Services | G109: ALL CLASSES | H109: 2022-10-01 | I109: 2023-12-01 | J109: Addition | K109: 106 | L109: -89373.81 | Q109: -89373.81
A110: 110 | B110: 091.044.7044.010022 | C110: TGS RGV FCT 044 NDU - LINE 198-3 ANOMALY REPLACEMENTS | D110: 367 - Mains | E110: Line or Equipment Replacements due to Corrosion, Deterioration, Etc. | F110: TGS Shared Services | G110: ALL CLASSES | H110: 2022-10-01 | I110: 2023-12-01 | J110: Retirement | K110: 101 | L110: -59.39 | Q110: -59.39
A111: 111 | B111: 091.044.7044.010023 | C111: PROJECT FCT 044 HARLINGEN - LINE 198-4 REPLACE A/G CANAL CROSSING ON SH107 0.25 MI W OF FM800 | D111: 367 - Mains | E111: Line or Equipment Replacements due to Corrosion, Deterioration, Etc. | F111: TGS Shared Services | G111: ALL CLASSES | H111: 2022-12-30 | I111: 2023-11-01 | J111: Addition | K111: 101 | L111: 169687.64 | Q111: 169687.64
A112: 112 | B112: 091.044.7044.010023 | C112: PROJECT FCT 044 HARLINGEN - LINE 198-4 REPLACE A/G CANAL CROSSING ON SH107 0.25 MI W OF FM800 | D112: 367 - Mains | E112: Line or Equipment Replacements due to Corrosion, Deterioration, Etc. | F112: TGS Shared Services | G112: ALL CLASSES | H112: 2022-12-30 | I112: 2023-11-01 | J112: Addition | K112: 106 | L112: -169687.64 | Q112: -169687.64
A113: 113 | B113: 091.044.7044.010023 | C113: PROJECT FCT 044 HARLINGEN - LINE 198-4 REPLACE A/G CANAL CROSSING ON SH107 0.25 MI W OF FM800 | D113: 367 - Mains | E113: Line or Equipment Replacements due to Corrosion, Deterioration, Etc. | F113: TGS Shared Services | G113: ALL CLASSES | H113: 2022-12-30 | I113: 2023-01-01 | J113: Addition | K113: 106 | L113: -62979.73 | Q113: -62979.73
A114: 114 | B114: 091.044.7044.010023 | C114: PROJECT FCT 044 HARLINGEN - LINE 198-4 REPLACE A/G CANAL CROSSING ON SH107 0.25 MI W OF FM800 | D114: 367 - Mains | E114: Line or Equipment Replacements due to Corrosion, Deterioration, Etc. | F114: TGS Shared Services | G114: ALL CLASSES | H114: 2022-12-30 | I114: 2023-11-01 | J114: Retirement | K114: 101 | L114: -190.25 | Q114: -190.25
A115: 115 | B115: 091.044.7044.010024 | C115: TGS RGV FCT 044 NDU - LINE 198-4 ANOMALY REPLACEMENT | D115: 367 - Mains | E115: Line or Equipment Replacements due to Corrosion, Deterioration, Etc. | F115: TGS Shared Services | G115: ALL CLASSES | H115: 2022-12-30 | I115: 2023-11-01 | J115: Addition | K115: 101 | L115: 20712.41 | Q115: 20712.41
A116: 116 | B116: 091.044.7044.010024 | C116: TGS RGV FCT 044 NDU - LINE 198-4 ANOMALY REPLACEMENT | D116: 367 - Mains | E116: Line or Equipment Replacements due to Corrosion, Deterioration, Etc. | F116: TGS Shared Services | G116: ALL CLASSES | H116: 2022-12-30 | I116: 2023-11-01 | J116: Addition | K116: 106 | L116: -20712.41 | Q116: -20712.41
A117: 117 | B117: 091.044.7044.010024 | C117: TGS RGV FCT 044 NDU - LINE 198-4 ANOMALY REPLACEMENT | D117: 367 - Mains | E117: Line or Equipment Replacements due to Corrosion, Deterioration, Etc. | F117: TGS Shared Services | G117: ALL CLASSES | H117: 2022-12-30 | I117: 2023-01-01 | J117: Addition | K117: 106 | L117: 610.82 | Q117: 610.82
A118: 118 | B118: 091.044.7044.010024 | C118: TGS RGV FCT 044 NDU - LINE 198-4 ANOMALY REPLACEMENT | D118: 367 - Mains | E118: Line or Equipment Replacements due to Corrosion, Deterioration, Etc. | F118: TGS Shared Services | G118: ALL CLASSES | H118: 2022-12-30 | I118: 2023-02-01 | J118: Addition | K118: 106 | L118: -11989.25 | Q118: -11989.25
A119: 119 | B119: 091.044.7044.010024 | C119: TGS RGV FCT 044 NDU - LINE 198-4 ANOMALY REPLACEMENT | D119: 367 - Mains | E119: Line or Equipment Replacements due to Corrosion, Deterioration, Etc. | F119: TGS Shared Services | G119: ALL CLASSES | H119: 2022-12-30 | I119: 2023-11-01 | J119: Retirement | K119: 101 | L119: -6.53 | Q119: -6.53
A120: 120 | B120: 091.044.7044.010025 | C120: PROJECT FCT 044 - LINE 188/5-1 - REPLACE METER RISERS AT SAMANO WELL DUE TO 3RD PARTY DAMAGE | D120: 369 - Measuring & Regulating Sta Eq | E120: Line or Equipment Replacements due to Corrosion, Deterioration, Etc. | F120: TGS Shared Services | G120: INDUSTRIAL | H120: 2022-08-25 | I120: 2023-01-01 | J120: Addition | K120: 106 | L120: 5626.32 | Q120: 5626.32
A121: 121 | B121: 091.044.7044.010025 | C121: PROJECT FCT 044 - LINE 188/5-1 - REPLACE METER RISERS AT SAMANO WELL DUE TO 3RD PARTY DAMAGE | D121: 369 - Measuring & Regulating Sta Eq | E121: Line or Equipment Replacements due to Corrosion, Deterioration, Etc. | F121: TGS Shared Services | G121: INDUSTRIAL | H121: 2022-08-25 | I121: 2023-09-01 | J121: Addition | K121: 101 | L121: 44079.98 | Q121: 44079.98
A122: 122 | B122: 091.044.7044.010025 | C122: PROJECT FCT 044 - LINE 188/5-1 - REPLACE METER RISERS AT SAMANO WELL DUE TO 3RD PARTY DAMAGE | D122: 369 - Measuring & Regulating Sta Eq | E122: Line or Equipment Replacements due to Corrosion, Deterioration, Etc. | F122: TGS Shared Services | G122: INDUSTRIAL | H122: 2022-08-25 | I122: 2023-09-01 | J122: Addition | K122: 106 | L122: -44079.98 | Q122: -44079.98
A123: 123 | B123: 091.044.7044.010027 | C123: FCT 044 - EMERGENCY - LINE 198E-1 - REPLACE 4" EMERGENCY INLET VALVE TO JENNY JUNCTION | D123: 367 - Mains | E123: Line or Equipment Replacements due to Corrosion, Deterioration, Etc. | F123: TGS Shared Services | G123: ALL CLASSES | H123: 2022-10-14 | I123: 2023-06-01 | J123: Addition | K123: 106 | L123: 5782.49 | Q123: 5782.49
A124: 124 | B124: 091.044.7044.010029 | C124: PROJECT FCT 044 - (2022 IMP) LINE 240-1 & LINE 240/1-1 - REPLACE SHORTED CASING ON LOS EBANOS | D124: 367 - Mains | E124: Line or Equipment Replacements due to Corrosion, Deterioration, Etc. | F124: TGS Shared Services | G124: ALL CLASSES | H124: 2022-12-14 | I124: 2023-03-01 | J124: Addition | K124: 106 | L124: 6081.56 | Q124: 6081.56
A125: 125 | B125: 091.044.7044.010029 | C125: PROJECT FCT 044 - (2022 IMP) LINE 240-1 & LINE 240/1-1 - REPLACE SHORTED CASING ON LOS EBANOS | D125: 367 - Mains | E125: Line or Equipment Replacements due to Corrosion, Deterioration, Etc. | F125: TGS Shared Services | G125: ALL CLASSES | H125: 2022-12-14 | I125: 2023-11-01 | J125: Addition | K125: 101 | L125: 289265.26 | Q125: 289265.26
A126: 126 | B126: 091.044.7044.010029 | C126: PROJECT FCT 044 - (2022 IMP) LINE 240-1 & LINE 240/1-1 - REPLACE SHORTED CASING ON LOS EBANOS | D126: 367 - Mains | E126: Line or Equipment Replacements due to Corrosion, Deterioration, Etc. | F126: TGS Shared Services | G126: ALL CLASSES | H126: 2022-12-14 | I126: 2023-11-01 | J126: Addition | K126: 106 | L126: -289265.26 | Q126: -289265.26
A127: 127 | B127: 091.044.7044.010029 | C127: PROJECT FCT 044 - (2022 IMP) LINE 240-1 & LINE 240/1-1 - REPLACE SHORTED CASING ON LOS EBANOS | D127: 367 - Mains | E127: Line or Equipment Replacements due to Corrosion, Deterioration, Etc. | F127: TGS Shared Services | G127: ALL CLASSES | H127: 2022-12-14 | I127: 2023-01-01 | J127: Addition | K127: 106 | L127: 26354.12 | Q127: 26354.12
A128: 128 | B128: 091.044.7044.010029 | C128: PROJECT FCT 044 - (2022 IMP) LINE 240-1 & LINE 240/1-1 - REPLACE SHORTED CASING ON LOS EBANOS | D128: 367 - Mains | E128: Line or Equipment Replacements due to Corrosion, Deterioration, Etc. | F128: TGS Shared Services | G128: ALL CLASSES | H128: 2022-12-14 | I128: 2023-09-01 | J128: Addition | K128: 106 | L128: 1985.2 | Q128: 1985.2
A129: 129 | B129: 091.044.7044.010029 | C129: PROJECT FCT 044 - (2022 IMP) LINE 240-1 & LINE 240/1-1 - REPLACE SHORTED CASING ON LOS EBANOS | D129: 367 - Mains | E129: Line or Equipment Replacements due to Corrosion, Deterioration, Etc. | F129: TGS Shared Services | G129: ALL CLASSES | H129: 2022-12-14 | I129: 2023-02-01 | J129: Addition | K129: 106 | L129: -3187.41 | Q129: -3187.41
A130: 130 | B130: 091.044.7044.010029 | C130: PROJECT FCT 044 - (2022 IMP) LINE 240-1 & LINE 240/1-1 - REPLACE SHORTED CASING ON LOS EBANOS | D130: 367 - Mains | E130: Line or Equipment Replacements due to Corrosion, Deterioration, Etc. | F130: TGS Shared Services | G130: ALL CLASSES | H130: 2022-12-14 | I130: 2023-11-01 | J130: Retirement | K130: 101 | L130: -298.34 | Q130: -298.34
A131: 131 | B131: 091.044.7044.010031 | C131: PROJECT FCT 044 - LINE 173DD-1 REPL SHORTED CASING ON FM1925 AT INSPIRATION RD | D131: 365.2 - Rights of Way | E131: Line or Equipment Replacements due to Corrosion, Deterioration, Etc. | F131: TGS Shared Services | G131: ALL CLASSES | H131: 2023-09-15 | I131: 2023-09-01 | J131: Addition | K131: 106 | L131: 15696.32 | Q131: 15696.32
A132: 132 | B132: 091.044.7044.010031 | C132: PROJECT FCT 044 - LINE 173DD-1 REPL SHORTED CASING ON FM1925 AT INSPIRATION RD | D132: 367 - Mains | E132: Line or Equipment Replacements due to Corrosion, Deterioration, Etc. | F132: TGS Shared Services | G132: ALL CLASSES | H132: 2023-09-15 | I132: 2023-09-01 | J132: Addition | K132: 106 | L132: 231695.02 | Q132: 231695.02
A133: 133 | B133: 091.044.7044.010032 | C133: PROJECT FCT 044 - LINE 165B-1 - REPLACE SHORTED CASING AT US281 MILITARY HIGHWAY | D133: 367 - Mains | E133: Line or Equipment Replacements due to Corrosion, Deterioration, Etc. | F133: TGS Shared Services | G133: ALL CLASSES | H133: 2023-11-14 | I133: 2023-11-01 | J133: Addition | K133: 106 | L133: 191710.23 | Q133: 191710.23
A134: 134 | B134: 091.044.7044.010034 | C134: PROJECT FCT 044 NDU - EMERGENCY - LINE 198-2 - REPLACE 10" ELBOW DUE TO CRACK | D134: 367 - Mains | E134: Line or Equipment Replacements due to Corrosion, Deterioration, Etc. | F134: TGS Shared Services | G134: ALL CLASSES | H134: 2023-10-13 | I134: 2023-10-01 | J134: Addition | K134: 106 | L134: 40766.62 | Q134: 40766.62
A135: 135 | B135: 091.044.7044.010034 | C135: PROJECT FCT 044 NDU - EMERGENCY - LINE 198-2 - REPLACE 10" ELBOW DUE TO CRACK | D135: 367 - Mains | E135: Line or Equipment Replacements due to Corrosion, Deterioration, Etc. | F135: TGS Shared Services | G135: ALL CLASSES | H135: 2023-10-13 | I135: 2023-11-01 | J135: Addition | K135: 106 | L135: 4336.36 | Q135: 4336.36
A136: 136 | B136: 091.044.7044.010034 | C136: PROJECT FCT 044 NDU - EMERGENCY - LINE 198-2 - REPLACE 10" ELBOW DUE TO CRACK | D136: 367 - Mains | E136: Line or Equipment Replacements due to Corrosion, Deterioration, Etc. | F136: TGS Shared Services | G136: ALL CLASSES | H136: 2023-10-13 | I136: 2023-12-01 | J136: Addition | K136: 106 | L136: -52.01 | Q136: -52.01
A137: 137 | B137: 091.044.7799.010060 | C137: CONVERSION METER SETS | D137: 369 - Measuring & Regulating Sta Eq | E137: Line or Equipment Replacements due to Corrosion, Deterioration, Etc. | F137: RGV | G137: ALL CLASSES | H137: 2006-07-28 | I137: 2023-04-01 | J137: Transfer | K137: 101 | L137: 0 | Q137: 0
A138: 138 | B138: 091.045.7044.010006 | C138: TGS RGV FCT 045 NDU - LINE 198-4 CROSSING REPLACEMENT -SH107 - 13TH TO HOOKS E HODGES RD | D138: 367 - Mains | E138: Replacements or Relocations due to Highway, Street or Other Government Construction | F138: TGS Shared Services | G138: ALL CLASSES | H138: 2022-12-30 | I138: 2023-03-01 | J138: Addition | K138: 106 | L138: 2768.52 | Q138: 2768.52
A139: 139 | B139: 091.045.7044.010006 | C139: TGS RGV FCT 045 NDU - LINE 198-4 CROSSING REPLACEMENT -SH107 - 13TH TO HOOKS E HODGES RD | D139: 367 - Mains | E139: Replacements or Relocations due to Highway, Street or Other Government Construction | F139: TGS Shared Services | G139: ALL CLASSES | H139: 2022-12-30 | I139: 2023-08-01 | J139: Addition | K139: 106 | L139: 179227.95 | Q139: =SUM(L139:P139) -> 179227.95
A140: 140 | B140: 091.045.7044.010006 | C140: TGS RGV FCT 045 NDU - LINE 198-4 CROSSING REPLACEMENT -SH107 - 13TH TO HOOKS E HODGES RD | D140: 367 - Mains | E140: Replacements or Relocations due to Highway, Street or Other Government Construction | F140: TGS Shared Services | G140: ALL CLASSES | H140: 2022-12-30 | I140: 2023-07-01 | J140: Addition | K140: 106 | L140: 7236.61 | Q140: 7236.61
A141: 141 | B141: 091.045.7044.010006 | C141: TGS RGV FCT 045 NDU - LINE 198-4 CROSSING REPLACEMENT -SH107 - 13TH TO HOOKS E HODGES RD | D141: 367 - Mains | E141: Replacements or Relocations due to Highway, Street or Other Government Construction | F141: TGS Shared Services | G141: ALL CLASSES | H141: 2022-12-30 | I141: 2023-10-01 | J141: Addition | K141: 106 | L141: -6937.16 | Q141: -6937.16
A142: 142 | B142: 091.045.7044.010006 | C142: TGS RGV FCT 045 NDU - LINE 198-4 CROSSING REPLACEMENT -SH107 - 13TH TO HOOKS E HODGES RD | D142: 367 - Mains | E142: Replacements or Relocations due to Highway, Street or Other Government Construction | F142: TGS Shared Services | G142: ALL CLASSES | H142: 2022-12-30 | I142: 2023-01-01 | J142: Addition | K142: 106 | L142: 203713.7 | Q142: 203713.7
A143: 143 | B143: 091.045.7044.010006 | C143: TGS RGV FCT 045 NDU - LINE 198-4 CROSSING REPLACEMENT -SH107 - 13TH TO HOOKS E HODGES RD | D143: 367 - Mains | E143: Replacements or Relocations due to Highway, Street or Other Government Construction | F143: TGS Shared Services | G143: ALL CLASSES | H143: 2022-12-30 | I143: 2023-09-01 | J143: Addition | K143: 106 | L143: 69.35 | Q143: 69.35
A144: 144 | B144: 091.045.7044.010006 | C144: TGS RGV FCT 045 NDU - LINE 198-4 CROSSING REPLACEMENT -SH107 - 13TH TO HOOKS E HODGES RD | D144: 367 - Mains | E144: Replacements or Relocations due to Highway, Street or Other Government Construction | F144: TGS Shared Services | G144: ALL CLASSES | H144: 2022-12-30 | I144: 2023-02-01 | J144: Addition | K144: 106 | L144: 38803.76 | Q144: 38803.76
A145: 145 | B145: 091.045.7044.010006 | C145: TGS RGV FCT 045 NDU - LINE 198-4 CROSSING REPLACEMENT -SH107 - 13TH TO HOOKS E HODGES RD | D145: 369 - Measuring & Regulating Sta Eq | E145: Replacements or Relocations due to Highway, Street or Other Government Construction | F145: TGS Shared Services | G145: ALL CLASSES | H145: 2022-12-30 | I145: 2023-03-01 | J145: Addition | K145: 106 | L145: 194.03 | Q145: 194.03
A146: 146 | B146: 091.045.7044.010006 | C146: TGS RGV FCT 045 NDU - LINE 198-4 CROSSING REPLACEMENT -SH107 - 13TH TO HOOKS E HODGES RD | D146: 369 - Measuring & Regulating Sta Eq | E146: Replacements or Relocations due to Highway, Street or Other Government Construction | F146: TGS Shared Services | G146: ALL CLASSES | H146: 2022-12-30 | I146: 2023-08-01 | J146: Addition | K146: 106 | L146: 192.93 | Q146: 192.93
A147: 147 | B147: 091.045.7044.010006 | C147: TGS RGV FCT 045 NDU - LINE 198-4 CROSSING REPLACEMENT -SH107 - 13TH TO HOOKS E HODGES RD | D147: 369 - Measuring & Regulating Sta Eq | E147: Replacements or Relocations due to Highway, Street or Other Government Construction | F147: TGS Shared Services | G147: ALL CLASSES | H147: 2022-12-30 | I147: 2023-07-01 | J147: Addition | K147: 106 | L147: 507.17 | Q147: 507.17
A148: 148 | B148: 091.045.7044.010006 | C148: TGS RGV FCT 045 NDU - LINE 198-4 CROSSING REPLACEMENT -SH107 - 13TH TO HOOKS E HODGES RD | D148: 369 - Measuring & Regulating Sta Eq | E148: Replacements or Relocations due to Highway, Street or Other Government Construction | F148: TGS Shared Services | G148: ALL CLASSES | H148: 2022-12-30 | I148: 2023-10-01 | J148: Addition | K148: 106 | L148: -7.48 | Q148: -7.48
A149: 149 | B149: 091.045.7044.010006 | C149: TGS RGV FCT 045 NDU - LINE 198-4 CROSSING REPLACEMENT -SH107 - 13TH TO HOOKS E HODGES RD | D149: 369 - Measuring & Regulating Sta Eq | E149: Replacements or Relocations due to Highway, Street or Other Government Construction | F149: TGS Shared Services | G149: ALL CLASSES | H149: 2022-12-30 | I149: 2023-01-01 | J149: Addition | K149: 106 | L149: 14277.24 | Q149: 14277.24
A150: 150 | B150: 091.045.7044.010006 | C150: TGS RGV FCT 045 NDU - LINE 198-4 CROSSING REPLACEMENT -SH107 - 13TH TO HOOKS E HODGES RD | D150: 369 - Measuring & Regulating Sta Eq | E150: Replacements or Relocations due to Highway, Street or Other Government Construction | F150: TGS Shared Services | G150: ALL CLASSES | H150: 2022-12-30 | I150: 2023-09-01 | J150: Addition | K150: 106 | L150: 0.07 | Q150: 0.07
A151: 151 | B151: 091.045.7044.010006 | C151: TGS RGV FCT 045 NDU - LINE 198-4 CROSSING REPLACEMENT -SH107 - 13TH TO HOOKS E HODGES RD | D151: 369 - Measuring & Regulating Sta Eq | E151: Replacements or Relocations due to Highway, Street or Other Government Construction | F151: TGS Shared Services | G151: ALL CLASSES | H151: 2022-12-30 | I151: 2023-02-01 | J151: Addition | K151: 106 | L151: 2719.56 | Q151: 2719.56
A152: 152 | B152: 091.045.7044.010007 | C152: TGS RGV FCT 045 NDU - LINE 198-4 - SH107 CROSSING REPLACEMENT ON ALBERTO ANZALDUA RD - MAIN REPLACEM | D152: 367 - Mains | E152: Replacements or Relocations due to Highway, Street or Other Government Construction | F152: TGS Shared Services | G152: ALL CLASSES | H152: 2022-12-30 | I152: 2023-11-01 | J152: Addition | K152: 101 | L152: 163342.13 | Q152: 163342.13
A153: 153 | B153: 091.045.7044.010007 | C153: TGS RGV FCT 045 NDU - LINE 198-4 - SH107 CROSSING REPLACEMENT ON ALBERTO ANZALDUA RD - MAIN REPLACEM | D153: 367 - Mains | E153: Replacements or Relocations due to Highway, Street or Other Government Construction | F153: TGS Shared Services | G153: ALL CLASSES | H153: 2022-12-30 | I153: 2023-11-01 | J153: Addition | K153: 106 | L153: -163342.13 | Q153: -163342.13
A154: 154 | B154: 091.045.7044.010007 | C154: TGS RGV FCT 045 NDU - LINE 198-4 - SH107 CROSSING REPLACEMENT ON ALBERTO ANZALDUA RD - MAIN REPLACEM | D154: 367 - Mains | E154: Replacements or Relocations due to Highway, Street or Other Government Construction | F154: TGS Shared Services | G154: ALL CLASSES | H154: 2022-12-30 | I154: 2023-01-01 | J154: Addition | K154: 106 | L154: -217084.41 | Q154: -217084.41
A155: 155 | B155: 091.045.7044.010007 | C155: TGS RGV FCT 045 NDU - LINE 198-4 - SH107 CROSSING REPLACEMENT ON ALBERTO ANZALDUA RD - MAIN REPLACEM | D155: 367 - Mains | E155: Replacements or Relocations due to Highway, Street or Other Government Construction | F155: TGS Shared Services | G155: ALL CLASSES | H155: 2022-12-30 | I155: 2023-11-01 | J155: Retirement | K155: 101 | L155: -125.83 | Q155: -125.83
A156: 156 | B156: 091.045.7044.010008 | C156: PROJECT FCT 045 HIDALGO - LINE 35D1-1 RELO DUE TO LAS MILPAS RD EXTENSION FROM 10TH ST TO MCCOLL RD | D156: 367 - Mains | E156: Replacements or Relocations due to Highway, Street or Other Government Construction | F156: TGS Shared Services | G156: ALL CLASSES | H156: 2023-08-26 | I156: 2023-08-01 | J156: Addition | K156: 106 | L156: 923889.98 | Q156: 923889.98
A157: 157 | B157: 091.045.7044.010008 | C157: PROJECT FCT 045 HIDALGO - LINE 35D1-1 RELO DUE TO LAS MILPAS RD EXTENSION FROM 10TH ST TO MCCOLL RD | D157: 367 - Mains | E157: Replacements or Relocations due to Highway, Street or Other Government Construction | F157: TGS Shared Services | G157: ALL CLASSES | H157: 2023-08-26 | I157: 2023-10-01 | J157: Addition | K157: 106 | L157: 494.84 | Q157: 494.84
A158: 158 | B158: 091.045.7044.010008 | C158: PROJECT FCT 045 HIDALGO - LINE 35D1-1 RELO DUE TO LAS MILPAS RD EXTENSION FROM 10TH ST TO MCCOLL RD | D158: 367 - Mains | E158: Replacements or Relocations due to Highway, Street or Other Government Construction | F158: TGS Shared Services | G158: ALL CLASSES | H158: 2023-08-26 | I158: 2023-09-01 | J158: Addition | K158: 106 | L158: 3841.84 | Q158: 3841.84
A159: 159 | B159: 091.045.7044.010009 | C159: PROJECT FCT 045 ALTON - CIP(FM 676 ROAD WIDENING) REPLACE 1,700' OF 6" STL PIPE | D159: 367 - Mains | E159: Replacements or Relocations due to Highway, Street or Other Government Construction | F159: TGS Shared Services | G159: ALL CLASSES | H159: 2023-08-31 | I159: 2023-08-01 | J159: Addition | K159: 106 | L159: 687694.82 | Q159: 687694.82
A160: 160 | B160: 091.045.7044.010009 | C160: PROJECT FCT 045 ALTON - CIP(FM 676 ROAD WIDENING) REPLACE 1,700' OF 6" STL PIPE | D160: 367 - Mains | E160: Replacements or Relocations due to Highway, Street or Other Government Construction | F160: TGS Shared Services | G160: ALL CLASSES | H160: 2023-08-31 | I160: 2023-10-01 | J160: Addition | K160: 106 | L160: 25662.7 | Q160: 25662.7
A161: 161 | B161: 091.046.7044.010003 | C161: PROJECT FCT 046 - R053 GOLF COURSE AT COUNTRY CLUB | D161: 367 - Mains | E161: Installations, Interconnecting Lines for System Reliability, or Correction of Maps and Records | F161: TGS Shared Services | G161: ALL CLASSES | H161: 2023-04-20 | I161: 2023-04-01 | J161: Addition | K161: 106 | L161: 71806.43 | Q161: 71806.43
A162: 162 | B162: 091.046.7044.010004 | C162: PROJECT FCT 046 - R012 MONTE CRISTO UNIT | D162: 367 - Mains | E162: Installations, Interconnecting Lines for System Reliability, or Correction of Maps and Records | F162: TGS Shared Services | G162: ALL CLASSES | H162: 2023-04-18 | I162: 2023-04-01 | J162: Addition | K162: 106 | L162: 73006.17 | Q162: 73006.17
A163: 163 | B163: 091.049.7044.010001 | C163: PROJECT FCT 049 - SECURITY PROPOSAL 2819 - ENBRIDGE INTERCONNECT IN LOS FRESNOS, TX | D163: 369 - Measuring & Regulating Sta Eq | E163: Building Additions or Replacements | F163: TGS Shared Services | G163: ALL CLASSES | H163: 2021-10-05 | I163: 2023-11-01 | J163: Addition | K163: 101 | L163: 49329.5 | Q163: 49329.5
A164: 164 | B164: 091.049.7044.010001 | C164: PROJECT FCT 049 - SECURITY PROPOSAL 2819 - ENBRIDGE INTERCONNECT IN LOS FRESNOS, TX | D164: 369 - Measuring & Regulating Sta Eq | E164: Building Additions or Replacements | F164: TGS Shared Services | G164: ALL CLASSES | H164: 2021-10-05 | I164: 2023-11-01 | J164: Addition | K164: 106 | L164: -49329.5 | Q164: -49329.5
A165: 165 | B165: 091.052.7044.010002 | C165: PROJECT FCT 052 BROWNSVILLE - 10951 OLDSTATE HWY 48 - BLUEWING NO. 3 | D165: 380.0 - Services | E165: Line Extensions to Connect New Customers and Service and Meter Installations | F165: TGS Shared Services | G165: COMMERCIAL/INDUSTRIAL | H165: 2021-11-01 | I165: 2023-03-01 | J165: Addition | K165: 106 | L165: 578.82 | Q165: 578.82
A166: 166 | B166: 091.052.7044.010002 | C166: PROJECT FCT 052 BROWNSVILLE - 10951 OLDSTATE HWY 48 - BLUEWING NO. 3 | D166: 380.0 - Services | E166: Line Extensions to Connect New Customers and Service and Meter Installations | F166: TGS Shared Services | G166: COMMERCIAL/INDUSTRIAL | H166: 2021-11-01 | I166: 2023-04-01 | J166: Addition | K166: 106 | L166: 450.27 | Q166: 450.27
A167: 167 | B167: 091.052.7044.010002 | C167: PROJECT FCT 052 BROWNSVILLE - 10951 OLDSTATE HWY 48 - BLUEWING NO. 3 | D167: 381.0 - Meters | E167: Line Extensions to Connect New Customers and Service and Meter Installations | F167: TGS Shared Services | G167: COMMERCIAL/INDUSTRIAL | H167: 2021-11-01 | I167: 2023-03-01 | J167: Addition | K167: 106 | L167: 829.8 | Q167: 829.8
A168: 168 | B168: 091.052.7044.010002 | C168: PROJECT FCT 052 BROWNSVILLE - 10951 OLDSTATE HWY 48 - BLUEWING NO. 3 | D168: 381.0 - Meters | E168: Line Extensions to Connect New Customers and Service and Meter Installations | F168: TGS Shared Services | G168: COMMERCIAL/INDUSTRIAL | H168: 2021-11-01 | I168: 2023-04-01 | J168: Addition | K168: 106 | L168: 3.22 | Q168: 3.22
A169: 169 | B169: 091.052.7044.010002 | C169: PROJECT FCT 052 BROWNSVILLE - 10951 OLDSTATE HWY 48 - BLUEWING NO. 3 | D169: 385.0 - Ind Meas & Reg Sta Equip | E169: Line Extensions to Connect New Customers and Service and Meter Installations | F169: TGS Shared Services | G169: COMMERCIAL/INDUSTRIAL | H169: 2021-11-01 | I169: 2023-03-01 | J169: Addition | K169: 106 | L169: 3198.53 | Q169: 3198.53
A170: 170 | B170: 091.052.7044.010002 | C170: PROJECT FCT 052 BROWNSVILLE - 10951 OLDSTATE HWY 48 - BLUEWING NO. 3 | D170: 385.0 - Ind Meas & Reg Sta Equip | E170: Line Extensions to Connect New Customers and Service and Meter Installations | F170: TGS Shared Services | G170: COMMERCIAL/INDUSTRIAL | H170: 2021-11-01 | I170: 2023-04-01 | J170: Addition | K170: 106 | L170: 107.56 | Q170: 107.56
A171: 171 | B171: 091.052.7044.010014 | C171: PROJECT FCT 052 BROWNSVILLE - REG STATION 0238 - 9590 OLD HWY 48 SUNOCO TERMINALS | D171: 368 - Compressor Station Equipment | E171: Line Extensions to Connect New Customers and Service and Meter Installations | F171: TGS Shared Services | G171: COMMERCIAL/INDUSTRIAL | H171: 2021-12-20 | I171: 2023-11-01 | J171: Addition | K171: 101 | L171: 61946.27 | Q171: 61946.27
A172: 172 | B172: 091.052.7044.010014 | C172: PROJECT FCT 052 BROWNSVILLE - REG STATION 0238 - 9590 OLD HWY 48 SUNOCO TERMINALS | D172: 368 - Compressor Station Equipment | E172: Line Extensions to Connect New Customers and Service and Meter Installations | F172: TGS Shared Services | G172: COMMERCIAL/INDUSTRIAL | H172: 2021-12-20 | I172: 2023-12-01 | J172: Addition | K172: 101 | L172: 853.31 | Q172: 853.31
A173: 173 | B173: 091.052.7044.010014 | C173: PROJECT FCT 052 BROWNSVILLE - REG STATION 0238 - 9590 OLD HWY 48 SUNOCO TERMINALS | D173: 378.0 - Meas & Reg Stat Eq-General | E173: Line Extensions to Connect New Customers and Service and Meter Installations | F173: TGS Shared Services | G173: COMMERCIAL/INDUSTRIAL | H173: 2021-12-20 | I173: 2023-11-01 | J173: Addition | K173: 106 | L173: -61946.27 | Q173: -61946.27
A174: 174 | B174: 091.052.7044.010015 | C174: PROJECT FCT 052 MCALLEN - E-ROCK GEN, 2800 W NOLANA AVE, MCALLEN, TX - HPMLE | D174: 376.0 - Mains | E174: Line Extensions to Connect New Customers and Service and Meter Installations | F174: TGS Shared Services | G174: COMMERCIAL | H174: 2022-02-27 | I174: 2023-07-01 | J174: Addition | K174: 101 | L174: 172809.45 | Q174: 172809.45
A175: 175 | B175: 091.052.7044.010015 | C175: PROJECT FCT 052 MCALLEN - E-ROCK GEN, 2800 W NOLANA AVE, MCALLEN, TX - HPMLE | D175: 376.0 - Mains | E175: Line Extensions to Connect New Customers and Service and Meter Installations | F175: TGS Shared Services | G175: COMMERCIAL | H175: 2022-02-27 | I175: 2023-07-01 | J175: Addition | K175: 106 | L175: -179486.64 | Q175: -179486.64
A176: 176 | B176: 091.052.7044.010015 | C176: PROJECT FCT 052 MCALLEN - E-ROCK GEN, 2800 W NOLANA AVE, MCALLEN, TX - HPMLE | D176: 376.9 - Cathodic Protection Anodes | E176: Line Extensions to Connect New Customers and Service and Meter Installations | F176: TGS Shared Services | G176: COMMERCIAL | H176: 2022-02-27 | I176: 2023-07-01 | J176: Addition | K176: 101 | L176: 468.27 | Q176: 468.27
A177: 177 | B177: 091.052.7044.010015 | C177: PROJECT FCT 052 MCALLEN - E-ROCK GEN, 2800 W NOLANA AVE, MCALLEN, TX - HPMLE | D177: 376.9 - Cathodic Protection Anodes | E177: Line Extensions to Connect New Customers and Service and Meter Installations | F177: TGS Shared Services | G177: COMMERCIAL | H177: 2022-02-27 | I177: 2023-07-01 | J177: Addition | K177: 106 | L177: 6208.92 | Q177: 6208.92
A178: 178 | B178: 091.052.7044.010016 | C178: PROJECT FCT 052 MCALLEN - INSTALL NEW REG STATION 0192 - WALMART, 2800 W NOLANA AVE, MCALLEN, TX - R | D178: 378.0 - Meas & Reg Stat Eq-General | E178: Line Extensions to Connect New Customers and Service and Meter Installations | F178: TGS Shared Services | G178: COMMERCIAL | H178: 2022-02-27 | I178: 2023-04-01 | J178: Addition | K178: 101 | L178: 21172.31 | Q178: 21172.31
A179: 179 | B179: 091.052.7044.010016 | C179: PROJECT FCT 052 MCALLEN - INSTALL NEW REG STATION 0192 - WALMART, 2800 W NOLANA AVE, MCALLEN, TX - R | D179: 378.0 - Meas & Reg Stat Eq-General | E179: Line Extensions to Connect New Customers and Service and Meter Installations | F179: TGS Shared Services | G179: COMMERCIAL | H179: 2022-02-27 | I179: 2023-04-01 | J179: Addition | K179: 106 | L179: -21172.31 | Q179: -21172.31
A180: 180 | B180: 091.052.7700.005100 | C180: BLANKET WORK ORDER - NEW SERVICES | D180: 378.0 - Meas & Reg Stat Eq-General | E180: Line Extensions to Connect New Customers and Service and Meter Installations | F180: RGV | G180: ALL CLASSES | I180: 2023-03-01 | J180: Addition | K180: 106 | L180: 14766.48 | Q180: 14766.48
A181: 181 | B181: 091.052.7700.005100 | C181: BLANKET WORK ORDER - NEW SERVICES | D181: 378.0 - Meas & Reg Stat Eq-General | E181: Line Extensions to Connect New Customers and Service and Meter Installations | F181: RGV | G181: ALL CLASSES | I181: 2023-08-01 | J181: Addition | K181: 106 | L181: 12085.65 | Q181: 12085.65
A182: 182 | B182: 091.052.7700.005100 | C182: BLANKET WORK ORDER - NEW SERVICES | D182: 378.0 - Meas & Reg Stat Eq-General | E182: Line Extensions to Connect New Customers and Service and Meter Installations | F182: RGV | G182: ALL CLASSES | I182: 2023-06-01 | J182: Addition | K182: 106 | L182: 11097.62 | Q182: 11097.62
A183: 183 | B183: 091.052.7700.005100 | C183: BLANKET WORK ORDER - NEW SERVICES | D183: 378.0 - Meas & Reg Stat Eq-General | E183: Line Extensions to Connect New Customers and Service and Meter Installations | F183: RGV | G183: ALL CLASSES | I183: 2023-07-01 | J183: Addition | K183: 106 | L183: 1356.55 | Q183: 1356.55
A184: 184 | B184: 091.052.7700.005100 | C184: BLANKET WORK ORDER - NEW SERVICES | D184: 378.0 - Meas & Reg Stat Eq-General | E184: Line Extensions to Connect New Customers and Service and Meter Installations | F184: RGV | G184: ALL CLASSES | I184: 2023-10-01 | J184: Addition | K184: 106 | L184: 21011.41 | Q184: 21011.41
A185: 185 | B185: 091.052.7700.005100 | C185: BLANKET WORK ORDER - NEW SERVICES | D185: 378.0 - Meas & Reg Stat Eq-General | E185: Line Extensions to Connect New Customers and Service and Meter Installations | F185: RGV | G185: ALL CLASSES | I185: 2023-11-01 | J185: Addition | K185: 106 | L185: 11400.94 | Q185: 11400.94
A186: 186 | B186: 091.052.7700.005100 | C186: BLANKET WORK ORDER - NEW SERVICES | D186: 378.0 - Meas & Reg Stat Eq-General | E186: Line Extensions to Connect New Customers and Service and Meter Installations | F186: RGV | G186: ALL CLASSES | I186: 2023-12-01 | J186: Addition | K186: 106 | L186: -364.51 | Q186: -364.51
A187: 187 | B187: 091.052.7700.005100 | C187: BLANKET WORK ORDER - NEW SERVICES | D187: 378.0 - Meas & Reg Stat Eq-General | E187: Line Extensions to Connect New Customers and Service and Meter Installations | F187: RGV | G187: ALL CLASSES | I187: 2023-01-01 | J187: Addition | K187: 106 | L187: -16558.57 | Q187: -16558.57
A188: 188 | B188: 091.052.7700.005100 | C188: BLANKET WORK ORDER - NEW SERVICES | D188: 378.0 - Meas & Reg Stat Eq-General | E188: Line Extensions to Connect New Customers and Service and Meter Installations | F188: RGV | G188: ALL CLASSES | I188: 2023-04-01 | J188: Addition | K188: 106 | L188: -42170.21 | Q188: -42170.21
A189: 189 | B189: 091.052.7700.005100 | C189: BLANKET WORK ORDER - NEW SERVICES | D189: 378.0 - Meas & Reg Stat Eq-General | E189: Line Extensions to Connect New Customers and Service and Meter Installations | F189: RGV | G189: ALL CLASSES | I189: 2023-09-01 | J189: Addition | K189: 106 | L189: -44422.88 | Q189: -44422.88
A190: 190 | B190: 091.052.7700.005100 | C190: BLANKET WORK ORDER - NEW SERVICES | D190: 378.0 - Meas & Reg Stat Eq-General | E190: Line Extensions to Connect New Customers and Service and Meter Installations | F190: RGV | G190: ALL CLASSES | I190: 2023-02-01 | J190: Addition | K190: 106 | L190: -589.83 | Q190: -589.83
A191: 191 | B191: 091.052.7700.005100 | C191: BLANKET WORK ORDER - NEW SERVICES | D191: 378.0 - Meas & Reg Stat Eq-General | E191: Line Extensions to Connect New Customers and Service and Meter Installations | F191: RGV | G191: ALL CLASSES | I191: 2023-05-01 | J191: Addition | K191: 106 | L191: 19883.06 | Q191: 19883.06
A192: 192 | B192: 091.052.7700.005100 | C192: BLANKET WORK ORDER - NEW SERVICES | D192: 380.0 - Services | E192: Line Extensions to Connect New Customers and Service and Meter Installations | F192: RGV | G192: ALL CLASSES | I192: 2023-03-01 | J192: Addition | K192: 101 | L192: 506567.71 | Q192: 506567.71
A193: 193 | B193: 091.052.7700.005100 | C193: BLANKET WORK ORDER - NEW SERVICES | D193: 380.0 - Services | E193: Line Extensions to Connect New Customers and Service and Meter Installations | F193: RGV | G193: ALL CLASSES | I193: 2023-03-01 | J193: Addition | K193: 106 | L193: 14766.46 | Q193: 14766.46
A194: 194 | B194: 091.052.7700.005100 | C194: BLANKET WORK ORDER - NEW SERVICES | D194: 380.0 - Services | E194: Line Extensions to Connect New Customers and Service and Meter Installations | F194: RGV | G194: ALL CLASSES | I194: 2023-08-01 | J194: Addition | K194: 101 | L194: 399425.22 | Q194: 399425.22
A195: 195 | B195: 091.052.7700.005100 | C195: BLANKET WORK ORDER - NEW SERVICES | D195: 380.0 - Services | E195: Line Extensions to Connect New Customers and Service and Meter Installations | F195: RGV | G195: ALL CLASSES | I195: 2023-08-01 | J195: Addition | K195: 106 | L195: 12085.58 | Q195: 12085.58
A196: 196 | B196: 091.052.7700.005100 | C196: BLANKET WORK ORDER - NEW SERVICES | D196: 380.0 - Services | E196: Line Extensions to Connect New Customers and Service and Meter Installations | F196: RGV | G196: ALL CLASSES | I196: 2023-06-01 | J196: Addition | K196: 101 | L196: 447541.98 | Q196: 447541.98
A197: 197 | B197: 091.052.7700.005100 | C197: BLANKET WORK ORDER - NEW SERVICES | D197: 380.0 - Services | E197: Line Extensions to Connect New Customers and Service and Meter Installations | F197: RGV | G197: ALL CLASSES | I197: 2023-06-01 | J197: Addition | K197: 106 | L197: 11097.56 | Q197: 11097.56
A198: 198 | B198: 091.052.7700.005100 | C198: BLANKET WORK ORDER - NEW SERVICES | D198: 380.0 - Services | E198: Line Extensions to Connect New Customers and Service and Meter Installations | F198: RGV | G198: ALL CLASSES | I198: 2023-07-01 | J198: Addition | K198: 101 | L198: 426558.48 | Q198: 426558.48
A199: 199 | B199: 091.052.7700.005100 | C199: BLANKET WORK ORDER - NEW SERVICES | D199: 380.0 - Services | E199: Line Extensions to Connect New Customers and Service and Meter Installations | F199: RGV | G199: ALL CLASSES | I199: 2023-07-01 | J199: Addition | K199: 106 | L199: 1356.59 | Q199: 1356.59
A200: 200 | B200: 091.052.7700.005100 | C200: BLANKET WORK ORDER - NEW SERVICES | D200: 380.0 - Services | E200: Line Extensions to Connect New Customers and Service and Meter Installations | F200: RGV | G200: ALL CLASSES | I200: 2023-10-01 | J200: Addition | K200: 101 | L200: 418321.21 | Q200: 418321.21
A201: 201 | B201: 091.052.7700.005100 | C201: BLANKET WORK ORDER - NEW SERVICES | D201: 380.0 - Services | E201: Line Extensions to Connect New Customers and Service and Meter Installations | F201: RGV | G201: ALL CLASSES | I201: 2023-10-01 | J201: Addition | K201: 106 | L201: -108329.33 | Q201: -108329.33
A202: 202 | B202: 091.052.7700.005100 | C202: BLANKET WORK ORDER - NEW SERVICES | D202: 380.0 - Services | E202: Line Extensions to Connect New Customers and Service and Meter Installations | F202: RGV | G202: ALL CLASSES | I202: 2023-11-01 | J202: Addition | K202: 101 | L202: 269303.83 | Q202: 269303.83
... 1948 more rows

Sheet Division - 2023
A1: TEXAS GAS SERVICE COMPANY
A2: DIVISION
A3: INVESTMENT REPORT - SUMMARY OF CORPORATE PLANT IN SERVICE (101, 106, 186) PROJECT ACTIVITY
A4: CHANGES FROM JANUARY 1, 2023 THROUGH DECEMBER 31, 2023
A7: Line No. | B7: Project Number | C7: Project Description | D7: Utility Account | E7: Function Description | F7: Customer Benefited (Location) | G7: Customers Benefited (Class) | H7: Project In Service Date | I7: GL Posting Date | J7: FERC Activity Code | K7: GL Account | L7: TYE Project Activity Cost - Unallocated | M7: Remove Vertex Sales Tax | N7: Meals and Hotels > RRC limit | O7: Miscellaneous Adjustments | P7: TYE Total Project Activitiy Adjustments | Q7: TYE Project Activity Cost - Adjusted Unallocated | R7: Allocation Factor RGVSA | S7: Allocated Adjusted Cost to RGVSA | T7: Comments
A8: (a) | B8: (b) | C8: (c ) | D8: (d) | E8: (e) | F8: (f) | G8: (g) | H8: (h) | I8: (i) | J8: (j) | K8: (k) | L8: (l) | M8: (m) | N8: (n) | O8: (o) | P8: (p) = (m)+(n)+(o) | Q8: (q)=(l)+(p) | R8: (r) | S8: (s)=(q) x (r) | T8: (t)
A9: 1 | B9: 091.093.7016.010005 | C9: TO BUILD OQ PROP SET | D9: (394) Tools | E9: PURCHASE OF AUTOMOBILES | F9: All TGS Divisions | G9: All | H9: 2023-07-27 | I9: 2023-07-01 | J9: Addition | K9: 1060000 CCNC | L9: 58017.88 | P9: =SUM(M9:O9) -> 0 | Q9: =L9+P9 -> 58017.88 | R9: 0.092124 | S9: =Q9*R9 -> 5344.839177
A10: =A9+1 -> 2 | B10: 091.093.7016.010006 | C10: SIDEWINDER CHAIN BASE 600 PSI GAUGE | D10: (394) Tools | E10: PURCHASE OF AUTOMOBILES | F10: All TGS Divisions | G10: All | H10: 2023-06-01 | I10: 2023-06-01 | J10: Addition | K10: 1060000 CCNC | L10: 3458.59 | P10: =SUM(M10:O10) -> 0 | Q10: 3458.59 | R10: 0.092124 | S10: =Q10*R10 -> 318.6191452
A11: 3 | B11: 091.093.7016.010007 | C11: FUSION MACHINE #2LC PACKAGE | D11: (394) Tools | E11: PURCHASE OF AUTOMOBILES | F11: All TGS Divisions | G11: All | H11: 2023-06-01 | I11: 2023-06-01 | J11: Addition | K11: 1060000 CCNC | L11: 5153.25 | P11: 0 | Q11: 5153.25 | R11: 0.092124 | S11: 474.738003
A12: 4 | B12: 091.093.7016.010008 | C12: SQUEEZE TOOL 2 STEEL MUSTANG PS-75 | D12: (394) Tools | E12: PURCHASE OF AUTOMOBILES | F12: All TGS Divisions | G12: All | H12: 2023-06-01 | I12: 2023-06-01 | J12: Addition | K12: 1060000 CCNC | L12: 4760 | P12: 0 | Q12: 4760 | R12: 0.092124 | S12: 438.51024
A13: 5 | B13: 091.094.7032.010374 | C13: SAN SALVADOR GJ CAMERA TECHNOLOGY UPLIFTS - 2023 | D13: (390.1) Structures & Improvements | E13: OFFICE BUILDINGS AND CNG (COMPRESSED NATURAL GAS) FACILITIES LOCATED ON COMPANY PROPERTY-ADDITIONS OR REPLACEMENTS | F13: RGVSA | G13: All | H13: 2023-12-20 | I13: 2023-12-01 | J13: Addition | K13: 1060000 CCNC | L13: 9301.51 | O13: -9301.51 | P13: -9301.51 | Q13: 0 | R13: 0.092124 | S13: 0 | T13: Adjustment to remove direct specific project.
A14: 6 | B14: 091.094.7032.010378 | C14: MARBLE FALLS SERVICE CENTER/SITE IMPROVEMENT | D14: (390.1) Structures & Improvements | E14: OFFICE BUILDINGS AND CNG (COMPRESSED NATURAL GAS) FACILITIES LOCATED ON COMPANY PROPERTY-ADDITIONS OR REPLACEMENTS | F14: CGSA | G14: All | H14: 2023-12-20 | I14: 2023-12-01 | J14: Addition | K14: 1060000 CCNC | L14: 227752.49 | O14: -227752.49 | P14: -227752.49 | Q14: 0 | R14: 0.092124 | S14: 0 | T14: Adjustment to remove direct specific project.
A15: 7 | B15: 091.100.7000.010014 | C15: TGS MODEM REPLACEMENT | D15: (397) Communication Equipment | E15: HARDWARE | F15: All TGS Divisions | G15: All | J15: Adjustment | K15: 1010000 Plant In Service | L15: 0 | O15: -106.77 | P15: -106.77 | Q15: -106.77 | R15: 0.092124 | S15: -9.83607948 | T15: Adjustment to remove costs not supported by an itemized receipt.
A16: 8 | B16: 091.100.7000.010015 | C16: TGS PHYSICAL SECURITY HARDWARE UPGRADES 2021 | D16: (390.1) Structures & Improvements | E16: HARDWARE | F16: All TGS Divisions | G16: All | H16: 2023-01-01 | I16: 2023-06-01 | J16: Addition | K16: 1010000 Plant In Service | L16: 48840.47 | P16: 0 | Q16: 48840.47 | R16: 0.092124 | S16: 4499.379458
A17: 9 | B17: 091.100.7000.010023 | C17: LAPTOP AND DESKTOP END OF LIFE REPLACEMENT 2022 | D17: (391.9) Computer & Equipment | E17: HARDWARE | F17: All TGS Divisions | G17: All | H17: 2023-09-01 | I17: 2023-09-01 | J17: Addition | K17: 1010000 Plant In Service | L17: 155733.88 | P17: 0 | Q17: 155733.88 | R17: 0.092124 | S17: 14346.82796
A18: 10 | B18: 091.100.7000.010024 | C18: LAPTOP AND DESKTOP GROWTH 2022 | D18: (391.9) Computer & Equipment | E18: HARDWARE | F18: All TGS Divisions | G18: All | H18: 2023-09-01 | I18: 2023-09-01 | J18: Addition | K18: 1010000 Plant In Service | L18: 393076.17 | P18: 0 | Q18: 393076.17 | R18: 0.092124 | S18: 36211.74909
A19: 11 | B19: 091.100.7000.010025 | C19: LAPTOP AND DESKTOP REPLACEMENT 2021 PHASE II | D19: (391.9) Computer & Equipment | E19: HARDWARE | F19: All TGS Divisions | G19: All | H19: 2023-09-01 | I19: 2023-09-01 | J19: Addition | K19: 1010000 Plant In Service | L19: 164326.46 | P19: 0 | Q19: 164326.46 | R19: 0.092124 | S19: 15138.4108
A20: 12 | B20: 091.100.7000.010027 | C20: COMPUTER MONITORS 2022 | D20: (391.9) Computer & Equipment | E20: HARDWARE | F20: All TGS Divisions | G20: All | H20: 2023-11-01 | I20: 2023-11-01 | J20: Addition | K20: 1010000 Plant In Service | L20: 11881.8 | P20: 0 | Q20: 11881.8 | R20: 0.092124 | S20: 1094.598943
A21: 13 | B21: 091.101.7000.010034 | C21: SECURITIZATION - TGS | D21: (391.9) Computer & Equipment | E21: SOFTWARE | F21: All TGS Divisions | G21: All | H21: 2023-10-01 | I21: 2023-12-01 | J21: Addition | K21: 1010000 Plant In Service | L21: 191939.36 | P21: 0 | Q21: 191939.36 | R21: 0.092124 | S21: 17682.2216
A22: 14 | B22: 091.101.7000.010035 | C22: TEXAS ELECTRONIC TARIFF REGULATORY APPLICATION | D22: (391.9) Computer & Equipment | E22: SOFTWARE | F22: All TGS Divisions | G22: All | H22: 2023-12-15 | I22: 2023-12-01 | J22: Addition | K22: 1060000 CCNC | L22: 65544.42 | P22: 0 | Q22: 65544.42 | R22: 0.092124 | S22: 6038.214148
A23: 15 | B23: 091.101.7000.010036 | C23: TVC TRANSMISSION HARDWARE REFRESH 2022 | D23: (391.9) Computer & Equipment | E23: SOFTWARE | F23: All TGS Divisions | G23: All | H23: 2023-09-01 | I23: 2023-09-01 | J23: Addition | K23: 1010000 Plant In Service | L23: 65989.51 | P23: 0 | Q23: 65989.51 | R23: 0.092124 | S23: 6079.217619
A24: 16 | B24: 091.101.7000.010037 | C24: ONG/TGS TEXT TO PAY | D24: (391.9) Computer & Equipment | E24: SOFTWARE | F24: All TGS Divisions | G24: All | H24: 2023-11-01 | I24: 2023-11-01 | J24: Addition | K24: 1010000 Plant In Service | L24: 5344.09 | P24: 0 | Q24: 5344.09 | R24: 0.092124 | S24: 492.3189472
A25: 17 | B25: 091.CPR.RET | C25: NEW IVR EL PASO PHONE CENTER | D25: (397) Communication Equipment | E25: SOFTWARE | F25: All TGS Divisions | G25: All | H25: 2008-01-01 | I25: 2023-04-01 | J25: Retirement | K25: 1010000 Plant In Service | L25: -351539.93 | P25: 0 | Q25: -351539.93 | R25: 0.092124 | S25: -32385.26451
A26: 18 | B26: 091.CPR.RET | C26: FURNITURE FOR LEGAL'S OFFICE | D26: (391.1) Office Furniture & Equipment | E26: PURCHASE OF OFFICE EQUIPMENT | F26: All TGS Divisions | G26: All | H26: 2008-05-14 | I26: 2023-05-01 | J26: Retirement | K26: 1010000 Plant In Service | L26: -1978.81 | P26: 0 | Q26: -1978.81 | R26: 0.092124 | S26: -182.2958924
A27: 19 | B27: 091.CPR.RET | C27: Purchase and Install Digital Recorders | D27: (397) Communication Equipment | E27: PURCHASE AND INSTALLATION OF RADIO, MICROWAVE, SATELLITE OR OTHER MISCELLANEOUS COMMUNICATION EQUIPMENT | F27: All TGS Divisions | G27: All | H27: 2011-06-01 | I27: 2023-02-01 | J27: Retirement | K27: 1010000 Plant In Service | L27: -14879.68 | P27: 0 | Q27: -14879.68 | R27: 0.092124 | S27: -1370.77564
A28: 20 | B28: 091.CPR.TRF | C28: WAREHOUSE AUTOMATION LIFECYCLE AND EXPANSION | D28: (391.9) Computer & Equipment | E28: HARDWARE | F28: All TGS Divisions | G28: All | H28: 2023-01-01 | I28: 2023-01-01 | J28: Adjustment | K28: 1010000 Plant In Service | L28: 50742.28 | P28: 0 | Q28: 50742.28 | R28: 0.092124 | S28: 4674.581803
A29: 21 | B29: 091.CPR.TRF | C29: INFORMATION TECHNOLOGY EQUIPMENT | D29: (391.9) Computer & Equipment | E29: PURCHASE OF OFFICE EQUIPMENT | F29: All TGS Divisions | G29: All | H29: 2023-06-01 | I29: 2023-06-01 | J29: Adjustment | K29: 1010000 Plant In Service | L29: 90312.21 | P29: 0 | Q29: 90312.21 | R29: 0.092124 | S29: 8319.922034
A30: 22 | B30: 091.CPR.TRF | C30: DESKTOP REPLACEMENTS 2017 | D30: (391.9) Computer & Equipment | E30: HARDWARE | F30: All TGS Divisions | G30: All | J30: Adjustment | K30: 1010000 Plant In Service | L30: 0 | O30: -113480.04 | P30: -113480.04 | Q30: -113480.04 | R30: 0.092124 | S30: -10454.2352 | T30: Adjustment to remove costs with insufficient documentation.
A31: 23 | B31: Grand Total | L31: =SUM(L9:L30) -> 1183775.95 | M31: =SUM(M9:M30) -> 0 | N31: 0 | O31: -350640.81 | P31: -350640.81 | Q31: 833135.14 | S31: 76751.74164
A32: 24

Sheet Corporate - 2023
A1: TEXAS GAS SERVICE COMPANY
A2: CORPORATE
A3: INVESTMENT REPORT - SUMMARY OF CORPORATE PLANT IN SERVICE (101, 106, 186) PROJECT ACTIVITY
A4: CHANGES FROM JANUARY 1, 2023 THROUGH DECEMBER 31, 2023
L6: =SUBTOTAL(9,L9:L300) -> 48267464.78 | M6: -61417.67 | N6: -3094.676906 | O6: -277722.93 | P6: -342235.2769 | Q6: 47925229.5 | S6: =SUBTOTAL(9,S9:S300) -> 13908714.22 | T6: =SUBTOTAL(9,T9:T300) -> 509290.5974 | U6: =SUBTOTAL(9,U9:U300) -> 14418004.82 | W6: =SUBTOTAL(9,W9:W300) -> 1328244.276
A7: Line No. | B7: Project Number | C7: Project Description | D7: Utility Account | E7: Function Description | F7: Customer Benefited (Location) | G7: Customers Benefited (Class) | H7: Project In Service Date | I7: GL Posting Date | J7: FERC Activity Code | K7: GL Account | L7: TYE Project Activity Cost - Unallocated | M7: Remove Vertex Sales Tax | N7: Meals and Hotels > RRC limit | O7: Miscellaneous Adjustments | P7: TYE Total Project Activity Adjustments | Q7: TYE Project Activity Cost - Adjusted Unallocated | R7: 2024 Allocation Factor | S7: TYE Project Cost - Allocated to TGS | T7: Total Adjustment-Allocated to TGS | U7: Allocated Adjusted Activity Cost Including Change in Distrigas | V7: Allocation Factor RGVSA | W7: Allocated Adjusted Cost to RGVSA | X7: Comments
A8: (a) | B8: (b) | C8: (c ) | D8: (d) | E8: (e) | F8: (f) | G8: (g) | H8: (h) | I8: (i) | J8: (j) | K8: (k) | L8: (l) | M8: (m) | N8: (n) | O8: (o) | P8: (p) = (m)+(n)+(o) | Q8: (q)=(l)+(p) | R8: (r) | S8: (s )=(l) x (r) | T8: (t)=(p) x (r) | U8: (u)=(s) + (t) | V8: (v) | W8: (w)=(u) x (v) | X8: (x)
A9: 1 | B9: 101.091.1717.010019 | C9: INFORMATION TECHNOLOGY LAPTOP PURCHASES | D9: (391.3) Office Machines | E9: PURCHASE OF OFFICE EQUIPMENT | F9: All OGS Divisions | G9: All | H9: 2021-04-01 | I9: 2023-01-01 | J9: Addition | K9: 1060000 CCNC | L9: 68.47 | P9: =SUM(M9:O9) -> 0 | Q9: =L9+P9 -> 68.47 | R9: 0.2851 | S9: =L9*R9 -> 19.520797 | T9: =P9*R9 -> 0 | U9: =S9+T9 -> 19.520797 | V9: 0.092124 | W9: =U9*V9 -> 1.798333903
A10: =A9+1 -> 2 | B10: 101.091.1717.010019 | C10: INFORMATION TECHNOLOGY LAPTOP PURCHASES | D10: (391.3) Office Machines | E10: PURCHASE OF OFFICE EQUIPMENT | F10: All OGS Divisions | G10: All | H10: 2021-04-01 | I10: 2023-03-01 | J10: Addition | K10: 1060000 CCNC | L10: -76.01 | P10: =SUM(M10:O10) -> 0 | Q10: -76.01 | R10: 0.2851 | S10: =L10*R10 -> -21.670451 | T10: =P10*R10 -> 0 | U10: =S10+T10 -> -21.670451 | V10: 0.092124 | W10: =U10*V10 -> -1.996368628
A11: 3 | B11: 101.091.1717.010019 | C11: INFORMATION TECHNOLOGY LAPTOP PURCHASES | D11: (391.3) Office Machines | E11: PURCHASE OF OFFICE EQUIPMENT | F11: All OGS Divisions | G11: All | H11: 2021-04-01 | I11: 2023-11-01 | J11: Addition | K11: 1060000 CCNC | L11: 636.34 | P11: 0 | Q11: 636.34 | R11: 0.2851 | S11: 181.420534 | T11: 0 | U11: 181.420534 | V11: 0.092124 | W11: 16.71318527
A12: 4 | B12: 101.091.1717.010019 | C12: INFORMATION TECHNOLOGY LAPTOP PURCHASES | D12: (391.3) Office Machines | E12: PURCHASE OF OFFICE EQUIPMENT | F12: All OGS Divisions | G12: All | H12: 2021-04-01 | I12: 2023-02-01 | J12: Addition | K12: 1060000 CCNC | L12: -67.86 | P12: 0 | Q12: -67.86 | R12: 0.2851 | S12: -19.346886 | T12: 0 | U12: -19.346886 | V12: 0.092124 | W12: -1.782312526
A13: 5 | B13: 101.091.1717.010019 | C13: INFORMATION TECHNOLOGY LAPTOP PURCHASES | D13: (391.3) Office Machines | E13: PURCHASE OF OFFICE EQUIPMENT | F13: All OGS Divisions | G13: All | H13: 2021-04-01 | I13: 2023-02-01 | J13: Adjustment | K13: 1010000 Plant In Service | L13: 0 | M13: 67.86 | P13: 67.86 | Q13: 67.86 | R13: 0.2851 | S13: 0 | T13: 19.346886 | U13: 19.346886 | V13: 0.092124 | W13: 1.782312526 | X13: Reversal of prior year adjustment to remove Vertex sales tax. A correcting entry was made in 2023.
A14: 6 | B14: 101.091.1717.010020 | C14: COVID-19 INFORMATION TECHNOLOGY EQUIPMENT PURCHASE | D14: (391.8) Micro Computer Software | E14: PURCHASE OF OFFICE EQUIPMENT | F14: All OGS Divisions | G14: All | H14: 2021-01-01 | I14: 2023-05-01 | J14: Addition | K14: 1010000 Plant In Service | L14: 70250.35 | P14: 0 | Q14: 70250.35 | R14: 0.2851 | S14: 20028.37479 | T14: 0 | U14: 20028.37479 | V14: 0.092124 | W14: 1845.093999
A15: 7 | B15: 101.091.1717.010021 | C15: FIRST PLACE TOWER COVID-19 EQUIPMENT PURCHASE | D15: (391.8) Micro Computer Software | E15: PURCHASE OF OFFICE EQUIPMENT | F15: All OGS Divisions | G15: All | H15: 2021-01-01 | I15: 2023-05-01 | J15: Addition | K15: 1010000 Plant In Service | L15: 65426.96 | P15: 0 | Q15: 65426.96 | R15: 0.2851 | S15: 18653.2263 | T15: 0 | U15: 18653.2263 | V15: 0.092124 | W15: 1718.409819
A16: 8 | B16: 101.091.1717.010024 | C16: FIRST PLACE TOWER/TULSA TRAINING CENTER TOOL PURCHASES | D16: (394) Tools | E16: PURCHASE OF OFFICE EQUIPMENT | F16: All OGS Divisions | G16: All | J16: Adjustment | K16: 1010000 Plant In Service | L16: 0 | O16: 3561.75 | P16: 3561.75 | Q16: 3561.75 | R16: 0.2851 | S16: 0 | T16: 1015.454925 | U16: 1015.454925 | V16: 0.092124 | W16: 93.54776951 | X16: Adjustment to include corporate costs.
A17: 9 | B17: 101.091.1717.010027 | C17: SECURITY OPERATION CENTER (SOC) MOVE TO TULSA SERVICE CENTER | D17: (390.1) Structures & Improvements | E17: PURCHASE OF OFFICE EQUIPMENT | F17: ONG | G17: All | H17: 2022-01-01 | I17: 2023-04-01 | J17: Transfer | K17: 1010000 Plant In Service | L17: -6222.23 | O17: 6222.23 | P17: 6222.23 | Q17: 0 | R17: 0.2851 | S17: -1773.957773 | T17: 1773.957773 | U17: 0 | V17: 0.092124 | W17: 0 | X17: Reversal of prior year adjustment to remove direct specific costs. Project was transferred to correct locations in 2023 test year.
A18: 10 | B18: 101.091.1717.010027 | C18: SECURITY OPERATION CENTER (SOC) MOVE TO TULSA SERVICE CENTER | D18: (391.1) Office Furniture & Equipment | E18: PURCHASE OF OFFICE EQUIPMENT | F18: ONG | G18: All | H18: 2022-01-01 | I18: 2023-04-01 | J18: Transfer | K18: 1010000 Plant In Service | L18: -77636.76 | O18: 77636.76 | P18: 77636.76 | Q18: 0 | R18: 0.2851 | S18: -22134.24028 | T18: 22134.24028 | U18: 0 | V18: 0.092124 | W18: 0 | X18: Reversal of prior year adjustment to remove direct specific costs. Project was transferred to correct locations in 2023 test year.
A19: 11 | B19: 101.091.1717.010027 | C19: SECURITY OPERATION CENTER (SOC) MOVE TO TULSA SERVICE CENTER | D19: (391.8) Micro Computer Software | E19: PURCHASE OF OFFICE EQUIPMENT | F19: ONG | G19: All | H19: 2022-01-01 | I19: 2023-04-01 | J19: Transfer | K19: 1010000 Plant In Service | L19: -18697.93 | O19: 18697.93 | P19: 18697.93 | Q19: 0 | R19: 0.2851 | S19: -5330.779843 | T19: 5330.779843 | U19: 0 | V19: 0.092124 | W19: 0 | X19: Reversal of prior year adjustment to remove direct specific costs. Project was transferred to correct locations in 2023 test year.
A20: 12 | B20: 101.091.1717.010029 | C20: 2 ADA DESKS FIRST PLACE TOWER | D20: (391.1) Office Furniture & Equipment | E20: PURCHASE OF OFFICE EQUIPMENT | F20: All OGS Divisions | G20: All | H20: 2023-01-01 | I20: 2023-11-01 | J20: Addition | K20: 1010000 Plant In Service | L20: 11419.65 | M20: -896.28 | P20: -896.28 | Q20: 10523.37 | R20: 0.2851 | S20: 3255.742215 | T20: -255.529428 | U20: 3000.212787 | V20: 0.092124 | W20: 276.3916028 | X20: Adjustment to remove Vertex sales tax.
A21: 13 | B21: 101.091.1717.010030 | C21: 2023 GENETEC LICENSING UPGRADE | D21: (390.2) Lease Incentive | E21: PURCHASE OF OFFICE EQUIPMENT | F21: All OGS Divisions | G21: All | H21: 2023-12-20 | I21: 2023-12-01 | J21: Addition | K21: 1060000 CCNC | L21: 37237.4 | O21: -37237.4 | P21: -37237.4 | Q21: 0 | R21: 0.2851 | S21: 10616.38274 | T21: -10616.38274 | U21: 0 | V21: 0.092124 | W21: 0 | X21: Reclassify project to correct utility account.
A22: 14 | B22: 101.091.1717.010030 | C22: 2023 GENETEC LICENSING UPGRADE | D22: (390.2) Leasehold Improvements | E22: PURCHASE OF OFFICE EQUIPMENT | F22: All OGS Divisions | G22: All | H22: 2023-12-20 | I22: 2023-12-01 | J22: Adjustment | K22: 1060000 CCNC | O22: 37215.56 | P22: 37215.56 | Q22: 37215.56 | R22: 0.2851 | S22: 0 | T22: 10610.15616 | U22: 10610.15616 | V22: 0.092124 | W22: 977.4500257 | X22: Reclassify project to correct utility account, and remove charges not properly supported.
A23: 15 | B23: 101.093.1950.010001 | C23: TULSA TRAINING CENTER - TECHNICAL TRAINING PROPS AND TOOLS | D23: (391.1) Office Furniture & Equipment | E23: PURCHASE OF AUTOMOBILES | F23: All OGS Divisions | G23: All | H23: 2022-01-01 | I23: 2023-03-01 | J23: Addition | K23: 1010000 Plant In Service | L23: 24384.99 | P23: 0 | Q23: 24384.99 | R23: 0.2851 | S23: 6952.160649 | T23: 0 | U23: 6952.160649 | V23: 0.092124 | W23: 640.4608476
A24: 16 | B24: 101.093.1950.010001 | C24: TULSA TRAINING CENTER - TECHNICAL TRAINING PROPS AND TOOLS | D24: (394) Tools | E24: PURCHASE OF AUTOMOBILES | F24: All OGS Divisions | G24: All | H24: 2022-01-01 | I24: 2023-03-01 | J24: Addition | K24: 1010000 Plant In Service | L24: 473512.1 | O24: -85.03 | P24: =SUM(M24:O24) -> -85.03 | Q24: 473427.07 | R24: 0.2851 | S24: 134998.2997 | T24: -24.242053 | U24: 134974.0577 | V24: 0.092124 | W24: 12434.35009 | X24: Adjustment to remove charges not properly supported.
A25: 17 | B25: 101.093.1950.010002 | C25: TO PURCHASE TRAINING CENTER EQUIPMENT (83) | D25: (394) Tools | E25: PURCHASE OF AUTOMOBILES | F25: All OGS Divisions | G25: All | J25: Adjustment | K25: 1060000 CCNC | L25: 0 | O25: -118.39 | P25: =SUM(M25:O25) -> -118.39 | Q25: -118.39 | R25: 0.2851 | S25: 0 | T25: -33.752989 | U25: -33.752989 | V25: 0.092124 | W25: -3.109460359 | X25: Adjustment to remove charges not properly supported.
A26: 18 | B26: 101.093.1950.010003 | C26: FILLING MACHINE - FIRE EXTINGUISHER | D26: (394) Tools | E26: PURCHASE OF AUTOMOBILES | F26: All OGS Divisions | G26: All | H26: 2023-01-01 | I26: 2023-01-01 | J26: Addition | K26: 1010000 Plant In Service | L26: 3913.99 | P26: 0 | Q26: 3913.99 | R26: 0.2851 | S26: 1115.878549 | T26: 0 | U26: 1115.878549 | V26: 0.092124 | W26: 102.7991954
A27: 19 | B27: 101.093.1950.010004 | C27: ONEGAS CAMERA | D27: (390.1) Structures & Improvements | E27: PURCHASE OF AUTOMOBILES | F27: All OGS Divisions | G27: All | H27: 2023-01-01 | I27: 2023-01-01 | J27: Addition | K27: 1010000 Plant In Service | L27: 9620.72 | P27: 0 | Q27: 9620.72 | R27: 0.2851 | S27: 2742.867272 | T27: 0 | U27: 2742.867272 | V27: 0.092124 | W27: 252.6839046
A28: 20 | B28: 101.094.1717.010013 | C28: SHAWNEE METER SHOP UVGI AIR PURIFIER PROJECT | D28: (390.1) Structures & Improvements | E28: OFFICE BUILDINGS AND CNG (COMPRESSED NATURAL GAS) FACILITIES LOCATED ON COMPANY PROPERTY-ADDITIONS OR REPLACEMENTS | F28: ONG | G28: All | J28: Adjustment | K28: 1060000 CCNC | L28: 0 | O28: -2855 | P28: -2855 | Q28: -2855 | R28: 0.2851 | S28: 0 | T28: -813.9605 | U28: -813.9605 | V28: 0.092124 | W28: -74.9852971 | X28: Removal of direct specific costs.
A29: 21 | B29: 101.094.1717.010017 | C29: 15TH ST FLEET GARAGE - GATE ADDITION AND ACCESS CONTROL UPGRADE | D29: (390.1) Structures & Improvements | E29: OFFICE BUILDINGS AND CNG (COMPRESSED NATURAL GAS) FACILITIES LOCATED ON COMPANY PROPERTY-ADDITIONS OR REPLACEMENTS | F29: ONG | G29: All | H29: 2020-12-15 | I29: 2023-01-01 | J29: Addition | K29: 1060000 CCNC | L29: -37519.8 | O29: =37519.8 -> 37519.8 | P29: 37519.8 | Q29: 0 | R29: 0.2851 | S29: -10696.89498 | T29: 10696.89498 | U29: 0 | V29: 0.092124 | W29: 0 | X29: Reversal of prior year adjustment to remove direct specific costs. Project was transferred to correct locations in 2023 test year.
A30: 22 | B30: 101.094.1717.010017 | C30: 15TH ST FLEET GARAGE - GATE ADDITION AND ACCESS CONTROL UPGRADE | D30: (390.1) Structures & Improvements | E30: OFFICE BUILDINGS AND CNG (COMPRESSED NATURAL GAS) FACILITIES LOCATED ON COMPANY PROPERTY-ADDITIONS OR REPLACEMENTS | F30: ONG | G30: All | H30: 2020-12-15 | I30: 2023-01-01 | J30: Adjustment | K30: 1010000 Plant In Service | L30: 0 | O30: 25.46 | P30: 25.46 | Q30: 25.46 | R30: 0.2851 | S30: 0 | T30: 7.258646 | U30: 7.258646 | V30: 0.092124 | W30: 0.6686955041 | X30: Reversal of prior year adjustment to remove charges not properly supported. Project was transferred to correct locations in 2023 test year.
A31: 23 | B31: 101.094.1717.010018 | C31: NETWORK VIDEO RECORDER REPLACEMENT-GAS JUNCTIONS | D31: (390.1) Structures & Improvements | E31: OFFICE BUILDINGS AND CNG (COMPRESSED NATURAL GAS) FACILITIES LOCATED ON COMPANY PROPERTY-ADDITIONS OR REPLACEMENTS | F31: All OGS Divisions | G31: All | H31: 2020-01-01 | I31: 2023-04-01 | J31: Addition | K31: 1010000 Plant In Service | L31: 15456.38 | P31: 0 | Q31: 15456.38 | R31: 0.2851 | S31: 4406.613938 | T31: 0 | U31: 4406.613938 | V31: 0.092124 | W31: 405.9549024
A32: 24 | B32: 101.094.1717.010019 | C32: SHAWNEE METER SHOP SECURITY ADDITION | D32: (390.1) Structures & Improvements | E32: OFFICE BUILDINGS AND CNG (COMPRESSED NATURAL GAS) FACILITIES LOCATED ON COMPANY PROPERTY-ADDITIONS OR REPLACEMENTS | F32: ONG | G32: All | H32: 2023-01-01 | I32: 2023-04-01 | J32: Addition | K32: 1010000 Plant In Service | L32: 16289.42 | O32: -16289.42 | P32: -16289.42 | Q32: 0 | R32: 0.2851 | S32: 4644.113642 | T32: -4644.113642 | U32: 0 | V32: 0.092124 | W32: 0 | X32: Removal of direct specific costs.
A33: 25 | B33: 101.094.1717.010020 | C33: ONEGAS FIRST PLACE TOWER SECURITY ENHANCEMENTS | D33: (390.1) Structures & Improvements | E33: OFFICE BUILDINGS AND CNG (COMPRESSED NATURAL GAS) FACILITIES LOCATED ON COMPANY PROPERTY-ADDITIONS OR REPLACEMENTS | F33: All OGS Divisions | G33: All | H33: 2021-01-01 | I33: 2023-04-01 | J33: Addition | K33: 1010000 Plant In Service | L33: 9978.46 | P33: 0 | Q33: 9978.46 | R33: 0.2851 | S33: 2844.858946 | T33: 0 | U33: 2844.858946 | V33: 0.092124 | W33: 262.0797855
A34: 26 | B34: 101.094.1717.010022 | C34: ONEGAS 2022 GENETEC SECURITY CENTER UPGRADE | D34: (390.1) Structures & Improvements | E34: OFFICE BUILDINGS AND CNG (COMPRESSED NATURAL GAS) FACILITIES LOCATED ON COMPANY PROPERTY-ADDITIONS OR REPLACEMENTS | F34: All OGS Divisions | G34: All | H34: 2022-08-31 | I34: 2023-02-01 | J34: Addition | K34: 1060000 CCNC | L34: 33917.74 | P34: 0 | Q34: 33917.74 | R34: 0.2851 | S34: 9669.947674 | T34: 0 | U34: 9669.947674 | V34: 0.092124 | W34: 890.8342595
A35: 27 | B35: 101.094.1717.010024 | C35: ONEGAS LEGACY INTERCOM UPGRADES - 2022 | D35: (390.1) Structures & Improvements | E35: OFFICE BUILDINGS AND CNG (COMPRESSED NATURAL GAS) FACILITIES LOCATED ON COMPANY PROPERTY-ADDITIONS OR REPLACEMENTS | F35: All OGS Divisions | G35: All | H35: 2022-12-28 | I35: 2023-02-01 | J35: Addition | K35: 1060000 CCNC | L35: 5269.05 | P35: 0 | Q35: 5269.05 | R35: 0.2851 | S35: 1502.206155 | T35: 0 | U35: 1502.206155 | V35: 0.092124 | W35: 138.3892398
A36: 28 | B36: 101.094.1717.010024 | C36: ONEGAS LEGACY INTERCOM UPGRADES - 2022 | D36: (390.1) Structures & Improvements | E36: OFFICE BUILDINGS AND CNG (COMPRESSED NATURAL GAS) FACILITIES LOCATED ON COMPANY PROPERTY-ADDITIONS OR REPLACEMENTS | F36: All OGS Divisions | G36: All | H36: 2022-12-28 | I36: 2023-03-01 | J36: Addition | K36: 1060000 CCNC | L36: -1074.81 | P36: 0 | Q36: -1074.81 | R36: 0.2851 | S36: -306.428331 | T36: 0 | U36: -306.428331 | V36: 0.092124 | W36: -28.22940357
A37: 29 | B37: 101.094.1717.010024 | C37: ONEGAS LEGACY INTERCOM UPGRADES - 2022 | D37: (390.1) Structures & Improvements | E37: OFFICE BUILDINGS AND CNG (COMPRESSED NATURAL GAS) FACILITIES LOCATED ON COMPANY PROPERTY-ADDITIONS OR REPLACEMENTS | F37: All OGS Divisions | G37: All | H37: 2022-12-28 | I37: 2023-04-01 | J37: Addition | K37: 1060000 CCNC | L37: 97.71 | P37: 0 | Q37: 97.71 | R37: 0.2851 | S37: 27.857121 | T37: 0 | U37: 27.857121 | V37: 0.092124 | W37: 2.566309415
A38: 30 | B38: 101.094.1717.010025 | C38: SHAWNEE METER SHOP AIR DRYER | D38: (390.1) Structures & Improvements | E38: OFFICE BUILDINGS AND CNG (COMPRESSED NATURAL GAS) FACILITIES LOCATED ON COMPANY PROPERTY-ADDITIONS OR REPLACEMENTS | F38: ONG | G38: All | J38: Adjustment | K38: 1010000 Plant In Service | L38: 0 | O38: -9929.19 | P38: -9929.19 | Q38: -9929.19 | R38: 0.2851 | S38: 0 | T38: -2830.812069 | U38: -2830.812069 | V38: 0.092124 | W38: -260.785731 | X38: Removal of direct specific costs.
A39: 31 | B39: 101.094.1717.010027 | C39: SHAWNEE METER OUT BUILDING | D39: (390.1) Structures & Improvements | E39: OFFICE BUILDINGS AND CNG (COMPRESSED NATURAL GAS) FACILITIES LOCATED ON COMPANY PROPERTY-ADDITIONS OR REPLACEMENTS | F39: All OGS Divisions | G39: All | H39: 2022-01-01 | I39: 2023-04-01 | J39: Addition | K39: 1010000 Plant In Service | L39: 35489.69 | P39: 0 | Q39: 35489.69 | R39: 0.2851 | S39: 10118.11062 | T39: 0 | U39: 10118.11062 | V39: 0.092124 | W39: 932.1208227
A40: 32 | B40: 101.094.1717.010027 | C40: SHAWNEE METER OUT BUILDING | D40: (390.1) Structures & Improvements | E40: OFFICE BUILDINGS AND CNG (COMPRESSED NATURAL GAS) FACILITIES LOCATED ON COMPANY PROPERTY-ADDITIONS OR REPLACEMENTS | F40: All OGS Divisions | G40: All | H40: 2022-11-17 | I40: 2023-04-01 | J40: Addition | K40: 1060000 CCNC | L40: -35489.69 | P40: 0 | Q40: -35489.69 | R40: 0.2851 | S40: -10118.11062 | T40: 0 | U40: -10118.11062 | V40: 0.092124 | W40: -932.1208227
A41: 33 | B41: 101.094.1717.010029 | C41: FIRST PLACE TOWER CORE VALUES ELEVATOR BRANDING | D41: (390.2) Lease Incentive | E41: OFFICE BUILDINGS AND CNG (COMPRESSED NATURAL GAS) FACILITIES LOCATED ON COMPANY PROPERTY-ADDITIONS OR REPLACEMENTS | F41: All OGS Divisions | G41: All | H41: 2023-01-01 | I41: 2023-05-01 | J41: Addition | K41: 1010000 Plant In Service | L41: 23130.43 | O41: -23130.43 | P41: -23130.43 | Q41: 0 | R41: 0.2851 | S41: 6594.485593 | T41: -6594.485593 | U41: 0 | V41: 0.092124 | W41: 0 | X41: Reclassify project to correct utility account.
A42: 34 | B42: 101.094.1717.010029 | C42: FIRST PLACE TOWER CORE VALUES ELEVATOR BRANDING | D42: (390.2) Leasehold Improvements | E42: OFFICE BUILDINGS AND CNG (COMPRESSED NATURAL GAS) FACILITIES LOCATED ON COMPANY PROPERTY-ADDITIONS OR REPLACEMENTS | F42: All OGS Divisions | G42: All | H42: 2023-01-01 | I42: 2023-05-01 | J42: Adjustment | K42: 1010000 Plant In Service | L42: 0 | O42: 23130.43 | P42: 23130.43 | Q42: 23130.43 | R42: 0.2851 | S42: 0 | T42: 6594.485593 | U42: 6594.485593 | V42: 0.092124 | W42: 607.5103908 | X42: Reclassify project to correct utility account.
A43: 35 | B43: 101.094.1717.010032 | C43: TULSA TRAINING CENTER-GENERATOR IMPROVEMENTS | D43: (390.1) Structures & Improvements | E43: OFFICE BUILDINGS AND CNG (COMPRESSED NATURAL GAS) FACILITIES LOCATED ON COMPANY PROPERTY-ADDITIONS OR REPLACEMENTS | F43: All OGS Divisions | G43: All | H43: 2023-01-01 | I43: 2023-04-01 | J43: Addition | K43: 1010000 Plant In Service | L43: 1394.92 | P43: 0 | Q43: 1394.92 | R43: 0.2851 | S43: 397.691692 | T43: 0 | U43: 397.691692 | V43: 0.092124 | W43: 36.63694943
A44: 36 | B44: 101.094.1717.010033 | C44: FIRST PLACE TOWER 31ST FLOOR DIRECTOR'S OFFICE MAGNETIC WHITE BOARD WALL | D44: (391.1) Office Furniture & Equipment | E44: OFFICE BUILDINGS AND CNG (COMPRESSED NATURAL GAS) FACILITIES LOCATED ON COMPANY PROPERTY-ADDITIONS OR REPLACEMENTS | F44: All OGS Divisions | G44: All | H44: 2023-01-01 | I44: 2023-05-01 | J44: Addition | K44: 1010000 Plant In Service | L44: 3543 | P44: 0 | Q44: 3543 | R44: 0.2851 | S44: 1010.1093 | T44: 0 | U44: 1010.1093 | V44: 0.092124 | W44: 93.05530915
A45: 37 | B45: 101.094.1717.010034 | C45: CELLULAR APN FOR PHYSICAL SECURITY DEVICES-2023 | D45: (390.1) Structures & Improvements | E45: OFFICE BUILDINGS AND CNG (COMPRESSED NATURAL GAS) FACILITIES LOCATED ON COMPANY PROPERTY-ADDITIONS OR REPLACEMENTS | F45: All OGS Divisions | G45: All | H45: 2023-12-20 | I45: 2023-12-01 | J45: Addition | K45: 1060000 CCNC | L45: 1016.94 | P45: 0 | Q45: 1016.94 | R45: 0.2851 | S45: 289.929594 | T45: 0 | U45: 289.929594 | V45: 0.092124 | W45: 26.70947392
A46: 38 | B46: 101.094.1717.010035 | C46: ONEGAS 2023 GENETEC SECURITY CENTER UPGRADE - 2023 | D46: (390.1) Structures & Improvements | E46: OFFICE BUILDINGS AND CNG (COMPRESSED NATURAL GAS) FACILITIES LOCATED ON COMPANY PROPERTY-ADDITIONS OR REPLACEMENTS | F46: All OGS Divisions | G46: All | H46: 2023-12-20 | I46: 2023-12-01 | J46: Addition | K46: 1060000 CCNC | L46: 13322.03 | P46: 0 | Q46: 13322.03 | R46: 0.2851 | S46: 3798.110753 | T46: 0 | U46: 3798.110753 | V46: 0.092124 | W46: 349.897155
A47: 39 | B47: 101.094.1717.010036 | C47: ONEGAS-SECURE KEY ENCLOSURES-2023 | D47: (390.1) Structures & Improvements | E47: OFFICE BUILDINGS AND CNG (COMPRESSED NATURAL GAS) FACILITIES LOCATED ON COMPANY PROPERTY-ADDITIONS OR REPLACEMENTS | F47: All OGS Divisions | G47: All | H47: 2023-12-20 | I47: 2023-12-01 | J47: Addition | K47: 1060000 CCNC | L47: 58608.01 | P47: 0 | Q47: 58608.01 | R47: 0.2851 | S47: 16709.14365 | T47: 0 | U47: 16709.14365 | V47: 0.092124 | W47: 1539.31315
A48: 40 | B48: 101.094.1717.010037 | C48: SHAWNEE METER SHOP LED LIGHTING UPGRADE | D48: (390.1) Structures & Improvements | E48: OFFICE BUILDINGS AND CNG (COMPRESSED NATURAL GAS) FACILITIES LOCATED ON COMPANY PROPERTY-ADDITIONS OR REPLACEMENTS | F48: ONG | G48: All | H48: 2023-01-01 | I48: 2023-11-01 | J48: Addition | K48: 1010000 Plant In Service | L48: 77480.67 | O48: -77480.67 | P48: -77480.67 | Q48: 0 | R48: 0.2851 | S48: 22089.73902 | T48: -22089.73902 | U48: 0 | V48: 0.092124 | W48: 0 | X48: Removal of direct specific costs.
A49: 41 | B49: 101.094.1717.010037 | C49: SHAWNEE METER SHOP LED LIGHTING UPGRADE | D49: (390.1) Structures & Improvements | E49: OFFICE BUILDINGS AND CNG (COMPRESSED NATURAL GAS) FACILITIES LOCATED ON COMPANY PROPERTY-ADDITIONS OR REPLACEMENTS | F49: ONG | G49: All | H49: 2023-01-01 | I49: 2023-12-01 | J49: Addition | K49: 1010000 Plant In Service | L49: 6957.45 | O49: -6957.45 | P49: -6957.45 | Q49: 0 | R49: 0.2851 | S49: 1983.568995 | T49: -1983.568995 | U49: 0 | V49: 0.092124 | W49: 0 | X49: Removal of direct specific costs.
A50: 42 | B50: 101.094.1717.010038 | C50: SHAWNEE METER SHOP SECURITY UPGRADES - 2023 | D50: (390.1) Structures & Improvements | E50: OFFICE BUILDINGS AND CNG (COMPRESSED NATURAL GAS) FACILITIES LOCATED ON COMPANY PROPERTY-ADDITIONS OR REPLACEMENTS | F50: All OGS Divisions | G50: All | H50: 2023-12-20 | I50: 2023-12-01 | J50: Addition | K50: 1060000 CCNC | L50: 83653.63 | P50: 0 | Q50: 83653.63 | R50: 0.2851 | S50: 23849.64991 | T50: 0 | U50: 23849.64991 | V50: 0.092124 | W50: 2197.125149
A51: 43 | B51: 101.094.1717.010039 | C51: FIRST PLACE TOWER & GARAGE ACCESS CONTROL AND TECHNOLOGY UPGRADE/ADD - 2023 | D51: (390.1) Structures & Improvements | E51: OFFICE BUILDINGS AND CNG (COMPRESSED NATURAL GAS) FACILITIES LOCATED ON COMPANY PROPERTY-ADDITIONS OR REPLACEMENTS | F51: All OGS Divisions | G51: All | H51: 2023-12-20 | I51: 2023-12-01 | J51: Addition | K51: 1060000 CCNC | L51: 225172.29 | P51: 0 | Q51: 225172.29 | R51: 0.2851 | S51: 64196.61988 | T51: 0 | U51: 64196.61988 | V51: 0.092124 | W51: 5914.04941
A52: 44 | B52: 101.094.1717.010040 | C52: FIRST PLACE TOWER & GARAGE CAMERA/TECHNOLOGY UPGRADE - 2023 | D52: (390.1) Structures & Improvements | E52: OFFICE BUILDINGS AND CNG (COMPRESSED NATURAL GAS) FACILITIES LOCATED ON COMPANY PROPERTY-ADDITIONS OR REPLACEMENTS | F52: All OGS Divisions | G52: All | H52: 2023-12-20 | I52: 2023-12-01 | J52: Addition | K52: 1060000 CCNC | L52: 234770.36 | P52: 0 | Q52: 234770.36 | R52: 0.2851 | S52: 66933.02964 | T52: 0 | U52: 66933.02964 | V52: 0.092124 | W52: 6166.138422
A53: 45 | B53: 101.097.1717.010026 | C53: FIRST PLACE TOWER GARAGE SECURITY | D53: (390.2) Leasehold Improvements | E53: LEASEHOLD IMPROVEMENTS | F53: All OGS Divisions | G53: All | J53: Adjustment | K53: 1010000 Plant In Service | L53: 0 | O53: -18290.49 | P53: -18290.49 | Q53: -18290.49 | R53: 0.2851 | S53: 0 | T53: -5214.618699 | U53: -5214.618699 | V53: 0.092124 | W53: -480.391533 | X53: Adjustment to remove charges not properly supported.
A54: 46 | B54: 101.097.1717.010042 | C54: GENENTEC NETWORK VIDEO RECORDER WINDOWS 10 UPDATE | D54: (390.2) Leasehold Improvements | E54: LEASEHOLD IMPROVEMENTS | F54: All OGS Divisions | G54: All | J54: Adjustment | K54: 1010000 Plant In Service | L54: 0 | O54: -44.44 | P54: =SUM(M54:O54) -> -44.44 | Q54: =L54+P54 -> -44.44 | R54: 0.2851 | S54: =L54*R54 -> 0 | T54: =P54*R54 -> -12.669844 | U54: =S54+T54 -> -12.669844 | V54: 0.092124 | W54: =U54*V54 -> -1.167196709 | X54: Adjustment to remove charges not properly supported.
A55: 47 | B55: 101.097.1717.010055 | C55: ONEGAS EDUCATIONAL AND TRAINING AREA | D55: (390.2) Leasehold Improvements | E55: LEASEHOLD IMPROVEMENTS | F55: All OGS Divisions | G55: All | H55: 2022-12-28 | I55: 2023-02-01 | J55: Addition | K55: 1060000 CCNC | L55: 1223619.32 | O55: =-2088.06 -> -2088.06 | P55: -2088.06 | Q55: 1221531.26 | R55: 0.2851 | S55: 348853.8681 | T55: -595.305906 | U55: 348258.5622 | V55: 0.092124 | W55: 32082.97179 | X55: Adjustment to remove artwork costs.
A56: 48 | B56: 101.097.1717.010068 | C56: NEDAP (READERS, PUCKS, HARDWARE) - 2022 | D56: (390.2) Leasehold Improvements | E56: LEASEHOLD IMPROVEMENTS | F56: All OGS Divisions | G56: All | H56: 2023-12-20 | I56: 2023-12-01 | J56: Addition | K56: 1060000 CCNC | L56: 98282.66 | O56: -98282.66 | P56: -98282.66 | Q56: 0 | R56: 0.2851 | S56: 28020.38637 | T56: -28020.38637 | U56: 0 | V56: 0.092124 | W56: 0 | X56: Removal of project miscoded to GL Account 106000.
A57: 49 | B57: 101.097.1717.010070 | C57: COMMUNICATIONS WORKGROUP RECONFIGURATION | D57: (390.2) Lease Incentive | E57: LEASEHOLD IMPROVEMENTS | F57: All OGS Divisions | G57: All | H57: 2023-01-01 | I57: 2023-05-01 | J57: Addition | K57: 1010000 Plant In Service | L57: 71804.92 | O57: -71804.92 | P57: -71804.92 | Q57: 0 | R57: 0.2851 | S57: 20471.58269 | T57: -20471.58269 | U57: 0 | V57: 0.092124 | W57: 0 | X57: Reclassify project to correct utility account.
A58: 50 | B58: 101.097.1717.010070 | C58: COMMUNICATIONS WORKGROUP RECONFIGURATION | D58: (390.2) Leasehold Improvements | E58: LEASEHOLD IMPROVEMENTS | F58: All OGS Divisions | G58: All | H58: 2023-01-01 | I58: 2023-05-01 | J58: Adjustment | K58: 1010000 Plant In Service | O58: 71804.92 | P58: 71804.92 | Q58: 71804.92 | R58: 0.2851 | S58: 0 | T58: 20471.58269 | U58: 20471.58269 | V58: 0.092124 | W58: 1885.924084 | X58: Reclassify project to correct utility account.
A59: 51 | B59: 101.097.1717.010071 | C59: ONEGAS 2022 GENETEC SIPELIA ADV LICENSE& TIBCO DATA EXPORT | D59: (390.2) Leasehold Improvements | E59: LEASEHOLD IMPROVEMENTS | F59: All OGS Divisions | G59: All | H59: 2022-12-15 | I59: 2023-02-01 | J59: Addition | K59: 1060000 CCNC | L59: 43970 | P59: 0 | Q59: 43970 | R59: 0.2851 | S59: 12535.847 | T59: 0 | U59: 12535.847 | V59: 0.092124 | W59: 1154.852369
A60: 52 | B60: 101.097.1717.010072 | C60: ONEGAS OPERATIONAL ASSET CAMERA PURCHASE FOR 2023 UPGRADE | D60: (390.2) Lease Incentive | E60: LEASEHOLD IMPROVEMENTS | F60: All OGS Divisions | G60: All | H60: 2022-12-15 | I60: 2023-02-01 | J60: Addition | K60: 1060000 CCNC | L60: 194877.06 | O60: -194877.06 | P60: -194877.06 | Q60: 0 | R60: 0.2851 | S60: 55559.44981 | T60: -55559.44981 | U60: 0 | V60: 0.092124 | W60: 0 | X60: Reclassify project to correct utility account.
A61: 53 | B61: 101.097.1717.010072 | C61: ONEGAS OPERATIONAL ASSET CAMERA PURCHASE FOR 2023 UPGRADE | D61: (390.2) Leasehold Improvements | E61: LEASEHOLD IMPROVEMENTS | F61: All OGS Divisions | G61: All | H61: 2022-12-15 | I61: 2023-02-01 | J61: Addition | K61: 1060000 CCNC | O61: 194877.06 | P61: 194877.06 | Q61: 194877.06 | R61: 0.2851 | S61: 0 | T61: 55559.44981 | U61: 55559.44981 | V61: 0.092124 | W61: 5118.358754 | X61: Reclassify project to correct utility account.
A62: 54 | B62: 101.097.1717.010073 | C62: 24TH FLOOR INNOVATION AREA | D62: (390.2) Lease Incentive | E62: LEASEHOLD IMPROVEMENTS | F62: All OGS Divisions | G62: All | H62: 2023-01-01 | I62: 2023-08-01 | J62: Addition | K62: 1010000 Plant In Service | L62: 4437 | O62: -4437 | P62: -4437 | Q62: 0 | R62: 0.2851 | S62: 1264.9887 | T62: -1264.9887 | U62: 0 | V62: 0.092124 | W62: 0 | X62: Reclassify project to correct utility account.
A63: 55 | B63: 101.097.1717.010073 | C63: 24TH FLOOR INNOVATION AREA | D63: (390.2) Leasehold Improvements | E63: LEASEHOLD IMPROVEMENTS | F63: All OGS Divisions | G63: All | H63: 2023-01-01 | I63: 2023-08-01 | J63: Adjustment | K63: 1010000 Plant In Service | O63: 4437 | P63: 4437 | Q63: 4437 | R63: 0.2851 | S63: 0 | T63: 1264.9887 | U63: 1264.9887 | V63: 0.092124 | W63: 116.535819 | X63: Reclassify project to correct utility account.
A64: 56 | B64: 101.097.1717.010074 | C64: FIRST PLACE TOWER 29TH FLOOR DIRECTOR'S OFFICE | D64: (390.2) Lease Incentive | E64: LEASEHOLD IMPROVEMENTS | F64: All OGS Divisions | G64: All | H64: 2023-01-01 | I64: 2023-05-01 | J64: Addition | K64: 1010000 Plant In Service | L64: 3678.98 | O64: -3678.98 | P64: -3678.98 | Q64: 0 | R64: 0.2851 | S64: 1048.877198 | T64: -1048.877198 | U64: 0 | V64: 0.092124 | W64: 0 | X64: Reclassify project to correct utility account.
A65: 57 | B65: 101.097.1717.010074 | C65: FIRST PLACE TOWER 29TH FLOOR DIRECTOR'S OFFICE | D65: (390.2) Leasehold Improvements | E65: LEASEHOLD IMPROVEMENTS | F65: All OGS Divisions | G65: All | H65: 2023-01-01 | I65: 2023-05-01 | J65: Adjustment | K65: 1010000 Plant In Service | O65: 3678.98 | P65: 3678.98 | Q65: 3678.98 | R65: 0.2851 | S65: 0 | T65: 1048.877198 | U65: 1048.877198 | V65: 0.092124 | W65: 96.62676299 | X65: Reclassify project to correct utility account.
A66: 58 | B66: 101.097.1717.010075 | C66: FIRST PLACE TOWER BUILDING LIGHTS COMPUTER AND SOFTWARE UPGRADE | D66: (390.2) Lease Incentive | E66: LEASEHOLD IMPROVEMENTS | F66: All OGS Divisions | G66: All | H66: 2023-01-01 | I66: 2023-08-01 | J66: Addition | K66: 1010000 Plant In Service | L66: 15077.04 | O66: -15077.04 | P66: -15077.04 | Q66: 0 | R66: 0.2851 | S66: 4298.464104 | T66: -4298.464104 | U66: 0 | V66: 0.092124 | W66: 0 | X66: Reclassify project to correct utility account.
A67: 59 | B67: 101.097.1717.010075 | C67: FIRST PLACE TOWER BUILDING LIGHTS COMPUTER AND SOFTWARE UPGRADE | D67: (390.2) Leasehold Improvements | E67: LEASEHOLD IMPROVEMENTS | F67: All OGS Divisions | G67: All | H67: 2023-01-01 | I67: 2023-08-01 | J67: Adjustment | K67: 1010000 Plant In Service | O67: 15077.04 | P67: 15077.04 | Q67: 15077.04 | R67: 0.2851 | S67: 0 | T67: 4298.464104 | U67: 4298.464104 | V67: 0.092124 | W67: 395.9917071 | X67: Reclassify project to correct utility account.
A68: 60 | B68: 101.097.1717.010076 | C68: FIRST PLACE TOWER 31ST FLOOR WINDOW BLINDS | D68: (390.2) Lease Incentive | E68: LEASEHOLD IMPROVEMENTS | F68: All OGS Divisions | G68: All | H68: 2023-01-01 | I68: 2023-07-01 | J68: Addition | K68: 1010000 Plant In Service | L68: 1845 | O68: -1845 | P68: -1845 | Q68: 0 | R68: 0.2851 | S68: 526.0095 | T68: -526.0095 | U68: 0 | V68: 0.092124 | W68: 0 | X68: Reclassify project to correct utility account.
A69: 61 | B69: 101.097.1717.010076 | C69: FIRST PLACE TOWER 31ST FLOOR WINDOW BLINDS | D69: (390.2) Leasehold Improvements | E69: LEASEHOLD IMPROVEMENTS | F69: All OGS Divisions | G69: All | H69: 2023-01-01 | I69: 2023-07-01 | J69: Adjustment | K69: 1010000 Plant In Service | O69: 1845 | P69: 1845 | Q69: 1845 | R69: 0.2851 | S69: 0 | T69: 526.0095 | U69: 526.0095 | V69: 0.092124 | W69: 48.45809918 | X69: Reclassify project to correct utility account.
A70: 62 | B70: 101.097.1717.010077 | C70: 34TH FLOOR CARPET REPLACEMENT | D70: (390.2) Lease Incentive | E70: LEASEHOLD IMPROVEMENTS | F70: All OGS Divisions | G70: All | H70: 2023-01-01 | I70: 2023-11-01 | J70: Addition | K70: 1010000 Plant In Service | L70: 98487.52 | O70: -98487.52 | P70: -98487.52 | Q70: 0 | R70: 0.2851 | S70: 28078.79195 | T70: -28078.79195 | U70: 0 | V70: 0.092124 | W70: 0 | X70: Reclassify project to correct utility account.
A71: 63 | B71: 101.097.1717.010077 | C71: 34TH FLOOR CARPET REPLACEMENT | D71: (390.2) Leasehold Improvements | E71: LEASEHOLD IMPROVEMENTS | F71: All OGS Divisions | G71: All | H71: 2023-01-01 | I71: 2023-11-01 | J71: Adjustment | K71: 1010000 Plant In Service | O71: 98487.52 | P71: 98487.52 | Q71: 98487.52 | R71: 0.2851 | S71: 0 | T71: 28078.79195 | U71: 28078.79195 | V71: 0.092124 | W71: 2586.73063 | X71: Reclassify project to correct utility account.
A72: 64 | B72: 101.097.1717.010078 | C72: 2023 FIRST PLACE TOWER FACILITIES STORAGE ROOM SECURITY INSTALL | D72: (390.2) Lease Incentive | E72: LEASEHOLD IMPROVEMENTS | F72: All OGS Divisions | G72: All | H72: 2023-12-20 | I72: 2023-12-01 | J72: Addition | K72: 1060000 CCNC | L72: 2117.8 | O72: -2117.8 | P72: -2117.8 | Q72: 0 | R72: 0.2851 | S72: 603.78478 | T72: -603.78478 | U72: 0 | V72: 0.092124 | W72: 0 | X72: Reclassify project to correct utility account.
A73: 65 | B73: 101.097.1717.010078 | C73: 2023 FIRST PLACE TOWER FACILITIES STORAGE ROOM SECURITY INSTALL | D73: (390.2) Leasehold Improvements | E73: LEASEHOLD IMPROVEMENTS | F73: All OGS Divisions | G73: All | H73: 2023-12-20 | I73: 2023-12-01 | J73: Adjustment | K73: 1060000 CCNC | O73: 2117.8 | P73: 2117.8 | Q73: =L73+P73 -> 2117.8 | R73: 0.2851 | S73: 0 | T73: 603.78478 | U73: 603.78478 | V73: 0.092124 | W73: 55.62306907 | X73: Reclassify project to correct utility account.
A74: =A73+1 -> 66 | B74: 101.097.1717.010079 | C74: FIRST PLACE TOWER BASEMENT INFORMATION TECHNOLOGY ASSET ROOM & STORAGE ROOM ACCESS-2023 | D74: (390.2) Lease Incentive | E74: LEASEHOLD IMPROVEMENTS | F74: All OGS Divisions | G74: All | H74: 2023-12-20 | I74: 2023-12-01 | J74: Addition | K74: 1060000 CCNC | L74: 2401.53 | O74: -2401.53 | P74: =SUM(M74:O74) -> -2401.53 | Q74: 0 | R74: 0.2851 | S74: =L74*R74 -> 684.676203 | T74: =P74*R74 -> -684.676203 | U74: =S74+T74 -> 0 | V74: 0.092124 | W74: =U74*V74 -> 0 | X74: Reclassify project to correct utility account.
A75: 67 | B75: 101.097.1717.010079 | C75: FIRST PLACE TOWER BASEMENT INFORMATION TECHNOLOGY ASSET ROOM & STORAGE ROOM ACCESS-2023 | D75: (390.2) Leasehold Improvements | E75: LEASEHOLD IMPROVEMENTS | F75: All OGS Divisions | G75: All | H75: 2023-12-20 | I75: 2023-12-01 | J75: Adjustment | K75: 1060000 CCNC | O75: 2401.53 | P75: 2401.53 | Q75: 2401.53 | R75: 0.2851 | S75: 0 | T75: 684.676203 | U75: 684.676203 | V75: 0.092124 | W75: 63.07511053 | X75: Reclassify project to correct utility account.
A76: 68 | B76: 101.097.1717.010080 | C76: FIRST PLACE TOWER 34TH FLOOR OFFICE BUILD | D76: (390.2) Lease Incentive | E76: LEASEHOLD IMPROVEMENTS | F76: All OGS Divisions | G76: All | H76: 2023-12-01 | I76: 2023-12-01 | J76: Addition | K76: 1060000 CCNC | L76: 52285.54 | O76: -52285.54 | P76: -52285.54 | Q76: 0 | R76: 0.2851 | S76: 14906.60745 | T76: -14906.60745 | U76: 0 | V76: 0.092124 | W76: 0 | X76: Reclassify project to correct utility account.
A77: 69 | B77: 101.097.1717.010080 | C77: FIRST PLACE TOWER 34TH FLOOR OFFICE BUILD | D77: (390.2) Leasehold Improvements | E77: LEASEHOLD IMPROVEMENTS | F77: All OGS Divisions | G77: All | H77: 2023-12-01 | I77: 2023-12-01 | J77: Adjustment | K77: 1060000 CCNC | O77: 52285.54 | P77: 52285.54 | Q77: 52285.54 | R77: 0.2851 | S77: 0 | T77: 14906.60745 | U77: 14906.60745 | V77: 0.092124 | W77: 1373.256305 | X77: Reclassify project to correct utility account.
A78: 70 | B78: 101.097.1717.010081 | C78: FIRST PLACE TOWER 26TH FLOOR ICE MACHINE REPLACEMENT | D78: (391.1) Office Furniture & Equipment | E78: LEASEHOLD IMPROVEMENTS | F78: All OGS Divisions | G78: All | H78: 2023-11-30 | I78: 2023-11-01 | J78: Addition | K78: 1060000 CCNC | L78: 11232.59 | P78: 0 | Q78: 11232.59 | R78: 0.2851 | S78: 3202.411409 | T78: 0 | U78: 3202.411409 | V78: 0.092124 | W78: 295.0189486
A79: 71 | B79: 101.097.1717.010082 | C79: FIRST PLACE TOWER BREAKROOM LIGHT MOTION SENSORS | D79: (390.2) Lease Incentive | E79: LEASEHOLD IMPROVEMENTS | F79: All OGS Divisions | G79: All | H79: 2023-12-01 | I79: 2023-12-01 | J79: Addition | K79: 1060000 CCNC | L79: 15072.16 | O79: -15072.16 | P79: -15072.16 | Q79: 0 | R79: 0.2851 | S79: 4297.072816 | T79: -4297.072816 | U79: 0 | V79: 0.092124 | W79: 0 | X79: Reclassify project to correct utility account.
A80: 72 | B80: 101.097.1717.010082 | C80: FIRST PLACE TOWER BREAKROOM LIGHT MOTION SENSORS | D80: (390.2) Leasehold Improvements | E80: LEASEHOLD IMPROVEMENTS | F80: All OGS Divisions | G80: All | H80: 2023-12-01 | I80: 2023-12-01 | J80: Adjustment | K80: 1060000 CCNC | O80: 15072.16 | P80: 15072.16 | Q80: 15072.16 | R80: 0.2851 | S80: 0 | T80: 4297.072816 | U80: 4297.072816 | V80: 0.092124 | W80: 395.8635361 | X80: Reclassify project to correct utility account.
A81: 73 | B81: 101.097.1717.010083 | C81: FIRST PLACE TOWER 19TH FLOOR MID-RISE SECURITY OPERATIONS CENTERWALL | D81: (390.2) Lease Incentive | E81: LEASEHOLD IMPROVEMENTS | F81: All OGS Divisions | G81: All | H81: 2023-12-01 | I81: 2023-12-01 | J81: Addition | K81: 1060000 CCNC | L81: 11839.2 | O81: -11839.2 | P81: -11839.2 | Q81: 0 | R81: 0.2851 | S81: 3375.35592 | T81: -3375.35592 | U81: 0 | V81: 0.092124 | W81: 0 | X81: Reclassify project to correct utility account.
A82: 74 | B82: 101.097.1717.010083 | C82: FIRST PLACE TOWER 19TH FLOOR MID-RISE SECURITY OPERATIONS CENTERWALL | D82: (390.2) Leasehold Improvements | E82: LEASEHOLD IMPROVEMENTS | F82: All OGS Divisions | G82: All | H82: 2023-12-01 | I82: 2023-12-01 | J82: Adjustment | K82: 1060000 CCNC | O82: 11839.2 | P82: 11839.2 | Q82: 11839.2 | R82: 0.2851 | S82: 0 | T82: 3375.35592 | U82: 3375.35592 | V82: 0.092124 | W82: 310.9512888 | X82: Reclassify project to correct utility account.
A83: 75 | B83: 101.097.1717.010084 | C83: FIRST PLACE TOWER 31ST FLOOR LEGAL ADDITIONAL CUBICLES | D83: (390.2) Leasehold Improvements | E83: LEASEHOLD IMPROVEMENTS | F83: All OGS Divisions | G83: All | H83: 2023-12-01 | I83: 2023-12-01 | J83: Addition | K83: 1060000 CCNC | L83: 49168.86 | P83: 0 | Q83: 49168.86 | R83: 0.2851 | S83: 14018.04199 | T83: 0 | U83: 14018.04199 | V83: 0.092124 | W83: 1291.3981
A84: 76 | B84: 101.097.1717.010085 | C84: FIRST PLACE TOWER 2ND FLOOR ELEVATOR LOBBY LIGHT UPGRADE | D84: (390.2) Leasehold Improvements | E84: LEASEHOLD IMPROVEMENTS | F84: All OGS Divisions | G84: All | H84: 2023-12-01 | I84: 2023-12-01 | J84: Addition | K84: 1060000 CCNC | L84: 32863.3 | P84: 0 | Q84: 32863.3 | R84: 0.2851 | S84: 9369.32683 | T84: 0 | U84: 9369.32683 | V84: 0.092124 | W84: 863.1398649
A85: 77 | B85: 101.097.1717.010086 | C85: FIRST PLACE TOWER PRINTER ROOM LIGHT MOTION SENSORS | D85: (390.2) Leasehold Improvements | E85: LEASEHOLD IMPROVEMENTS | F85: All OGS Divisions | G85: All | H85: 2023-12-01 | I85: 2023-12-01 | J85: Addition | K85: 1060000 CCNC | L85: 5996.91 | P85: 0 | Q85: 5996.91 | R85: 0.2851 | S85: 1709.719041 | T85: 0 | U85: 1709.719041 | V85: 0.092124 | W85: 157.5061569
A86: 78 | B86: 101.100.1502.010031 | C86: IBM HMC | D86: (391.6) Purchased Software | E86: HARDWARE | F86: All OGS Divisions | G86: All | H86: 2016-07-01 | I86: 2023-01-01 | J86: Addition | K86: 1010000 Plant In Service | L86: 391.17 | P86: 0 | Q86: 391.17 | R86: 0.2851 | S86: 111.522567 | T86: 0 | U86: 111.522567 | V86: 0.092124 | W86: 10.27390496
A87: 79 | B87: 101.100.1502.010031 | C87: IBM HMC | D87: (391.6) Purchased Software | E87: HARDWARE | F87: All OGS Divisions | G87: All | H87: 2016-07-01 | I87: 2023-03-01 | J87: Addition | K87: 1010000 Plant In Service | L87: 300.67 | P87: 0 | Q87: 300.67 | R87: 0.2851 | S87: 85.721017 | T87: 0 | U87: 85.721017 | V87: 0.092124 | W87: 7.89696297
A88: 80 | B88: 101.100.1502.010031 | C88: IBM HMC | D88: (391.6) Purchased Software | E88: HARDWARE | F88: All OGS Divisions | G88: All | H88: 2016-07-01 | I88: 2023-11-01 | J88: Addition | K88: 1010000 Plant In Service | L88: 175.39 | P88: 0 | Q88: 175.39 | R88: 0.2851 | S88: 50.003689 | T88: 0 | U88: 50.003689 | V88: 0.092124 | W88: 4.606539845
A89: 81 | B89: 101.100.1502.010031 | C89: IBM HMC | D89: (391.6) Purchased Software | E89: HARDWARE | F89: All OGS Divisions | G89: All | H89: 2016-07-01 | I89: 2023-06-01 | J89: Addition | K89: 1010000 Plant In Service | L89: 200.45 | P89: 0 | Q89: 200.45 | R89: 0.2851 | S89: 57.148295 | T89: 0 | U89: 57.148295 | V89: 0.092124 | W89: 5.264729529
A90: 82 | B90: 101.100.1502.010031 | C90: IBM HMC | D90: (391.6) Purchased Software | E90: HARDWARE | F90: All OGS Divisions | G90: All | H90: 2016-07-01 | I90: 2023-09-01 | J90: Addition | K90: 1010000 Plant In Service | L90: 200.45 | P90: 0 | Q90: 200.45 | R90: 0.2851 | S90: 57.148295 | T90: 0 | U90: 57.148295 | V90: 0.092124 | W90: 5.264729529
A91: 83 | B91: 101.100.1502.010031 | C91: IBM HMC | D91: (391.6) Purchased Software | E91: HARDWARE | F91: All OGS Divisions | G91: All | H91: 2016-07-01 | I91: 2023-10-01 | J91: Addition | K91: 1010000 Plant In Service | L91: -902 | P91: 0 | Q91: -902 | R91: 0.2851 | S91: -257.1602 | T91: 0 | U91: -257.1602 | V91: 0.092124 | W91: -23.69062626
A92: 84 | B92: 101.100.1502.010036 | C92: NETWORK IMPROVEMENTS 2017 | D92: (391.6) Purchased Software | E92: HARDWARE | F92: All OGS Divisions | G92: All | J92: Adjustment | K92: 1010000 Plant In Service | L92: 0 | O92: -605.22 | P92: -605.22 | Q92: -605.22 | R92: 0.2851 | S92: 0 | T92: -172.548222 | U92: -172.548222 | V92: 0.092124 | W92: -15.8958324 | X92: Adjustment to remove charges not properly supported.
A93: 85 | B93: 101.100.1502.010038 | C93: VOICE IMPROVEMENTS 2017 | D93: (391.6) Purchased Software | E93: HARDWARE | F93: All OGS Divisions | G93: All | H93: 2018-01-01 | I93: 2023-05-01 | J93: Addition | K93: 1010000 Plant In Service | L93: 698.21 | O93: =-L93 -> -698.21 | P93: -698.21 | Q93: 0 | R93: 0.2851 | S93: 199.059671 | T93: -199.059671 | U93: 0 | V93: 0.092124 | W93: 0 | X93: Adjustment to reclassify labor costs to the correct project.
A94: 86 | B94: 101.100.1502.010068 | C94: SERVER BLADE CHASSIS REPLACEMENT | D94: (391.8) Micro Computer Software | E94: HARDWARE | F94: All OGS Divisions | G94: All | J94: Adjustment | K94: 1010000 Plant In Service | L94: 0 | O94: -380.5 | P94: -380.5 | Q94: -380.5 | R94: 0.2851 | S94: 0 | T94: -108.48055 | U94: -108.48055 | V94: 0.092124 | W94: -9.993662188 | X94: Adjustment to remove charges not properly supported.
A95: 87 | B95: 101.100.1502.010082 | C95: COMMVAULT LICENSING AND CAPACITY | D95: (391.6) Purchased Software | E95: HARDWARE | F95: All OGS Divisions | G95: All | H95: 2020-01-01 | I95: 2023-12-01 | J95: Addition | K95: 1010000 Plant In Service | L95: 192857.74 | N95: -4.83 | P95: -4.83 | Q95: 192852.91 | R95: 0.2851 | S95: 54983.74167 | T95: -1.377033 | U95: 54982.36464 | V95: 0.092124 | W95: 5065.19536 | X95: Reclassify TYE 2020 meal adjustment from GL Account 106 to 101.
A96: 88 | B96: 101.100.1502.010082 | C96: COMMVAULT LICENSING AND CAPACITY | D96: (391.6) Purchased Software | E96: HARDWARE | F96: All OGS Divisions | G96: All | H96: 2020-02-01 | I96: 2023-06-01 | J96: Addition | K96: 1060000 CCNC | L96: 5.83 | P96: 0 | Q96: 5.83 | R96: 0.2851 | S96: 1.662133 | T96: 0 | U96: 1.662133 | V96: 0.092124 | W96: 0.1531223405
A97: 89 | B97: 101.100.1502.010082 | C97: COMMVAULT LICENSING AND CAPACITY | D97: (391.6) Purchased Software | E97: HARDWARE | F97: All OGS Divisions | G97: All | H97: 2020-02-01 | I97: 2023-12-01 | J97: Addition | K97: 1060000 CCNC | L97: -484753.25 | N97: 4.83 | P97: 4.83 | Q97: -484748.42 | R97: 0.2851 | S97: -138203.1516 | T97: 1.377033 | U97: -138201.7745 | V97: 0.092124 | W97: -12731.70028 | X97: Reclassify TYE 2020 meal adjustment from GL Account 106 to 101.
A98: 90 | B98: 101.100.1502.010082 | C98: COMMVAULT LICENSING AND CAPACITY | D98: (391.8) Micro Computer Software | E98: HARDWARE | F98: All OGS Divisions | G98: All | H98: 2020-01-01 | I98: 2023-12-01 | J98: Addition | K98: 1010000 Plant In Service | L98: 291895.51 | P98: 0 | Q98: 291895.51 | R98: 0.2851 | S98: 83219.4099 | T98: 0 | U98: 83219.4099 | V98: 0.092124 | W98: 7666.504918
A99: 91 | B99: 101.100.1502.010083 | C99: LPM AUTOMATION TOOL | D99: (391.6) Purchased Software | E99: HARDWARE | F99: All OGS Divisions | G99: All | H99: 2020-01-01 | I99: 2023-12-01 | J99: Addition | K99: 1010000 Plant In Service | L99: 22500 | P99: 0 | Q99: 22500 | R99: 0.2851 | S99: 6414.75 | T99: 0 | U99: 6414.75 | V99: 0.092124 | W99: 590.952429
A100: 92 | B100: 101.100.1502.010083 | C100: LPM AUTOMATION TOOL | D100: (391.6) Purchased Software | E100: HARDWARE | F100: All OGS Divisions | G100: All | H100: 2020-02-01 | I100: 2023-12-01 | J100: Addition | K100: 1060000 CCNC | L100: -22500 | P100: 0 | Q100: -22500 | R100: 0.2851 | S100: -6414.75 | T100: 0 | U100: -6414.75 | V100: 0.092124 | W100: -590.952429
A101: 93 | B101: 101.100.1502.010086 | C101: NETWORK IMPROVEMENTS 2020 | D101: (391.6) Purchased Software | E101: HARDWARE | F101: All OGS Divisions | G101: All | H101: 2021-10-25 | I101: 2023-12-01 | J101: Addition | K101: 1060000 CCNC | L101: -430684.44 | P101: 0 | Q101: -430684.44 | R101: 0.2851 | S101: -122788.1338 | T101: 0 | U101: -122788.1338 | V101: 0.092124 | W101: -11311.73404
A102: 94 | B102: 101.100.1502.010086 | C102: NETWORK IMPROVEMENTS 2020 | D102: (391.8) Micro Computer Software | E102: HARDWARE | F102: All OGS Divisions | G102: All | H102: 2021-01-01 | I102: 2023-12-01 | J102: Addition | K102: 1010000 Plant In Service | L102: 430684.44 | O102: -12 | P102: -12 | Q102: 430672.44 | R102: 0.2851 | S102: 122788.1338 | T102: -3.4212 | U102: 122784.7126 | V102: 0.092124 | W102: 11311.41887 | X102: Reclassification of prior year adjustment to remove charges not properly supported.
A103: 95 | B103: 101.100.1502.010086 | C103: NETWORK IMPROVEMENTS 2020 | D103: (391.6) Purchased Software | E103: HARDWARE | F103: All OGS Divisions | G103: All | H103: 2021-01-01 | I103: 2023-12-01 | J103: Adjustment | K103: 1010000 Plant In Service | L103: 0 | O103: 12 | P103: 12 | Q103: 12 | R103: 0.2851 | S103: 0 | T103: 3.4212 | U103: 3.4212 | V103: 0.092124 | W103: 0.3151746288 | X103: Reclassification of prior year adjustment to remove charges not properly supported.
A104: 96 | B104: 101.100.1502.010088 | C104: UNIFIED COMMUNCATIONS 2020 | D104: (391.1) Office Furniture & Equipment | E104: HARDWARE | F104: All OGS Divisions | G104: All | H104: 2021-07-15 | I104: 2023-08-01 | J104: Addition | K104: 1010000 Plant In Service | L104: 315607.02 | O104: -198.32 | P104: -198.32 | Q104: 315408.7 | R104: 0.2851 | S104: 89979.5614 | T104: -56.541032 | U104: 89923.02037 | V104: 0.092124 | W104: 8284.068329 | X104: Adjustment to remove charges not properly supported.
A105: 97 | B105: 101.100.1502.010088 | C105: UNIFIED COMMUNCATIONS 2020 | D105: (391.6) Purchased Software | E105: HARDWARE | F105: All OGS Divisions | G105: All | H105: 2021-07-15 | I105: 2023-08-01 | J105: Addition | K105: 1060000 CCNC | L105: -315607.02 | P105: 0 | Q105: -315607.02 | R105: 0.2851 | S105: -89979.5614 | T105: 0 | U105: -89979.5614 | V105: 0.092124 | W105: -8289.277115
A106: 98 | B106: 101.100.1502.010089 | C106: COMPUTER DEPLOYMENT 2020 | D106: (391.6) Purchased Software | E106: HARDWARE | F106: All OGS Divisions | G106: All | H106: 2021-05-01 | I106: 2023-06-01 | J106: Addition | K106: 1060000 CCNC | L106: -2869626.55 | P106: 0 | Q106: -2869626.55 | R106: 0.2851 | S106: -818130.5294 | T106: 0 | U106: -818130.5294 | V106: 0.092124 | W106: -75369.45689
A107: 99 | B107: 101.100.1502.010089 | C107: COMPUTER DEPLOYMENT 2020 | D107: (391.8) Micro Computer Software | E107: HARDWARE | F107: All OGS Divisions | G107: All | H107: 2021-01-01 | I107: 2023-06-01 | J107: Addition | K107: 1010000 Plant In Service | L107: 2869626.55 | P107: 0 | Q107: 2869626.55 | R107: 0.2851 | S107: 818130.5294 | T107: 0 | U107: 818130.5294 | V107: 0.092124 | W107: 75369.45689
A108: 100 | B108: 101.100.1502.010098 | C108: NETWORK IMPROVEMENTS 2021 | D108: (391.6) Purchased Software | E108: HARDWARE | F108: All OGS Divisions | G108: All | H108: 2022-07-01 | I108: 2023-12-01 | J108: Addition | K108: 1060000 CCNC | L108: -297332.08 | P108: 0 | Q108: -297332.08 | R108: 0.2851 | S108: -84769.37601 | T108: 0 | U108: -84769.37601 | V108: 0.092124 | W108: -7809.293995
A109: 101 | B109: 101.100.1502.010098 | C109: NETWORK IMPROVEMENTS 2021 | D109: (391.8) Micro Computer Software | E109: HARDWARE | F109: All OGS Divisions | G109: All | H109: 2022-01-01 | I109: 2023-12-01 | J109: Addition | K109: 1010000 Plant In Service | L109: 297332.08 | P109: 0 | Q109: 297332.08 | R109: 0.2851 | S109: 84769.37601 | T109: 0 | U109: 84769.37601 | V109: 0.092124 | W109: 7809.293995
A110: 102 | B110: 101.100.1502.010100 | C110: NETWORK CORE (END OF LIFE) 2021 | D110: (391.8) Micro Computer Software | E110: HARDWARE | F110: All OGS Divisions | G110: All | H110: 2023-06-01 | I110: 2023-08-01 | J110: Addition | K110: 1010000 Plant In Service | L110: 575704 | P110: 0 | Q110: 575704 | R110: 0.2851 | S110: 164133.2104 | T110: 0 | U110: 164133.2104 | V110: 0.092124 | W110: 15120.60787
A111: 103 | B111: 101.100.1502.010103 | C111: REMOTE SITE SERVER AND STORAGE REPLACEMENT 2021 | D111: (391.8) Micro Computer Software | E111: HARDWARE | F111: All OGS Divisions | G111: All | H111: 2023-01-01 | I111: 2023-04-01 | J111: Addition | K111: 1010000 Plant In Service | L111: 522962.97 | P111: 0 | Q111: 522962.97 | R111: 0.2851 | S111: 149096.7427 | T111: 0 | U111: 149096.7427 | V111: 0.092124 | W111: 13735.38833
A112: 104 | B112: 101.100.1502.010105 | C112: LAPTOP AND DESKTOP REPLACEMENTS (END OF LIFE) 2021 | D112: (391.8) Micro Computer Software | E112: HARDWARE | F112: All OGS Divisions | G112: All | H112: 2023-01-01 | I112: 2023-06-01 | J112: Addition | K112: 1010000 Plant In Service | L112: 1165929.7 | P112: 0 | Q112: 1165929.7 | R112: 0.2851 | S112: 332406.5575 | T112: 0 | U112: 332406.5575 | V112: 0.092124 | W112: 30622.6217
A113: 105 | B113: 101.100.1502.010105 | C113: LAPTOP AND DESKTOP REPLACEMENTS (END OF LIFE) 2021 | D113: (391.8) Micro Computer Software | E113: HARDWARE | F113: All OGS Divisions | G113: All | H113: 2023-01-01 | I113: 2023-09-01 | J113: Addition | K113: 1010000 Plant In Service | L113: -326886.22 | P113: 0 | Q113: -326886.22 | R113: 0.2851 | S113: -93195.26132 | T113: 0 | U113: -93195.26132 | V113: 0.092124 | W113: -8585.520254
A114: 106 | B114: 101.100.1502.010105 | C114: LAPTOP AND DESKTOP REPLACEMENTS (END OF LIFE) 2021 | D114: (391.8) Micro Computer Software | E114: HARDWARE | F114: All OGS Divisions | G114: All | H114: 2023-01-01 | I114: 2023-09-01 | J114: Transfer | K114: 1010000 Plant In Service | L114: -484473.07 | P114: 0 | Q114: -484473.07 | R114: 0.2851 | S114: -138123.2723 | T114: 0 | U114: -138123.2723 | V114: 0.092124 | W114: -12724.46833
A115: 107 | B115: 101.100.1502.010106 | C115: LAPTOP AND DESKTOP GROWTH - 2021 | D115: (391.8) Micro Computer Software | E115: HARDWARE | F115: All OGS Divisions | G115: All | H115: 2023-01-01 | I115: 2023-06-01 | J115: Addition | K115: 1010000 Plant In Service | L115: 501058.82 | P115: 0 | Q115: 501058.82 | R115: 0.2851 | S115: 142851.8696 | T115: 0 | U115: 142851.8696 | V115: 0.092124 | W115: 13160.08563
A116: 108 | B116: 101.100.1502.010106 | C116: LAPTOP AND DESKTOP GROWTH - 2021 | D116: (391.8) Micro Computer Software | E116: HARDWARE | F116: All OGS Divisions | G116: All | H116: 2023-01-01 | I116: 2023-09-01 | J116: Addition | K116: 1010000 Plant In Service | L116: -148272.51 | P116: 0 | Q116: -148272.51 | R116: 0.2851 | S116: -42272.4926 | T116: 0 | U116: -42272.4926 | V116: 0.092124 | W116: -3894.311108
A117: 109 | B117: 101.100.1502.010106 | C117: LAPTOP AND DESKTOP GROWTH - 2021 | D117: (391.8) Micro Computer Software | E117: HARDWARE | F117: All OGS Divisions | G117: All | H117: 2023-01-01 | I117: 2023-09-01 | J117: Transfer | K117: 1010000 Plant In Service | L117: -168723.89 | P117: 0 | Q117: -168723.89 | R117: 0.2851 | S117: -48103.18104 | T117: 0 | U117: -48103.18104 | V117: 0.092124 | W117: -4431.45745
A118: 110 | B118: 101.100.1502.010107 | C118: WAREHOUSE AUTOMATION LIFECYCLE AND EXPANSION | D118: (391.8) Micro Computer Software | E118: HARDWARE | F118: All OGS Divisions | G118: All | H118: 2022-01-01 | I118: 2023-01-01 | J118: Adjustment | K118: 1010000 Plant In Service | L118: 0 | O118: =29708.88 -> 29708.88 | P118: 29708.88 | Q118: 29708.88 | R118: 0.2851 | S118: 0 | T118: 8470.001688 | U118: 8470.001688 | V118: 0.092124 | W118: 780.2904355 | X118: Adjustment to include corporate costs.
A119: 111 | B119: 101.100.1502.010107 | C119: WAREHOUSE AUTOMATION LIFECYCLE AND EXPANSION | D119: (391.8) Micro Computer Software | E119: HARDWARE | F119: ONG, KGS & TGS | G119: All | H119: 2022-01-01 | I119: 2023-01-01 | J119: Adjustment | K119: 1010000 Plant In Service | L119: -50742.27 | O119: 50742.27 | P119: 50742.27 | Q119: 0 | R119: 0.2851 | S119: -14466.62118 | T119: 14466.62118 | U119: 0 | V119: 0.092124 | W119: 0 | X119: Reversal of prior year adjustment to remove direct specific costs. Project was transferred to correct locations in 2023 test year.
A120: 112 | B120: 101.100.1502.010107 | C120: WAREHOUSE AUTOMATION LIFECYCLE AND EXPANSION | D120: (391.8) Micro Computer Software | E120: HARDWARE | F120: ONG, KGS & TGS | G120: All | H120: 2022-01-01 | I120: 2023-01-01 | J120: Transfer | K120: 1010000 Plant In Service | L120: -97008.33 | O120: 97008.33 | P120: 97008.33 | Q120: 0 | R120: 0.2851 | S120: -27657.07488 | T120: 27657.07488 | U120: 0 | V120: 0.092124 | W120: 0 | X120: Reversal of prior year adjustment to remove direct specific costs. Project was transferred to correct locations in 2023 test year.
A121: 113 | B121: 101.100.1502.010114 | C121: NETWORK FILE SYSTEM STORAGE REPLACEMENT | D121: (391.6) Purchased Software | E121: HARDWARE | F121: All OGS Divisions | G121: All | H121: 2023-11-01 | I121: 2023-11-01 | J121: Addition | K121: 1060000 CCNC | L121: 234294.89 | P121: 0 | Q121: 234294.89 | R121: 0.2851 | S121: 66797.47314 | T121: 0 | U121: 66797.47314 | V121: 0.092124 | W121: 6153.650415
A122: 114 | B122: 101.100.1502.010116 | C122: UNIFIED ENDPOINT MANAGEMENT VMWARE WORKSPACE ONE | D122: (391.99) Cloud Computing | E122: HARDWARE | F122: All OGS Divisions | G122: All | H122: 2023-12-01 | I122: 2023-12-01 | J122: Addition | K122: 1860113 Cloud Computing | L122: 254739.39 | P122: 0 | Q122: 254739.39 | R122: 0.2851 | S122: 72626.20009 | T122: 0 | U122: 72626.20009 | V122: 0.092124 | W122: 6690.616057
A123: 115 | B123: 101.100.1502.010118 | C123: LAPTOP AND DESKTOP REPLACEMENT 2021 PHASE II | D123: (391.8) Micro Computer Software | E123: HARDWARE | F123: All OGS Divisions | G123: All | H123: 2023-01-01 | I123: 2023-08-01 | J123: Addition | K123: 1010000 Plant In Service | L123: 1081445.79 | P123: 0 | Q123: 1081445.79 | R123: 0.2851 | S123: 308320.1947 | T123: 0 | U123: 308320.1947 | V123: 0.092124 | W123: 28403.68962
A124: 116 | B124: 101.100.1502.010118 | C124: LAPTOP AND DESKTOP REPLACEMENT 2021 PHASE II | D124: (391.8) Micro Computer Software | E124: HARDWARE | F124: All OGS Divisions | G124: All | H124: 2023-01-01 | I124: 2023-09-01 | J124: Transfer | K124: 1010000 Plant In Service | L124: -515185.67 | P124: 0 | Q124: -515185.67 | R124: 0.2851 | S124: -146879.4345 | T124: 0 | U124: -146879.4345 | V124: 0.092124 | W124: -13531.12103
A125: 117 | B125: 101.100.1502.010123 | C125: ORACLE ENTERPRISE RESOURCE PLANNING (ERP) DATABASE UPGRADE 2022 | D125: (391.6) Purchased Software | E125: HARDWARE | F125: All OGS Divisions | G125: All | H125: 2023-01-01 | I125: 2023-08-01 | J125: Addition | K125: 1010000 Plant In Service | L125: 111689.2 | P125: 0 | Q125: 111689.2 | R125: 0.2851 | S125: 31842.59092 | T125: 0 | U125: 31842.59092 | V125: 0.092124 | W125: 2933.466846
A126: 118 | B126: 101.100.1502.010124 | C126: NETWORK BANDWIDTH EXPANSION 2021 | D126: (391.8) Micro Computer Software | E126: HARDWARE | F126: All OGS Divisions | G126: All | H126: 2023-02-01 | I126: 2023-08-01 | J126: Addition | K126: 1010000 Plant In Service | L126: 284774.34 | P126: 0 | Q126: 284774.34 | R126: 0.2851 | S126: 81189.16433 | T126: 0 | U126: 81189.16433 | V126: 0.092124 | W126: 7479.470575
A127: 119 | B127: 101.100.1502.010126 | C127: SCADA MODEM IMPROVEMENTS 2022 | D127: (391.8) Micro Computer Software | E127: HARDWARE | F127: All OGS Divisions | G127: All | H127: 2023-01-01 | I127: 2023-08-01 | J127: Addition | K127: 1010000 Plant In Service | L127: 160732.58 | P127: 0 | Q127: 160732.58 | R127: 0.2851 | S127: 45824.85856 | T127: 0 | U127: 45824.85856 | V127: 0.092124 | W127: 4221.56927
A128: 120 | B128: 101.100.1502.010127 | C128: UCOS GROWTH 2022 | D128: (391.6) Purchased Software | E128: HARDWARE | F128: All OGS Divisions | G128: All | H128: 2023-01-01 | I128: 2023-08-01 | J128: Addition | K128: 1010000 Plant In Service | L128: 77257.4 | P128: 0 | Q128: 77257.4 | R128: 0.2851 | S128: 22026.08474 | T128: 0 | U128: 22026.08474 | V128: 0.092124 | W128: 2029.131031
A129: 121 | B129: 101.100.1502.010128 | C129: NETWORK CORE END OF LIFE2022 | D129: (391.6) Purchased Software | E129: HARDWARE | F129: All OGS Divisions | G129: All | H129: 2023-12-28 | I129: 2023-12-01 | J129: Addition | K129: 1060000 CCNC | L129: 170966.88 | P129: 0 | Q129: 170966.88 | R129: 0.2851 | S129: 48742.65749 | T129: 0 | U129: 48742.65749 | V129: 0.092124 | W129: 4490.368578
A130: 122 | B130: 101.100.1502.010129 | C130: OPERATIONS SMARTPHONE REPLACEMENT 2022 | D130: (391.8) Micro Computer Software | E130: HARDWARE | F130: All OGS Divisions | G130: All | H130: 2023-01-01 | I130: 2023-12-01 | J130: Addition | K130: 1010000 Plant In Service | L130: 241884.75 | P130: 0 | Q130: 241884.75 | R130: 0.2851 | S130: 68961.34223 | T130: 0 | U130: 68961.34223 | V130: 0.092124 | W130: 6352.994691
A131: 123 | B131: 101.100.1502.010131 | C131: LAPTOP AND DESKTOP GROWTH 2022 | D131: (391.8) Micro Computer Software | E131: HARDWARE | F131: All OGS Divisions | G131: All | H131: 2023-01-01 | I131: 2023-11-01 | J131: Addition | K131: 1010000 Plant In Service | L131: -4706.13 | P131: 0 | Q131: -4706.13 | R131: 0.2851 | S131: -1341.717663 | T131: 0 | U131: -1341.717663 | V131: 0.092124 | W131: -123.604398
A132: 124 | B132: 101.100.1502.010131 | C132: LAPTOP AND DESKTOP GROWTH 2022 | D132: (391.8) Micro Computer Software | E132: HARDWARE | F132: All OGS Divisions | G132: All | H132: 2023-01-01 | I132: 2023-12-01 | J132: Addition | K132: 1010000 Plant In Service | L132: 340.03 | P132: 0 | Q132: 340.03 | R132: 0.2851 | S132: 96.942553 | T132: 0 | U132: 96.942553 | V132: 0.092124 | W132: 8.930735753
A133: 125 | B133: 101.100.1502.010131 | C133: LAPTOP AND DESKTOP GROWTH 2022 | D133: (391.8) Micro Computer Software | E133: HARDWARE | F133: All OGS Divisions | G133: All | H133: 2023-01-01 | I133: 2023-09-01 | J133: Addition | K133: 1010000 Plant In Service | L133: 1481821 | P133: 0 | Q133: 1481821 | R133: 0.2851 | S133: 422467.1671 | T133: 0 | U133: 422467.1671 | V133: 0.092124 | W133: 38919.3653
A134: 126 | B134: 101.100.1502.010131 | C134: LAPTOP AND DESKTOP GROWTH 2022 | D134: (391.8) Micro Computer Software | E134: HARDWARE | F134: All OGS Divisions | G134: All | H134: 2023-01-01 | I134: 2023-09-01 | J134: Transfer | K134: 1010000 Plant In Service | L134: -900555.1 | P134: 0 | Q134: -900555.1 | R134: 0.2851 | S134: -256748.259 | T134: 0 | U134: -256748.259 | V134: 0.092124 | W134: -23652.67661
A135: 127 | B135: 101.100.1502.010131 | C135: LAPTOP AND DESKTOP GROWTH 2022 | D135: (391.8) Micro Computer Software | E135: HARDWARE | F135: All OGS Divisions | G135: All | H135: 2023-01-01 | I135: 2023-10-01 | J135: Addition | K135: 1010000 Plant In Service | L135: -2400.69 | P135: 0 | Q135: -2400.69 | R135: 0.2851 | S135: -684.436719 | T135: 0 | U135: -684.436719 | V135: 0.092124 | W135: -63.0530483
A136: 128 | B136: 101.100.1502.010132 | C136: LAPTOP AND DESKTOP END OF LIFEREPLACEMENT 2022 | D136: (391.8) Micro Computer Software | E136: HARDWARE | F136: All OGS Divisions | G136: All | H136: 2023-01-01 | I136: 2023-12-01 | J136: Addition | K136: 1010000 Plant In Service | L136: 310.89 | P136: 0 | Q136: 310.89 | R136: 0.2851 | S136: 88.634739 | T136: 0 | U136: 88.634739 | V136: 0.092124 | W136: 8.165386696
A137: 129 | B137: 101.100.1502.010132 | C137: LAPTOP AND DESKTOP END OF LIFEREPLACEMENT 2022 | D137: (391.8) Micro Computer Software | E137: HARDWARE | F137: All OGS Divisions | G137: All | H137: 2023-01-01 | I137: 2023-09-01 | J137: Addition | K137: 1010000 Plant In Service | L137: 973336.78 | O137: -92.37 | P137: -92.37 | Q137: =L137+P137 -> 973244.41 | R137: 0.2851 | S137: 277498.316 | T137: -26.334687 | U137: 277471.9813 | V137: 0.092124 | W137: 25561.8288 | X137: Adjustment to remove charges not properly supported.
A138: =A137+1 -> 130 | B138: 101.100.1502.010132 | C138: LAPTOP AND DESKTOP END OF LIFEREPLACEMENT 2022 | D138: (391.8) Micro Computer Software | E138: HARDWARE | F138: All OGS Divisions | G138: All | H138: 2023-01-01 | I138: 2023-09-01 | J138: Transfer | K138: 1010000 Plant In Service | L138: -311467.77 | P138: =SUM(M138:O138) -> 0 | Q138: -311467.77 | R138: 0.2851 | S138: =L138*R138 -> -88799.46123 | T138: =P138*R138 -> 0 | U138: =S138+T138 -> -88799.46123 | V138: 0.092124 | W138: =U138*V138 -> -8180.561566
A139: 131 | B139: 101.100.1502.010133 | C139: OKC DISASTER RECOVERY SERVER CHASSIS REPLACEMENT 2022 | D139: (391.6) Purchased Software | E139: HARDWARE | F139: All OGS Divisions | G139: All | H139: 2023-11-01 | I139: 2023-11-01 | J139: Addition | K139: 1060000 CCNC | L139: 1533266.81 | P139: 0 | Q139: 1533266.81 | R139: 0.2851 | S139: 437134.3675 | T139: 0 | U139: 437134.3675 | V139: 0.092124 | W139: 40270.56647
A140: 132 | B140: 101.100.1502.010134 | C140: NETWORK IMPROVEMENTS 2022 | D140: (391.8) Micro Computer Software | E140: HARDWARE | F140: All OGS Divisions | G140: All | H140: 2023-01-01 | I140: 2023-11-01 | J140: Addition | K140: 1010000 Plant In Service | L140: 1221689.76 | N140: -23.5 | O140: -25 | P140: -48.5 | Q140: 1221641.26 | R140: 0.2851 | S140: 348303.7506 | T140: -13.82735 | U140: 348289.9232 | V140: 0.092124 | W140: 32085.86089 | X140: Adjustment to remove meals greater than $25 per person, and remove charges not properly supported.
A141: 133 | B141: 101.100.1502.010135 | C141: MICROSOFT UPGRADES 2022 | D141: (391.6) Purchased Software | E141: HARDWARE | F141: All OGS Divisions | G141: All | H141: 2023-01-01 | I141: 2023-12-01 | J141: Addition | K141: 1010000 Plant In Service | L141: 787121.52 | P141: 0 | Q141: 787121.52 | R141: 0.2851 | S141: 224408.3454 | T141: 0 | U141: 224408.3454 | V141: 0.092124 | W141: 20673.39441
A142: 134 | B142: 101.100.1502.010136 | C142: SCADA FIRSTNET CONVERSION | D142: (397) Communication Equipment | E142: HARDWARE | F142: ONG & TGS | G142: All | H142: 2023-02-01 | I142: 2023-07-01 | J142: Addition | K142: 1010000 Plant In Service | L142: 235158.15 | O142: -235158.15 | P142: -235158.15 | Q142: 0 | R142: 0.2851 | S142: 67043.58856 | T142: -67043.58856 | U142: 0 | V142: 0.092124 | W142: 0 | X142: Removal of direct specific costs.
A143: 135 | B143: 101.100.1502.010137 | C143: UNIFIED COMMUNICATIONS 2022 | D143: (391.4) Audio Visual Equipment | E143: HARDWARE | F143: All OGS Divisions | G143: All | H143: 2023-01-01 | I143: 2023-11-01 | J143: Addition | K143: 1010000 Plant In Service | L143: 197525.05 | N143: -36.04 | O143: -147.78 | P143: -183.82 | Q143: 197341.23 | R143: 0.2851 | S143: 56314.39176 | T143: -52.407082 | U143: 56261.98467 | V143: 0.092124 | W143: 5183.079076 | X143: Adjustment to remove meals greater than $25 per person and hotels greater than $175 per night, and remove charges not properly supported.
A144: 136 | B144: 101.100.1502.010138 | C144: PHYSICAL SECURITY UPLIFT 2022 PHASE I-II | D144: (391.6) Purchased Software | E144: HARDWARE | F144: All OGS Divisions | G144: All | H144: 2023-11-01 | I144: 2023-11-01 | J144: Addition | K144: 1060000 CCNC | L144: 3602010.41 | N144: -555.95 | O144: 698.21 | P144: 142.26 | Q144: 3602152.67 | R144: 0.2851 | S144: 1026933.168 | T144: 40.558326 | U144: 1026973.726 | V144: 0.092124 | W144: 94608.92755 | X144: Adjustment to remove meals greater than $25 per person and hotels greater than $175 per night, and reclassify labor costs to the correct project.
A145: 137 | B145: 101.100.1502.010138 | C145: PHYSICAL SECURITY UPLIFT 2022 PHASE I-II | D145: (391.6) Purchased Software | E145: HARDWARE | F145: All OGS Divisions | G145: All | H145: 2023-11-01 | I145: 2023-11-01 | J145: Addition | K145: 1060000 CCNC | L145: 0 | M145: -2251.79 | O145: -843.47 | P145: =SUM(M145:O145) -> -3095.26 | Q145: =L145+P145 -> -3095.26 | R145: 0.2851 | S145: =L145*R145 -> 0 | T145: =P145*R145 -> -882.458626 | U145: =S145+T145 -> -882.458626 | V145: 0.092124 | W145: =U145*V145 -> -81.29561846 | X145: Adjustment to remove Vertex sales tax, and remove charges not properly supported.
A146: 138 | B146: 101.100.1502.010139 | C146: LAPTOP AND DESKTOP END OF LIFE REPLACEMENT 2022 PHASE II | D146: (391.6) Purchased Software | E146: HARDWARE | F146: All OGS Divisions | G146: All | H146: 2023-12-19 | I146: 2023-12-01 | J146: Addition | K146: 1060000 CCNC | L146: 2102494.54 | P146: 0 | Q146: 2102494.54 | R146: 0.2851 | S146: 599421.1934 | T146: 0 | U146: 599421.1934 | V146: 0.092124 | W146: 55221.07802
A147: 139 | B147: 101.100.1502.010140 | C147: MONITOR UPGRADES DISPATCH AND GAS CONTROL | D147: (391.8) Micro Computer Software | E147: HARDWARE | F147: All OGS Divisions | G147: All | H147: 2023-01-01 | I147: 2023-06-01 | J147: Addition | K147: 1010000 Plant In Service | L147: 198859.19 | P147: 0 | Q147: 198859.19 | R147: 0.2851 | S147: 56694.75507 | T147: 0 | U147: 56694.75507 | V147: 0.092124 | W147: 5222.947616
A148: 140 | B148: 101.100.1502.010142 | C148: COMPUTER MONITORS 2022 | D148: (391.8) Micro Computer Software | E148: HARDWARE | F148: All OGS Divisions | G148: All | H148: 2023-01-01 | I148: 2023-11-01 | J148: Addition | K148: 1010000 Plant In Service | L148: 67330.18 | P148: 0 | Q148: 67330.18 | R148: 0.2851 | S148: 19195.83432 | T148: 0 | U148: 19195.83432 | V148: 0.092124 | W148: 1768.397041
A149: 141 | B149: 101.100.1502.010142 | C149: COMPUTER MONITORS 2022 | D149: (391.8) Micro Computer Software | E149: HARDWARE | F149: All OGS Divisions | G149: All | H149: 2023-01-01 | I149: 2023-11-01 | J149: Transfer | K149: 1010000 Plant In Service | L149: -37546.48 | P149: 0 | Q149: -37546.48 | R149: 0.2851 | S149: -10704.50145 | T149: 0 | U149: -10704.50145 | V149: 0.092124 | W149: -986.1414914
A150: 142 | B150: 101.100.1502.010143 | C150: P SERIES SERVER REPLACEMENT 2022 | D150: (391.8) Micro Computer Software | E150: HARDWARE | F150: All OGS Divisions | G150: All | H150: 2023-01-01 | I150: 2023-06-01 | J150: Addition | K150: 1010000 Plant In Service | L150: 857838.52 | P150: 0 | Q150: 857838.52 | R150: 0.2851 | S150: 244569.7621 | T150: 0 | U150: 244569.7621 | V150: 0.092124 | W150: 22530.74476
A151: 143 | B151: 101.100.1502.010145 | C151: DISASTER RECOVERY STORAGE EXPANSION 2022 | D151: (391.8) Micro Computer Software | E151: HARDWARE | F151: All OGS Divisions | G151: All | H151: 2023-01-01 | I151: 2023-06-01 | J151: Addition | K151: 1010000 Plant In Service | L151: 303463.57 | P151: 0 | Q151: 303463.57 | R151: 0.2851 | S151: 86517.46381 | T151: 0 | U151: 86517.46381 | V151: 0.092124 | W151: 7970.334836
A152: 144 | B152: 101.100.1502.010146 | C152: STORAGE AREA NETWORK (SAN) SWITCH REPLACEMENT 2022 | D152: (391.8) Micro Computer Software | E152: HARDWARE | F152: All OGS Divisions | G152: All | H152: 2023-01-01 | I152: 2023-06-01 | J152: Addition | K152: 1010000 Plant In Service | L152: 1301932.95 | P152: 0 | Q152: 1301932.95 | R152: 0.2851 | S152: 371181.084 | T152: 0 | U152: 371181.084 | V152: 0.092124 | W152: 34194.68619
A153: 145 | B153: 101.100.1502.010147 | C153: PORTABLE MEDIA SOLUTION PHASE 1 | D153: (391.6) Purchased Software | E153: HARDWARE | F153: All OGS Divisions | G153: All | H153: 2023-12-01 | I153: 2023-12-01 | J153: Addition | K153: 1060000 CCNC | L153: 179347.98 | P153: 0 | Q153: 179347.98 | R153: 0.2851 | S153: 51132.1091 | T153: 0 | U153: 51132.1091 | V153: 0.092124 | W153: 4710.494419
A154: 146 | B154: 101.100.1502.010148 | C154: LAPTOP AND DESKTOP GROWTH ? 2023 | D154: (391.6) Purchased Software | E154: HARDWARE | F154: All OGS Divisions | G154: All | H154: 2023-12-01 | I154: 2023-12-01 | J154: Addition | K154: 1060000 CCNC | L154: 617073.97 | P154: 0 | Q154: 617073.97 | R154: 0.2851 | S154: 175927.7888 | T154: 0 | U154: 175927.7888 | V154: 0.092124 | W154: 16207.17162
A155: 147 | B155: 101.100.1502.010149 | C155: NETWORK IMPROVEMENTS 2023 | D155: (391.6) Purchased Software | E155: HARDWARE | F155: All OGS Divisions | G155: All | H155: 2023-12-28 | I155: 2023-12-01 | J155: Addition | K155: 1060000 CCNC | L155: -323.62 | P155: 0 | Q155: -323.62 | R155: 0.2851 | S155: -92.264062 | T155: 0 | U155: -92.264062 | V155: 0.092124 | W155: -8.499734448
A156: 148 | B156: 101.100.1502.010149 | C156: NETWORK IMPROVEMENTS 2023 | D156: (391.6) Purchased Software | E156: HARDWARE | F156: All OGS Divisions | G156: All | H156: 2023-12-28 | I156: 2023-12-01 | J156: Addition | K156: 1060000 CCNC | L156: 793441.81 | N156: -174.17 | P156: =SUM(M156:O156) -> -174.17 | Q156: 793267.64 | R156: 0.2851 | S156: 226210.26 | T156: -49.655867 | U156: 226160.6042 | V156: 0.092124 | W156: 20834.8195 | X156: Adjustment to remove meals greater than $25 per person and hotels greater than $175 per night.
A157: 149 | B157: 101.100.1502.010150 | C157: NETWORK FIREWALL REFRESH 2022 | D157: (391.8) Micro Computer Software | E157: HARDWARE | F157: All OGS Divisions | G157: All | H157: 2023-06-01 | I157: 2023-11-01 | J157: Addition | K157: 1010000 Plant In Service | L157: 2021419 | P157: 0 | Q157: 2021419 | R157: 0.2851 | S157: 576306.5569 | T157: 0 | U157: 576306.5569 | V157: 0.092124 | W157: 53091.66525
A158: 150 | B158: 101.100.1502.010151 | C158: LAPTOP AND DESKTOP REPLACEMENTS END OF LIFE 2023 | D158: (391.6) Purchased Software | E158: HARDWARE | F158: All OGS Divisions | G158: All | H158: 2023-12-01 | I158: 2023-12-01 | J158: Addition | K158: 1060000 CCNC | L158: 222543.66 | P158: 0 | Q158: 222543.66 | R158: 0.2851 | S158: 63447.19747 | T158: 0 | U158: 63447.19747 | V158: 0.092124 | W158: 5845.009619
A159: 151 | B159: 101.100.1502.010151 | C159: LAPTOP AND DESKTOP REPLACEMENTS END OF LIFE 2023 | D159: (391.6) Purchased Software | E159: HARDWARE | F159: All OGS Divisions | G159: All | H159: 2023-12-01 | I159: 2023-12-01 | J159: Addition | K159: 1060000 CCNC | L159: 2168850.77 | N159: -85.58 | O159: -67.83 | P159: -153.41 | Q159: 2168697.36 | R159: 0.2851 | S159: 618339.3545 | T159: -43.737191 | U159: 618295.6173 | V159: 0.092124 | W159: 56959.86545 | X159: Removal of meals greater than $25 per person and hotels greater than $175 per night, and remove charges not properly supported.
A160: 152 | B160: 101.100.1502.010152 | C160: MICROSOFT 2023 UPGRADES | D160: (391.6) Purchased Software | E160: HARDWARE | F160: All OGS Divisions | G160: All | H160: 2023-01-01 | I160: 2023-11-01 | J160: Addition | K160: 1010000 Plant In Service | L160: 787121.52 | P160: 0 | Q160: 787121.52 | R160: 0.2851 | S160: 224408.3454 | T160: 0 | U160: 224408.3454 | V160: 0.092124 | W160: 20673.39441
A161: 153 | B161: 101.100.1502.010153 | C161: COMMVAULT SERVER REPLACEMENT 2023 | D161: (391.6) Purchased Software | E161: HARDWARE | F161: All OGS Divisions | G161: All | H161: 2023-12-15 | I161: 2023-12-01 | J161: Addition | K161: 1060000 CCNC | L161: 100012.73 | P161: 0 | Q161: 100012.73 | R161: 0.2851 | S161: 28513.62932 | T161: 0 | U161: 28513.62932 | V161: 0.092124 | W161: 2626.789588
A162: 154 | B162: 101.100.1502.010154 | C162: SITE INFRASTRUCTURE IMPROVEMENTS 2023 | D162: (391.6) Purchased Software | E162: HARDWARE | F162: All OGS Divisions | G162: All | H162: 2023-12-18 | I162: 2023-12-01 | J162: Addition | K162: 1060000 CCNC | L162: 50252.34 | P162: 0 | Q162: 50252.34 | R162: 0.2851 | S162: 14326.94213 | T162: 0 | U162: 14326.94213 | V162: 0.092124 | W162: 1319.855217
A163: 155 | B163: 101.100.1502.010155 | C163: SITE MANAGEMENT 2023 | D163: (391.6) Purchased Software | E163: HARDWARE | F163: ONG, KGS & TGS | G163: All | H163: 2023-12-01 | I163: 2023-12-01 | J163: Addition | K163: 1060000 CCNC | L163: 128439.1 | O163: -128439.1 | P163: -128439.1 | Q163: 0 | R163: 0.2851 | S163: 36617.98741 | T163: -36617.98741 | U163: 0 | V163: 0.092124 | W163: 0 | X163: Removal of direct specific costs.
A164: 156 | B164: 101.100.1502.010156 | C164: SMARTPHONE GROWTH AND REPLACEMENT 2023 | D164: (391.6) Purchased Software | E164: HARDWARE | F164: All OGS Divisions | G164: All | H164: 2023-12-28 | I164: 2023-12-01 | J164: Addition | K164: 1060000 CCNC | L164: 57653.62 | P164: 0 | Q164: 57653.62 | R164: 0.2851 | S164: 16437.04706 | T164: 0 | U164: 16437.04706 | V164: 0.092124 | W164: 1514.246524
A165: 157 | B165: 101.100.1502.010157 | C165: WINDOWS SERVER 2012 UPGRADE | D165: (391.6) Purchased Software | E165: HARDWARE | F165: All OGS Divisions | G165: All | H165: 2023-12-29 | I165: 2023-12-01 | J165: Addition | K165: 1060000 CCNC | L165: 66695.05 | P165: 0 | Q165: 66695.05 | R165: 0.2851 | S165: 19014.75875 | T165: 0 | U165: 19014.75875 | V165: 0.092124 | W165: 1751.715636
A166: 158 | B166: 101.100.1502.010158 | C166: PRINTER AND SCANNER REPLACEMENT 2023 | D166: (391.6) Purchased Software | E166: HARDWARE | F166: All OGS Divisions | G166: All | H166: 2023-12-15 | I166: 2023-12-01 | J166: Addition | K166: 1060000 CCNC | L166: 10940.9 | P166: 0 | Q166: 10940.9 | R166: 0.2851 | S166: 3119.25059 | T166: 0 | U166: 3119.25059 | V166: 0.092124 | W166: 287.3578414
A167: 159 | B167: 101.100.1502.010161 | C167: OPERATIONAL SECURITY ROUTERS AND SWITCHES | D167: (391.6) Purchased Software | E167: HARDWARE | F167: All OGS Divisions | G167: All | H167: 2023-12-28 | I167: 2023-12-01 | J167: Addition | K167: 1060000 CCNC | L167: 65322.41 | P167: 0 | Q167: 65322.41 | R167: 0.2851 | S167: 18623.41909 | T167: 0 | U167: 18623.41909 | V167: 0.092124 | W167: 1715.66386
A168: 160 | B168: 101.100.1502.010162 | C168: OPERATIONAL SECURITY NETWORK VIDEO RECORDERS | D168: (391.8) Micro Computer Software | E168: HARDWARE | F168: All OGS Divisions | G168: All | H168: 2023-01-01 | I168: 2023-11-01 | J168: Addition | K168: 1010000 Plant In Service | L168: 23580 | P168: 0 | Q168: 23580 | R168: 0.2851 | S168: 6722.658 | T168: 0 | U168: 6722.658 | V168: 0.092124 | W168: 619.3181456
A169: 161 | B169: 101.101.1502.010032 | C169: LEAK SURVEY 2016 | D169: (391.6) Purchased Software | E169: SOFTWARE | F169: All OGS Divisions | G169: All | J169: Adjustment | K169: 1010000 Plant In Service | L169: 0 | O169: -445.96 | P169: -445.96 | Q169: -445.96 | R169: 0.2851 | S169: 0 | T169: -127.143196 | U169: -127.143196 | V169: 0.092124 | W169: -11.71293979 | X169: Adjustment to remove charges not properly supported.
A170: 162 | B170: 101.101.1502.010086 | C170: DIMP-TIMP APPLICATIONS | D170: (391.6) Purchased Software | E170: SOFTWARE | F170: All OGS Divisions | G170: All | H170: 2023-12-18 | I170: 2023-12-01 | J170: Addition | K170: 1060000 CCNC | L170: 1960569.19 | P170: 0 | Q170: 1960569.19 | R170: 0.2851 | S170: 558958.2761 | T170: 0 | U170: 558958.2761 | V170: 0.092124 | W170: 51493.47222
A171: 163 | B171: 101.101.1502.010100 | C171: NEXT GENERATION PAYROLL PROJECT | D171: (391.6) Payroll - Time Management | E171: SOFTWARE | F171: All OGS Divisions | G171: All | H171: 2021-01-01 | I171: 2023-02-01 | J171: Addition | K171: 1010000 Plant In Service | L171: 12445.06 | P171: 0 | Q171: 12445.06 | R171: 0.29394436 | S171: 3658.155197 | T171: 0 | U171: 3658.155197 | V171: 0.092124 | W171: 337.0038894
A172: 164 | B172: 101.101.1502.010131 | C172: ACCOUNTS PAYABLE MARKVIEW REPORTING OCR PHASE 3 | D172: (391.8) Micro Computer Software | E172: SOFTWARE | F172: All OGS Divisions | G172: All | H172: 2023-01-01 | I172: 2023-09-01 | J172: Addition | K172: 1010000 Plant In Service | L172: -713136.51 | P172: 0 | Q172: -713136.51 | R172: 0.2851 | S172: -203315.219 | T172: 0 | U172: -203315.219 | V172: 0.092124 | W172: -18730.21124
A173: 165 | B173: 101.101.1502.010132 | C173: MOBILE INSPECTION APPLICATION | D173: (391.8) Micro Computer Software | E173: SOFTWARE | F173: All OGS Divisions | G173: All | H173: 2019-01-01 | I173: 2023-02-01 | J173: Addition | K173: 1010000 Plant In Service | L173: -5448.72 | P173: 0 | Q173: -5448.72 | R173: 0.2851 | S173: -1553.430072 | T173: 0 | U173: -1553.430072 | V173: 0.092124 | W173: -143.108192
A174: 166 | B174: 101.101.1502.010139 | C174: PERCEPTIVE ECM 2018 ENHANCEMENT | D174: (391.6) Purchased Software | E174: SOFTWARE | F174: All OGS Divisions | G174: All | H174: 2019-01-01 | I174: 2023-01-01 | J174: Addition | K174: 1010000 Plant In Service | L174: 3086.87 | P174: 0 | Q174: 3086.87 | R174: 0.2851 | S174: 880.066637 | T174: 0 | U174: 880.066637 | V174: 0.092124 | W174: 81.07525887
A175: 167 | B175: 101.101.1502.010139 | C175: PERCEPTIVE ECM 2018 ENHANCEMENT | D175: (391.6) Purchased Software | E175: SOFTWARE | F175: All OGS Divisions | G175: All | H175: 2019-01-01 | I175: 2023-02-01 | J175: Addition | K175: 1010000 Plant In Service | L175: -3163.59 | P175: 0 | Q175: -3163.59 | R175: 0.2851 | S175: -901.939509 | T175: 0 | U175: -901.939509 | V175: 0.092124 | W175: -83.09027533
A176: 168 | B176: 101.101.1502.010229 | C176: CUSTOMER VERIFICATION 2020 | D176: (391.6) Banner Software | E176: SOFTWARE | F176: All OGS Divisions | G176: All | H176: 2023-01-01 | I176: 2023-11-01 | J176: Addition | K176: 1010000 Plant In Service | L176: 755581.21 | P176: 0 | Q176: 755581.21 | R176: 0.3081 | S176: 232794.5708 | T176: 0 | U176: 232794.5708 | V176: 0.092124 | W176: 21445.96704
A177: 169 | B177: 101.101.1502.010237 | C177: SECESSION ORDERS PROJECT | D177: (391.6) Purchased Software | E177: SOFTWARE | F177: All OGS Divisions | G177: All | H177: 2023-01-01 | I177: 2023-07-01 | J177: Addition | K177: 1010000 Plant In Service | L177: 376598.46 | P177: 0 | Q177: 376598.46 | R177: 0.2851 | S177: 107368.2209 | T177: 0 | U177: 107368.2209 | V177: 0.092124 | W177: 9891.189986
A178: 170 | B178: 101.101.1502.010256 | C178: INCONTACT-NICE CXONE | D178: (391.6) Purchased Software | E178: SOFTWARE | F178: All OGS Divisions | G178: All | H178: 2023-01-01 | I178: 2023-07-01 | J178: Addition | K178: 1010000 Plant In Service | L178: 54936.9 | P178: 0 | Q178: 54936.9 | R178: 0.2851 | S178: 15662.51019 | T178: 0 | U178: 15662.51019 | V178: 0.092124 | W178: 1442.893089
A179: 171 | B179: 101.101.1502.010262 | C179: TRACEABLE-VERIFIABLE-COMPLETE (TVC) FOR DISTRIBUTION | D179: (391.6) Purchased Software | E179: SOFTWARE | F179: All OGS Divisions | G179: All | H179: 2023-01-01 | I179: 2023-11-01 | J179: Addition | K179: 1010000 Plant In Service | L179: 6584127.23 | M179: -58415.41 | P179: -58415.41 | Q179: 6525711.82 | R179: 0.2851 | S179: 1877134.673 | T179: -16654.23339 | U179: 1860480.44 | V179: 0.092124 | W179: 171394.9 | X179: Removal of Vertex sales tax.
A180: 172 | B180: 101.101.1502.010262 | C180: TRACEABLE-VERIFIABLE-COMPLETE (TVC) FOR DISTRIBUTION | D180: (391.6) Purchased Software | E180: SOFTWARE | F180: All OGS Divisions | G180: All | H180: 2023-01-01 | I180: 2023-12-01 | J180: Addition | K180: 1010000 Plant In Service | L180: -20631.6 | N180: -553.4207184 | P180: -553.4207184 | Q180: -21185.02072 | R180: 0.2851 | S180: -5882.06916 | T180: -157.7802468 | U180: -6039.849407 | V180: 0.092124 | W180: -556.4150868 | X180: Removal of meals greater than $25 per person and hotels greater than $175 per night.
A181: 173 | B181: 101.101.1502.010272 | C181: BANNER PROGRAM CHANGE REQUESTS - 2021 | D181: (391.6) Banner Software | E181: SOFTWARE | F181: All OGS Divisions | G181: All | H181: 2023-01-01 | I181: 2023-11-01 | J181: Addition | K181: 1010000 Plant In Service | L181: 251542.13 | P181: 0 | Q181: 251542.13 | R181: 0.3081 | S181: 77500.13025 | T181: 0 | U181: 77500.13025 | V181: 0.092124 | W181: 7139.621999
A182: 174 | B182: 101.101.1502.010278 | C182: BANNER UPGRADE - RELEASE 1 | D182: (391.6) Banner Software | E182: SOFTWARE | F182: All OGS Divisions | G182: All | H182: 2023-01-01 | I182: 2023-06-01 | J182: Addition | K182: 1010000 Plant In Service | L182: 1695731.44 | P182: 0 | Q182: 1695731.44 | R182: 0.3081 | S182: 522454.8567 | T182: 0 | U182: 522454.8567 | V182: 0.092124 | W182: 48130.63122
A183: 175 | B183: 101.101.1502.010279 | C183: PRAGMA COMPUTER AIDED DESIGN (CAD) UPGRADE 2021 | D183: (391.6) Purchased Software | E183: SOFTWARE | F183: All OGS Divisions | G183: All | H183: 2023-01-01 | I183: 2023-06-01 | J183: Addition | K183: 1010000 Plant In Service | L183: 1040736.2 | P183: 0 | Q183: 1040736.2 | R183: 0.2851 | S183: 296713.8906 | T183: 0 | U183: 296713.8906 | V183: 0.092124 | W183: 27334.47046
A184: 176 | B184: 101.101.1502.010282 | C184: WORK MANAGEMENT PROGRAM CHANGE REQUEST 2021 | D184: (391.6) Purchased Software | E184: SOFTWARE | F184: All OGS Divisions | G184: All | H184: 2023-01-01 | I184: 2023-07-01 | J184: Addition | K184: 1010000 Plant In Service | L184: 214303.33 | P184: 0 | Q184: 214303.33 | R184: 0.2851 | S184: 61097.87938 | T184: 0 | U184: 61097.87938 | V184: 0.092124 | W184: 5628.58104
A185: 177 | B185: 101.101.1502.010283 | C185: SYNERGI ENHANCEMENTS PHASE II | D185: (391.6) Purchased Software | E185: SOFTWARE | F185: All OGS Divisions | G185: All | H185: 2023-12-18 | I185: 2023-12-01 | J185: Addition | K185: 1060000 CCNC | L185: 375444.58 | P185: 0 | Q185: 375444.58 | R185: 0.2851 | S185: 107039.2498 | T185: 0 | U185: 107039.2498 | V185: 0.092124 | W185: 9860.883845
A186: 178 | B186: 101.101.1502.010285 | C186: ADVANCED ANALYTICS PROJECTS AND ENHANCEMENTS 2021 | D186: (391.6) Purchased Software | E186: SOFTWARE | F186: All OGS Divisions | G186: All | H186: 2023-01-01 | I186: 2023-07-01 | J186: Addition | K186: 1010000 Plant In Service | L186: 158614.65 | P186: 0 | Q186: 158614.65 | R186: 0.2851 | S186: 45221.03672 | T186: 0 | U186: 45221.03672 | V186: 0.092124 | W186: 4165.942786
A187: 179 | B187: 101.101.1502.010286 | C187: GEOGRAPHIC INFORMATION SYSTEM (GIS) PROGRAM CHANGE REQUEST 2021 | D187: (391.6) Purchased Software | E187: SOFTWARE | F187: All OGS Divisions | G187: All | H187: 2023-01-01 | I187: 2023-11-01 | J187: Addition | K187: 1010000 Plant In Service | L187: 814.36 | P187: 0 | Q187: 814.36 | R187: 0.2851 | S187: 232.174036 | T187: 0 | U187: 232.174036 | V187: 0.092124 | W187: 21.38880089
A188: 180 | B188: 101.101.1502.010286 | C188: GEOGRAPHIC INFORMATION SYSTEM (GIS) PROGRAM CHANGE REQUEST 2021 | D188: (391.6) Purchased Software | E188: SOFTWARE | F188: All OGS Divisions | G188: All | H188: 2023-01-01 | I188: 2023-07-01 | J188: Addition | K188: 1010000 Plant In Service | L188: 70464.6 | P188: 0 | Q188: 70464.6 | R188: 0.2851 | S188: 20089.45746 | T188: 0 | U188: 20089.45746 | V188: 0.092124 | W188: 1850.721179
A189: 181 | B189: 101.101.1502.010286 | C189: GEOGRAPHIC INFORMATION SYSTEM (GIS) PROGRAM CHANGE REQUEST 2021 | D189: (391.6) Purchased Software | E189: SOFTWARE | F189: All OGS Divisions | G189: All | H189: 2023-01-01 | I189: 2023-08-01 | J189: Addition | K189: 1010000 Plant In Service | L189: 292.01 | P189: 0 | Q189: 292.01 | R189: 0.2851 | S189: 83.252051 | T189: 0 | U189: 83.252051 | V189: 0.092124 | W189: 7.669511946
A190: 182 | B190: 101.101.1502.010286 | C190: GEOGRAPHIC INFORMATION SYSTEM (GIS) PROGRAM CHANGE REQUEST 2021 | D190: (391.6) Purchased Software | E190: SOFTWARE | F190: All OGS Divisions | G190: All | H190: 2023-01-01 | I190: 2023-09-01 | J190: Addition | K190: 1010000 Plant In Service | L190: 3338.82 | P190: 0 | Q190: 3338.82 | R190: 0.2851 | S190: 951.897582 | T190: 0 | U190: 951.897582 | V190: 0.092124 | W190: 87.69261284
A191: 183 | B191: 101.101.1502.010286 | C191: GEOGRAPHIC INFORMATION SYSTEM (GIS) PROGRAM CHANGE REQUEST 2021 | D191: (391.6) Purchased Software | E191: SOFTWARE | F191: All OGS Divisions | G191: All | H191: 2023-01-01 | I191: 2023-10-01 | J191: Addition | K191: 1010000 Plant In Service | L191: 1547.27 | P191: 0 | Q191: 1547.27 | R191: 0.2851 | S191: 441.126677 | T191: 0 | U191: 441.126677 | V191: 0.092124 | W191: 40.63835399
A192: 184 | B192: 101.101.1502.010287 | C192: ENTERPRISE DATA HUB 2021 | D192: (391.6) Purchased Software | E192: SOFTWARE | F192: All OGS Divisions | G192: All | H192: 2022-01-01 | I192: 2023-01-01 | J192: Addition | K192: 1010000 Plant In Service | L192: 1389.14 | P192: 0 | Q192: 1389.14 | R192: 0.2851 | S192: 396.043814 | T192: 0 | U192: 396.043814 | V192: 0.092124 | W192: 36.48514032
A193: 185 | B193: 101.101.1502.010287 | C193: ENTERPRISE DATA HUB 2021 | D193: (391.6) Purchased Software | E193: SOFTWARE | F193: All OGS Divisions | G193: All | H193: 2022-01-01 | I193: 2023-02-01 | J193: Addition | K193: 1010000 Plant In Service | L193: 1779.58 | P193: 0 | Q193: 1779.58 | R193: 0.2851 | S193: 507.358258 | T193: 0 | U193: 507.358258 | V193: 0.092124 | W193: 46.73987216
A194: 186 | B194: 101.101.1502.010287 | C194: ENTERPRISE DATA HUB 2021 | D194: (391.6) Purchased Software | E194: SOFTWARE | F194: All OGS Divisions | G194: All | H194: 2022-01-01 | I194: 2023-03-01 | J194: Addition | K194: 1010000 Plant In Service | L194: 783.01 | P194: 0 | Q194: 783.01 | R194: 0.2851 | S194: 223.236151 | T194: 0 | U194: 223.236151 | V194: 0.092124 | W194: 20.56540717
A195: 187 | B195: 101.101.1502.010287 | C195: ENTERPRISE DATA HUB 2021 | D195: (391.6) Purchased Software | E195: SOFTWARE | F195: All OGS Divisions | G195: All | H195: 2022-01-01 | I195: 2023-07-01 | J195: Addition | K195: 1010000 Plant In Service | L195: 71.19 | P195: 0 | Q195: 71.19 | R195: 0.2851 | S195: 20.296269 | T195: 0 | U195: 20.296269 | V195: 0.092124 | W195: 1.869773485
A196: 188 | B196: 101.101.1502.010292 | C196: CUSTOMER BANK ACCOUNT VALIDATION | D196: (391.6) Banner Software | E196: SOFTWARE | F196: All OGS Divisions | G196: All | H196: 2023-01-01 | I196: 2023-07-01 | J196: Addition | K196: 1010000 Plant In Service | L196: 5405.06 | P196: 0 | Q196: 5405.06 | R196: 0.3081 | S196: 1665.298986 | T196: 0 | U196: 1665.298986 | V196: 0.092124 | W196: 153.4140038
A197: 189 | B197: 101.101.1502.010293 | C197: BUSINESS INTELLIGENCE 2021 | D197: (391.6) Purchased Software | E197: SOFTWARE | F197: All OGS Divisions | G197: All | H197: 2023-01-01 | I197: 2023-11-01 | J197: Addition | K197: 1010000 Plant In Service | L197: 57.88 | P197: 0 | Q197: 57.88 | R197: 0.2851 | S197: 16.501588 | T197: 0 | U197: 16.501588 | V197: 0.092124 | W197: 1.520192293
A198: 190 | B198: 101.101.1502.010293 | C198: BUSINESS INTELLIGENCE 2021 | D198: (391.6) Purchased Software | E198: SOFTWARE | F198: All OGS Divisions | G198: All | H198: 2023-01-01 | I198: 2023-06-01 | J198: Addition | K198: 1010000 Plant In Service | L198: 510731.95 | P198: 0 | Q198: 510731.95 | R198: 0.2851 | S198: 145609.6789 | T198: 0 | U198: 145609.6789 | V198: 0.092124 | W198: 13414.14606
A199: 191 | B199: 101.101.1502.010294 | C199: INTERACTIVE VOICE RESPONSE SELF SERVICE IMPROVEMENTS | D199: (391.6) Customer Relations Software | E199: SOFTWARE | F199: All OGS Divisions | G199: All | H199: 2023-01-01 | I199: 2023-07-01 | J199: Addition | K199: 1010000 Plant In Service | L199: 163474.59 | P199: 0 | Q199: 163474.59 | R199: 0.3081 | S199: 50366.52118 | T199: 0 | U199: 50366.52118 | V199: 0.092124 | W199: 4639.965397
A200: 192 | B200: 101.101.1502.010295 | C200: DOT DRIVER QUALIFICATION | D200: (391.99) Cloud Computing | E200: SOFTWARE | F200: All OGS Divisions | G200: All | H200: 2023-02-01 | I200: 2023-02-01 | J200: Addition | K200: 1860113 Cloud Computing | L200: 13755 | P200: 0 | Q200: 13755 | R200: 0.2851 | S200: 3921.5505 | T200: 0 | U200: 3921.5505 | V200: 0.092124 | W200: 361.2689183
A201: 193 | B201: 101.101.1502.010299 | C201: EC350-HONEYWELL CLOUD SERVICE | D201: (391.99) Cloud Computing | E201: SOFTWARE | F201: All OGS Divisions | G201: All | H201: 2022-06-01 | I201: 2023-04-01 | J201: Addition | K201: 1860113 Cloud Computing | L201: 3456.77 | P201: 0 | Q201: =L201+P201 -> 3456.77 | R201: 0.2851 | S201: 985.525127 | T201: 0 | U201: 985.525127 | V201: 0.092124 | W201: 90.7905168
... 159 more rows

Sheet Direct - 2024
A1: Texas Gas Service Company, a Division of ONE Gas, Inc. - Rio Grande Valley Service Area Service Area
A2: Interim Rate Adjustment Application
A3: 12 Month Period Ending December 31, 2024
A4: Investment Report - Direct Additions Project Report
A6: INVESTMENT REPORT - SUMMARY OF RIO GRANDE VALLEY DIRECT PLANT IN SERVICE (101 & 106) PROJECT ACTIVITY
A8: Line No. | B8: Project No. | C8: Project Description | D8: Utility Account | E8: Function Description | F8: Customers Benefited (Location) | G8: Customers Benefited (Class) | H8: Project In Service Date (Note 1) | I8: GL Posting Date | J8: FERC Activity Code | K8: GL Account | L8: TYE Project Activity Cost | M8: Sum of Adjustments to Plant for Meals & Hotels (Note 2) | N8: Sum of Adjustments for Miscoded Additions & Transfers | O8: Sum of Adjustments for Miscoded Retirements | P8: Sum of FERC Reclass | Q8: Adjusted TYE Project Activity Cost | R8: Comments
A9: (a) | B9: (b) | C9: (c) | D9: (d) | E9: (e) | F9: (f) | G9: (g) | H9: (h) | I9: (i) | J9: (j) | K9: (k) | L9: (l) | M9: (m) | N9: (n) | O9: (o) | P9: (p) | Q9: (q) | R9: (r)
Q10: (col l thru p)
A11: 11 | B11: 091.042.7044.010002 | C11: PROJECT FCT 042 - 30747 E EXPRESSWAY 77 - COMMERCIAL PLAZA (HP LOOP + SL) | D11: 369 - Measuring & Regulating Sta Eq | E11: Line Extensions to Connect New Customers and Connections for New Gas Supply | F11: RGV | G11: COMMERCIAL | H11: 2022-12-14T09:39:56 | I11: 2024-08-01 | J11: Addition | K11: 101 | L11: 3803.49 | Q11: =SUM(L11:P11) -> 3803.49
A12: 12 | B12: 091.042.7044.010002 | C12: PROJECT FCT 042 - 30747 E EXPRESSWAY 77 - COMMERCIAL PLAZA (HP LOOP + SL) | D12: 369 - Measuring & Regulating Sta Eq | E12: Line Extensions to Connect New Customers and Connections for New Gas Supply | F12: RGV | G12: COMMERCIAL | H12: 2022-12-14T09:39:56 | I12: 2024-08-01 | J12: Addition | K12: 106 | L12: -4480.85 | Q12: =SUM(L12:P12) -> -4480.85
A13: 13 | B13: 091.042.7044.010002 | C13: PROJECT FCT 042 - 30747 E EXPRESSWAY 77 - COMMERCIAL PLAZA (HP LOOP + SL) | D13: 380.0 - Services | E13: Line Extensions to Connect New Customers and Connections for New Gas Supply | F13: RGV | G13: COMMERCIAL | H13: 2022-12-14T09:39:56 | I13: 2024-08-01 | J13: Addition | K13: 101 | L13: 11076.59 | Q13: 11076.59
A14: 14 | B14: 091.042.7044.010002 | C14: PROJECT FCT 042 - 30747 E EXPRESSWAY 77 - COMMERCIAL PLAZA (HP LOOP + SL) | D14: 380.0 - Services | E14: Line Extensions to Connect New Customers and Connections for New Gas Supply | F14: RGV | G14: COMMERCIAL | H14: 2022-12-14T09:39:56 | I14: 2024-08-01 | J14: Addition | K14: 106 | L14: -10399.23 | Q14: -10399.23
A15: 15 | B15: 091.042.7044.010003 | C15: PROJECT FCT 042 - 23340 WILCOX RD - RURAL TAP | D15: 369 - Measuring & Regulating Sta Eq | E15: Line Extensions to Connect New Customers and Connections for New Gas Supply | F15: RGV | G15: RESIDENTIAL | H15: 2023-12-13T19:00:40 | I15: 2024-01-01 | J15: Addition | K15: 106 | L15: 11861.09 | Q15: 11861.09
A16: 16 | B16: 091.042.7044.010003 | C16: PROJECT FCT 042 - 23340 WILCOX RD - RURAL TAP | D16: 369 - Measuring & Regulating Sta Eq | E16: Line Extensions to Connect New Customers and Connections for New Gas Supply | F16: RGV | G16: RESIDENTIAL | H16: 2023-12-13T19:00:40 | I16: 2024-02-01 | J16: Addition | K16: 106 | L16: 3479.91 | Q16: 3479.91
A17: 17 | B17: 091.042.7044.010003 | C17: PROJECT FCT 042 - 23340 WILCOX RD - RURAL TAP | D17: 369 - Measuring & Regulating Sta Eq | E17: Line Extensions to Connect New Customers and Connections for New Gas Supply | F17: RGV | G17: RESIDENTIAL | H17: 2023-12-13T19:00:40 | I17: 2024-11-01 | J17: Addition | K17: 101 | L17: 62711.47 | Q17: 62711.47
A18: 18 | B18: 091.042.7044.010003 | C18: PROJECT FCT 042 - 23340 WILCOX RD - RURAL TAP | D18: 369 - Measuring & Regulating Sta Eq | E18: Line Extensions to Connect New Customers and Connections for New Gas Supply | F18: RGV | G18: RESIDENTIAL | H18: 2023-12-13T19:00:40 | I18: 2024-11-01 | J18: Addition | K18: 106 | L18: -62711.47 | Q18: -62711.47
A19: 19 | B19: 091.043.7044.010047 | C19: PROJECT FCT 043 - LINE 250-4 - OFFSET PIPELINE & INSTALL TEE FOR ENBRIDGE INTERCONNECT | D19: 367 - Mains | E19: Line or Equipment Replacements Due to Obsolescence, Inadequate Components, or Construction Change | F19: RGV | G19: ALL CLASSES | H19: 2021-10-05T13:44:00 | I19: 2024-05-01 | J19: Addition | K19: 106 | L19: 52.9 | Q19: 52.9
A20: 20 | B20: 091.043.7044.010047 | C20: PROJECT FCT 043 - LINE 250-4 - OFFSET PIPELINE & INSTALL TEE FOR ENBRIDGE INTERCONNECT | D20: 367 - Mains | E20: Line or Equipment Replacements Due to Obsolescence, Inadequate Components, or Construction Change | F20: RGV | G20: ALL CLASSES | H20: 2021-10-05T13:44:00 | I20: 2024-08-01 | J20: Addition | K20: 101 | L20: 51079.94 | Q20: 51079.94
A21: 21 | B21: 091.043.7044.010047 | C21: PROJECT FCT 043 - LINE 250-4 - OFFSET PIPELINE & INSTALL TEE FOR ENBRIDGE INTERCONNECT | D21: 367 - Mains | E21: Line or Equipment Replacements Due to Obsolescence, Inadequate Components, or Construction Change | F21: RGV | G21: ALL CLASSES | H21: 2021-10-05T13:44:00 | I21: 2024-08-01 | J21: Addition | K21: 106 | L21: -51079.94 | Q21: -51079.94
A22: 22 | B22: 091.043.7044.010047 | C22: PROJECT FCT 043 - LINE 250-4 - OFFSET PIPELINE & INSTALL TEE FOR ENBRIDGE INTERCONNECT | D22: 367 - Mains | E22: Line or Equipment Replacements Due to Obsolescence, Inadequate Components, or Construction Change | F22: RGV | G22: ALL CLASSES | H22: 2021-10-05T13:44:00 | I22: 2024-08-01 | J22: Retirement | K22: 101 | L22: -6214.84 | Q22: -6214.84
A23: 23 | B23: 091.043.7044.010081 | C23: PROJECT FCT 043 HIDALGO - SHUT IN PRESSURE TEST TO CLEAR LK2021-10322783 - 1501 N MCCOLL RD | D23: 367 - Mains | E23: Line or Equipment Replacements Due to Obsolescence, Inadequate Components, or Construction Change | F23: RGV | G23: RESIDENTIAL/COMMERCIAL | H23: 2022-10-01T06:35:41 | I23: 2024-05-01 | J23: Addition | K23: 106 | L23: 1.6 | Q23: 1.6
A24: 24 | B24: 091.043.7044.010081 | C24: PROJECT FCT 043 HIDALGO - SHUT IN PRESSURE TEST TO CLEAR LK2021-10322783 - 1501 N MCCOLL RD | D24: 367 - Mains | E24: Line or Equipment Replacements Due to Obsolescence, Inadequate Components, or Construction Change | F24: RGV | G24: RESIDENTIAL/COMMERCIAL | H24: 2022-10-01T06:35:41 | I24: 2024-08-01 | J24: Addition | K24: 101 | L24: 176988.76 | Q24: 176988.76
A25: 25 | B25: 091.043.7044.010081 | C25: PROJECT FCT 043 HIDALGO - SHUT IN PRESSURE TEST TO CLEAR LK2021-10322783 - 1501 N MCCOLL RD | D25: 367 - Mains | E25: Line or Equipment Replacements Due to Obsolescence, Inadequate Components, or Construction Change | F25: RGV | G25: RESIDENTIAL/COMMERCIAL | H25: 2022-10-01T06:35:41 | I25: 2024-08-01 | J25: Addition | K25: 106 | L25: -176988.76 | Q25: -176988.76
A26: 26 | B26: 091.043.7044.010081 | C26: PROJECT FCT 043 HIDALGO - SHUT IN PRESSURE TEST TO CLEAR LK2021-10322783 - 1501 N MCCOLL RD | D26: 367 - Mains | E26: Line or Equipment Replacements Due to Obsolescence, Inadequate Components, or Construction Change | F26: RGV | G26: RESIDENTIAL/COMMERCIAL | H26: 2022-10-01T06:35:41 | I26: 2024-08-01 | J26: Retirement | K26: 101 | L26: -2.23 | Q26: -2.23
A27: 27 | B27: 091.043.7044.010086 | C27: PROJECT FCT 043 - REPLACE LINE 173-1 IN CLASS 3 | D27: 367 - Mains | E27: Line or Equipment Replacements Due to Obsolescence, Inadequate Components, or Construction Change | F27: RGV | G27: ALL CLASSES | H27: 2023-08-31T14:57:23 | I27: 2024-05-01 | J27: Addition | K27: 106 | L27: -12392.67 | Q27: -12392.67
A28: 28 | B28: 091.043.7044.010086 | C28: PROJECT FCT 043 - REPLACE LINE 173-1 IN CLASS 3 | D28: 367 - Mains | E28: Line or Equipment Replacements Due to Obsolescence, Inadequate Components, or Construction Change | F28: RGV | G28: ALL CLASSES | H28: 2023-08-31T14:57:23 | I28: 2024-07-01 | J28: Addition | K28: 101 | L28: 1804274.2 | Q28: 1804274.2
A29: 29 | B29: 091.043.7044.010086 | C29: PROJECT FCT 043 - REPLACE LINE 173-1 IN CLASS 3 | D29: 367 - Mains | E29: Line or Equipment Replacements Due to Obsolescence, Inadequate Components, or Construction Change | F29: RGV | G29: ALL CLASSES | H29: 2023-08-31T14:57:23 | I29: 2024-07-01 | J29: Addition | K29: 106 | L29: -1804274.2 | Q29: -1804274.2
A30: 30 | B30: 091.043.7044.010086 | C30: PROJECT FCT 043 - REPLACE LINE 173-1 IN CLASS 3 | D30: 367 - Mains | E30: Line or Equipment Replacements Due to Obsolescence, Inadequate Components, or Construction Change | F30: RGV | G30: ALL CLASSES | H30: 2023-08-31T14:57:23 | I30: 2024-07-01 | J30: Retirement | K30: 101 | L30: -3117.08 | Q30: -3117.08
A31: 31 | B31: 091.043.7044.010087 | C31: FCT 043 - LINE 240-1 - REPLACE TERMINAL RISERS FOR CALIPER PIG RUN | D31: 367 - Mains | E31: Line or Equipment Replacements Due to Obsolescence, Inadequate Components, or Construction Change | F31: RGV | G31: ALL CLASSES | H31: 2022-12-14T10:51:08 | I31: 2024-04-01 | J31: Addition | K31: 101 | L31: 165461.53 | Q31: 165461.53
A32: 32 | B32: 091.043.7044.010087 | C32: FCT 043 - LINE 240-1 - REPLACE TERMINAL RISERS FOR CALIPER PIG RUN | D32: 367 - Mains | E32: Line or Equipment Replacements Due to Obsolescence, Inadequate Components, or Construction Change | F32: RGV | G32: ALL CLASSES | H32: 2022-12-14T10:51:08 | I32: 2024-04-01 | J32: Addition | K32: 106 | L32: -165461.53 | Q32: -165461.53
A33: 33 | B33: 091.043.7044.010088 | C33: FCT 043 - LINE 240A-1 - REPLACEMENTS FOR CALIPER PIG RUN | D33: 367 - Mains | E33: Line or Equipment Replacements Due to Obsolescence, Inadequate Components, or Construction Change | F33: RGV | G33: ALL CLASSES | H33: 2022-12-30T10:44:29 | I33: 2024-05-01 | J33: Addition | K33: 106 | L33: -38303.64 | Q33: -38303.64
A34: 34 | B34: 091.043.7044.010088 | C34: FCT 043 - LINE 240A-1 - REPLACEMENTS FOR CALIPER PIG RUN | D34: 367 - Mains | E34: Line or Equipment Replacements Due to Obsolescence, Inadequate Components, or Construction Change | F34: RGV | G34: ALL CLASSES | H34: 2022-12-30T10:44:29 | I34: 2024-08-01 | J34: Addition | K34: 101 | L34: 268828.98 | Q34: 268828.98
A35: 35 | B35: 091.043.7044.010088 | C35: FCT 043 - LINE 240A-1 - REPLACEMENTS FOR CALIPER PIG RUN | D35: 367 - Mains | E35: Line or Equipment Replacements Due to Obsolescence, Inadequate Components, or Construction Change | F35: RGV | G35: ALL CLASSES | H35: 2022-12-30T10:44:29 | I35: 2024-08-01 | J35: Addition | K35: 106 | L35: -268828.98 | Q35: -268828.98
A36: 36 | B36: 091.043.7044.010088 | C36: FCT 043 - LINE 240A-1 - REPLACEMENTS FOR CALIPER PIG RUN | D36: 367 - Mains | E36: Line or Equipment Replacements Due to Obsolescence, Inadequate Components, or Construction Change | F36: RGV | G36: ALL CLASSES | H36: 2022-12-30T10:44:29 | I36: 2024-08-01 | J36: Retirement | K36: 101 | L36: -13977.87 | Q36: -13977.87
A37: 37 | B37: 091.043.7044.010090 | C37: PROJECT FCT 043 EMERGENCY - SANTA ROSA CG 1 REGULATORS REPLACEMENT | D37: 369 - Measuring & Regulating Sta Eq | E37: Line or Equipment Replacements Due to Obsolescence, Inadequate Components, or Construction Change | F37: RGV | G37: RESIDENTIAL/COMMERIAL/PUBLIC AUTHORITY | H37: 2023-01-13T09:43:33 | I37: 2024-02-01 | J37: Addition | K37: 106 | L37: 517.83 | Q37: 517.83
A38: 38 | B38: 091.043.7044.010090 | C38: PROJECT FCT 043 EMERGENCY - SANTA ROSA CG 1 REGULATORS REPLACEMENT | D38: 369 - Measuring & Regulating Sta Eq | E38: Line or Equipment Replacements Due to Obsolescence, Inadequate Components, or Construction Change | F38: RGV | G38: RESIDENTIAL/COMMERIAL/PUBLIC AUTHORITY | H38: 2023-01-13T09:43:33 | I38: 2024-09-01 | J38: Addition | K38: 106 | L38: -0.68 | Q38: -0.68
A39: 39 | B39: 091.043.7044.010096 | C39: PROJECT FCT 043 HARLINGEN - REPLACE HARLINGEN CG 6 ON WILSON RD | D39: 369 - Measuring & Regulating Sta Eq | E39: Line or Equipment Replacements Due to Obsolescence, Inadequate Components, or Construction Change | F39: RGV | G39: ALL CLASSES | H39: 2023-11-15T13:09:49 | I39: 2024-02-01 | J39: Addition | K39: 106 | L39: 288.25 | Q39: 288.25
A40: 40 | B40: 091.043.7044.010096 | C40: PROJECT FCT 043 HARLINGEN - REPLACE HARLINGEN CG 6 ON WILSON RD | D40: 369 - Measuring & Regulating Sta Eq | E40: Line or Equipment Replacements Due to Obsolescence, Inadequate Components, or Construction Change | F40: RGV | G40: ALL CLASSES | H40: 2023-11-15T13:09:49 | I40: 2024-05-01 | J40: Addition | K40: 106 | L40: 833.58 | Q40: 833.58
A41: 41 | B41: 091.043.7044.010096 | C41: PROJECT FCT 043 HARLINGEN - REPLACE HARLINGEN CG 6 ON WILSON RD | D41: 369 - Measuring & Regulating Sta Eq | E41: Line or Equipment Replacements Due to Obsolescence, Inadequate Components, or Construction Change | F41: RGV | G41: ALL CLASSES | H41: 2023-11-15T13:09:49 | I41: 2024-06-01 | J41: Addition | K41: 106 | L41: 357.9 | Q41: 357.9
A42: 42 | B42: 091.043.7044.010096 | C42: PROJECT FCT 043 HARLINGEN - REPLACE HARLINGEN CG 6 ON WILSON RD | D42: 369 - Measuring & Regulating Sta Eq | E42: Line or Equipment Replacements Due to Obsolescence, Inadequate Components, or Construction Change | F42: RGV | G42: ALL CLASSES | H42: 2023-11-15T13:09:49 | I42: 2024-10-01 | J42: Addition | K42: 106 | L42: -3933.06 | Q42: -3933.06
A43: 43 | B43: 091.043.7044.010098 | C43: PROJECT FCT 043 - (2023 AWP) - LINE 35D1 REPLACEMENT - PRESSURE REDUCTION PLAN | D43: 367 - Mains | E43: Line or Equipment Replacements Due to Obsolescence, Inadequate Components, or Construction Change | F43: RGV | G43: ALL CLASSES | H43: 2023-11-15T13:11:27 | I43: 2024-01-01 | J43: Addition | K43: 106 | L43: 4215.19 | Q43: 4215.19
A44: 44 | B44: 091.043.7044.010098 | C44: PROJECT FCT 043 - (2023 AWP) - LINE 35D1 REPLACEMENT - PRESSURE REDUCTION PLAN | D44: 367 - Mains | E44: Line or Equipment Replacements Due to Obsolescence, Inadequate Components, or Construction Change | F44: RGV | G44: ALL CLASSES | H44: 2023-11-15T13:11:27 | I44: 2024-07-01 | J44: Addition | K44: 106 | L44: 4664.93 | Q44: 4664.93
A45: 45 | B45: 091.043.7044.010098 | C45: PROJECT FCT 043 - (2023 AWP) - LINE 35D1 REPLACEMENT - PRESSURE REDUCTION PLAN | D45: 367 - Mains | E45: Line or Equipment Replacements Due to Obsolescence, Inadequate Components, or Construction Change | F45: RGV | G45: ALL CLASSES | H45: 2023-11-15T13:11:27 | I45: 2024-09-01 | J45: Addition | K45: 106 | L45: 119.66 | Q45: 119.66
A46: 46 | B46: 091.043.7044.010099 | C46: PROJECT FCT 043 - LINE 198-2 MAOP ACTION ITEMS | D46: 367 - Mains | E46: Line or Equipment Replacements Due to Obsolescence, Inadequate Components, or Construction Change | F46: RGV | G46: ALL CLASSES | H46: 2023-12-26T20:58:19 | I46: 2024-11-01 | J46: Addition | K46: 101 | L46: 72181.48 | Q46: 72181.48
A47: 47 | B47: 091.043.7044.010099 | C47: PROJECT FCT 043 - LINE 198-2 MAOP ACTION ITEMS | D47: 367 - Mains | E47: Line or Equipment Replacements Due to Obsolescence, Inadequate Components, or Construction Change | F47: RGV | G47: ALL CLASSES | H47: 2023-12-26T20:58:19 | I47: 2024-11-01 | J47: Addition | K47: 106 | L47: -72181.48 | Q47: -72181.48
A48: 48 | B48: 091.043.7044.010100 | C48: PROJECT FCT 043 - LINE 198-5 MAOP ACTION ITEMS | D48: 367 - Mains | E48: Line or Equipment Replacements Due to Obsolescence, Inadequate Components, or Construction Change | F48: RGV | G48: ALL CLASSES | H48: 2023-12-26T20:55:27 | I48: 2024-01-01 | J48: Addition | K48: 106 | L48: 9856.78 | Q48: 9856.78
A49: 49 | B49: 091.043.7044.010100 | C49: PROJECT FCT 043 - LINE 198-5 MAOP ACTION ITEMS | D49: 367 - Mains | E49: Line or Equipment Replacements Due to Obsolescence, Inadequate Components, or Construction Change | F49: RGV | G49: ALL CLASSES | H49: 2023-12-26T20:55:27 | I49: 2024-03-01 | J49: Addition | K49: 106 | L49: 9910.65 | Q49: 9910.65
A50: 50 | B50: 091.043.7044.010100 | C50: PROJECT FCT 043 - LINE 198-5 MAOP ACTION ITEMS | D50: 367 - Mains | E50: Line or Equipment Replacements Due to Obsolescence, Inadequate Components, or Construction Change | F50: RGV | G50: ALL CLASSES | H50: 2023-12-26T20:55:27 | I50: 2024-04-01 | J50: Addition | K50: 106 | L50: 26101.84 | Q50: 26101.84
A51: 51 | B51: 091.043.7044.010100 | C51: PROJECT FCT 043 - LINE 198-5 MAOP ACTION ITEMS | D51: 367 - Mains | E51: Line or Equipment Replacements Due to Obsolescence, Inadequate Components, or Construction Change | F51: RGV | G51: ALL CLASSES | H51: 2023-12-26T20:55:27 | I51: 2024-05-01 | J51: Addition | K51: 106 | L51: 7740.69 | Q51: 7740.69
A52: 52 | B52: 091.043.7044.010100 | C52: PROJECT FCT 043 - LINE 198-5 MAOP ACTION ITEMS | D52: 367 - Mains | E52: Line or Equipment Replacements Due to Obsolescence, Inadequate Components, or Construction Change | F52: RGV | G52: ALL CLASSES | H52: 2023-12-26T20:55:27 | I52: 2024-06-01 | J52: Addition | K52: 106 | L52: 13228.05 | Q52: 13228.05
A53: 53 | B53: 091.043.7044.010100 | C53: PROJECT FCT 043 - LINE 198-5 MAOP ACTION ITEMS | D53: 367 - Mains | E53: Line or Equipment Replacements Due to Obsolescence, Inadequate Components, or Construction Change | F53: RGV | G53: ALL CLASSES | H53: 2023-12-26T20:55:27 | I53: 2024-09-01 | J53: Addition | K53: 106 | L53: -135.36 | Q53: -135.36
A54: 54 | B54: 091.043.7044.010102 | C54: PROJECT FCT 043 - LINE 35D-1 MAOP ACTION ITEMS | D54: 367 - Mains | E54: Line or Equipment Replacements Due to Obsolescence, Inadequate Components, or Construction Change | F54: RGV | G54: ALL CLASSES | H54: 2023-12-26T20:52:13 | I54: 2024-03-01 | J54: Addition | K54: 106 | L54: 19883.3 | Q54: 19883.3
A55: 55 | B55: 091.043.7044.010102 | C55: PROJECT FCT 043 - LINE 35D-1 MAOP ACTION ITEMS | D55: 367 - Mains | E55: Line or Equipment Replacements Due to Obsolescence, Inadequate Components, or Construction Change | F55: RGV | G55: ALL CLASSES | H55: 2023-12-26T20:52:13 | I55: 2024-04-01 | J55: Addition | K55: 106 | L55: 50994.92 | Q55: 50994.92
A56: 56 | B56: 091.043.7044.010102 | C56: PROJECT FCT 043 - LINE 35D-1 MAOP ACTION ITEMS | D56: 367 - Mains | E56: Line or Equipment Replacements Due to Obsolescence, Inadequate Components, or Construction Change | F56: RGV | G56: ALL CLASSES | H56: 2023-12-26T20:52:13 | I56: 2024-05-01 | J56: Addition | K56: 106 | L56: 6048.43 | Q56: 6048.43
A57: 57 | B57: 091.043.7044.010102 | C57: PROJECT FCT 043 - LINE 35D-1 MAOP ACTION ITEMS | D57: 367 - Mains | E57: Line or Equipment Replacements Due to Obsolescence, Inadequate Components, or Construction Change | F57: RGV | G57: ALL CLASSES | H57: 2023-12-26T20:52:13 | I57: 2024-08-01 | J57: Addition | K57: 106 | L57: 2512.69 | Q57: 2512.69
A58: 58 | B58: 091.043.7044.010102 | C58: PROJECT FCT 043 - LINE 35D-1 MAOP ACTION ITEMS | D58: 367 - Mains | E58: Line or Equipment Replacements Due to Obsolescence, Inadequate Components, or Construction Change | F58: RGV | G58: ALL CLASSES | H58: 2023-12-26T20:52:13 | I58: 2024-11-01 | J58: Addition | K58: 106 | L58: -369.81 | Q58: -369.81
A59: 59 | B59: 091.043.7044.010103 | C59: PROJECT FCT 043 - LINE 35E-1 MAOP ACTION ITEMS | D59: 367 - Mains | E59: Line or Equipment Replacements Due to Obsolescence, Inadequate Components, or Construction Change | F59: RGV | G59: ALL CLASSES | H59: 2023-12-26T20:51:25 | I59: 2024-05-01 | J59: Addition | K59: 106 | L59: 11995.95 | Q59: 11995.95
A60: 60 | B60: 091.043.7044.010104 | C60: PROJECT FCT 043 - LINE 189-2 MAOP ACTION ITEMS | D60: 367 - Mains | E60: Line or Equipment Replacements Due to Obsolescence, Inadequate Components, or Construction Change | F60: RGV | G60: ALL CLASSES | H60: 2023-12-26T20:59:05 | I60: 2024-05-01 | J60: Addition | K60: 106 | L60: 1280.61 | Q60: 1280.61
A61: 61 | B61: 091.043.7044.010105 | C61: PROJECT FCT 043 - LINE 198-6 MAOP ACTION ITEMS | D61: 367 - Mains | E61: Line or Equipment Replacements Due to Obsolescence, Inadequate Components, or Construction Change | F61: RGV | G61: ALL CLASSES | H61: 2023-12-26T20:53:47 | I61: 2024-01-01 | J61: Addition | K61: 106 | L61: 3279.11 | Q61: 3279.11
A62: 62 | B62: 091.043.7044.010105 | C62: PROJECT FCT 043 - LINE 198-6 MAOP ACTION ITEMS | D62: 367 - Mains | E62: Line or Equipment Replacements Due to Obsolescence, Inadequate Components, or Construction Change | F62: RGV | G62: ALL CLASSES | H62: 2023-12-26T20:53:47 | I62: 2024-03-01 | J62: Addition | K62: 106 | L62: -9585.29 | Q62: -9585.29
A63: 63 | B63: 091.043.7044.010105 | C63: PROJECT FCT 043 - LINE 198-6 MAOP ACTION ITEMS | D63: 367 - Mains | E63: Line or Equipment Replacements Due to Obsolescence, Inadequate Components, or Construction Change | F63: RGV | G63: ALL CLASSES | H63: 2023-12-26T20:53:47 | I63: 2024-04-01 | J63: Addition | K63: 106 | L63: 39998.9 | Q63: 39998.9
A64: 64 | B64: 091.043.7044.010105 | C64: PROJECT FCT 043 - LINE 198-6 MAOP ACTION ITEMS | D64: 367 - Mains | E64: Line or Equipment Replacements Due to Obsolescence, Inadequate Components, or Construction Change | F64: RGV | G64: ALL CLASSES | H64: 2023-12-26T20:53:47 | I64: 2024-05-01 | J64: Addition | K64: 106 | L64: 30297.89 | Q64: 30297.89
A65: 65 | B65: 091.043.7044.010105 | C65: PROJECT FCT 043 - LINE 198-6 MAOP ACTION ITEMS | D65: 367 - Mains | E65: Line or Equipment Replacements Due to Obsolescence, Inadequate Components, or Construction Change | F65: RGV | G65: ALL CLASSES | H65: 2023-12-26T20:53:47 | I65: 2024-06-01 | J65: Addition | K65: 106 | L65: 1028.62 | Q65: 1028.62
A66: 66 | B66: 091.043.7044.010105 | C66: PROJECT FCT 043 - LINE 198-6 MAOP ACTION ITEMS | D66: 367 - Mains | E66: Line or Equipment Replacements Due to Obsolescence, Inadequate Components, or Construction Change | F66: RGV | G66: ALL CLASSES | H66: 2023-12-26T20:53:47 | I66: 2024-07-01 | J66: Addition | K66: 106 | L66: 975.33 | Q66: 975.33
A67: 67 | B67: 091.043.7044.010105 | C67: PROJECT FCT 043 - LINE 198-6 MAOP ACTION ITEMS | D67: 367 - Mains | E67: Line or Equipment Replacements Due to Obsolescence, Inadequate Components, or Construction Change | F67: RGV | G67: ALL CLASSES | H67: 2023-12-26T20:53:47 | I67: 2024-11-01 | J67: Addition | K67: 106 | L67: 931.24 | Q67: 931.24
A68: 68 | B68: 091.043.7044.010108 | C68: PROJECT FCT 043 - REPLACE GAS CHROMATOGRAPH @PUB | D68: 368 - Compressor Station Equipment | E68: Line or Equipment Replacements Due to Obsolescence, Inadequate Components, or Construction Change | F68: RGV | G68: INDUSTRIAL | H68: 2024-05-29T08:01:55 | I68: 2024-06-01 | J68: Addition | K68: 106 | L68: 820.44 | Q68: 820.44
A69: 69 | B69: 091.043.7044.010108 | C69: PROJECT FCT 043 - REPLACE GAS CHROMATOGRAPH @PUB | D69: 368 - Compressor Station Equipment | E69: Line or Equipment Replacements Due to Obsolescence, Inadequate Components, or Construction Change | F69: RGV | G69: INDUSTRIAL | H69: 2024-05-29T08:01:55 | I69: 2024-07-01 | J69: Addition | K69: 106 | L69: 27140.4 | Q69: 27140.4
A70: 70 | B70: 091.043.7044.010108 | C70: PROJECT FCT 043 - REPLACE GAS CHROMATOGRAPH @PUB | D70: 368 - Compressor Station Equipment | E70: Line or Equipment Replacements Due to Obsolescence, Inadequate Components, or Construction Change | F70: RGV | G70: INDUSTRIAL | H70: 2024-05-29T08:01:55 | I70: 2024-08-01 | J70: Addition | K70: 106 | L70: 41036.87 | Q70: 41036.87
A71: 71 | B71: 091.043.7044.010111 | C71: PROJECT FCT 043 - LINE 198-5 - REPLACE 10" E-VALVE AT WILCOX RD & SH107 | D71: 367 - Mains | E71: Line or Equipment Replacements Due to Obsolescence, Inadequate Components, or Construction Change | F71: RGV | G71: ALL CLASSES | H71: 2024-03-19T09:16:39 | I71: 2024-03-01 | J71: Addition | K71: 106 | L71: 129714.46 | Q71: 129714.46
A72: 72 | B72: 091.043.7044.010111 | C72: PROJECT FCT 043 - LINE 198-5 - REPLACE 10" E-VALVE AT WILCOX RD & SH107 | D72: 367 - Mains | E72: Line or Equipment Replacements Due to Obsolescence, Inadequate Components, or Construction Change | F72: RGV | G72: ALL CLASSES | H72: 2024-03-19T09:16:39 | I72: 2024-04-01 | J72: Addition | K72: 106 | L72: 20495.42 | Q72: 20495.42
A73: 73 | B73: 091.043.7044.010111 | C73: PROJECT FCT 043 - LINE 198-5 - REPLACE 10" E-VALVE AT WILCOX RD & SH107 | D73: 367 - Mains | E73: Line or Equipment Replacements Due to Obsolescence, Inadequate Components, or Construction Change | F73: RGV | G73: ALL CLASSES | H73: 2024-03-19T09:16:39 | I73: 2024-05-01 | J73: Addition | K73: 106 | L73: 19689.86 | Q73: 19689.86
A74: 74 | B74: 091.043.7044.010111 | C74: PROJECT FCT 043 - LINE 198-5 - REPLACE 10" E-VALVE AT WILCOX RD & SH107 | D74: 367 - Mains | E74: Line or Equipment Replacements Due to Obsolescence, Inadequate Components, or Construction Change | F74: RGV | G74: ALL CLASSES | H74: 2024-03-19T09:16:39 | I74: 2024-06-01 | J74: Addition | K74: 106 | L74: 1475.17 | Q74: 1475.17
A75: 75 | B75: 091.043.7044.010111 | C75: PROJECT FCT 043 - LINE 198-5 - REPLACE 10" E-VALVE AT WILCOX RD & SH107 | D75: 367 - Mains | E75: Line or Equipment Replacements Due to Obsolescence, Inadequate Components, or Construction Change | F75: RGV | G75: ALL CLASSES | H75: 2024-03-19T09:16:39 | I75: 2024-07-01 | J75: Addition | K75: 106 | L75: 11864 | Q75: 11864
A76: 76 | B76: 091.043.7044.010111 | C76: PROJECT FCT 043 - LINE 198-5 - REPLACE 10" E-VALVE AT WILCOX RD & SH107 | D76: 367 - Mains | E76: Line or Equipment Replacements Due to Obsolescence, Inadequate Components, or Construction Change | F76: RGV | G76: ALL CLASSES | H76: 2024-03-19T09:16:39 | I76: 2024-10-01 | J76: Addition | K76: 106 | L76: 671.7 | Q76: =SUM(L76:P76) -> 671.7
A77: 77 | B77: 091.043.7044.010111 | C77: PROJECT FCT 043 - LINE 198-5 - REPLACE 10" E-VALVE AT WILCOX RD & SH107 | D77: 367 - Mains | E77: Line or Equipment Replacements Due to Obsolescence, Inadequate Components, or Construction Change | F77: RGV | G77: ALL CLASSES | H77: 2024-03-19T09:16:39 | I77: 2024-12-01 | J77: Addition | K77: 106 | L77: 87.86 | Q77: 87.86
A78: 78 | B78: 091.043.7044.010112 | C78: PROJECT FCT 043 - LINE 198-5 - RETIREMENT OF REG STATION #137 | D78: 367 - Mains | E78: Line or Equipment Replacements Due to Obsolescence, Inadequate Components, or Construction Change | F78: RGV | G78: ALL CLASSES | H78: 2024-05-29T08:15:55 | I78: 2024-05-01 | J78: Addition | K78: 106 | L78: 14719.55 | Q78: 14719.55
A79: 79 | B79: 091.043.7044.010112 | C79: PROJECT FCT 043 - LINE 198-5 - RETIREMENT OF REG STATION #137 | D79: 369 - Measuring & Regulating Sta Eq | E79: Line or Equipment Replacements Due to Obsolescence, Inadequate Components, or Construction Change | F79: RGV | G79: ALL CLASSES | H79: 2024-05-29T08:15:55 | I79: 2024-05-01 | J79: Addition | K79: 106 | L79: 1677.92 | Q79: 1677.92
A80: 80 | B80: 091.043.7044.010114 | C80: PROJECT FCT 043 NDU- (2024 IMP) - LINE 189-2 REPLACE 8" BLOCK VALVE AT MCCULLOUGH | D80: 367 - Mains | E80: Line or Equipment Replacements Due to Obsolescence, Inadequate Components, or Construction Change | F80: RGV | G80: ALL CLASSES | H80: 2024-09-17T15:39:32 | I80: 2024-09-01 | J80: Addition | K80: 106 | L80: 108887.8 | Q80: 108887.8
A81: 81 | B81: 091.043.7044.010114 | C81: PROJECT FCT 043 NDU- (2024 IMP) - LINE 189-2 REPLACE 8" BLOCK VALVE AT MCCULLOUGH | D81: 367 - Mains | E81: Line or Equipment Replacements Due to Obsolescence, Inadequate Components, or Construction Change | F81: RGV | G81: ALL CLASSES | H81: 2024-09-17T15:39:32 | I81: 2024-10-01 | J81: Addition | K81: 106 | L81: 15556.16 | Q81: 15556.16
A82: 82 | B82: 091.043.7044.010114 | C82: PROJECT FCT 043 NDU- (2024 IMP) - LINE 189-2 REPLACE 8" BLOCK VALVE AT MCCULLOUGH | D82: 367 - Mains | E82: Line or Equipment Replacements Due to Obsolescence, Inadequate Components, or Construction Change | F82: RGV | G82: ALL CLASSES | H82: 2024-09-17T15:39:32 | I82: 2024-11-01 | J82: Addition | K82: 106 | L82: 13548.11 | Q82: 13548.11
A83: 83 | B83: 091.043.7044.010120 | C83: PROJECT FCT 043 - LINE 396-2 MAOP ACTION ITEMS | D83: 367 - Mains | E83: Line or Equipment Replacements Due to Obsolescence, Inadequate Components, or Construction Change | F83: RGV | G83: ALL CLASSES | H83: 2024-09-03T14:54:32 | I83: 2024-09-01 | J83: Addition | K83: 106 | L83: 86557.2 | Q83: 86557.2
A84: 84 | B84: 091.043.7044.010120 | C84: PROJECT FCT 043 - LINE 396-2 MAOP ACTION ITEMS | D84: 367 - Mains | E84: Line or Equipment Replacements Due to Obsolescence, Inadequate Components, or Construction Change | F84: RGV | G84: ALL CLASSES | H84: 2024-09-03T14:54:32 | I84: 2024-10-01 | J84: Addition | K84: 106 | L84: 15681.62 | Q84: 15681.62
A85: 85 | B85: 091.043.7044.010120 | C85: PROJECT FCT 043 - LINE 396-2 MAOP ACTION ITEMS | D85: 367 - Mains | E85: Line or Equipment Replacements Due to Obsolescence, Inadequate Components, or Construction Change | F85: RGV | G85: ALL CLASSES | H85: 2024-09-03T14:54:32 | I85: 2024-12-01 | J85: Addition | K85: 106 | L85: 27601.93 | Q85: 27601.93
A86: 86 | B86: 091.043.7044.010121 | C86: PROJECT FCT 043 - LINE 396-3 MAOP ACTION ITEMS | D86: 367 - Mains | E86: Line or Equipment Replacements Due to Obsolescence, Inadequate Components, or Construction Change | F86: RGV | G86: ALL CLASSES | H86: 2024-09-03T14:54:17 | I86: 2024-09-01 | J86: Addition | K86: 106 | L86: 62416.28 | Q86: 62416.28
A87: 87 | B87: 091.043.7044.010121 | C87: PROJECT FCT 043 - LINE 396-3 MAOP ACTION ITEMS | D87: 367 - Mains | E87: Line or Equipment Replacements Due to Obsolescence, Inadequate Components, or Construction Change | F87: RGV | G87: ALL CLASSES | H87: 2024-09-03T14:54:17 | I87: 2024-10-01 | J87: Addition | K87: 106 | L87: 89.05 | Q87: 89.05
A88: 88 | B88: 091.043.7044.010121 | C88: PROJECT FCT 043 - LINE 396-3 MAOP ACTION ITEMS | D88: 367 - Mains | E88: Line or Equipment Replacements Due to Obsolescence, Inadequate Components, or Construction Change | F88: RGV | G88: ALL CLASSES | H88: 2024-09-03T14:54:17 | I88: 2024-11-01 | J88: Addition | K88: 106 | L88: -806.64 | Q88: -806.64
A89: 89 | B89: 091.043.7044.010121 | C89: PROJECT FCT 043 - LINE 396-3 MAOP ACTION ITEMS | D89: 367 - Mains | E89: Line or Equipment Replacements Due to Obsolescence, Inadequate Components, or Construction Change | F89: RGV | G89: ALL CLASSES | H89: 2024-09-03T14:54:17 | I89: 2024-12-01 | J89: Addition | K89: 106 | L89: 11682.15 | Q89: 11682.15
A90: 90 | B90: 091.043.7044.010122 | C90: PROJECT FCT 043 - LINE 173DD-4 MAOP ACTION ITEMS | D90: 367 - Mains | E90: Line or Equipment Replacements Due to Obsolescence, Inadequate Components, or Construction Change | F90: RGV | G90: ALL CLASSES | H90: 2024-09-03T14:53:35 | I90: 2024-09-01 | J90: Addition | K90: 106 | L90: 43233.44 | Q90: 43233.44
A91: 91 | B91: 091.043.7044.010122 | C91: PROJECT FCT 043 - LINE 173DD-4 MAOP ACTION ITEMS | D91: 367 - Mains | E91: Line or Equipment Replacements Due to Obsolescence, Inadequate Components, or Construction Change | F91: RGV | G91: ALL CLASSES | H91: 2024-09-03T14:53:35 | I91: 2024-10-01 | J91: Addition | K91: 106 | L91: 5401.57 | Q91: 5401.57
A92: 92 | B92: 091.043.7044.010122 | C92: PROJECT FCT 043 - LINE 173DD-4 MAOP ACTION ITEMS | D92: 367 - Mains | E92: Line or Equipment Replacements Due to Obsolescence, Inadequate Components, or Construction Change | F92: RGV | G92: ALL CLASSES | H92: 2024-09-03T14:53:35 | I92: 2024-11-01 | J92: Addition | K92: 106 | L92: 1377.67 | Q92: 1377.67
A93: 93 | B93: 091.043.7044.010123 | C93: PROJECT FCT 043 - LINE 396-4 MAOP ACTION ITEMS | D93: 367 - Mains | E93: Line or Equipment Replacements Due to Obsolescence, Inadequate Components, or Construction Change | F93: RGV | G93: ALL CLASSES | H93: 2024-08-30T10:23:45 | I93: 2024-08-01 | J93: Addition | K93: 106 | L93: 56919.59 | Q93: 56919.59
A94: 94 | B94: 091.043.7044.010123 | C94: PROJECT FCT 043 - LINE 396-4 MAOP ACTION ITEMS | D94: 367 - Mains | E94: Line or Equipment Replacements Due to Obsolescence, Inadequate Components, or Construction Change | F94: RGV | G94: ALL CLASSES | H94: 2024-08-30T10:23:45 | I94: 2024-09-01 | J94: Addition | K94: 106 | L94: 43998.75 | Q94: 43998.75
A95: 95 | B95: 091.043.7044.010123 | C95: PROJECT FCT 043 - LINE 396-4 MAOP ACTION ITEMS | D95: 367 - Mains | E95: Line or Equipment Replacements Due to Obsolescence, Inadequate Components, or Construction Change | F95: RGV | G95: ALL CLASSES | H95: 2024-08-30T10:23:45 | I95: 2024-10-01 | J95: Addition | K95: 106 | L95: 16650.49 | Q95: 16650.49
A96: 96 | B96: 091.043.7044.010123 | C96: PROJECT FCT 043 - LINE 396-4 MAOP ACTION ITEMS | D96: 367 - Mains | E96: Line or Equipment Replacements Due to Obsolescence, Inadequate Components, or Construction Change | F96: RGV | G96: ALL CLASSES | H96: 2024-08-30T10:23:45 | I96: 2024-11-01 | J96: Addition | K96: 106 | L96: 43098.63 | Q96: 43098.63
A97: 97 | B97: 091.043.7044.010123 | C97: PROJECT FCT 043 - LINE 396-4 MAOP ACTION ITEMS | D97: 367 - Mains | E97: Line or Equipment Replacements Due to Obsolescence, Inadequate Components, or Construction Change | F97: RGV | G97: ALL CLASSES | H97: 2024-08-30T10:23:45 | I97: 2024-12-01 | J97: Addition | K97: 106 | L97: 13736.71 | Q97: 13736.71
A98: 98 | B98: 091.043.7044.010124 | C98: PROJECT FCT 043 - LINE 240-1 - INSTALL 6" FERF BASKET STRAINER UPSTREAM OF B-PUB METER | D98: 367 - Mains | E98: Line or Equipment Replacements Due to Obsolescence, Inadequate Components, or Construction Change | F98: RGV | G98: INDUSTRIAL | H98: 2024-12-11T13:06:00 | I98: 2024-12-01 | J98: Addition | K98: 106 | L98: 75732.52 | Q98: 75732.52
A99: 99 | B99: 091.044.7044.010002 | C99: PROJECT FCT 044 - LINE 35D1-1, REPLACE 5' OF 10" CS AT HIDALGO DRAIN CROSSING, HIDALGO, TX | D99: 367 - Mains | E99: Line or Equipment Replacements due to Corrosion, Deterioration, Etc. | F99: RGV | G99: ALL CLASSES | H99: 2021-10-26T16:28:20 | I99: 2024-05-01 | J99: Addition | K99: 106 | L99: 180.17 | Q99: 180.17
A100: 100 | B100: 091.044.7044.010002 | C100: PROJECT FCT 044 - LINE 35D1-1, REPLACE 5' OF 10" CS AT HIDALGO DRAIN CROSSING, HIDALGO, TX | D100: 367 - Mains | E100: Line or Equipment Replacements due to Corrosion, Deterioration, Etc. | F100: RGV | G100: ALL CLASSES | H100: 2021-10-26T16:28:20 | I100: 2024-06-01 | J100: Addition | K100: 101 | L100: 13715.32 | Q100: 13715.32
A101: 101 | B101: 091.044.7044.010002 | C101: PROJECT FCT 044 - LINE 35D1-1, REPLACE 5' OF 10" CS AT HIDALGO DRAIN CROSSING, HIDALGO, TX | D101: 367 - Mains | E101: Line or Equipment Replacements due to Corrosion, Deterioration, Etc. | F101: RGV | G101: ALL CLASSES | H101: 2021-10-26T16:28:20 | I101: 2024-06-01 | J101: Addition | K101: 106 | L101: -13715.32 | Q101: -13715.32
A102: 102 | B102: 091.044.7044.010002 | C102: PROJECT FCT 044 - LINE 35D1-1, REPLACE 5' OF 10" CS AT HIDALGO DRAIN CROSSING, HIDALGO, TX | D102: 367 - Mains | E102: Line or Equipment Replacements due to Corrosion, Deterioration, Etc. | F102: RGV | G102: ALL CLASSES | H102: 2021-10-26T16:28:20 | I102: 2024-06-01 | J102: Retirement | K102: 101 | L102: -5.45 | Q102: -5.45
A103: 103 | B103: 091.044.7044.010027 | C103: FCT 044 - EMERGENCY - LINE 198E-1 - REPLACE 4" EMERGENCY INLET VALVE TO JENNY JUNCTION | D103: 367 - Mains | E103: Line or Equipment Replacements due to Corrosion, Deterioration, Etc. | F103: RGV | G103: ALL CLASSES | H103: 2022-10-14T09:59:47 | I103: 2024-05-01 | J103: Addition | K103: 106 | L103: -6.88 | Q103: -6.88
A104: 104 | B104: 091.044.7044.010027 | C104: FCT 044 - EMERGENCY - LINE 198E-1 - REPLACE 4" EMERGENCY INLET VALVE TO JENNY JUNCTION | D104: 367 - Mains | E104: Line or Equipment Replacements due to Corrosion, Deterioration, Etc. | F104: RGV | G104: ALL CLASSES | H104: 2022-10-14T09:59:47 | I104: 2024-08-01 | J104: Addition | K104: 101 | L104: 17992.74 | Q104: 17992.74
A105: 105 | B105: 091.044.7044.010027 | C105: FCT 044 - EMERGENCY - LINE 198E-1 - REPLACE 4" EMERGENCY INLET VALVE TO JENNY JUNCTION | D105: 367 - Mains | E105: Line or Equipment Replacements due to Corrosion, Deterioration, Etc. | F105: RGV | G105: ALL CLASSES | H105: 2022-10-14T09:59:47 | I105: 2024-08-01 | J105: Addition | K105: 106 | L105: -17992.74 | Q105: -17992.74
A106: 106 | B106: 091.044.7044.010031 | C106: PROJECT FCT 044 - LINE 173DD-1 REPL SHORTED CASING ON FM1925 AT INSPIRATION RD | D106: 365.2 - Rights of Way | E106: Line or Equipment Replacements due to Corrosion, Deterioration, Etc. | F106: RGV | G106: ALL CLASSES | H106: 2023-09-15T19:02:13 | I106: 2024-09-01 | J106: Addition | K106: 106 | L106: -15620.21 | Q106: -15620.21
A107: 107 | B107: 091.044.7044.010031 | C107: PROJECT FCT 044 - LINE 173DD-1 REPL SHORTED CASING ON FM1925 AT INSPIRATION RD | D107: 367 - Mains | E107: Line or Equipment Replacements due to Corrosion, Deterioration, Etc. | F107: RGV | G107: ALL CLASSES | H107: 2023-09-15T19:02:13 | I107: 2024-09-01 | J107: Addition | K107: 106 | L107: 2378.2 | Q107: 2378.2
A108: 108 | B108: 091.044.7044.010032 | C108: PROJECT FCT 044 - LINE 165B-1 - REPLACE SHORTED CASING AT US281 MILITARY HIGHWAY | D108: 367 - Mains | E108: Line or Equipment Replacements due to Corrosion, Deterioration, Etc. | F108: RGV | G108: ALL CLASSES | H108: 2023-11-14T19:02:10 | I108: 2024-09-01 | J108: Addition | K108: 106 | L108: 3189.95 | Q108: 3189.95
A109: 109 | B109: 091.044.7044.010033 | C109: PROJECT FCT 044 - LINE 78-1 - REPLACE 2,700' OF 6" PIPE | D109: 367 - Mains | E109: Line or Equipment Replacements due to Corrosion, Deterioration, Etc. | F109: RGV | G109: ALL CLASSES | H109: 2024-02-13T13:12:19 | I109: 2024-02-01 | J109: Addition | K109: 106 | L109: 301374.72 | Q109: 301374.72
A110: 110 | B110: 091.044.7044.010033 | C110: PROJECT FCT 044 - LINE 78-1 - REPLACE 2,700' OF 6" PIPE | D110: 367 - Mains | E110: Line or Equipment Replacements due to Corrosion, Deterioration, Etc. | F110: RGV | G110: ALL CLASSES | H110: 2024-02-13T13:12:19 | I110: 2024-03-01 | J110: Addition | K110: 106 | L110: 68937.76 | Q110: 68937.76
A111: 111 | B111: 091.044.7044.010033 | C111: PROJECT FCT 044 - LINE 78-1 - REPLACE 2,700' OF 6" PIPE | D111: 367 - Mains | E111: Line or Equipment Replacements due to Corrosion, Deterioration, Etc. | F111: RGV | G111: ALL CLASSES | H111: 2024-02-13T13:12:19 | I111: 2024-05-01 | J111: Addition | K111: 106 | L111: -6104.65 | Q111: -6104.65
A112: 112 | B112: 091.044.7044.010033 | C112: PROJECT FCT 044 - LINE 78-1 - REPLACE 2,700' OF 6" PIPE | D112: 367 - Mains | E112: Line or Equipment Replacements due to Corrosion, Deterioration, Etc. | F112: RGV | G112: ALL CLASSES | H112: 2024-02-13T13:12:19 | I112: 2024-09-01 | J112: Addition | K112: 106 | L112: 5335.98 | Q112: 5335.98
A113: 113 | B113: 091.044.7044.010034 | C113: PROJECT FCT 044 NDU - EMERGENCY - LINE 198-2 - REPLACE 10" ELBOW DUE TO CRACK | D113: 367 - Mains | E113: Line or Equipment Replacements due to Corrosion, Deterioration, Etc. | F113: RGV | G113: ALL CLASSES | H113: 2023-10-13T19:04:44 | I113: 2024-09-01 | J113: Addition | K113: 106 | L113: -44987.07 | Q113: -44987.07
A114: 114 | B114: 091.044.7044.010034 | C114: PROJECT FCT 044 NDU - EMERGENCY - LINE 198-2 - REPLACE 10" ELBOW DUE TO CRACK | D114: 397.0 - Communication Equipment | E114: Line or Equipment Replacements due to Corrosion, Deterioration, Etc. | F114: RGV | G114: ALL CLASSES | H114: 2023-10-13T19:04:44 | I114: 2024-09-01 | J114: Addition | K114: 106 | L114: 43666.1 | Q114: 43666.1
A115: 115 | B115: 091.044.7044.010036 | C115: PROJECT FCT 044 - LINE 173K-1 - REPLACE 6' DUE TO 3RD PARTY DAMAGE | D115: 367 - Mains | E115: Line or Equipment Replacements due to Corrosion, Deterioration, Etc. | F115: RGV | G115: ALL CLASSES | H115: 2024-03-06T10:14:17 | I115: 2024-03-01 | J115: Addition | K115: 106 | L115: 30593.52 | Q115: 30593.52
A116: 116 | B116: 091.044.7044.010037 | C116: PROJECT FCT 044 - LINE 173K-2 - REPLACE 12' OF 8" CS & LEAK TEST 600' SECTION NEAR RNG SITE | D116: 367 - Mains | E116: Line or Equipment Replacements due to Corrosion, Deterioration, Etc. | F116: RGV | G116: ALL CLASSES | H116: 2024-12-30T09:29:33 | I116: 2024-12-01 | J116: Addition | K116: 106 | L116: 185210.36 | Q116: 185210.36
A117: 117 | B117: 091.044.7044.010039 | C117: PROJECT FCT 044 - LINE 173K-4 - REPLACE 6' DUE TO PIPE DENTS | D117: 367 - Mains | E117: Line or Equipment Replacements due to Corrosion, Deterioration, Etc. | F117: RGV | G117: ALL CLASSES | H117: 2024-06-18T15:23:01 | I117: 2024-06-01 | J117: Addition | K117: 106 | L117: 17146.65 | Q117: 17146.65
A118: 118 | B118: 091.044.7044.010040 | C118: PROJECT FCT 044 - LINE 189-4 REPLACE 2,500 OF 8" DUE TO COATING & CP ISSUES | D118: 367 - Mains | E118: Line or Equipment Replacements due to Corrosion, Deterioration, Etc. | F118: RGV | G118: ALL CLASSES | H118: 2024-12-02T11:17:25 | I118: 2024-12-01 | J118: Addition | K118: 106 | L118: 593365.82 | Q118: 593365.82
A119: 119 | B119: 091.044.7044.010041 | C119: PROJECT FCT 044 DP - LINE 198-2 - FM493 SHORTED CASING REPLACEMENT | D119: 367 - Mains | E119: Line or Equipment Replacements due to Corrosion, Deterioration, Etc. | F119: RGV | G119: ALL CLASSES | H119: 2024-08-13T16:14:56 | I119: 2024-08-01 | J119: Addition | K119: 106 | L119: 136944.61 | Q119: 136944.61
A120: 120 | B120: 091.044.7044.010041 | C120: PROJECT FCT 044 DP - LINE 198-2 - FM493 SHORTED CASING REPLACEMENT | D120: 367 - Mains | E120: Line or Equipment Replacements due to Corrosion, Deterioration, Etc. | F120: RGV | G120: ALL CLASSES | H120: 2024-08-13T16:14:56 | I120: 2024-09-01 | J120: Addition | K120: 106 | L120: 5399.2 | Q120: 5399.2
A121: 121 | B121: 091.044.7044.010041 | C121: PROJECT FCT 044 DP - LINE 198-2 - FM493 SHORTED CASING REPLACEMENT | D121: 367 - Mains | E121: Line or Equipment Replacements due to Corrosion, Deterioration, Etc. | F121: RGV | G121: ALL CLASSES | H121: 2024-08-13T16:14:56 | I121: 2024-12-01 | J121: Addition | K121: 106 | L121: 421.52 | Q121: 421.52
A122: 122 | B122: 091.044.7044.010042 | C122: PROJECT FCT 044 DP - LINE 198-2 - HCDD#1 S. MAIN DRAIN SHORTED CASING REPLACEMENT | D122: 367 - Mains | E122: Line or Equipment Replacements due to Corrosion, Deterioration, Etc. | F122: RGV | G122: ALL CLASSES | H122: 2024-08-13T16:15:12 | I122: 2024-08-01 | J122: Addition | K122: 106 | L122: 232836.57 | Q122: 232836.57
A123: 123 | B123: 091.044.7044.010042 | C123: PROJECT FCT 044 DP - LINE 198-2 - HCDD#1 S. MAIN DRAIN SHORTED CASING REPLACEMENT | D123: 367 - Mains | E123: Line or Equipment Replacements due to Corrosion, Deterioration, Etc. | F123: RGV | G123: ALL CLASSES | H123: 2024-08-13T16:15:12 | I123: 2024-09-01 | J123: Addition | K123: 106 | L123: 2491.95 | Q123: 2491.95
A124: 124 | B124: 091.044.7044.010042 | C124: PROJECT FCT 044 DP - LINE 198-2 - HCDD#1 S. MAIN DRAIN SHORTED CASING REPLACEMENT | D124: 367 - Mains | E124: Line or Equipment Replacements due to Corrosion, Deterioration, Etc. | F124: RGV | G124: ALL CLASSES | H124: 2024-08-13T16:15:12 | I124: 2024-11-01 | J124: Addition | K124: 106 | L124: 781.06 | Q124: 781.06
A125: 125 | B125: 091.044.7044.010043 | C125: PROJECT FCT 044 - (2024 IMP) - LINE 189-1 TIMP - REPLACE 6' OF 8" MAIN AT US HWY 77 & DICK DOWLING | D125: 367 - Mains | E125: Line or Equipment Replacements due to Corrosion, Deterioration, Etc. | F125: RGV | G125: ALL CLASSES | H125: 2024-09-17T15:39:42 | I125: 2024-09-01 | J125: Addition | K125: 106 | L125: 18316.18 | Q125: 18316.18
A126: 126 | B126: 091.044.7044.010043 | C126: PROJECT FCT 044 - (2024 IMP) - LINE 189-1 TIMP - REPLACE 6' OF 8" MAIN AT US HWY 77 & DICK DOWLING | D126: 367 - Mains | E126: Line or Equipment Replacements due to Corrosion, Deterioration, Etc. | F126: RGV | G126: ALL CLASSES | H126: 2024-09-17T15:39:42 | I126: 2024-10-01 | J126: Addition | K126: 106 | L126: 111.18 | Q126: 111.18
A127: 127 | B127: 091.044.7044.010043 | C127: PROJECT FCT 044 - (2024 IMP) - LINE 189-1 TIMP - REPLACE 6' OF 8" MAIN AT US HWY 77 & DICK DOWLING | D127: 367 - Mains | E127: Line or Equipment Replacements due to Corrosion, Deterioration, Etc. | F127: RGV | G127: ALL CLASSES | H127: 2024-09-17T15:39:42 | I127: 2024-11-01 | J127: Addition | K127: 106 | L127: 10545.5 | Q127: 10545.5
A128: 128 | B128: 091.044.7044.010045 | C128: PROJECT FCT 044 - LINE 198-2 - LEAK TEST & REPLACE 6' OF 10" CS | D128: 367 - Mains | E128: Line or Equipment Replacements due to Corrosion, Deterioration, Etc. | F128: RGV | G128: ALL CLASSES | H128: 2024-12-19T08:43:00 | I128: 2024-12-01 | J128: Addition | K128: 106 | L128: 615621.02 | Q128: 615621.02
A129: 129 | B129: 091.044.7604.010000 | C129: 269-07 CLINT INTERCONNECT VALVE REMOVAL | D129: 367 - Mains | E129: Line or Equipment Replacements due to Corrosion, Deterioration, Etc. | F129: RGV | G129: ALL CLASSES | H129: 2007-11-18 | I129: 2024-12-01 | J129: Retirement | K129: 101 | L129: 60 | Q129: 60 | R129: Correcting entry for prior year miscode
A130: 130 | B130: 091.045.7044.010006 | C130: TGS RGV FCT 045 NDU - LINE 198-4 CROSSING REPLACEMENT -SH107 - 13TH TO HOOKS E HODGES RD | D130: 367 - Mains | E130: Replacements or Relocations due to Highway, Street or Other Government Construction | F130: RGV | G130: ALL CLASSES | H130: 2022-12-30T10:46:16 | I130: 2024-05-01 | J130: Addition | K130: 106 | L130: 6246.78 | Q130: 6246.78
A131: 131 | B131: 091.045.7044.010006 | C131: TGS RGV FCT 045 NDU - LINE 198-4 CROSSING REPLACEMENT -SH107 - 13TH TO HOOKS E HODGES RD | D131: 367 - Mains | E131: Replacements or Relocations due to Highway, Street or Other Government Construction | F131: RGV | G131: ALL CLASSES | H131: 2022-12-30T10:46:16 | I131: 2024-08-01 | J131: Addition | K131: 101 | L131: 475788.67 | Q131: 475788.67
A132: 132 | B132: 091.045.7044.010006 | C132: TGS RGV FCT 045 NDU - LINE 198-4 CROSSING REPLACEMENT -SH107 - 13TH TO HOOKS E HODGES RD | D132: 367 - Mains | E132: Replacements or Relocations due to Highway, Street or Other Government Construction | F132: RGV | G132: ALL CLASSES | H132: 2022-12-30T10:46:16 | I132: 2024-08-01 | J132: Addition | K132: 106 | L132: -468345.77 | Q132: -468345.77
A133: 133 | B133: 091.045.7044.010006 | C133: TGS RGV FCT 045 NDU - LINE 198-4 CROSSING REPLACEMENT -SH107 - 13TH TO HOOKS E HODGES RD | D133: 367 - Mains | E133: Replacements or Relocations due to Highway, Street or Other Government Construction | F133: RGV | G133: ALL CLASSES | H133: 2022-12-30T10:46:16 | I133: 2024-08-01 | J133: Retirement | K133: 101 | L133: -2176.92 | Q133: -2176.92
A134: 134 | B134: 091.045.7044.010006 | C134: TGS RGV FCT 045 NDU - LINE 198-4 CROSSING REPLACEMENT -SH107 - 13TH TO HOOKS E HODGES RD | D134: 369 - Measuring & Regulating Sta Eq | E134: Replacements or Relocations due to Highway, Street or Other Government Construction | F134: RGV | G134: ALL CLASSES | H134: 2022-12-30T10:46:16 | I134: 2024-05-01 | J134: Addition | K134: 106 | L134: -6909.59 | Q134: -6909.59
A135: 135 | B135: 091.045.7044.010006 | C135: TGS RGV FCT 045 NDU - LINE 198-4 CROSSING REPLACEMENT -SH107 - 13TH TO HOOKS E HODGES RD | D135: 369 - Measuring & Regulating Sta Eq | E135: Replacements or Relocations due to Highway, Street or Other Government Construction | F135: RGV | G135: ALL CLASSES | H135: 2022-12-30T10:46:16 | I135: 2024-08-01 | J135: Addition | K135: 101 | L135: 4555.75 | Q135: 4555.75
A136: 136 | B136: 091.045.7044.010006 | C136: TGS RGV FCT 045 NDU - LINE 198-4 CROSSING REPLACEMENT -SH107 - 13TH TO HOOKS E HODGES RD | D136: 369 - Measuring & Regulating Sta Eq | E136: Replacements or Relocations due to Highway, Street or Other Government Construction | F136: RGV | G136: ALL CLASSES | H136: 2022-12-30T10:46:16 | I136: 2024-08-01 | J136: Addition | K136: 106 | L136: -11998.65 | Q136: -11998.65
A137: 137 | B137: 091.045.7044.010008 | C137: PROJECT FCT 045 HIDALGO - LINE 35D1-1 RELO DUE TO LAS MILPAS RD EXTENSION FROM 10TH ST TO MCCOLL RD | D137: 367 - Mains | E137: Replacements or Relocations due to Highway, Street or Other Government Construction | F137: RGV | G137: ALL CLASSES | H137: 2023-08-26T19:00:18 | I137: 2024-04-01 | J137: Addition | K137: 106 | L137: 4818.62 | Q137: 4818.62
A138: 138 | B138: 091.045.7044.010008 | C138: PROJECT FCT 045 HIDALGO - LINE 35D1-1 RELO DUE TO LAS MILPAS RD EXTENSION FROM 10TH ST TO MCCOLL RD | D138: 367 - Mains | E138: Replacements or Relocations due to Highway, Street or Other Government Construction | F138: RGV | G138: ALL CLASSES | H138: 2023-08-26T19:00:18 | I138: 2024-05-01 | J138: Addition | K138: 106 | L138: -24773.08 | Q138: -24773.08
A139: 139 | B139: 091.045.7044.010008 | C139: PROJECT FCT 045 HIDALGO - LINE 35D1-1 RELO DUE TO LAS MILPAS RD EXTENSION FROM 10TH ST TO MCCOLL RD | D139: 367 - Mains | E139: Replacements or Relocations due to Highway, Street or Other Government Construction | F139: RGV | G139: ALL CLASSES | H139: 2023-08-26T19:00:18 | I139: 2024-07-01 | J139: Addition | K139: 101 | L139: 908272.2 | Q139: 908272.2
A140: 140 | B140: 091.045.7044.010008 | C140: PROJECT FCT 045 HIDALGO - LINE 35D1-1 RELO DUE TO LAS MILPAS RD EXTENSION FROM 10TH ST TO MCCOLL RD | D140: 367 - Mains | E140: Replacements or Relocations due to Highway, Street or Other Government Construction | F140: RGV | G140: ALL CLASSES | H140: 2023-08-26T19:00:18 | I140: 2024-07-01 | J140: Addition | K140: 106 | L140: -908272.2 | Q140: =SUM(L140:P140) -> -908272.2
A141: 141 | B141: 091.045.7044.010008 | C141: PROJECT FCT 045 HIDALGO - LINE 35D1-1 RELO DUE TO LAS MILPAS RD EXTENSION FROM 10TH ST TO MCCOLL RD | D141: 367 - Mains | E141: Replacements or Relocations due to Highway, Street or Other Government Construction | F141: RGV | G141: ALL CLASSES | H141: 2023-08-26T19:00:18 | I141: 2024-07-01 | J141: Retirement | K141: 101 | L141: -880.8 | Q141: -880.8
A142: 142 | B142: 091.045.7044.010009 | C142: PROJECT FCT 045 ALTON - CIP(FM 676 ROAD WIDENING) REPLACE 1,700' OF 6" STL PIPE | D142: 367 - Mains | E142: Replacements or Relocations due to Highway, Street or Other Government Construction | F142: RGV | G142: ALL CLASSES | H142: 2023-08-31T14:59:16 | I142: 2024-02-01 | J142: Addition | K142: 106 | L142: 3095.2 | Q142: 3095.2
A143: 143 | B143: 091.045.7044.010009 | C143: PROJECT FCT 045 ALTON - CIP(FM 676 ROAD WIDENING) REPLACE 1,700' OF 6" STL PIPE | D143: 367 - Mains | E143: Replacements or Relocations due to Highway, Street or Other Government Construction | F143: RGV | G143: ALL CLASSES | H143: 2023-08-31T14:59:16 | I143: 2024-10-01 | J143: Addition | K143: 106 | L143: -345.66 | Q143: -345.66
A144: 144 | B144: 091.045.7044.010011 | C144: PROJECT FCT 045 - REPLACE 20' OF 2" CS INLET TO REG #182 ON STAGECOACH TRAIL | D144: 369 - Measuring & Regulating Sta Eq | E144: Replacements or Relocations due to Highway, Street or Other Government Construction | F144: RGV | G144: RESIDENTIAL | H144: 2024-04-10T09:57:47 | I144: 2024-04-01 | J144: Addition | K144: 106 | L144: 9830.09 | Q144: 9830.09
A145: 145 | B145: 091.045.7044.010011 | C145: PROJECT FCT 045 - REPLACE 20' OF 2" CS INLET TO REG #182 ON STAGECOACH TRAIL | D145: 369 - Measuring & Regulating Sta Eq | E145: Replacements or Relocations due to Highway, Street or Other Government Construction | F145: RGV | G145: RESIDENTIAL | H145: 2024-04-10T09:57:47 | I145: 2024-11-01 | J145: Addition | K145: 106 | L145: -32.36 | Q145: -32.36
A146: 146 | B146: 091.045.7650.010000 | C146: 098-08 SPUR 601 20" BORE & VALVE REPLMNT | D146: 367 - Mains | E146: Replacements or Relocations due to Highway, Street or Other Government Construction | F146: RGV | G146: ALL CLASSES | H146: 2008-08-05 | I146: 2024-12-01 | J146: Retirement | K146: 101 | L146: 124.9 | Q146: 124.9 | R146: Correcting entry for prior year miscode
A147: 147 | B147: 091.046.7044.010003 | C147: PROJECT FCT 046 - R053 GOLF COURSE AT COUNTRY CLUB | D147: 367 - Mains | E147: Installations, Interconnecting Lines for System Reliability, or Correction of Maps and Records | F147: RGV | G147: ALL CLASSES | H147: 2023-04-20T19:00:51 | I147: 2024-09-01 | J147: Addition | K147: 106 | L147: 4209.05 | Q147: 4209.05
A148: 148 | B148: 091.046.7044.010004 | C148: PROJECT FCT 046 - R012 MONTE CRISTO UNIT | D148: 367 - Mains | E148: Installations, Interconnecting Lines for System Reliability, or Correction of Maps and Records | F148: RGV | G148: ALL CLASSES | H148: 2023-04-18T19:00:30 | I148: 2024-11-01 | J148: Addition | K148: 101 | L148: 73006.17 | Q148: 73006.17
A149: 149 | B149: 091.046.7044.010004 | C149: PROJECT FCT 046 - R012 MONTE CRISTO UNIT | D149: 367 - Mains | E149: Installations, Interconnecting Lines for System Reliability, or Correction of Maps and Records | F149: RGV | G149: ALL CLASSES | H149: 2023-04-18T19:00:30 | I149: 2024-11-01 | J149: Addition | K149: 106 | L149: -73006.17 | Q149: -73006.17
A150: 150 | B150: 091.046.7044.010005 | C150: PROJECT FCT 046 - R040 MCCOLL STATION | D150: 367 - Mains | E150: Installations, Interconnecting Lines for System Reliability, or Correction of Maps and Records | F150: RGV | G150: ALL CLASSES | H150: 2024-12-17T12:32:24 | I150: 2024-12-01 | J150: Addition | K150: 106 | L150: 74340.18 | Q150: 74340.18
A151: 151 | B151: 091.046.7044.010007 | C151: PROJECT FCT 046 - CATHODIC PROTECTION - INSTALL R021A RECTIFIER ON LINE 250-3 (TURNER RD.) | D151: 367 - Mains | E151: Installations, Interconnecting Lines for System Reliability, or Correction of Maps and Records | F151: RGV | G151: ALL CLASSES | H151: 2024-12-20T19:00:24 | I151: 2024-12-01 | J151: Addition | K151: 106 | L151: 75366.77 | Q151: 75366.77
A152: 152 | B152: 091.052.7044.010002 | C152: PROJECT FCT 052 BROWNSVILLE - 10951 OLDSTATE HWY 48 - BLUEWING NO. 3 | D152: 380.0 - Services | E152: Line Extensions to Connect New Customers and Service and Meter Installations | F152: RGV | G152: COMMERCIAL/INDUSTRIAL | H152: 2021-11-01T14:59:28 | I152: 2024-09-01 | J152: Addition | K152: 101 | L152: 53621.78 | Q152: 53621.78
A153: 153 | B153: 091.052.7044.010002 | C153: PROJECT FCT 052 BROWNSVILLE - 10951 OLDSTATE HWY 48 - BLUEWING NO. 3 | D153: 380.0 - Services | E153: Line Extensions to Connect New Customers and Service and Meter Installations | F153: RGV | G153: COMMERCIAL/INDUSTRIAL | H153: 2021-11-01T14:59:28 | I153: 2024-09-01 | J153: Addition | K153: 106 | L153: -94583.48 | Q153: -94583.48
A154: 154 | B154: 091.052.7044.010002 | C154: PROJECT FCT 052 BROWNSVILLE - 10951 OLDSTATE HWY 48 - BLUEWING NO. 3 | D154: 381.0 - Meters | E154: Line Extensions to Connect New Customers and Service and Meter Installations | F154: RGV | G154: COMMERCIAL/INDUSTRIAL | H154: 2021-11-01T14:59:28 | I154: 2024-09-01 | J154: Addition | K154: 101 | L154: 15460.28 | Q154: 15460.28
A155: 155 | B155: 091.052.7044.010002 | C155: PROJECT FCT 052 BROWNSVILLE - 10951 OLDSTATE HWY 48 - BLUEWING NO. 3 | D155: 381.0 - Meters | E155: Line Extensions to Connect New Customers and Service and Meter Installations | F155: RGV | G155: COMMERCIAL/INDUSTRIAL | H155: 2021-11-01T14:59:28 | I155: 2024-09-01 | J155: Addition | K155: 106 | L155: -5506.53 | Q155: -5506.53
A156: 156 | B156: 091.052.7044.010002 | C156: PROJECT FCT 052 BROWNSVILLE - 10951 OLDSTATE HWY 48 - BLUEWING NO. 3 | D156: 385.0 - Ind Meas & Reg Sta Equip | E156: Line Extensions to Connect New Customers and Service and Meter Installations | F156: RGV | G156: COMMERCIAL/INDUSTRIAL | H156: 2021-11-01T14:59:28 | I156: 2024-09-01 | J156: Addition | K156: 101 | L156: 71495.68 | Q156: 71495.68
A157: 157 | B157: 091.052.7044.010002 | C157: PROJECT FCT 052 BROWNSVILLE - 10951 OLDSTATE HWY 48 - BLUEWING NO. 3 | D157: 385.0 - Ind Meas & Reg Sta Equip | E157: Line Extensions to Connect New Customers and Service and Meter Installations | F157: RGV | G157: COMMERCIAL/INDUSTRIAL | H157: 2021-11-01T14:59:28 | I157: 2024-09-01 | J157: Addition | K157: 106 | L157: -40487.73 | Q157: -40487.73
A158: 158 | B158: 091.052.7044.010044 | C158: PROJECT FCT 052 BROWNSVILLE - 1985 MILITARY HWY - DOUBLE CUT SERVICE | D158: 378.0 - Meas & Reg Stat Eq-General | E158: Line Extensions to Connect New Customers and Service and Meter Installations | F158: RGV | G158: COMMERCIAL | H158: 2024-02-13T10:27:48 | I158: 2024-02-01 | J158: Addition | K158: 106 | L158: 1475.86 | Q158: 1475.86
A159: 159 | B159: 091.052.7044.010044 | C159: PROJECT FCT 052 BROWNSVILLE - 1985 MILITARY HWY - DOUBLE CUT SERVICE | D159: 378.0 - Meas & Reg Stat Eq-General | E159: Line Extensions to Connect New Customers and Service and Meter Installations | F159: RGV | G159: COMMERCIAL | H159: 2024-02-13T10:27:48 | I159: 2024-03-01 | J159: Addition | K159: 106 | L159: 85.95 | Q159: 85.95
A160: 160 | B160: 091.052.7044.010044 | C160: PROJECT FCT 052 BROWNSVILLE - 1985 MILITARY HWY - DOUBLE CUT SERVICE | D160: 378.0 - Meas & Reg Stat Eq-General | E160: Line Extensions to Connect New Customers and Service and Meter Installations | F160: RGV | G160: COMMERCIAL | H160: 2024-02-13T10:27:48 | I160: 2024-05-01 | J160: Addition | K160: 106 | L160: 511.85 | Q160: 511.85
A161: 161 | B161: 091.052.7044.010044 | C161: PROJECT FCT 052 BROWNSVILLE - 1985 MILITARY HWY - DOUBLE CUT SERVICE | D161: 380.0 - Services | E161: Line Extensions to Connect New Customers and Service and Meter Installations | F161: RGV | G161: COMMERCIAL | H161: 2024-02-13T10:27:48 | I161: 2024-02-01 | J161: Addition | K161: 106 | L161: 8885.31 | Q161: 8885.31
A162: 162 | B162: 091.052.7044.010044 | C162: PROJECT FCT 052 BROWNSVILLE - 1985 MILITARY HWY - DOUBLE CUT SERVICE | D162: 380.0 - Services | E162: Line Extensions to Connect New Customers and Service and Meter Installations | F162: RGV | G162: COMMERCIAL | H162: 2024-02-13T10:27:48 | I162: 2024-03-01 | J162: Addition | K162: 106 | L162: 1877.2 | Q162: 1877.2
A163: 163 | B163: 091.052.7044.010044 | C163: PROJECT FCT 052 BROWNSVILLE - 1985 MILITARY HWY - DOUBLE CUT SERVICE | D163: 380.0 - Services | E163: Line Extensions to Connect New Customers and Service and Meter Installations | F163: RGV | G163: COMMERCIAL | H163: 2024-02-13T10:27:48 | I163: 2024-05-01 | J163: Addition | K163: 106 | L163: 11179.05 | Q163: 11179.05
A164: 164 | B164: 091.052.7044.010045 | C164: PROJECT FCT 052 BROWNSVILLE - 3801 FOUST RD - TEXAS CEMENT - MCSV | D164: 378.0 - Meas & Reg Stat Eq-General | E164: Line Extensions to Connect New Customers and Service and Meter Installations | F164: RGV | G164: INDUSTRIAL | H164: 2024-02-04T19:00:20 | I164: 2024-02-01 | J164: Addition | K164: 106 | L164: 1460.57 | Q164: 1460.57
A165: 165 | B165: 091.052.7044.010045 | C165: PROJECT FCT 052 BROWNSVILLE - 3801 FOUST RD - TEXAS CEMENT - MCSV | D165: 380.0 - Services | E165: Line Extensions to Connect New Customers and Service and Meter Installations | F165: RGV | G165: INDUSTRIAL | H165: 2024-02-04T19:00:20 | I165: 2024-02-01 | J165: Addition | K165: 106 | L165: 7431.3 | Q165: 7431.3
A166: 166 | B166: 091.052.7044.010046 | C166: PROJECT FCT 052 - 320 INDUSTRIAL WAY - QUICKRETTE | D166: 376.0 - Mains | E166: Line Extensions to Connect New Customers and Service and Meter Installations | F166: RGV | G166: INDUSTRIAL | H166: 2024-02-13T13:12:41 | I166: 2024-02-01 | J166: Addition | K166: 106 | L166: 24408.91 | Q166: 24408.91
A167: 167 | B167: 091.052.7044.010046 | C167: PROJECT FCT 052 - 320 INDUSTRIAL WAY - QUICKRETTE | D167: 376.0 - Mains | E167: Line Extensions to Connect New Customers and Service and Meter Installations | F167: RGV | G167: INDUSTRIAL | H167: 2024-02-13T13:12:41 | I167: 2024-03-01 | J167: Addition | K167: 106 | L167: 62201.97 | Q167: 62201.97
A168: 168 | B168: 091.052.7044.010046 | C168: PROJECT FCT 052 - 320 INDUSTRIAL WAY - QUICKRETTE | D168: 376.0 - Mains | E168: Line Extensions to Connect New Customers and Service and Meter Installations | F168: RGV | G168: INDUSTRIAL | H168: 2024-02-13T13:12:41 | I168: 2024-04-01 | J168: Addition | K168: 106 | L168: 2926.63 | Q168: 2926.63
A169: 169 | B169: 091.052.7044.010046 | C169: PROJECT FCT 052 - 320 INDUSTRIAL WAY - QUICKRETTE | D169: 376.0 - Mains | E169: Line Extensions to Connect New Customers and Service and Meter Installations | F169: RGV | G169: INDUSTRIAL | H169: 2024-02-13T13:12:41 | I169: 2024-06-01 | J169: Addition | K169: 106 | L169: 6221.66 | Q169: 6221.66
A170: 170 | B170: 091.052.7044.010046 | C170: PROJECT FCT 052 - 320 INDUSTRIAL WAY - QUICKRETTE | D170: 380.0 - Services | E170: Line Extensions to Connect New Customers and Service and Meter Installations | F170: RGV | G170: INDUSTRIAL | H170: 2024-02-13T13:12:41 | I170: 2024-02-01 | J170: Addition | K170: 106 | L170: 12578.76 | Q170: 12578.76
A171: 171 | B171: 091.052.7044.010046 | C171: PROJECT FCT 052 - 320 INDUSTRIAL WAY - QUICKRETTE | D171: 380.0 - Services | E171: Line Extensions to Connect New Customers and Service and Meter Installations | F171: RGV | G171: INDUSTRIAL | H171: 2024-02-13T13:12:41 | I171: 2024-03-01 | J171: Addition | K171: 106 | L171: 32079.05 | Q171: 32079.05
A172: 172 | B172: 091.052.7044.010046 | C172: PROJECT FCT 052 - 320 INDUSTRIAL WAY - QUICKRETTE | D172: 380.0 - Services | E172: Line Extensions to Connect New Customers and Service and Meter Installations | F172: RGV | G172: INDUSTRIAL | H172: 2024-02-13T13:12:41 | I172: 2024-04-01 | J172: Addition | K172: 106 | L172: 1505.82 | Q172: 1505.82
A173: 173 | B173: 091.052.7044.010046 | C173: PROJECT FCT 052 - 320 INDUSTRIAL WAY - QUICKRETTE | D173: 380.0 - Services | E173: Line Extensions to Connect New Customers and Service and Meter Installations | F173: RGV | G173: INDUSTRIAL | H173: 2024-02-13T13:12:41 | I173: 2024-06-01 | J173: Addition | K173: 106 | L173: 3208.66 | Q173: 3208.66
A174: 174 | B174: 091.052.7044.010046 | C174: PROJECT FCT 052 - 320 INDUSTRIAL WAY - QUICKRETTE | D174: 385.0 - Ind Meas & Reg Sta Equip | E174: Line Extensions to Connect New Customers and Service and Meter Installations | F174: RGV | G174: INDUSTRIAL | H174: 2024-02-13T13:12:41 | I174: 2024-02-01 | J174: Addition | K174: 106 | L174: 26800.93 | Q174: 26800.93
A175: 175 | B175: 091.052.7044.010046 | C175: PROJECT FCT 052 - 320 INDUSTRIAL WAY - QUICKRETTE | D175: 385.0 - Ind Meas & Reg Sta Equip | E175: Line Extensions to Connect New Customers and Service and Meter Installations | F175: RGV | G175: INDUSTRIAL | H175: 2024-02-13T13:12:41 | I175: 2024-03-01 | J175: Addition | K175: 106 | L175: 5706.79 | Q175: 5706.79
A176: 176 | B176: 091.052.7044.010046 | C176: PROJECT FCT 052 - 320 INDUSTRIAL WAY - QUICKRETTE | D176: 385.0 - Ind Meas & Reg Sta Equip | E176: Line Extensions to Connect New Customers and Service and Meter Installations | F176: RGV | G176: INDUSTRIAL | H176: 2024-02-13T13:12:41 | I176: 2024-04-01 | J176: Addition | K176: 106 | L176: 9172.47 | Q176: 9172.47
A177: 177 | B177: 091.052.7044.010046 | C177: PROJECT FCT 052 - 320 INDUSTRIAL WAY - QUICKRETTE | D177: 385.0 - Ind Meas & Reg Sta Equip | E177: Line Extensions to Connect New Customers and Service and Meter Installations | F177: RGV | G177: INDUSTRIAL | H177: 2024-02-13T13:12:41 | I177: 2024-06-01 | J177: Addition | K177: 106 | L177: 570.8 | Q177: 570.8
A178: 178 | B178: 091.052.7044.010047 | C178: PROJECT FCT 052 SAN BENITO - 2569 W US HIGHWAY 77 - BATTS PEDIATRIC CLINIC - MCSV | D178: 378.0 - Meas & Reg Stat Eq-General | E178: Line Extensions to Connect New Customers and Service and Meter Installations | F178: RGV | G178: COMMERCIAL | H178: 2024-03-22T08:44:38 | I178: 2024-03-01 | J178: Addition | K178: 106 | L178: 1560.21 | Q178: 1560.21
A179: 179 | B179: 091.052.7044.010047 | C179: PROJECT FCT 052 SAN BENITO - 2569 W US HIGHWAY 77 - BATTS PEDIATRIC CLINIC - MCSV | D179: 380.0 - Services | E179: Line Extensions to Connect New Customers and Service and Meter Installations | F179: RGV | G179: COMMERCIAL | H179: 2024-03-22T08:44:38 | I179: 2024-03-01 | J179: Addition | K179: 106 | L179: 6832.66 | Q179: 6832.66
A180: 180 | B180: 091.052.7044.010050 | C180: PROJECT FCT 052 - REG STATION 0009 - TOM GILL RD & DIAMOND AVE | D180: 376.0 - Mains | E180: Line Extensions to Connect New Customers and Service and Meter Installations | F180: RGV | G180: COMMERCIAL | H180: 2024-07-15T08:34:38 | I180: 2024-07-01 | J180: Addition | K180: 106 | L180: 21500.12 | Q180: 21500.12
A181: 181 | B181: 091.052.7044.010050 | C181: PROJECT FCT 052 - REG STATION 0009 - TOM GILL RD & DIAMOND AVE | D181: 376.0 - Mains | E181: Line Extensions to Connect New Customers and Service and Meter Installations | F181: RGV | G181: COMMERCIAL | H181: 2024-07-15T08:34:38 | I181: 2024-08-01 | J181: Addition | K181: 106 | L181: 13318.87 | Q181: 13318.87
A182: 182 | B182: 091.052.7044.010050 | C182: PROJECT FCT 052 - REG STATION 0009 - TOM GILL RD & DIAMOND AVE | D182: 376.0 - Mains | E182: Line Extensions to Connect New Customers and Service and Meter Installations | F182: RGV | G182: COMMERCIAL | H182: 2024-07-15T08:34:38 | I182: 2024-09-01 | J182: Addition | K182: 106 | L182: 3580.35 | Q182: 3580.35
A183: 183 | B183: 091.052.7044.010050 | C183: PROJECT FCT 052 - REG STATION 0009 - TOM GILL RD & DIAMOND AVE | D183: 378.0 - Meas & Reg Stat Eq-General | E183: Line Extensions to Connect New Customers and Service and Meter Installations | F183: RGV | G183: COMMERCIAL | H183: 2024-07-15T08:34:38 | I183: 2024-07-01 | J183: Addition | K183: 106 | L183: 31616.6 | Q183: 31616.6
A184: 184 | B184: 091.052.7044.010050 | C184: PROJECT FCT 052 - REG STATION 0009 - TOM GILL RD & DIAMOND AVE | D184: 378.0 - Meas & Reg Stat Eq-General | E184: Line Extensions to Connect New Customers and Service and Meter Installations | F184: RGV | G184: COMMERCIAL | H184: 2024-07-15T08:34:38 | I184: 2024-08-01 | J184: Addition | K184: 106 | L184: 18177.12 | Q184: 18177.12
A185: 185 | B185: 091.052.7044.010050 | C185: PROJECT FCT 052 - REG STATION 0009 - TOM GILL RD & DIAMOND AVE | D185: 378.0 - Meas & Reg Stat Eq-General | E185: Line Extensions to Connect New Customers and Service and Meter Installations | F185: RGV | G185: COMMERCIAL | H185: 2024-07-15T08:34:38 | I185: 2024-09-01 | J185: Addition | K185: 106 | L185: 4885.24 | Q185: 4885.24
A186: 186 | B186: 091.052.7044.010055 | C186: TGS RGV 052 NDU - HP TAP 1033 E HIGHWAY 281, PROGRESO, TX | D186: 378.0 - Meas & Reg Stat Eq-General | E186: Line Extensions to Connect New Customers and Service and Meter Installations | F186: RGV | G186: COMMERCIAL | H186: 2024-11-05T08:21:32 | I186: 2024-11-01 | J186: Addition | K186: 106 | L186: 2767.5 | Q186: 2767.5
A187: 187 | B187: 091.052.7044.010055 | C187: TGS RGV 052 NDU - HP TAP 1033 E HIGHWAY 281, PROGRESO, TX | D187: 378.0 - Meas & Reg Stat Eq-General | E187: Line Extensions to Connect New Customers and Service and Meter Installations | F187: RGV | G187: COMMERCIAL | H187: 2024-11-05T08:21:32 | I187: 2024-12-01 | J187: Addition | K187: 106 | L187: 38.27 | Q187: 38.27
A188: 188 | B188: 091.052.7044.010055 | C188: TGS RGV 052 NDU - HP TAP 1033 E HIGHWAY 281, PROGRESO, TX | D188: 380.0 - Services | E188: Line Extensions to Connect New Customers and Service and Meter Installations | F188: RGV | G188: COMMERCIAL | H188: 2024-11-05T08:21:32 | I188: 2024-11-01 | J188: Addition | K188: 106 | L188: 7189.96 | Q188: 7189.96
A189: 189 | B189: 091.052.7044.010055 | C189: TGS RGV 052 NDU - HP TAP 1033 E HIGHWAY 281, PROGRESO, TX | D189: 380.0 - Services | E189: Line Extensions to Connect New Customers and Service and Meter Installations | F189: RGV | G189: COMMERCIAL | H189: 2024-11-05T08:21:32 | I189: 2024-12-01 | J189: Addition | K189: 106 | L189: 471.73 | Q189: 471.73
A190: 190 | B190: 091.052.7044.010058 | C190: PROJECT FCT 052 BROWNSVILLE - MCSV - 6560 RUBEN TORRES BLVD | D190: 378.0 - Meas & Reg Stat Eq-General | E190: Line Extensions to Connect New Customers and Service and Meter Installations | F190: RGV | G190: COMMERCIAL | H190: 2024-12-11T12:54:49 | I190: 2024-12-01 | J190: Addition | K190: 106 | L190: -4529.33 | Q190: -4529.33
A191: 191 | B191: 091.052.7044.010058 | C191: PROJECT FCT 052 BROWNSVILLE - MCSV - 6560 RUBEN TORRES BLVD | D191: 380.0 - Services | E191: Line Extensions to Connect New Customers and Service and Meter Installations | F191: RGV | G191: COMMERCIAL | H191: 2024-12-11T12:54:49 | I191: 2024-12-01 | J191: Addition | K191: 106 | L191: 14142.27 | Q191: 14142.27
A192: 192 | B192: 091.052.7450.005100 | C192: BLANKET WORK ORDER - NEW SERVICES | D192: 380.0 - Services | E192: Line Extensions to Connect New Customers and Service and Meter Installations | F192: RGV | G192: ALL CLASSES | I192: 2024-10-01 | J192: Retirement | K192: 101 | L192: -1169.16 | O192: 1169.16 | Q192: 0 | R192: TYE 2024 miscoded retirement belonging to CGSA
A193: 193 | B193: 091.052.7550.005100 | C193: BLANKET WORK ORDER - NEW SERVICES | D193: 380.0 - Services | E193: Line Extensions to Connect New Customers and Service and Meter Installations | F193: RGV | G193: ALL CLASSES | I193: 2024-03-01 | J193: Retirement | K193: 101 | L193: -1790.07 | Q193: -1790.07
A194: 194 | B194: 091.052.7550.005100 | C194: BLANKET WORK ORDER - NEW SERVICES | D194: 380.0 - Services | E194: Line Extensions to Connect New Customers and Service and Meter Installations | F194: RGV | G194: ALL CLASSES | I194: 2024-12-01 | J194: Retirement | K194: 101 | L194: 1790.07 | Q194: 1790.07
A195: 195 | B195: 091.052.7635.005100 | C195: BLANKET WORK ORDER - NEW SERVICES | D195: 380.0 - Services | E195: Line Extensions to Connect New Customers and Service and Meter Installations | F195: RGV | G195: ALL CLASSES | I195: 2024-03-01 | J195: Retirement | K195: 101 | L195: -66.05 | Q195: -66.05
A196: 196 | B196: 091.052.7635.005100 | C196: BLANKET WORK ORDER - NEW SERVICES | D196: 380.0 - Services | E196: Line Extensions to Connect New Customers and Service and Meter Installations | F196: RGV | G196: ALL CLASSES | I196: 2024-12-01 | J196: Retirement | K196: 101 | L196: 66.05 | Q196: 66.05
A197: 197 | B197: 091.052.7700.005100 | C197: BLANKET WORK ORDER - NEW SERVICES | D197: 376.0 - Mains | E197: Line Extensions to Connect New Customers and Service and Meter Installations | F197: RGV | G197: ALL CLASSES | I197: 2024-03-01 | J197: Retirement | K197: 101 | L197: -768.43 | Q197: -768.43
A198: 198 | B198: 091.052.7700.005100 | C198: BLANKET WORK ORDER - NEW SERVICES | D198: 376.0 - Mains | E198: Line Extensions to Connect New Customers and Service and Meter Installations | F198: RGV | G198: ALL CLASSES | I198: 2024-03-01 | J198: Retirement | K198: 101 | L198: 0 | O198: -349.51 | Q198: -349.51 | R198: Manual entry to include miscoded retirement from WNSA that belongs to RGV
A199: 199 | B199: 091.052.7700.005100 | C199: BLANKET WORK ORDER - NEW SERVICES | D199: 376.0 - Mains | E199: Line Extensions to Connect New Customers and Service and Meter Installations | F199: RGV | G199: ALL CLASSES | I199: 2024-05-01 | J199: Retirement | K199: 101 | L199: -6.82 | Q199: -6.82
A200: 200 | B200: 091.052.7700.005100 | C200: BLANKET WORK ORDER - NEW SERVICES | D200: 376.0 - Mains | E200: Line Extensions to Connect New Customers and Service and Meter Installations | F200: RGV | G200: ALL CLASSES | I200: 2024-06-01 | J200: Retirement | K200: 101 | L200: -98.95 | Q200: -98.95
A201: 201 | B201: 091.052.7700.005100 | C201: BLANKET WORK ORDER - NEW SERVICES | D201: 376.0 - Mains | E201: Line Extensions to Connect New Customers and Service and Meter Installations | F201: RGV | G201: ALL CLASSES | I201: 2024-07-01 | J201: Addition | K201: 106 | L201: 0 | Q201: 0
A202: 202 | B202: 091.052.7700.005100 | C202: BLANKET WORK ORDER - NEW SERVICES | D202: 376.0 - Mains | E202: Line Extensions to Connect New Customers and Service and Meter Installations | F202: RGV | G202: ALL CLASSES | I202: 2024-12-01 | J202: Addition | K202: 106 | L202: 20959.21 | Q202: 20959.21
... 2496 more rows

Sheet Division - 2024
B1: TEXAS GAS SERVICE COMPANY
B2: DIVISION
B3: INVESTMENT REPORT - SUMMARY OF DIVISION PLANT IN SERVICE (101, 106, 186) PROJECT ACTIVITY
B4: CHANGES FROM JANUARY 1, 2024 THROUGH DECEMBER 31, 2024
A10: Line No. | B10: Project Number | C10: Project Description | D10: Depreciation Group | E10: Function Description | F10: Customers Benefited Location | G10: Customers Benefited (Class) | H10: in_service_year | I10: GL Date | J10: ferc_activity_code | K10: GL Account | L10: Service Area Allocation | M10: Comments | N10: TYE Project Activity Cost - Unallocated | O10: Meals and Hotels > RRC limit | P10: Miscoded Project | Q10: Prior Adjustments Corrected in System | R10: Adjustments from prior filings | S10: Total Adjustment | T10: Adjusted Activity Cost | U10: Allocated Adjusted Cost to RGVSA
A11: (a) | B11: (b) | C11: (c ) | D11: (d) | E11: (e) | F11: (f) | G11: (g) | H11: (h) | I11: (i) | J11: (j) | K11: (k) | L11: (l) | M11: (m) | N11: (n) | O11: (o) | P11: (p) | Q11: (q) | R11: ( r ) | S11: (s)=(o)+(p)+(q)+( r ) | T11: (t)=(s)+(n) | U11: (u)=(t)*(l)
A12: 12 | B12: 091.091.7032.010191 | C12: EL PASO HENRY BRENNAN SC GLASS STACKERS | D12: (391.1) Office Furniture & Equipment | E12: PURCHASE OF OFFICE EQUIPMENT | F12: All TGS Divisions | G12: All | H12: 2021-01-01 | I12: 2024-01-01 | J12: Transfer | K12: 1010000 Plant In Service | L12: 0.09087 | N12: 26814.12 | S12: =SUM(O12:R12) -> 0 | T12: =N12+S12 -> 26814.12 | U12: =T12*L12 -> 2436.599084
A13: 13 | B13: 091.091.7032.010191 | C13: EL PASO HENRY BRENNAN SC GLASS STACKERS | D13: (391.1) Office Furniture & Equipment | E13: PURCHASE OF OFFICE EQUIPMENT | F13: All TGS Divisions | G13: All | H13: 2021-01-01 | I13: 2024-02-01 | J13: Transfer | K13: 1010000 Plant In Service | L13: 0.09087 | M13: Exclude Miscoded Project | N13: -26814.12 | P13: -8657.13 | S13: =SUM(O13:R13) -> -8657.13 | T13: =N13+S13 -> -35471.25 | U13: =T13*L13 -> -3223.272488
A14: 16 | B14: 091.094.7032.010374 | C14: PSEC -SAN SALVADOR GJ CAMERA TECHNOLOGY UPLIFTS - TGS SOUTH REGION - 2023 | D14: (390.1) Structures & Improvements | E14: OFFICE BUILDINGS AND CNG (COMPRESSED NATURAL GAS) FACILITIES LOCATED ON COMPANY PROPERTY-ADDITIONS OR REPLACEMENTS | F14: CGSA | G14: All | H14: 2023-12-20 | I14: 2024-01-01 | J14: Addition | K14: 1060000 CCNC | L14: 0.09087 | M14: Prior Adjustments Corrected in System | N14: -9301.51 | Q14: 9301.51 | S14: 9301.51 | T14: 0 | U14: 0
A15: 18 | B15: 091.094.7032.010378 | C15: MARBLE FALLS SERVICE CENTER/SITE IMPROVEMENT | D15: (390.1) Structures & Improvements | E15: OFFICE BUILDINGS AND CNG (COMPRESSED NATURAL GAS) FACILITIES LOCATED ON COMPANY PROPERTY-ADDITIONS OR REPLACEMENTS | F15: CGSA | G15: All | H15: 2023-12-20 | I15: 2024-01-01 | J15: Addition | K15: 1060000 CCNC | L15: 0.09087 | M15: Prior Adjustments Corrected in System | N15: -227752.49 | Q15: 227752.49 | S15: 227752.49 | T15: 0 | U15: 0
A16: 19 | B16: 091.094.7032.010417 | C16: PSEC - TGS - AUSTIN DIVISION OFFICE SURVEILLANCE UPGRADE - 2024 | D16: (391.1) Office Furniture & Equipment | F16: All TGS Divisions | G16: All | H16: 2024-05-01 | J16: Adjustment | K16: 1010000 Plant In Service | L16: 0.09087 | M16: Include Miscoded project | O16: -569.64 | P16: =6302.84-87.78 -> 6215.06 | S16: 5645.42 | T16: 5645.42 | U16: 512.9993154
A17: 20 | B17: 091.094.7032.010435 | C17: AUSTIN DIVISION OFFICE WORKPLACE ENGAGEMENT UPLIFT | D17: (390.1) Structures & Improvements | F17: All TGS Divisions | G17: All | H17: 2024-11-01 | J17: Adjustment | K17: 1010000 Plant In Service | L17: 0.09087 | M17: Include Miscoded project | O17: -58.38 | P17: 39565.12 | S17: 39506.74 | T17: 39506.74 | U17: 3589.977464
A18: 21 | B18: 091.097.7032.010017 | D18: (390.2) Leasehold Improvements | F18: All TGS Divisions | G18: All | J18: Adjustment | K18: 1010000 Plant In Service | L18: 0.09087 | M18: Prior Adjustments Corrected in System | Q18: 40.78 | S18: 40.78 | T18: 40.78 | U18: 3.7056786
A19: 22 | B19: 091.100.7000.010029 | C19: TRANSFER SERVERS FROM 101.100.1502.010103 TO TGS | D19: (391.9) Computer & Equipment | E19: HARDWARE | F19: All TGS Divisions | G19: All | H19: 2024-03-01 | I19: 2024-03-01 | J19: Adjustment | K19: 1010000 Plant In Service | L19: 0.09087 | N19: 209185.18 | S19: 0 | T19: 209185.18 | U19: 19008.65731
A20: 23 | B20: 091.101.7000.010035 | C20: TEXAS ELECTRONIC TARIFF REGULATORY APPLICATION | D20: (391.9) Computer & Equipment | E20: SOFTWARE | F20: All TGS Divisions | G20: All | H20: 2023-12-15 | I20: 2024-01-01 | J20: Addition | K20: 1060000 CCNC | L20: 0.09087 | N20: 10277.99 | S20: 0 | T20: 10277.99 | U20: 933.9609513
A21: 24 | B21: 091.101.7000.010035 | C21: TEXAS ELECTRONIC TARIFF REGULATORY APPLICATION | D21: (391.9) Computer & Equipment | E21: SOFTWARE | F21: All TGS Divisions | G21: All | H21: 2023-12-15 | I21: 2024-12-01 | J21: Addition | K21: 1010000 Plant In Service | L21: 0.09087 | N21: 75822.41 | S21: 0 | T21: 75822.41 | U21: 6889.982397
A22: 25 | B22: 091.101.7000.010035 | C22: TEXAS ELECTRONIC TARIFF REGULATORY APPLICATION | D22: (391.9) Computer & Equipment | E22: SOFTWARE | F22: All TGS Divisions | G22: All | H22: 2023-12-15 | I22: 2024-12-01 | J22: Addition | K22: 1060000 CCNC | L22: 0.09087 | N22: -75822.41 | S22: 0 | T22: -75822.41 | U22: -6889.982397
A23: 26 | B23: 091.101.7000.010038 | C23: TEXAS DATA PRIVACY SECURITY ACT COMPLIANCE | D23: (391.9) Computer & Equipment | E23: SOFTWARE | F23: All TGS Divisions | G23: All | H23: 2024-06-28 | I23: 2024-06-01 | J23: Addition | K23: 1060000 CCNC | L23: 0.09087 | N23: 227234.55 | S23: 0 | T23: 227234.55 | U23: 20648.80356
A24: 27 | B24: 091.101.7000.010038 | C24: TEXAS DATA PRIVACY SECURITY ACT COMPLIANCE | D24: (391.9) Computer & Equipment | E24: SOFTWARE | F24: All TGS Divisions | G24: All | H24: 2024-06-28 | I24: 2024-09-01 | J24: Addition | K24: 1060000 CCNC | L24: 0.09087 | N24: 34598.57 | S24: 0 | T24: 34598.57 | U24: 3143.972056
A25: 28 | B25: 091.101.7000.010038 | C25: TEXAS DATA PRIVACY SECURITY ACT COMPLIANCE | D25: (391.9) Computer & Equipment | E25: SOFTWARE | F25: All TGS Divisions | G25: All | H25: 2024-06-28 | I25: 2024-07-01 | J25: Addition | K25: 1060000 CCNC | L25: 0.09087 | N25: 7647.94 | S25: 0 | T25: 7647.94 | U25: 694.9683078
A26: 29 | B26: 091.101.7000.010038 | C26: TEXAS DATA PRIVACY SECURITY ACT COMPLIANCE | D26: (391.9) Computer & Equipment | E26: SOFTWARE | F26: All TGS Divisions | G26: All | H26: 2024-06-28 | I26: 2024-08-01 | J26: Addition | K26: 1060000 CCNC | L26: 0.09087 | N26: 18742.55 | S26: 0 | T26: 18742.55 | U26: 1703.135519
A27: 30 | B27: 091.101.7000.010038 | C27: TEXAS DATA PRIVACY SECURITY ACT COMPLIANCE | D27: (391.9) Computer & Equipment | E27: SOFTWARE | F27: All TGS Divisions | G27: All | H27: 2024-06-28 | I27: 2024-10-01 | J27: Addition | K27: 1060000 CCNC | L27: 0.09087 | N27: 4987.76 | S27: 0 | T27: 4987.76 | U27: 453.2377512
A28: 31 | B28: 091.101.7000.010038 | C28: TEXAS DATA PRIVACY SECURITY ACT COMPLIANCE | D28: (391.9) Computer & Equipment | E28: SOFTWARE | F28: All TGS Divisions | G28: All | H28: 2024-06-28 | I28: 2024-12-01 | J28: Addition | K28: 1010000 Plant In Service | L28: 0.09087 | N28: 295059.95 | S28: 0 | T28: 295059.95 | U28: 26812.09766
A29: 32 | B29: 091.101.7000.010038 | C29: TEXAS DATA PRIVACY SECURITY ACT COMPLIANCE | D29: (391.9) Computer & Equipment | E29: SOFTWARE | F29: All TGS Divisions | G29: All | H29: 2024-06-28 | I29: 2024-12-01 | J29: Addition | K29: 1060000 CCNC | L29: 0.09087 | N29: -293211.37 | S29: 0 | T29: -293211.37 | U29: -26644.11719
A30: 33 | B30: 091.101.7000.010038 | C30: TEXAS DATA PRIVACY SECURITY ACT COMPLIANCE | D30: (391.9) Computer & Equipment | E30: SOFTWARE | F30: All TGS Divisions | G30: All | H30: 2024-12-01 | I30: 2024-12-01 | J30: Addition | K30: 1010000 Plant In Service | L30: 0.09087 | N30: -25.69 | S30: 0 | T30: -25.69 | U30: -2.3344503
A31: 34 | B31: 091.CPR.RET | C31: Computer equipment retirement | D31: (391.9) Computer & Equipment | E31: HARDWARE | F31: All TGS Divisions | G31: All | H31: 2017-10-01 | I31: 2024-05-01 | J31: Retirement | K31: 1010000 Plant In Service | L31: 0.09087 | M31: Adjustments from prior filings | N31: -165794.96 | R31: -113512.8 | S31: -113512.8 | T31: -279307.76 | U31: -25380.69615
A32: 35 | B32: 091.CPR.RET | C32: Computer equipment retirement | D32: (391.9) Computer & Equipment | E32: HARDWARE | F32: All TGS Divisions | G32: All | H32: 2017-10-01 | I32: 2024-10-01 | J32: Retirement | K32: 1010000 Plant In Service | L32: 0.09087 | N32: -186647.26 | S32: 0 | T32: -186647.26 | U32: -16960.63652
A33: 36 | B33: Adjustment | D33: (391.9) Computer & Equipment | F33: All TGS Divisions | J33: Adjustment | K33: 1010000 Plant In Service | L33: 0.09087 | M33: Prior Adjustments Corrected in System | Q33: 128555.1659 | S33: 128555.1659
A34: 37 | B34: Adjustment | D34: (390.1) Structures & Improvements | F34: All TGS Divisions | G34: All | J34: Adjustment | K34: 1010000 Plant In Service | L34: 0.09087 | M34: Prior Adjustments Corrected in System | Q34: 9140.06 | S34: 9140.06 | T34: 9140.06 | U34: 830.5572522
A35: 38 | B35: Adjustment | D35: (391.9) Computer & Equipment | F35: All TGS Divisions | G35: All | J35: Adjustment | K35: 1010000 Plant In Service | L35: 0.09087 | M35: Prior Adjustments Corrected in System | Q35: 12219.00409 | S35: 12219.00409 | T35: 12219.00409 | U35: 1110.340902
A36: 39 | B36: Adjustment | D36: (394) Tools | F36: All TGS Divisions | G36: All | J36: Adjustment | K36: 1010000 Plant In Service | L36: 0.09087 | M36: Prior Adjustments Corrected in System | Q36: 179.9 | S36: 179.9 | T36: 179.9 | U36: 16.347513
A37: 40 | B37: Adjustment | D37: (394) Tools | F37: All TGS Divisions | G37: All | J37: Adjustment | K37: 1060000 CCNC | L37: 0.09087 | M37: Prior Adjustments Corrected in System | Q37: -179.9 | S37: -179.9 | T37: -179.9 | U37: -16.347513
A38: 41 | B38: Adjustment | C38: Site Management 2023 | D38: (391.9) Computer & Equipment | F38: All TGS Divisions | G38: All | J38: Adjustment | K38: 1060000 CCNC | L38: 0.09087 | M38: Include Miscoded project | P38: 62111.42 | S38: 62111.42 | T38: 62111.42 | U38: 5644.064735
A39: 42 | B39: Adjustment | C39: SCADA FIRSTNETConversion | D39: (397) Communication Equipment | F39: All TGS Divisions | G39: All | J39: Adjustment | K39: 1010000 Plant In Service | L39: 0.09087 | M39: Include Miscoded project | P39: 70299.91 | S39: 70299.91 | T39: 70299.91 | U39: 6388.152822
A40: 43 | B40: Grand Total | N40: =SUM(N12:N39) -> -74998.79 | O40: =SUM(O16:O39) -> -628.02 | P40: =SUM(P12:P39) -> 169534.38 | Q40: =SUM(Q12:Q39) -> 387009.01 | S40: =SUM(S12:S39) -> 442402.57 | T40: 238848.6141 | U40: 21704.17356

Sheet Corporate - 2024
A4: Line No. | B4: Project Number | C4: Project Description | D4: Depreciation Group | E4: Function Description | F4: Customers Benefited (Location) | G4: Customers Benefited (Class) | H4: Project In Service Date | I4: GL Posting Date | J4: FERC Activity Code | K4: GL Account | L4: Comments | M4: TYE Project Activity Cost - Unallocated | N4: Remove Vertex Sales Tax | O4: Miscoded Project | P4: Meals and Hotels > RRC limit | Q4: Miscellaneous Adjustments | R4: TYE Total Project Activitiy Adjustments | S4: TYE Project Activity Cost - Adjusted Unallocated | T4: Q4 2024 Allocation Factor | U4: TYE Project Cost - Allocated to TGS | V4: Total Adjustment-Allocated to TGS | W4: Allocated Adjusted Actvity Cost Including Change in Distrigas | X4: Service Area Allocation | Y4: Allocated Adjusted Cost to RGVSA
A5: (a) | B5: (b) | C5: (c ) | D5: (d) | E5: (e) | F5: (f) | G5: (g) | H5: (h) | I5: (i) | J5: (j) | K5: (k) | L5: (l) | M5: (m) | N5: (n) | O5: (o) | P5: (p) | Q5: (q) | R5: (r )=(n)+(o)+(p)+(q) | S5: (s )=(m) +( r) | T5: (t) | U5: (u)=(m)*(t) | V5: (v)=( r)*(t) | W5: (w)=(u) +(v) | X5: (x) | Y5: (y)=(x)*(w)
A6: 1 | B6: 101.091.1717.010030 | C6: 2023 GENETEC LICENSING UPGRADE | D6: 390.2 Leasehold Improvements | E6: PURCHASE OF OFFICE EQUIPMENT | F6: All OGS Divisions | G6: All | H6: 2023-12-20 | I6: 2024-07-01 | J6: Addition | K6: 1010000 Plant In Service | M6: -53.78 | R6: =SUM(N6:Q6) -> 0 | S6: =M6+R6 -> -53.78 | T6: 0.2963 | U6: =M6*T6 -> -15.935014 | V6: =R6*T6 -> 0 | W6: =U6+V6 -> -15.935014 | X6: 0.09087 | Y6: =W6*X6 -> -1.448014722
A7: 2 | B7: 101.091.1717.010030 | C7: 2023 GENETEC LICENSING UPGRADE | D7: 390.2 Leasehold Improvements | E7: PURCHASE OF OFFICE EQUIPMENT | F7: All OGS Divisions | G7: All | H7: 2023-12-20 | I7: 2024-07-01 | J7: Addition | K7: 1010000 Plant In Service | L7: Meal and Hotel Adjustment | M7: 37291.18 | P7: -124.89 | R7: =SUM(N7:Q7) -> -124.89 | S7: =M7+R7 -> 37166.29 | T7: 0.2963 | U7: =M7*T7 -> 11049.37663 | V7: =R7*T7 -> -37.004907 | W7: =U7+V7 -> 11012.37173 | X7: 0.09087 | Y7: =W7*X7 -> 1000.694219
A8: 3 | B8: 101.091.1717.010030 | C8: 2023 GENETEC LICENSING UPGRADE | D8: 390.2 Leasehold Improvements | E8: PURCHASE OF OFFICE EQUIPMENT | F8: All OGS Divisions | G8: All | H8: 2023-12-20 | I8: 2024-07-01 | J8: Addition | K8: 1060000 CCNC | M8: -37237.4 | R8: =SUM(N8:Q8) -> 0 | S8: -37237.4 | T8: 0.2963 | U8: -11033.44162 | V8: =R8*T8 -> 0 | W8: -11033.44162 | X8: 0.09087 | Y8: -1002.60884
A9: 4 | B9: 101.093.1950.010005 | C9: APPROVED BID WAIVER 2023 FORD F550 REG CAB 4X4 FLATBED | D9: 392.2 Pickup Trucks and Vans | E9: PURCHASE OF AUTOMOBILES | F9: All OGS Divisions | G9: All | H9: 2024-03-07 | I9: 2024-03-01 | J9: Addition | K9: 1060000 CCNC | M9: 85977.05 | R9: 0 | S9: 85977.05 | T9: 0.2963 | U9: 25474.99992 | V9: 0 | W9: 25474.99992 | X9: 0.09087 | Y9: 2314.913242
A10: 5 | B10: 101.093.1950.010005 | C10: APPROVED BID WAIVER 2023 FORD F550 REG CAB 4X4 FLATBED | D10: 392.2 Pickup Trucks and Vans | E10: PURCHASE OF AUTOMOBILES | F10: All OGS Divisions | G10: All | H10: 2024-03-07 | I10: 2024-09-01 | J10: Addition | K10: 1060000 CCNC | M10: 198.83 | R10: 0 | S10: 198.83 | T10: 0.2963 | U10: 58.913329 | V10: 0 | W10: 58.913329 | X10: 0.09087 | Y10: 5.353454206
A11: 6 | B11: 101.093.1950.010005 | C11: APPROVED BID WAIVER 2023 FORD F550 REG CAB 4X4 FLATBED | D11: 392.2 Pickup Trucks and Vans | E11: PURCHASE OF AUTOMOBILES | F11: All OGS Divisions | G11: All | H11: 2024-03-07 | I11: 2024-12-01 | J11: Addition | K11: 1010000 Plant In Service | M11: 86175.88 | R11: 0 | S11: 86175.88 | T11: 0.2963 | U11: 25533.91324 | V11: 0 | W11: 25533.91324 | X11: 0.09087 | Y11: 2320.266696
A12: 7 | B12: 101.093.1950.010005 | C12: APPROVED BID WAIVER 2023 FORD F550 REG CAB 4X4 FLATBED | D12: 392.2 Pickup Trucks and Vans | E12: PURCHASE OF AUTOMOBILES | F12: All OGS Divisions | G12: All | H12: 2024-03-07 | I12: 2024-12-01 | J12: Addition | K12: 1060000 CCNC | M12: -86175.88 | R12: 0 | S12: -86175.88 | T12: 0.2963 | U12: -25533.91324 | V12: 0 | W12: -25533.91324 | X12: 0.09087 | Y12: -2320.266696
A13: 8 | B13: 101.093.1950.010006 | C13: APPROVED BID WAIVER 2023 FORD F550 REG CAB 4X4 FLATBED | D13: 392.2 Pickup Trucks and Vans | E13: PURCHASE OF AUTOMOBILES | F13: All OGS Divisions | G13: All | H13: 2024-03-07 | I13: 2024-03-01 | J13: Addition | K13: 1060000 CCNC | M13: 85977.05 | R13: 0 | S13: 85977.05 | T13: 0.2963 | U13: 25474.99992 | V13: 0 | W13: 25474.99992 | X13: 0.09087 | Y13: 2314.913242
A14: 9 | B14: 101.093.1950.010006 | C14: APPROVED BID WAIVER 2023 FORD F550 REG CAB 4X4 FLATBED | D14: 392.2 Pickup Trucks and Vans | E14: PURCHASE OF AUTOMOBILES | F14: All OGS Divisions | G14: All | H14: 2024-03-07 | I14: 2024-05-01 | J14: Addition | K14: 1060000 CCNC | M14: 1132.11 | R14: 0 | S14: 1132.11 | T14: 0.2963 | U14: 335.444193 | V14: 0 | W14: 335.444193 | X14: 0.09087 | Y14: 30.48181382
A15: 10 | B15: 101.093.1950.010006 | C15: APPROVED BID WAIVER 2023 FORD F550 REG CAB 4X4 FLATBED | D15: 392.2 Pickup Trucks and Vans | E15: PURCHASE OF AUTOMOBILES | F15: All OGS Divisions | G15: All | H15: 2024-03-07 | I15: 2024-06-01 | J15: Addition | K15: 1060000 CCNC | M15: -107.36 | R15: 0 | S15: -107.36 | T15: 0.2963 | U15: -31.810768 | V15: 0 | W15: -31.810768 | X15: 0.09087 | Y15: -2.890644488
A16: 11 | B16: 101.093.1950.010006 | C16: APPROVED BID WAIVER 2023 FORD F550 REG CAB 4X4 FLATBED | D16: 392.2 Pickup Trucks and Vans | E16: PURCHASE OF AUTOMOBILES | F16: All OGS Divisions | G16: All | H16: 2024-03-07 | I16: 2024-09-01 | J16: Addition | K16: 1010000 Plant In Service | M16: 87001.8 | R16: 0 | S16: 87001.8 | T16: 0.2963 | U16: 25778.63334 | V16: 0 | W16: 25778.63334 | X16: 0.09087 | Y16: 2342.504412
A17: 12 | B17: 101.093.1950.010006 | C17: APPROVED BID WAIVER 2023 FORD F550 REG CAB 4X4 FLATBED | D17: 392.2 Pickup Trucks and Vans | E17: PURCHASE OF AUTOMOBILES | F17: All OGS Divisions | G17: All | H17: 2024-03-07 | I17: 2024-09-01 | J17: Addition | K17: 1060000 CCNC | M17: -87001.8 | R17: 0 | S17: -87001.8 | T17: 0.2963 | U17: -25778.63334 | V17: 0 | W17: -25778.63334 | X17: 0.09087 | Y17: -2342.504412
A18: 13 | B18: 101.093.1950.010007 | C18: PERFECTION AIR COMPRESSOR FOR TRAINING QUOTE | D18: 392.2 Pickup Trucks and Vans | E18: PURCHASE OF AUTOMOBILES | F18: All OGS Divisions | G18: All | H18: 2024-03-07 | I18: 2024-04-01 | J18: Addition | K18: 1060000 CCNC | M18: 20361.44 | R18: 0 | S18: 20361.44 | T18: 0.2963 | U18: 6033.094672 | V18: 0 | W18: 6033.094672 | X18: 0.09087 | Y18: 548.2273128
A19: 14 | B19: 101.093.1950.010007 | C19: PERFECTION AIR COMPRESSOR FOR TRAINING QUOTE | D19: 392.2 Pickup Trucks and Vans | E19: PURCHASE OF AUTOMOBILES | F19: All OGS Divisions | G19: All | H19: 2024-03-07 | I19: 2024-05-01 | J19: Addition | K19: 1060000 CCNC | M19: 453.1 | R19: 0 | S19: 453.1 | T19: 0.2963 | U19: 134.25353 | V19: 0 | W19: 134.25353 | X19: 0.09087 | Y19: 12.19961827
A20: 15 | B20: 101.093.1950.010007 | C20: PERFECTION AIR COMPRESSOR FOR TRAINING QUOTE | D20: 392.2 Pickup Trucks and Vans | E20: PURCHASE OF AUTOMOBILES | F20: All OGS Divisions | G20: All | H20: 2024-03-07 | I20: 2024-06-01 | J20: Addition | K20: 1060000 CCNC | M20: 0 | R20: 0 | S20: 0 | T20: 0.2963 | U20: 0 | V20: 0 | W20: 0 | X20: 0.09087 | Y20: 0
A21: 16 | B21: 101.093.1950.010007 | C21: PERFECTION AIR COMPRESSOR FOR TRAINING QUOTE | D21: 392.2 Pickup Trucks and Vans | E21: PURCHASE OF AUTOMOBILES | F21: All OGS Divisions | G21: All | H21: 2024-03-07 | I21: 2024-09-01 | J21: Addition | K21: 1060000 CCNC | M21: -20814.54 | R21: 0 | S21: -20814.54 | T21: 0.2963 | U21: -6167.348202 | V21: 0 | W21: -6167.348202 | X21: 0.09087 | Y21: -560.4269311
A22: 17 | B22: 101.093.1950.010007 | C22: PERFECTION AIR COMPRESSOR FOR TRAINING QUOTE | D22: 394 Tools, Shop & Garage | E22: PURCHASE OF AUTOMOBILES | F22: All OGS Divisions | G22: All | H22: 2024-03-07 | I22: 2024-09-01 | J22: Addition | K22: 1010000 Plant In Service | M22: 20938.1 | R22: 0 | S22: 20938.1 | T22: 0.2963 | U22: 6203.95903 | V22: 0 | W22: 6203.95903 | X22: 0.09087 | Y22: 563.7537571
A23: 18 | B23: 101.093.1950.010007 | C23: PERFECTION AIR COMPRESSOR FOR TRAINING QUOTE | D23: 396 Power Operated Equipment | E23: PURCHASE OF AUTOMOBILES | F23: All OGS Divisions | G23: All | H23: 2024-03-07 | I23: 2024-05-01 | J23: Addition | K23: 1060000 CCNC | M23: 209.65 | R23: 0 | S23: 209.65 | T23: 0.2963 | U23: 62.119295 | V23: 0 | W23: 62.119295 | X23: 0.09087 | Y23: 5.644780337
A24: 19 | B24: 101.093.1950.010007 | C24: PERFECTION AIR COMPRESSOR FOR TRAINING QUOTE | D24: 396 Power Operated Equipment | E24: PURCHASE OF AUTOMOBILES | F24: All OGS Divisions | G24: All | H24: 2024-03-07 | I24: 2024-06-01 | J24: Addition | K24: 1060000 CCNC | M24: -86.09 | R24: 0 | S24: -86.09 | T24: 0.2963 | U24: -25.508467 | V24: 0 | W24: -25.508467 | X24: 0.09087 | Y24: -2.317954396
A25: 20 | B25: 101.093.1950.010007 | C25: PERFECTION AIR COMPRESSOR FOR TRAINING QUOTE | D25: 396 Power Operated Equipment | E25: PURCHASE OF AUTOMOBILES | F25: All OGS Divisions | G25: All | H25: 2024-03-07 | I25: 2024-09-01 | J25: Addition | K25: 1060000 CCNC | M25: -123.56 | R25: 0 | S25: -123.56 | T25: 0.2963 | U25: -36.610828 | V25: 0 | W25: -36.610828 | X25: 0.09087 | Y25: -3.32682594
A26: 21 | B26: 101.093.1950.010008 | C26: 2023 CONTROL CONTAINER TRAILER QUOTE | D26: 392.2 Pickup Trucks and Vans | E26: PURCHASE OF AUTOMOBILES | F26: All OGS Divisions | G26: All | H26: 2024-03-07 | I26: 2024-03-01 | J26: Addition | K26: 1060000 CCNC | M26: 86212.54 | R26: 0 | S26: 86212.54 | T26: 0.2963 | U26: 25544.7756 | V26: 0 | W26: 25544.7756 | X26: 0.09087 | Y26: 2321.253759
A27: 22 | B27: 101.093.1950.010008 | C27: 2023 CONTROL CONTAINER TRAILER QUOTE | D27: 392.2 Pickup Trucks and Vans | E27: PURCHASE OF AUTOMOBILES | F27: All OGS Divisions | G27: All | H27: 2024-03-07 | I27: 2024-05-01 | J27: Addition | K27: 1060000 CCNC | M27: 250.19 | R27: 0 | S27: 250.19 | T27: 0.2963 | U27: 74.131297 | V27: 0 | W27: 74.131297 | X27: 0.09087 | Y27: 6.736310958
A28: 23 | B28: 101.093.1950.010008 | C28: 2023 CONTROL CONTAINER TRAILER QUOTE | D28: 392.2 Pickup Trucks and Vans | E28: PURCHASE OF AUTOMOBILES | F28: All OGS Divisions | G28: All | H28: 2024-03-07 | I28: 2024-06-01 | J28: Addition | K28: 1060000 CCNC | M28: -32.8 | R28: 0 | S28: -32.8 | T28: 0.2963 | U28: -9.71864 | V28: 0 | W28: -9.71864 | X28: 0.09087 | Y28: -0.8831328168
A29: 24 | B29: 101.093.1950.010008 | C29: 2023 CONTROL CONTAINER TRAILER QUOTE | D29: 392.2 Pickup Trucks and Vans | E29: PURCHASE OF AUTOMOBILES | F29: All OGS Divisions | G29: All | H29: 2024-03-07 | I29: 2024-09-01 | J29: Addition | K29: 1010000 Plant In Service | M29: 86429.93 | R29: 0 | S29: 86429.93 | T29: 0.2963 | U29: 25609.18826 | V29: 0 | W29: 25609.18826 | X29: 0.09087 | Y29: 2327.106937
A30: 25 | B30: 101.093.1950.010008 | C30: 2023 CONTROL CONTAINER TRAILER QUOTE | D30: 392.2 Pickup Trucks and Vans | E30: PURCHASE OF AUTOMOBILES | F30: All OGS Divisions | G30: All | H30: 2024-03-07 | I30: 2024-09-01 | J30: Addition | K30: 1060000 CCNC | M30: -86429.93 | R30: 0 | S30: -86429.93 | T30: 0.2963 | U30: -25609.18826 | V30: 0 | W30: -25609.18826 | X30: 0.09087 | Y30: -2327.106937
A31: 26 | B31: 101.093.1950.010009 | C31: 2023 GREAT DANE TRAINING TRAILER QUOTE | D31: 392.2 Pickup Trucks and Vans | E31: PURCHASE OF AUTOMOBILES | F31: All OGS Divisions | G31: All | H31: 2024-04-27 | I31: 2024-05-01 | J31: Addition | K31: 1060000 CCNC | M31: 297868.74 | R31: 0 | S31: 297868.74 | T31: 0.2963 | U31: 88258.50766 | V31: 0 | W31: 88258.50766 | X31: 0.09087 | Y31: 8020.050591
A32: 27 | B32: 101.093.1950.010009 | C32: 2023 GREAT DANE TRAINING TRAILER QUOTE | D32: 392.2 Pickup Trucks and Vans | E32: PURCHASE OF AUTOMOBILES | F32: All OGS Divisions | G32: All | H32: 2024-04-27 | I32: 2024-06-01 | J32: Addition | K32: 1060000 CCNC | M32: -30.13 | R32: 0 | S32: -30.13 | T32: 0.2963 | U32: -8.927519 | V32: 0 | W32: -8.927519 | X32: 0.09087 | Y32: -0.8112436515
A33: 28 | B33: 101.093.1950.010009 | C33: 2023 GREAT DANE TRAINING TRAILER QUOTE | D33: 392.2 Pickup Trucks and Vans | E33: PURCHASE OF AUTOMOBILES | F33: All OGS Divisions | G33: All | H33: 2024-04-27 | I33: 2024-09-01 | J33: Addition | K33: 1010000 Plant In Service | M33: 297838.61 | R33: 0 | S33: 297838.61 | T33: 0.2963 | U33: 88249.58014 | V33: 0 | W33: 88249.58014 | X33: 0.09087 | Y33: 8019.239348
A34: 29 | B34: 101.093.1950.010009 | C34: 2023 GREAT DANE TRAINING TRAILER QUOTE | D34: 392.2 Pickup Trucks and Vans | E34: PURCHASE OF AUTOMOBILES | F34: All OGS Divisions | G34: All | H34: 2024-04-27 | I34: 2024-09-01 | J34: Addition | K34: 1060000 CCNC | M34: -297838.61 | R34: 0 | S34: -297838.61 | T34: 0.2963 | U34: -88249.58014 | V34: 0 | W34: -88249.58014 | X34: 0.09087 | Y34: -8019.239348
A35: 30 | B35: 101.093.1950.010010 | C35: 2023 GREAT DANE VAR EMERGENCY MANAGEMENT TRAILER ONG | D35: 392.2 Pickup Trucks and Vans | E35: PURCHASE OF AUTOMOBILES | F35: All OGS Divisions | G35: All | H35: 2024-04-27 | I35: 2024-05-01 | J35: Addition | K35: 1060000 CCNC | M35: 339178.79 | R35: 0 | S35: 339178.79 | T35: 0.2963 | U35: 100498.6755 | V35: 0 | W35: 100498.6755 | X35: 0.09087 | Y35: 9132.314641
A36: 31 | B36: 101.093.1950.010010 | C36: 2023 GREAT DANE VAR EMERGENCY MANAGEMENT TRAILER ONG | D36: 392.2 Pickup Trucks and Vans | E36: PURCHASE OF AUTOMOBILES | F36: All OGS Divisions | G36: All | H36: 2024-04-27 | I36: 2024-06-01 | J36: Addition | K36: 1060000 CCNC | M36: 3553.33 | R36: 0 | S36: 3553.33 | T36: 0.2963 | U36: 1052.851679 | V36: 0 | W36: 1052.851679 | X36: 0.09087 | Y36: 95.67263207
A37: 32 | B37: 101.093.1950.010010 | C37: 2023 GREAT DANE VAR EMERGENCY MANAGEMENT TRAILER ONG | D37: 392.2 Pickup Trucks and Vans | E37: PURCHASE OF AUTOMOBILES | F37: All OGS Divisions | G37: All | H37: 2024-04-27 | I37: 2024-07-01 | J37: Addition | K37: 1060000 CCNC | M37: 6193.51 | R37: 0 | S37: 6193.51 | T37: 0.2963 | U37: 1835.137013 | V37: 0 | W37: 1835.137013 | X37: 0.09087 | Y37: 166.7589004
A38: 33 | B38: 101.093.1950.010010 | C38: 2023 GREAT DANE VAR EMERGENCY MANAGEMENT TRAILER ONG | D38: 392.2 Pickup Trucks and Vans | E38: PURCHASE OF AUTOMOBILES | F38: All OGS Divisions | G38: All | H38: 2024-04-27 | I38: 2024-10-01 | J38: Addition | K38: 1060000 CCNC | M38: 102.68 | R38: 0 | S38: 102.68 | T38: 0.2963 | U38: 30.424084 | V38: 0 | W38: 30.424084 | X38: 0.09087 | Y38: 2.764636513
A39: 34 | B39: 101.093.1950.010010 | C39: 2023 GREAT DANE VAR EMERGENCY MANAGEMENT TRAILER ONG | D39: 392.2 Pickup Trucks and Vans | E39: PURCHASE OF AUTOMOBILES | F39: All OGS Divisions | G39: All | H39: 2024-04-27 | I39: 2024-12-01 | J39: Addition | K39: 1010000 Plant In Service | M39: 349028.31 | R39: 0 | S39: 349028.31 | T39: 0.2963 | U39: 103417.0883 | V39: 0 | W39: 103417.0883 | X39: 0.09087 | Y39: 9397.51081
A40: 35 | B40: 101.093.1950.010010 | C40: 2023 GREAT DANE VAR EMERGENCY MANAGEMENT TRAILER ONG | D40: 392.2 Pickup Trucks and Vans | E40: PURCHASE OF AUTOMOBILES | F40: All OGS Divisions | G40: All | H40: 2024-04-27 | I40: 2024-12-01 | J40: Addition | K40: 1060000 CCNC | M40: -349028.31 | R40: 0 | S40: -349028.31 | T40: 0.2963 | U40: -103417.0883 | V40: 0 | W40: -103417.0883 | X40: 0.09087 | Y40: -9397.51081
A41: 36 | B41: 101.094.1717.010035 | C41: ONEGAS 2023 GENETEC SECURITY CENTER UPGRADE - 2023 | D41: 390.1 Structures & Improvements | E41: OFFICE BUILDINGS AND CNG (COMPRESSED NATURAL GAS) FACILITIES LOCATED ON COMPANY PROPERTY-ADDITIONS OR REPLACEMENTS | F41: All OGS Divisions | G41: All | H41: 2023-12-20 | I41: 2024-07-01 | J41: Addition | K41: 1060000 CCNC | M41: -13322.03 | R41: 0 | S41: -13322.03 | T41: 0.2963 | U41: -3947.317489 | V41: 0 | W41: -3947.317489 | X41: 0.09087 | Y41: -358.6927402
A42: 37 | B42: 101.094.1717.010035 | C42: ONEGAS 2023 GENETEC SECURITY CENTER UPGRADE - 2023 | D42: 390.2 Leasehold Improvements | E42: OFFICE BUILDINGS AND CNG (COMPRESSED NATURAL GAS) FACILITIES LOCATED ON COMPANY PROPERTY-ADDITIONS OR REPLACEMENTS | F42: All OGS Divisions | G42: All | H42: 2023-12-20 | I42: 2024-07-01 | J42: Addition | K42: 1010000 Plant In Service | M42: -352.28 | R42: 0 | S42: -352.28 | T42: 0.2963 | U42: -104.380564 | V42: 0 | W42: -104.380564 | X42: 0.09087 | Y42: -9.485061851
A43: 38 | B43: 101.094.1717.010035 | C43: ONEGAS 2023 GENETEC SECURITY CENTER UPGRADE - 2023 | D43: 390.2 Leasehold Improvements | E43: OFFICE BUILDINGS AND CNG (COMPRESSED NATURAL GAS) FACILITIES LOCATED ON COMPANY PROPERTY-ADDITIONS OR REPLACEMENTS | F43: All OGS Divisions | G43: All | H43: 2023-12-20 | I43: 2024-07-01 | J43: Addition | K43: 1010000 Plant In Service | L43: Meal and Hotel Adjustment | M43: 13674.31 | P43: -57.94 | R43: -57.94 | S43: 13616.37 | T43: 0.2963 | U43: 4051.698053 | V43: -17.167622 | W43: 4034.530431 | X43: 0.09087 | Y43: 366.6177803
A44: 39 | B44: 101.094.1717.010036 | C44: ONEGAS-SECURE KEY ENCLOSURES-2023 | D44: 390.1 Structures & Improvements | E44: OFFICE BUILDINGS AND CNG (COMPRESSED NATURAL GAS) FACILITIES LOCATED ON COMPANY PROPERTY-ADDITIONS OR REPLACEMENTS | F44: All OGS Divisions | G44: All | H44: 2023-12-20 | I44: 2024-07-01 | J44: Addition | K44: 1060000 CCNC | M44: -58608.01 | R44: 0 | S44: -58608.01 | T44: 0.2963 | U44: -17365.55336 | V44: 0 | W44: -17365.55336 | X44: 0.09087 | Y44: -1578.007834
A45: 40 | B45: 101.094.1717.010036 | C45: ONEGAS-SECURE KEY ENCLOSURES-2023 | D45: 391.1 Office Furniture & Equipment | E45: OFFICE BUILDINGS AND CNG (COMPRESSED NATURAL GAS) FACILITIES LOCATED ON COMPANY PROPERTY-ADDITIONS OR REPLACEMENTS | F45: All OGS Divisions | G45: All | H45: 2023-12-20 | I45: 2024-07-01 | J45: Addition | K45: 1010000 Plant In Service | L45: Miscoded Project Charges | M45: 58608.01 | R45: -5439 | S45: 53169.01 | T45: 0.2963 | U45: 17365.55336 | V45: -1611.5757 | W45: 15753.97766 | X45: 0.09087 | Y45: 1431.56395
A46: 41 | B46: 101.094.1717.010038 | C46: SHAWNEE METER SHOP SECURITY UPGRADES - 2023 | D46: 390.1 Structures & Improvements | E46: OFFICE BUILDINGS AND CNG (COMPRESSED NATURAL GAS) FACILITIES LOCATED ON COMPANY PROPERTY-ADDITIONS OR REPLACEMENTS | F46: All OGS Divisions | G46: All | H46: 2023-12-20 | I46: 2024-02-01 | J46: Addition | K46: 1060000 CCNC | M46: 9412.59 | R46: 0 | S46: 9412.59 | T46: 0.2963 | U46: 2788.950417 | V46: 0 | W46: 2788.950417 | X46: 0.09087 | Y46: 253.4319244
A47: 42 | B47: 101.094.1717.010038 | C47: SHAWNEE METER SHOP SECURITY UPGRADES - 2023 | D47: 390.1 Structures & Improvements | E47: OFFICE BUILDINGS AND CNG (COMPRESSED NATURAL GAS) FACILITIES LOCATED ON COMPANY PROPERTY-ADDITIONS OR REPLACEMENTS | F47: All OGS Divisions | G47: All | H47: 2023-12-20 | I47: 2024-05-01 | J47: Addition | K47: 1010000 Plant In Service | L47: Meal and Hotel Adjustment | M47: 93066.22 | P47: -796.05 | R47: -796.05 | S47: 92270.17 | T47: 0.2963 | U47: 27575.52099 | V47: -235.869615 | W47: 27339.65137 | X47: 0.09087 | Y47: 2484.35412
A48: 43 | B48: 101.094.1717.010038 | C48: SHAWNEE METER SHOP SECURITY UPGRADES - 2023 | D48: 390.1 Structures & Improvements | E48: OFFICE BUILDINGS AND CNG (COMPRESSED NATURAL GAS) FACILITIES LOCATED ON COMPANY PROPERTY-ADDITIONS OR REPLACEMENTS | F48: All OGS Divisions | G48: All | H48: 2023-12-20 | I48: 2024-05-01 | J48: Addition | K48: 1060000 CCNC | M48: -93066.22 | R48: 0 | S48: -93066.22 | T48: 0.2963 | U48: -27575.52099 | V48: 0 | W48: -27575.52099 | X48: 0.09087 | Y48: -2505.787592
A49: 44 | B49: 101.094.1717.010039 | C49: FIRST PLACE TOWER & GARAGE ACCESS CONTROL AND TECHNOLOGY UPGRADE/ADD - 2023 | D49: 390.1 Structures & Improvements | E49: OFFICE BUILDINGS AND CNG (COMPRESSED NATURAL GAS) FACILITIES LOCATED ON COMPANY PROPERTY-ADDITIONS OR REPLACEMENTS | F49: All OGS Divisions | G49: All | H49: 2023-12-20 | I49: 2024-05-01 | J49: Addition | K49: 1060000 CCNC | M49: -225172.29 | R49: 0 | S49: -225172.29 | T49: 0.2963 | U49: -66718.54953 | V49: 0 | W49: -66718.54953 | X49: 0.09087 | Y49: -6062.714596
A50: 45 | B50: 101.094.1717.010039 | C50: FIRST PLACE TOWER & GARAGE ACCESS CONTROL AND TECHNOLOGY UPGRADE/ADD - 2023 | D50: 390.2 Leasehold Improvements | E50: OFFICE BUILDINGS AND CNG (COMPRESSED NATURAL GAS) FACILITIES LOCATED ON COMPANY PROPERTY-ADDITIONS OR REPLACEMENTS | F50: All OGS Divisions | G50: All | H50: 2023-12-20 | I50: 2024-05-01 | J50: Addition | K50: 1010000 Plant In Service | M50: 225172.29 | R50: 0 | S50: 225172.29 | T50: 0.2963 | U50: 66718.54953 | V50: 0 | W50: 66718.54953 | X50: 0.09087 | Y50: 6062.714596
A51: 46 | B51: 101.094.1717.010040 | C51: FIRST PLACE TOWER & GARAGE CAMERA/TECHNOLOGY UPGRADE - 2023 | D51: 390.1 Structures & Improvements | E51: OFFICE BUILDINGS AND CNG (COMPRESSED NATURAL GAS) FACILITIES LOCATED ON COMPANY PROPERTY-ADDITIONS OR REPLACEMENTS | F51: All OGS Divisions | G51: All | H51: 2023-12-20 | I51: 2024-05-01 | J51: Addition | K51: 1060000 CCNC | M51: -234770.36 | R51: 0 | S51: -234770.36 | T51: 0.2963 | U51: -69562.45767 | V51: 0 | W51: -69562.45767 | X51: 0.09087 | Y51: -6321.140528
A52: 47 | B52: 101.094.1717.010040 | C52: FIRST PLACE TOWER & GARAGE CAMERA/TECHNOLOGY UPGRADE - 2023 | D52: 390.2 Leasehold Improvements | E52: OFFICE BUILDINGS AND CNG (COMPRESSED NATURAL GAS) FACILITIES LOCATED ON COMPANY PROPERTY-ADDITIONS OR REPLACEMENTS | F52: All OGS Divisions | G52: All | H52: 2023-12-20 | I52: 2024-05-01 | J52: Addition | K52: 1010000 Plant In Service | L52: Insufficient Support | M52: 234770.36 | Q52: -18290.49 | R52: -18290.49 | S52: 216479.87 | T52: 0.2963 | U52: 69562.45767 | V52: -5419.472187 | W52: 64142.98548 | X52: 0.09087 | Y52: 5828.673091
A53: 48 | B53: 101.094.1717.010041 | C53: OGS TRAINING CENTER-FIRE EXTINGUISHER POWDER STORAGE BUILDING | D53: 390.1 Structures & Improvements | E53: OFFICE BUILDINGS AND CNG (COMPRESSED NATURAL GAS) FACILITIES LOCATED ON COMPANY PROPERTY-ADDITIONS OR REPLACEMENTS | F53: All OGS Divisions | G53: All | H53: 2024-03-08 | I53: 2024-03-01 | J53: Addition | K53: 1010000 Plant In Service | M53: 9203.7 | R53: 0 | S53: 9203.7 | T53: 0.2963 | U53: 2727.05631 | V53: 0 | W53: 2727.05631 | X53: 0.09087 | Y53: 247.8076069
A54: 49 | B54: 101.094.1717.010042 | C54: OGS TRAINING CENTER-OHD VINYL STRIPS | D54: 390.1 Structures & Improvements | E54: OFFICE BUILDINGS AND CNG (COMPRESSED NATURAL GAS) FACILITIES LOCATED ON COMPANY PROPERTY-ADDITIONS OR REPLACEMENTS | F54: All OGS Divisions | G54: All | H54: 2024-03-08 | I54: 2024-04-01 | J54: Addition | K54: 1010000 Plant In Service | M54: 2956 | R54: 0 | S54: 2956 | T54: 0.2963 | U54: 875.8628 | V54: 0 | W54: 875.8628 | X54: 0.09087 | Y54: 79.58965264
A55: 50 | B55: 101.094.1717.010042 | C55: OGS TRAINING CENTER-OHD VINYL STRIPS | D55: 390.1 Structures & Improvements | E55: OFFICE BUILDINGS AND CNG (COMPRESSED NATURAL GAS) FACILITIES LOCATED ON COMPANY PROPERTY-ADDITIONS OR REPLACEMENTS | F55: All OGS Divisions | G55: All | H55: 2024-03-19 | I55: 2024-03-01 | J55: Addition | K55: 1060000 CCNC | M55: 2956 | R55: 0 | S55: 2956 | T55: 0.2963 | U55: 875.8628 | V55: 0 | W55: 875.8628 | X55: 0.09087 | Y55: 79.58965264
A56: 51 | B56: 101.094.1717.010042 | C56: OGS TRAINING CENTER-OHD VINYL STRIPS | D56: 390.1 Structures & Improvements | E56: OFFICE BUILDINGS AND CNG (COMPRESSED NATURAL GAS) FACILITIES LOCATED ON COMPANY PROPERTY-ADDITIONS OR REPLACEMENTS | F56: All OGS Divisions | G56: All | H56: 2024-03-19 | I56: 2024-04-01 | J56: Addition | K56: 1060000 CCNC | M56: -2956 | R56: 0 | S56: -2956 | T56: 0.2963 | U56: -875.8628 | V56: 0 | W56: -875.8628 | X56: 0.09087 | Y56: -79.58965264
A57: 52 | B57: 101.094.1717.010044 | C57: SHAWNEE METER SHOP BACKUP EMERGENCY LIGHTING | D57: 390.1 Structures & Improvements | E57: OFFICE BUILDINGS AND CNG (COMPRESSED NATURAL GAS) FACILITIES LOCATED ON COMPANY PROPERTY-ADDITIONS OR REPLACEMENTS | F57: All OGS Divisions | G57: All | H57: 2024-05-01 | I57: 2024-05-01 | J57: Addition | K57: 1060000 CCNC | M57: 10044.86 | R57: 0 | S57: 10044.86 | T57: 0.2963 | U57: 2976.292018 | V57: 0 | W57: 2976.292018 | X57: 0.09087 | Y57: 270.4556557
A58: 53 | B58: 101.094.1717.010044 | C58: SHAWNEE METER SHOP BACKUP EMERGENCY LIGHTING | D58: 390.1 Structures & Improvements | E58: OFFICE BUILDINGS AND CNG (COMPRESSED NATURAL GAS) FACILITIES LOCATED ON COMPANY PROPERTY-ADDITIONS OR REPLACEMENTS | F58: All OGS Divisions | G58: All | H58: 2024-05-01 | I58: 2024-06-01 | J58: Addition | K58: 1010000 Plant In Service | M58: 9257.5 | R58: 0 | S58: 9257.5 | T58: 0.2963 | U58: 2742.99725 | V58: 0 | W58: 2742.99725 | X58: 0.09087 | Y58: 249.2561601
A59: 54 | B59: 101.094.1717.010044 | C59: SHAWNEE METER SHOP BACKUP EMERGENCY LIGHTING | D59: 390.1 Structures & Improvements | E59: OFFICE BUILDINGS AND CNG (COMPRESSED NATURAL GAS) FACILITIES LOCATED ON COMPANY PROPERTY-ADDITIONS OR REPLACEMENTS | F59: All OGS Divisions | G59: All | H59: 2024-05-01 | I59: 2024-06-01 | J59: Addition | K59: 1060000 CCNC | M59: -10044.86 | R59: 0 | S59: -10044.86 | T59: 0.2963 | U59: -2976.292018 | V59: 0 | W59: -2976.292018 | X59: 0.09087 | Y59: -270.4556557
A60: 55 | B60: 101.094.1717.010045 | C60: PSEC-FOGBC OGS - FIRST PLACE TOWER PARKING SURVEILLANCE ENHANCEMENT-2024 | D60: 390.1 Structures & Improvements | E60: OFFICE BUILDINGS AND CNG (COMPRESSED NATURAL GAS) FACILITIES LOCATED ON COMPANY PROPERTY-ADDITIONS OR REPLACEMENTS | F60: All OGS Divisions | G60: All | H60: 2024-09-02 | I60: 2024-09-01 | J60: Addition | K60: 1060000 CCNC | M60: 10750.44 | R60: 0 | S60: 10750.44 | T60: 0.2963 | U60: 3185.355372 | V60: 0 | W60: 3185.355372 | X60: 0.09087 | Y60: 289.4532427
A61: 56 | B61: 101.094.1717.010046 | C61: SHAWNEE METER SHOP RESTROOM REMODEL | D61: 390.1 Structures & Improvements | E61: OFFICE BUILDINGS AND CNG (COMPRESSED NATURAL GAS) FACILITIES LOCATED ON COMPANY PROPERTY-ADDITIONS OR REPLACEMENTS | F61: All OGS Divisions | G61: All | H61: 2024-04-30 | I61: 2024-08-01 | J61: Addition | K61: 1060000 CCNC | M61: 193663.23 | R61: 0 | S61: 193663.23 | T61: 0.2963 | U61: 57382.41505 | V61: 0 | W61: 57382.41505 | X61: 0.09087 | Y61: 5214.340056
A62: 57 | B62: 101.094.1717.010046 | C62: SHAWNEE METER SHOP RESTROOM REMODEL | D62: 390.1 Structures & Improvements | E62: OFFICE BUILDINGS AND CNG (COMPRESSED NATURAL GAS) FACILITIES LOCATED ON COMPANY PROPERTY-ADDITIONS OR REPLACEMENTS | F62: All OGS Divisions | G62: All | H62: 2024-04-30 | I62: 2024-09-01 | J62: Addition | K62: 1060000 CCNC | M62: -193663.23 | R62: 0 | S62: -193663.23 | T62: 0.2963 | U62: -57382.41505 | V62: 0 | W62: -57382.41505 | X62: 0.09087 | Y62: -5214.340056
A63: 58 | B63: 101.094.1717.010046 | C63: SHAWNEE METER SHOP RESTROOM REMODEL | D63: 390.1 Structures & Improvements | E63: OFFICE BUILDINGS AND CNG (COMPRESSED NATURAL GAS) FACILITIES LOCATED ON COMPANY PROPERTY-ADDITIONS OR REPLACEMENTS | F63: All OGS Divisions | G63: All | H63: 2024-04-30 | I63: 2024-11-01 | J63: Addition | K63: 1010000 Plant In Service | M63: 0 | R63: 0 | S63: 0 | T63: 0.2963 | U63: 0 | V63: 0 | W63: 0 | X63: 0.09087 | Y63: 0
A64: 59 | B64: 101.097.1717.010078 | C64: 2023 FIRST PLACE TOWER FACILITIES STORAGE ROOM SECURITY INSTALL | D64: 390.2 Leasehold Improvements | E64: LEASEHOLD IMPROVEMENTS | F64: All OGS Divisions | G64: All | H64: 2023-12-20 | I64: 2024-07-01 | J64: Addition | K64: 1060000 CCNC | M64: -2117.8 | R64: 0 | S64: -2117.8 | T64: 0.2963 | U64: -627.50414 | V64: 0 | W64: -627.50414 | X64: 0.09087 | Y64: -57.0213012
A65: 60 | B65: 101.097.1717.010078 | C65: 2023 FIRST PLACE TOWER FACILITIES STORAGE ROOM SECURITY INSTALL | D65: 391.1 Office Furniture & Equipment | E65: LEASEHOLD IMPROVEMENTS | F65: All OGS Divisions | G65: All | H65: 2023-12-20 | I65: 2024-07-01 | J65: Addition | K65: 1010000 Plant In Service | M65: -41.8 | R65: 0 | S65: -41.8 | T65: 0.2963 | U65: -12.38534 | V65: 0 | W65: -12.38534 | X65: 0.09087 | Y65: -1.125455846
A66: 61 | B66: 101.097.1717.010078 | C66: 2023 FIRST PLACE TOWER FACILITIES STORAGE ROOM SECURITY INSTALL | D66: 391.1 Office Furniture & Equipment | E66: LEASEHOLD IMPROVEMENTS | F66: All OGS Divisions | G66: All | H66: 2023-12-20 | I66: 2024-07-01 | J66: Addition | K66: 1010000 Plant In Service | L66: Duplicate Vertex Sales Tax | M66: 2159.6 | N66: -896.28 | R66: -896.28 | S66: 1263.32 | T66: 0.2963 | U66: 639.88948 | V66: -265.567764 | W66: 374.321716 | X66: 0.09087 | Y66: 34.01461433
A67: 62 | B67: 101.097.1717.010079 | C67: FIRST PLACE TOWER BASEMENT INFORMATION TECHNOLOGY ASSET ROOM & STORAGE ROOM ACCESS-2023 | D67: 390.2 Leasehold Improvements | E67: LEASEHOLD IMPROVEMENTS | F67: All OGS Divisions | G67: All | H67: 2023-12-20 | I67: 2024-07-01 | J67: Addition | K67: 1010000 Plant In Service | M67: -41.8 | R67: 0 | S67: -41.8 | T67: 0.2963 | U67: -12.38534 | V67: 0 | W67: -12.38534 | X67: 0.09087 | Y67: -1.125455846
A68: 63 | B68: 101.097.1717.010079 | C68: FIRST PLACE TOWER BASEMENT INFORMATION TECHNOLOGY ASSET ROOM & STORAGE ROOM ACCESS-2023 | D68: 390.2 Leasehold Improvements | E68: LEASEHOLD IMPROVEMENTS | F68: All OGS Divisions | G68: All | H68: 2023-12-20 | I68: 2024-07-01 | J68: Addition | K68: 1010000 Plant In Service | L68: Reversal of prior year adjustment activity was corrected in the 2024 test year. | M68: 2443.33 | Q68: -123.09 | R68: -123.09 | S68: 2320.24 | T68: 0.2963 | U68: 723.958679 | V68: -36.471567 | W68: 687.487112 | X68: 0.09087 | Y68: 62.47195387
A69: 64 | B69: 101.097.1717.010079 | C69: FIRST PLACE TOWER BASEMENT INFORMATION TECHNOLOGY ASSET ROOM & STORAGE ROOM ACCESS-2023 | D69: 390.2 Leasehold Improvements | E69: LEASEHOLD IMPROVEMENTS | F69: All OGS Divisions | G69: All | H69: 2023-12-20 | I69: 2024-07-01 | J69: Addition | K69: 1060000 CCNC | M69: -2401.53 | R69: 0 | S69: -2401.53 | T69: 0.2963 | U69: -711.573339 | V69: 0 | W69: -711.573339 | X69: 0.09087 | Y69: -64.66066931
A70: 65 | B70: 101.097.1717.010080 | C70: FIRST PLACE TOWER 34TH FLOOR OFFICE BUILD | D70: 390.2 Leasehold Improvements | E70: LEASEHOLD IMPROVEMENTS | F70: All OGS Divisions | G70: All | H70: 2023-12-01 | I70: 2024-01-01 | J70: Addition | K70: 1060000 CCNC | M70: -52285.54 | R70: 0 | S70: -52285.54 | T70: 0.2963 | U70: -15492.2055 | V70: 0 | W70: -15492.2055 | X70: 0.09087 | Y70: -1407.776714
A71: 66 | B71: 101.097.1717.010080 | C71: FIRST PLACE TOWER 34TH FLOOR OFFICE BUILD | D71: 391.1 Office Furniture & Equipment | E71: LEASEHOLD IMPROVEMENTS | F71: All OGS Divisions | G71: All | H71: 2023-12-01 | I71: 2024-01-01 | J71: Addition | K71: 1010000 Plant In Service | M71: 52285.54 | R71: 0 | S71: =M71+R71 -> 52285.54 | T71: 0.2963 | U71: =M71*T71 -> 15492.2055 | V71: 0 | W71: =U71+V71 -> 15492.2055 | X71: 0.09087 | Y71: =W71*X71 -> 1407.776714
A72: 67 | B72: 101.097.1717.010081 | C72: FIRST PLACE TOWER 26TH FLOOR ICE MACHINE REPLACEMENT | D72: 391.1 Office Furniture & Equipment | E72: LEASEHOLD IMPROVEMENTS | F72: All OGS Divisions | G72: All | H72: 2023-11-30 | I72: 2024-01-01 | J72: Addition | K72: 1010000 Plant In Service | M72: 11232.59 | R72: =SUM(N72:Q72) -> 0 | S72: 11232.59 | T72: 0.2963 | U72: 3328.216417 | V72: =R72*T72 -> 0 | W72: 3328.216417 | X72: 0.09087 | Y72: 302.4350258
A73: 68 | B73: 101.097.1717.010081 | C73: FIRST PLACE TOWER 26TH FLOOR ICE MACHINE REPLACEMENT | D73: 391.1 Office Furniture & Equipment | E73: LEASEHOLD IMPROVEMENTS | F73: All OGS Divisions | G73: All | H73: 2023-11-30 | I73: 2024-01-01 | J73: Addition | K73: 1060000 CCNC | M73: -11232.59 | R73: 0 | S73: -11232.59 | T73: 0.2963 | U73: -3328.216417 | V73: 0 | W73: -3328.216417 | X73: 0.09087 | Y73: -302.4350258
A74: 69 | B74: 101.097.1717.010081 | C74: FIRST PLACE TOWER 26TH FLOOR ICE MACHINE REPLACEMENT | D74: 391.1 Office Furniture & Equipment | E74: LEASEHOLD IMPROVEMENTS | F74: All OGS Divisions | G74: All | H74: 2023-11-30 | I74: 2024-09-01 | J74: Addition | K74: 1010000 Plant In Service | M74: -881.59 | R74: 0 | S74: -881.59 | T74: 0.2963 | U74: -261.215117 | V74: 0 | W74: -261.215117 | X74: 0.09087 | Y74: -23.73661768
A75: 70 | B75: 101.097.1717.010082 | C75: FIRST PLACE TOWER BREAKROOM LIGHT MOTION SENSORS | D75: 390.2 Leasehold Improvements | E75: LEASEHOLD IMPROVEMENTS | F75: All OGS Divisions | G75: All | H75: 2023-08-03 | I75: 2024-01-01 | J75: Addition | K75: 1010000 Plant In Service | L75: Miscoded Project Charges | M75: 15072.16 | R75: -1951 | S75: 13121.16 | T75: 0.2963 | U75: 4465.881008 | V75: -578.0813 | W75: 3887.799708 | X75: 0.09087 | Y75: 353.2843595
A76: 71 | B76: 101.097.1717.010082 | C76: FIRST PLACE TOWER BREAKROOM LIGHT MOTION SENSORS | D76: 390.2 Leasehold Improvements | E76: LEASEHOLD IMPROVEMENTS | F76: All OGS Divisions | G76: All | H76: 2023-12-01 | I76: 2024-01-01 | J76: Addition | K76: 1060000 CCNC | M76: -15072.16 | R76: 0 | S76: -15072.16 | T76: 0.2963 | U76: -4465.881008 | V76: 0 | W76: -4465.881008 | X76: 0.09087 | Y76: -405.8146072
A77: 72 | B77: 101.097.1717.010084 | C77: FIRST PLACE TOWER 31ST FLOOR LEGAL ADDITIONAL CUBICLES | D77: 390.2 Leasehold Improvements | E77: LEASEHOLD IMPROVEMENTS | F77: All OGS Divisions | G77: All | H77: 2023-12-01 | I77: 2024-01-01 | J77: Addition | K77: 1060000 CCNC | M77: -49168.86 | R77: 0 | S77: -49168.86 | T77: 0.2963 | U77: -14568.73322 | V77: 0 | W77: -14568.73322 | X77: 0.09087 | Y77: -1323.860788
A78: 73 | B78: 101.097.1717.010084 | C78: FIRST PLACE TOWER 31ST FLOOR LEGAL ADDITIONAL CUBICLES | D78: 391.1 Office Furniture & Equipment | E78: LEASEHOLD IMPROVEMENTS | F78: All OGS Divisions | G78: All | H78: 2023-12-01 | I78: 2024-01-01 | J78: Addition | K78: 1010000 Plant In Service | M78: 37014.17 | R78: 0 | S78: 37014.17 | T78: 0.2963 | U78: 10967.29857 | V78: 0 | W78: 10967.29857 | X78: 0.09087 | Y78: 996.5984211
A79: 74 | B79: 101.097.1717.010084 | C79: FIRST PLACE TOWER 31ST FLOOR LEGAL ADDITIONAL CUBICLES | D79: 391.1 Office Furniture & Equipment | E79: LEASEHOLD IMPROVEMENTS | F79: All OGS Divisions | G79: All | H79: 2023-12-01 | I79: 2024-01-01 | J79: Addition | K79: 1010000 Plant In Service | L79: Insufficient Support | M79: 12154.69 | Q79: -1544.03 | R79: -1544.03 | S79: 10610.66 | T79: 0.2963 | U79: 3601.434647 | V79: -457.496089 | W79: 3143.938558 | X79: 0.09087 | Y79: 285.6896968
A80: 75 | B80: 101.097.1717.010085 | C80: FIRST PLACE TOWER 2ND FLOOR ELEVATOR LOBBY LIGHT UPGRADE | D80: 390.2 Leasehold Improvements | E80: LEASEHOLD IMPROVEMENTS | F80: All OGS Divisions | G80: All | H80: 2023-12-01 | I80: 2024-01-01 | J80: Addition | K80: 1010000 Plant In Service | M80: 32863.3 | R80: 0 | S80: 32863.3 | T80: 0.2963 | U80: 9737.39579 | V80: 0 | W80: 9737.39579 | X80: 0.09087 | Y80: 884.8371554
A81: 76 | B81: 101.097.1717.010085 | C81: FIRST PLACE TOWER 2ND FLOOR ELEVATOR LOBBY LIGHT UPGRADE | D81: 390.2 Leasehold Improvements | E81: LEASEHOLD IMPROVEMENTS | F81: All OGS Divisions | G81: All | H81: 2023-12-01 | I81: 2024-01-01 | J81: Addition | K81: 1060000 CCNC | M81: -32863.3 | R81: 0 | S81: -32863.3 | T81: 0.2963 | U81: -9737.39579 | V81: 0 | W81: -9737.39579 | X81: 0.09087 | Y81: -884.8371554
A82: 77 | B82: 101.097.1717.010086 | C82: FIRST PLACE TOWER PRINTER ROOM LIGHT MOTION SENSORS | D82: 390.2 Leasehold Improvements | E82: LEASEHOLD IMPROVEMENTS | F82: All OGS Divisions | G82: All | H82: 2023-12-01 | I82: 2024-01-01 | J82: Addition | K82: 1010000 Plant In Service | M82: 5996.91 | R82: 0 | S82: 5996.91 | T82: 0.2963 | U82: 1776.884433 | V82: 0 | W82: 1776.884433 | X82: 0.09087 | Y82: 161.4654884
A83: 78 | B83: 101.097.1717.010086 | C83: FIRST PLACE TOWER PRINTER ROOM LIGHT MOTION SENSORS | D83: 390.2 Leasehold Improvements | E83: LEASEHOLD IMPROVEMENTS | F83: All OGS Divisions | G83: All | H83: 2023-12-01 | I83: 2024-01-01 | J83: Addition | K83: 1060000 CCNC | M83: -5996.91 | R83: 0 | S83: -5996.91 | T83: 0.2963 | U83: -1776.884433 | V83: 0 | W83: -1776.884433 | X83: 0.09087 | Y83: -161.4654884
A84: 79 | B84: 101.097.1717.010087 | C84: FPT 23RD FLOOR REMODEL | D84: 391.1 Office Furniture & Equipment | E84: LEASEHOLD IMPROVEMENTS | F84: All OGS Divisions | G84: All | H84: 2024-05-31 | I84: 2024-06-01 | J84: Addition | K84: 1010000 Plant In Service | M84: 275985.77 | R84: 0 | S84: 275985.77 | T84: 0.2963 | U84: 81774.58365 | V84: 0 | W84: 81774.58365 | X84: 0.09087 | Y84: 7430.856416
A85: 80 | B85: 101.097.1717.010088 | C85: FPT 29TH AND 30TH FLOOR DIRECTORS OFFICES AND LOCKERS | D85: 390.2 Leasehold Improvements | E85: LEASEHOLD IMPROVEMENTS | F85: All OGS Divisions | G85: All | H85: 2024-04-19 | I85: 2024-08-01 | J85: Addition | K85: 1060000 CCNC | M85: 71585.89 | R85: 0 | S85: 71585.89 | T85: 0.2963 | U85: 21210.89921 | V85: 0 | W85: 21210.89921 | X85: 0.09087 | Y85: 1927.434411
A86: 81 | B86: 101.097.1717.010088 | C86: FPT 29TH AND 30TH FLOOR DIRECTORS OFFICES AND LOCKERS | D86: 390.2 Leasehold Improvements | E86: LEASEHOLD IMPROVEMENTS | F86: All OGS Divisions | G86: All | H86: 2024-04-19 | I86: 2024-09-01 | J86: Addition | K86: 1010000 Plant In Service | L86: Miscoded Project Charges | M86: 71585.89 | R86: -7250 | S86: 64335.89 | T86: 0.2963 | U86: 21210.89921 | V86: -2148.175 | W86: 19062.72421 | X86: 0.09087 | Y86: 1732.229749
A87: 82 | B87: 101.097.1717.010088 | C87: FPT 29TH AND 30TH FLOOR DIRECTORS OFFICES AND LOCKERS | D87: 390.2 Leasehold Improvements | E87: LEASEHOLD IMPROVEMENTS | F87: All OGS Divisions | G87: All | H87: 2024-04-19 | I87: 2024-09-01 | J87: Addition | K87: 1060000 CCNC | M87: -71585.89 | R87: 0 | S87: -71585.89 | T87: 0.2963 | U87: -21210.89921 | V87: 0 | W87: -21210.89921 | X87: 0.09087 | Y87: -1927.434411
A88: 83 | B88: 101.097.1717.010089 | C88: FPT 28TH FLOOR REMODEL-ACCOUNTING DEPARTMENT | D88: 390.2 Leasehold Improvements | E88: LEASEHOLD IMPROVEMENTS | F88: All OGS Divisions | G88: All | H88: 2024-07-01 | I88: 2024-08-01 | J88: Addition | K88: 1060000 CCNC | M88: 186504.09 | R88: 0 | S88: 186504.09 | T88: 0.2963 | U88: 55261.16187 | V88: 0 | W88: 55261.16187 | X88: 0.09087 | Y88: 5021.581779
A89: 84 | B89: 101.097.1717.010089 | C89: FPT 28TH FLOOR REMODEL-ACCOUNTING DEPARTMENT | D89: 390.2 Leasehold Improvements | E89: LEASEHOLD IMPROVEMENTS | F89: All OGS Divisions | G89: All | H89: 2024-07-01 | I89: 2024-09-01 | J89: Addition | K89: 1010000 Plant In Service | L89: Insufficient Support | M89: 9227.4 | Q89: -44.44 | R89: -44.44 | S89: 9182.96 | T89: 0.2963 | U89: 2734.07862 | V89: -13.167572 | W89: 2720.911048 | X89: 0.09087 | Y89: 247.2491869
A90: 85 | B90: 101.097.1717.010089 | C90: FPT 28TH FLOOR REMODEL-ACCOUNTING DEPARTMENT | D90: 390.2 Leasehold Improvements | E90: LEASEHOLD IMPROVEMENTS | F90: All OGS Divisions | G90: All | H90: 2024-07-01 | I90: 2024-09-01 | J90: Addition | K90: 1060000 CCNC | M90: -186504.09 | R90: 0 | S90: -186504.09 | T90: 0.2963 | U90: -55261.16187 | V90: 0 | W90: -55261.16187 | X90: 0.09087 | Y90: -5021.581779
A91: 86 | B91: 101.097.1717.010089 | C91: FPT 28TH FLOOR REMODEL-ACCOUNTING DEPARTMENT | D91: 391.1 Office Furniture & Equipment | E91: LEASEHOLD IMPROVEMENTS | F91: All OGS Divisions | G91: All | H91: 2024-05-31 | I91: 2024-09-01 | J91: Addition | K91: 1010000 Plant In Service | M91: 168750.66 | R91: 0 | S91: 168750.66 | T91: 0.2963 | U91: 50000.82056 | V91: 0 | W91: 50000.82056 | X91: 0.09087 | Y91: 4543.574564
A92: 87 | B92: 101.097.1717.010089 | C92: FPT 28TH FLOOR REMODEL-ACCOUNTING DEPARTMENT | D92: 391.1 Office Furniture & Equipment | E92: LEASEHOLD IMPROVEMENTS | F92: All OGS Divisions | G92: All | H92: 2024-07-01 | I92: 2024-09-01 | J92: Addition | K92: 1010000 Plant In Service | M92: 8526.03 | R92: 0 | S92: 8526.03 | T92: 0.2963 | U92: 2526.262689 | V92: 0 | W92: 2526.262689 | X92: 0.09087 | Y92: 229.5614905
A93: 88 | B93: 101.100.1502.010103 | C93: REMOTE SITE SERVER AND STORAGE REPLACEMENT 2021 | D93: 391.8 Micro Computer Software | E93: HARDWARE | F93: All OGS Divisions | G93: All | H93: 2023-02-01 | I93: 2024-03-01 | J93: Transfer | K93: 1010000 Plant In Service | M93: -313777.78 | R93: 0 | S93: -313777.78 | T93: 0.2963 | U93: -92972.35621 | V93: 0 | W93: -92972.35621 | X93: 0.09087 | Y93: -8448.398009
A94: 89 | B94: 101.100.1502.010103 | C94: REMOTE SITE SERVER AND STORAGE REPLACEMENT 2021 | D94: 391.8 Micro Computer Software | E94: HARDWARE | F94: All OGS Divisions | G94: All | H94: 2023-02-01 | I94: 2024-05-01 | J94: Adjustment | K94: 1010000 Plant In Service | M94: -209185.18 | R94: 0 | S94: -209185.18 | T94: 0.2963 | U94: -61981.56883 | V94: 0 | W94: -61981.56883 | X94: 0.09087 | Y94: -5632.26516
A95: 90 | B95: 101.100.1502.010114 | C95: NETWORK FILE SYSTEM STORAGE REPLACEMENT | D95: 391.6 Purchased Software | E95: HARDWARE | F95: All OGS Divisions | G95: All | H95: 2023-11-01 | I95: 2024-12-01 | J95: Addition | K95: 1060000 CCNC | M95: -234294.89 | R95: 0 | S95: -234294.89 | T95: 0.2963 | U95: -69421.57591 | V95: 0 | W95: -69421.57591 | X95: 0.09087 | Y95: -6308.338603
A96: 91 | B96: 101.100.1502.010114 | C96: NETWORK FILE SYSTEM STORAGE REPLACEMENT | D96: 391.8 Micro Computer Software | E96: HARDWARE | F96: All OGS Divisions | G96: All | H96: 2023-06-01 | I96: 2024-12-01 | J96: Addition | K96: 1010000 Plant In Service | M96: 234294.89 | R96: 0 | S96: 234294.89 | T96: 0.2963 | U96: 69421.57591 | V96: 0 | W96: 69421.57591 | X96: 0.09087 | Y96: 6308.338603
A97: 92 | B97: 101.100.1502.010116 | C97: UNIFIED ENDPOINT MANAGEMENT VMWARE WORKSPACE ONE | D97: 391.99 Cloud Computing | E97: HARDWARE | F97: All OGS Divisions | G97: All | H97: 2023-06-01 | I97: 2024-03-01 | J97: Addition | K97: 1010000 Plant In Service | M97: -1499.19 | R97: 0 | S97: -1499.19 | T97: 0.2963 | U97: -444.209997 | V97: 0 | W97: -444.209997 | X97: 0.09087 | Y97: -40.36536243
A98: 93 | B98: 101.100.1502.010116 | C98: UNIFIED ENDPOINT MANAGEMENT VMWARE WORKSPACE ONE | D98: 391.99 Cloud Computing | E98: HARDWARE | F98: All OGS Divisions | G98: All | H98: 2023-06-01 | I98: 2024-03-01 | J98: Adjustment | K98: 1010000 Plant In Service | M98: 1499.19 | R98: 0 | S98: 1499.19 | T98: 0.2963 | U98: 444.209997 | V98: 0 | W98: 444.209997 | X98: 0.09087 | Y98: 40.36536243
A99: 94 | B99: 101.100.1502.010116 | C99: UNIFIED ENDPOINT MANAGEMENT VMWARE WORKSPACE ONE | D99: 391.99 Cloud Computing | E99: HARDWARE | F99: All OGS Divisions | G99: All | H99: 2023-12-01 | I99: 2024-03-01 | J99: Addition | K99: 1010000 Plant In Service | M99: 1986.41 | R99: 0 | S99: 1986.41 | T99: 0.2963 | U99: 588.573283 | V99: 0 | W99: 588.573283 | X99: 0.09087 | Y99: 53.48365423
A100: 95 | B100: 101.100.1502.010116 | C100: UNIFIED ENDPOINT MANAGEMENT VMWARE WORKSPACE ONE | D100: 391.99 Cloud Computing | E100: HARDWARE | F100: All OGS Divisions | G100: All | H100: 2023-12-01 | I100: 2024-08-01 | J100: Addition | K100: 1010000 Plant In Service | M100: 259.12 | R100: 0 | S100: 259.12 | T100: 0.2963 | U100: 76.777256 | V100: 0 | W100: 76.777256 | X100: 0.09087 | Y100: 6.976749253
A101: 96 | B101: 101.100.1502.010129 | C101: OPERATIONS SMARTPHONE REPLACEMENT 2022 | D101: 391.8 Micro Computer Software | E101: HARDWARE | F101: All OGS Divisions | G101: All | H101: 2023-06-01 | I101: 2024-03-01 | J101: Transfer | K101: 1010000 Plant In Service | M101: -180325.63 | R101: 0 | S101: -180325.63 | T101: 0.2963 | U101: -53430.48417 | V101: 0 | W101: -53430.48417 | X101: 0.09087 | Y101: -4855.228096
A102: 97 | B102: 101.100.1502.010129 | C102: OPERATIONS SMARTPHONE REPLACEMENT 2022 | D102: 391.8 Micro Computer Software | E102: HARDWARE | F102: All OGS Divisions | G102: All | H102: 2023-06-01 | I102: 2024-05-01 | J102: Adjustment | K102: 1010000 Plant In Service | M102: -61581.68 | R102: 0 | S102: -61581.68 | T102: 0.2963 | U102: -18246.65178 | V102: 0 | W102: -18246.65178 | X102: 0.09087 | Y102: -1658.073248
A103: 98 | B103: 101.100.1502.010133 | C103: OKC DISASTER RECOVERY SERVER CHASSIS REPLACEMENT 2022 | D103: 391.6 Purchased Software | E103: HARDWARE | F103: All OGS Divisions | G103: All | H103: 2023-11-01 | I103: 2024-01-01 | J103: Addition | K103: 1060000 CCNC | M103: 687.75 | R103: 0 | S103: 687.75 | T103: 0.2963 | U103: 203.780325 | V103: 0 | W103: 203.780325 | X103: 0.09087 | Y103: 18.51751813
A104: 99 | B104: 101.100.1502.010133 | C104: OKC DISASTER RECOVERY SERVER CHASSIS REPLACEMENT 2022 | D104: 391.6 Purchased Software | E104: HARDWARE | F104: All OGS Divisions | G104: All | H104: 2023-11-01 | I104: 2024-03-01 | J104: Addition | K104: 1060000 CCNC | M104: 143.38 | R104: 0 | S104: 143.38 | T104: 0.2963 | U104: 42.483494 | V104: 0 | W104: 42.483494 | X104: 0.09087 | Y104: 3.8604751
A105: 100 | B105: 101.100.1502.010133 | C105: OKC DISASTER RECOVERY SERVER CHASSIS REPLACEMENT 2022 | D105: 391.6 Purchased Software | E105: HARDWARE | F105: All OGS Divisions | G105: All | H105: 2023-11-01 | I105: 2024-07-01 | J105: Addition | K105: 1060000 CCNC | M105: 1432.42 | R105: 0 | S105: 1432.42 | T105: 0.2963 | U105: 424.426046 | V105: 0 | W105: 424.426046 | X105: 0.09087 | Y105: 38.5675948
A106: 101 | B106: 101.100.1502.010133 | C106: OKC DISASTER RECOVERY SERVER CHASSIS REPLACEMENT 2022 | D106: 391.6 Purchased Software | E106: HARDWARE | F106: All OGS Divisions | G106: All | H106: 2023-11-01 | I106: 2024-08-01 | J106: Addition | K106: 1060000 CCNC | M106: 240.05 | R106: 0 | S106: 240.05 | T106: 0.2963 | U106: 71.126815 | V106: 0 | W106: 71.126815 | X106: 0.09087 | Y106: 6.463293679
A107: 102 | B107: 101.100.1502.010133 | C107: OKC DISASTER RECOVERY SERVER CHASSIS REPLACEMENT 2022 | D107: 391.6 Purchased Software | E107: HARDWARE | F107: All OGS Divisions | G107: All | H107: 2023-11-01 | I107: 2024-09-01 | J107: Addition | K107: 1060000 CCNC | M107: 21951.31 | R107: 0 | S107: 21951.31 | T107: 0.2963 | U107: 6504.173153 | V107: 0 | W107: 6504.173153 | X107: 0.09087 | Y107: 591.0342144
A108: 103 | B108: 101.100.1502.010133 | C108: OKC DISASTER RECOVERY SERVER CHASSIS REPLACEMENT 2022 | D108: 391.6 Purchased Software | E108: HARDWARE | F108: All OGS Divisions | G108: All | H108: 2023-11-01 | I108: 2024-10-01 | J108: Addition | K108: 1060000 CCNC | M108: 309.55 | R108: 0 | S108: 309.55 | T108: 0.2963 | U108: 91.719665 | V108: 0 | W108: 91.719665 | X108: 0.09087 | Y108: 8.334565959
A109: 104 | B109: 101.100.1502.010139 | C109: LAPTOP AND DESKTOP END OF LIFE REPLACEMENT 2022 PHASE II | D109: 391.6 Purchased Software | E109: HARDWARE | F109: All OGS Divisions | G109: All | H109: 2023-12-19 | I109: 2024-12-01 | J109: Addition | K109: 1060000 CCNC | M109: -2102494.54 | R109: 0 | S109: -2102494.54 | T109: 0.2963 | U109: -622969.1322 | V109: 0 | W109: -622969.1322 | X109: 0.09087 | Y109: -56609.20504
A110: 105 | B110: 101.100.1502.010139 | C110: LAPTOP AND DESKTOP END OF LIFE REPLACEMENT 2022 PHASE II | D110: 391.8 Micro Computer Software | E110: HARDWARE | F110: All OGS Divisions | G110: All | H110: 2023-06-01 | I110: 2024-12-01 | J110: Addition | K110: 1010000 Plant In Service | M110: 2102494.54 | R110: 0 | S110: 2102494.54 | T110: 0.2963 | U110: 622969.1322 | V110: 0 | W110: 622969.1322 | X110: 0.09087 | Y110: 56609.20504
A111: 106 | B111: 101.100.1502.010144 | C111: SERVER HARDWARE REPLACEMENT 2022 | D111: 391.6 Purchased Software | E111: HARDWARE | F111: All OGS Divisions | G111: All | H111: 2024-04-05 | I111: 2024-04-01 | J111: Addition | K111: 1060000 CCNC | M111: 724286.25 | R111: 0 | S111: 724286.25 | T111: 0.2963 | U111: 214606.0159 | V111: 0 | W111: 214606.0159 | X111: 0.09087 | Y111: 19501.24866
A112: 107 | B112: 101.100.1502.010147 | C112: PORTABLE MEDIA SOLUTION PHASE 1 | D112: 391.6 Purchased Software | E112: HARDWARE | F112: All OGS Divisions | G112: All | H112: 2023-02-01 | I112: 2024-12-01 | J112: Addition | K112: 1010000 Plant In Service | M112: 180458.56 | R112: 0 | S112: 180458.56 | T112: 0.2963 | U112: 53469.87133 | V112: 0 | W112: 53469.87133 | X112: 0.09087 | Y112: 4858.807208
A113: 108 | B113: 101.100.1502.010147 | C113: PORTABLE MEDIA SOLUTION PHASE 1 | D113: 391.6 Purchased Software | E113: HARDWARE | F113: All OGS Divisions | G113: All | H113: 2023-12-01 | I113: 2024-03-01 | J113: Addition | K113: 1060000 CCNC | M113: 1110.58 | R113: 0 | S113: 1110.58 | T113: 0.2963 | U113: 329.064854 | V113: 0 | W113: 329.064854 | X113: 0.09087 | Y113: 29.90212328
A114: 109 | B114: 101.100.1502.010147 | C114: PORTABLE MEDIA SOLUTION PHASE 1 | D114: 391.6 Purchased Software | E114: HARDWARE | F114: All OGS Divisions | G114: All | H114: 2023-12-01 | I114: 2024-12-01 | J114: Addition | K114: 1060000 CCNC | M114: -180458.56 | R114: 0 | S114: -180458.56 | T114: 0.2963 | U114: -53469.87133 | V114: 0 | W114: -53469.87133 | X114: 0.09087 | Y114: -4858.807208
